Workbook

Sheet Welcome
Z1: ImpactNow
B7: Version 1.7 - 15 October 2015
Z28: 0
Z29: 0
Z30: 1

Sheet Configuration
J9: y
D10: Pays | F10: Kenya | I10: Local Currency | Y10: =MATCH(ConCountry,List_Countries,0)+5 -> 20 | Z10: Kenya
D12: Première année | F12: 2011 | I12: Conversion Rate | Z12: 2011
D14: Dernière année | F14: 2020 | Z14: 2020
K17: 1
E18: Choisissez le groupe de femmes que vous voulez inclure dans votre analyse | J18: Choisissez un objectif politique pour configurer vos sorties
Z19: 1 | AA19: 3 | AB19: 1 | AC19: 3

Sheet Input_Usual_Health
D5: Indicateurs de santé:
D6: =CONCATENATE("D5",inUsualName) -> D5Usual
D11: Scenario Name | F11: Usual
Q12: 2
M13: Entrées | O13: Commentaires/Sources
D14: % de femmes qui vivent en union | M14: 0.583 | O14: 2009 DHS
D15: Taux d’avortement (pour 100 naissances vivantes) | M15: 20.6887007 | O15: WHO Unsafe Abortion (2008) and Guttmacher Institute special tabulations (2012)
D16: Mort-nés (pour 1000 naissances vivantes) | M16: 21.8173 | O16: Cousens 2011
D17: taux d’avortement à risque (pour 100 naissances vivantes) | M17: 19.81154113 | O17: WHO Unsafe Abortion (2008) and Guttmacher Institute special tabulations (2012)
D18: % d'avortements à risques nécessitant les SAA | M18: 0.42 | O18: Adding it up methodology
D19: % des grossesses non-désirées qui se terminent par un avortement | M19: 0.31 | O19: Sedgh et al. Intended and Unintended Pregnancies Worldwide, Studies in Family Planning 2014; 45(3): 301-314
AD20: 1
D21: paramètres | H21: =Configuration!$F$12 -> 2011 | J21: =Configuration!$F$14 -> 2020 | L21: Commentaires/Sources
D22: les femmes de 15 à 49 ans | H22: 10180175 | J22: 13218940 | L22: UN Population Prospects 2010 Revision
D23: taux de mortalité maternelle | H23: 444 | J23: 300 | L23: Interpolation | Y23: paramètres | AD23: =inUsualName -> Usual
Y24: Parameter | Z24: Default Y1 | AA24: Default End | AB24: Comment | AD24: =ConStartYr -> 2011 | AE24: =IFERROR(IF(AD24+1<=ConEndYr,AD24+1,""),"") -> 2012 | AF24: 2013 | AG24: 2014 | AH24: 2015 | AI24: 2016 | AJ24: 2017 | AK24: 2018 | AL24: 2019 | AM24: 2020 | AO24: Slope | AP24: Intercept
D25: Ecart interquartile plausible pour le taux de grossesse des femmes ayant un besoin non satisfait | Y25: les femmes de 15 à 49 ans | Z25: =INDEX(srcAllData,ConCountryRow,MATCH("WRA"&ConStartYr,srcParam1,0)+3) -> 10180175 | AA25: =INDEX(srcAllData,ConCountryRow,MATCH("WRA"&ConEndYr,srcParam1,0)+3) -> 13218940 | AB25: =INDEX(default_database!2:5,4,MATCH("TFR"&ConStartYr,srcParam1,0)) -> UN Population Prospects 2010 Revision | AD25: =inUsualS15 -> 10180175 | AE25: =IFERROR(inUsualYr2*inUsualSlope1+inUsualInter1,"") -> 10517815.56 | AF25: =IFERROR(inUsualYr3*inUsualSlope1+inUsualInter1,"") -> 10855456.11 | AG25: =IFERROR(inUsualYr4*inUsualSlope1+inUsualInter1,"") -> 11193096.67 | AH25: =IFERROR(inUsualYr5*inUsualSlope1+inUsualInter1,"") -> 11530737.22 | AI25: =IFERROR(inUsualYr6*inUsualSlope1+inUsualInter1,"") -> 11868377.78 | AJ25: =IFERROR(inUsualYr7*inUsualSlope1+inUsualInter1,"") -> 12206018.33 | AK25: =IFERROR(inUsualYr8*inUsualSlope1+inUsualInter1,"") -> 12543658.89 | AL25: =IFERROR(inUsualYr9*inUsualSlope1+inUsualInter1,"") -> 12881299.44 | AM25: =IFERROR(inUsualYr10*inUsualSlope1+inUsualInter1,"") -> 13218940 | AO25: =(inUsualS19-inUsualS15)/(ConEndYr-ConStartYr) -> 337640.5556 | AP25: =inUsualS15-(inUsualSlope1*ConStartYr) -> -668814982.2
Y26: taux de mortalité maternelle | Z26: =INDEX(srcAllData,ConCountryRow,MATCH("MMR"&ConStartYr,srcParam1,0)+3) -> 444 | AA26: =INDEX(srcAllData,ConCountryRow,MATCH("MMR"&ConEndYr,srcParam1,0)+3) -> 300 | AB26: =INDEX(default_database!2:5,4,MATCH("MMR"&ConStartYr,srcParam1,0)) -> Interpolation | AD26: =IFERROR(inUsualYr1*inUsualSlope2+inUsualInter2,"") -> 444 | AE26: =IFERROR(inUsualYr2*inUsualSlope2+inUsualInter2,"") -> 428 | AF26: =IFERROR(inUsualYr3*inUsualSlope2+inUsualInter2,"") -> 412 | AG26: =IFERROR(inUsualYr4*inUsualSlope2+inUsualInter2,"") -> 396 | AH26: =IFERROR(inUsualYr5*inUsualSlope2+inUsualInter2,"") -> 380 | AI26: =IFERROR(inUsualYr6*inUsualSlope2+inUsualInter2,"") -> 364 | AJ26: =IFERROR(inUsualYr7*inUsualSlope2+inUsualInter2,"") -> 348 | AK26: =IFERROR(inUsualYr8*inUsualSlope2+inUsualInter2,"") -> 332 | AL26: =IFERROR(inUsualYr9*inUsualSlope2+inUsualInter2,"") -> 316 | AM26: =IFERROR(inUsualYr10*inUsualSlope2+inUsualInter2,"") -> 300 | AO26: =(inUsualS20-inUsualS16)/(ConEndYr-ConStartYr) -> -16 | AP26: =inUsualS16-(inUsualSlope2*ConStartYr) -> 32620
M38: 15 | N38: 1
M39: 16 | N39: =N38 -> 1
M40: 17 | N40: =N39 -> 1
M41: 18 | N41: =N40 -> 1
M42: 19 | N42: =N41 -> 1
M43: 20 | N43: 1.5
M44: 21 | N44: =N43 -> 1.5
M45: 22 | N45: =N44 -> 1.5
M46: 23 | N46: =N45 -> 1.5
M47: 24 | N47: =N46 -> 1.5
M48: 25 | N48: 1.3
M49: 26 | N49: =N48 -> 1.3
M50: 27 | N50: =N49 -> 1.3
M51: 28 | N51: =N50 -> 1.3
M52: 29 | N52: =N51 -> 1.3
M53: 30 | N53: 1.1
M54: 31 | N54: =N53 -> 1.1
M55: 32 | N55: =N54 -> 1.1
M56: 33 | N56: =N55 -> 1.1
M57: 34 | N57: =N56 -> 1.1
M58: 35 | N58: 1
M59: 36 | N59: =N58 -> 1
M60: 37 | N60: =N59 -> 1
M61: 38 | N61: =N60 -> 1
M62: 39 | N62: =N61 -> 1
M63: 40 | N63: 0.6
M64: 41 | N64: =N63 -> 0.6
M65: 42 | N65: =N64 -> 0.6
M66: 43 | N66: =N65 -> 0.6
M67: 44 | N67: =N66 -> 0.6
M68: 45 | N68: 0.1
M69: 46 | N69: =N68 -> 0.1
M70: 47 | N70: =N69 -> 0.1
M71: 48 | N71: =N70 -> 0.1
M72: 49 | N72: =N71 -> 0.1

Sheet Input_Usual_Con
D5: Efficacité des contraceptifs:
D6: =CONCATENATE(D5,inUsualName) -> Efficacité des contraceptifs:Usual
D12: Efficacité des contraceptifs pour
E13: Préservatif masculin | L13: 0.902 | O13: Cleland J, Ali MM and Shah I. 2006. “Dynamics of contraceptive use”, in: UN Department of Economic and Social Affairs, Population Division, Levels and Trends of Contraceptive Use as Assessed in 2002, pp. 87–115, Table 22, page 98.
E14: Contraceptif injectable | L14: 0.971 | O14: Cleland J, Ali MM and Shah I. 2006. “Dynamics of contraceptive use”, in: UN Department of Economic and Social Affairs, Population Division, Levels and Trends of Contraceptive Use as Assessed in 2002, pp. 87–115, Table 22, page 98.
E15: Pilule | L15: 0.931 | O15: Cleland J, Ali MM and Shah I. 2006. “Dynamics of contraceptive use”, in: UN Department of Economic and Social Affairs, Population Division, Levels and Trends of Contraceptive Use as Assessed in 2002, pp. 87–115, Table 22, page 98.
E16: Stérilisation masculine | L16: 0.9998 | O16: Trussell J. 2007. Contraceptive efficacy, in: Hatcher RA et al., eds., Contraceptive Technology, 19th ed., New York: Ardent Media.
E17: Stérilisation féminine | L17: 0.9995 | O17: Trussell J. 2007. Contraceptive efficacy, in: Hatcher RA et al., eds., Contraceptive Technology, 19th ed., New York: Ardent Media.
E18: DIU | L18: 0.984 | O18: Cleland J, Ali MM and Shah I. 2006. “Dynamics of contraceptive use”, in: UN Department of Economic and Social Affairs, Population Division, Levels and Trends of Contraceptive Use as Assessed in 2002, pp. 87–115, Table 22, page 98.
E19: Implant | L19: 0.9995 | O19: Trussell J. 2007. Contraceptive efficacy, in: Hatcher RA et al., eds., Contraceptive Technology, 19th ed., New York: Ardent Media.
E20: Méthode des jours fixes (MJF) ou Méthode collier | L20: 0.88 | O20: Arevalo, Marcos, Jennings V and Sinai I. 2002. “Efficacy of a new method of family planning: the Standard Days Method,” Contraception 65 (2002) 333–338.
E21: Autre moderne | L21: 0.95 | O21: Assumption
E22: Toutes traditionnelles | L22: 0.8165 | O22: Cleland J, Ali MM and Shah I. 2006. “Dynamics of contraceptive use”, in: UN Department of Economic and Social Affairs, Population Division, Levels and Trends of Contraceptive Use as Assessed in 2002, pp. 87–115, Table 22, page 98.
E23: Autres spécifiques au pays

Sheet Input_Usual_Age
A1: =AppName -> ImpactNow
D5: Age médian de l’utilisation des contraceptifs:
D6: =CONCATENATE(D5,inUsualName) -> Age médian de l’utilisation des contraceptifs:Usual
D16: Age médian de l’utilisation des
E17: Stérilisation féminine | L17: 32 | O17: DHS
E18: DIU | L18: 30 | O18: Assumption
E19: Implant | L19: 30 | O19: Assumption
E20: Méthode des jours fixes (MJF) ou Méthode collier | L20: 30 | O20: Assumption

Sheet Input_Usual_UtlPreg
D5: Utilisation des soins de santé par grossesse:
D6: =CONCATENATE(D5,inUsualName) -> Utilisation des soins de santé par grossesse: Usual
P12: 2 | Z12: 2
D14: Traitement | J14: % de femmes enceintes exigeant des soins pour : | M14: % de femmes exigeant des soins qui y ont accès: | P14: Coûts associés au traitement de:
J15: % | K15: Remarques | M15: % | N15: Remarques | P15: DEU | Q15: Remarques | Z15: Coûts
D16: Soins prénatals- CPN | J16: 1 | K16: RHCT | M16: 0.42 | N16: Adding it up report, 2012 (pg.23) | P16: 17.3254961 | Q16: RHCT | Z16: =J16*M16*P16 -> 7.276708362
D17: Traitement d’anémia sévère | J17: 0.47 | K17: RHCT | M17: 0.5 | N17: Assumption | P17: 0.05657586716 | Q17: RHCT | Z17: 0.01329532878
D18: Hypertension artérielle sur de grossesse | J18: 0.06428 | K18: RHCT | M18: 0.5 | N18: Assumption | P18: 7.488980591 | Q18: RHCT | Z18: 0.2406958362
D19: Prévention du paludisme dans la CPN | J19: 1 | K19: RHCT | M19: 0.412000001 | N19: CHERG/OneHealth 2012 | P19: 7.245336399 | Q19: RHCT | Z19: 2.985078604
D20: Traitement du paludisme dans la CPN (0 si toutes les femmes reçoivent CPN) | J20: 0 | K20: RHCT | M20: 0.5 | N20: Assumption | P20: 22.3286142 | Q20: RHCT | Z20: 0
D21: Infections urinaires | J21: 0.25 | K21: RHCT | M21: 0.104 | N21: CHERG/OneHealth 2012 | P21: 0.700098233 | Q21: RHCT | Z21: 0.01820255406
Y22: AvgTreatment costs per pregnancy | Z22: =SUM(Z16:Z21) -> 10.53398069

Sheet Input_Usual_UtlBirth
D5: Utilisation des soins de santé par naissance:
D6: =CONCATENATE(D5,inUsualName) -> Utilisation des soins de santé par naissance:Usual
Z12: 2
D14: Traitement | J14: % de naissances exigeant des soins | M14: % de naissances exigeant des soins qui y ont accès: | P14: Coûts associés au traitement de:
J15: % | K15: Remarques | M15: % | N15: Remarques | P15: DEU | Q15: Remarques | Z15: Coûts
D16: Soins à l’accouchement | J16: 1 | K16: RHCT | M16: 0.4377 | N16: CHERG/OneHealth 2012 | P16: 9.909714054 | Q16: RHCT | Z16: =J16*M16*P16 -> 4.337481841
D17: Soins du post-partum | J17: 1 | K17: RHCT | M17: 0.0689296 | N17: CHERG/OneHealth 2012 | P17: 1.28952268 | Q17: RHCT | Z17: =J17*M17*P17 -> 0.08888628255
D18: Soins d'urgence avant transfert | J18: 0.2 | K18: RHCT | M18: 0.5 | N18: Assumption | P18: 77.5315472 | Q18: RHCT | Z18: 7.75315472
D19: Rupture prématurée des membranes (RPM) | J19: 0.1 | K19: RHCT | M19: 0.5 | N19: CHERG/OneHealth 2012 | P19: 46.80462406 | Q19: RHCT | Z19: 2.340231203
D20: Travail prolongé (>18 heures) | J20: 0.079392 | K20: RHCT | M20: 0.5 | N20: Assumption | P20: 7.901611531 | Q20: RHCT | Z20: 0.3136623713
D21: Accouchement avec forceps ou ventouse | J21: 0.039696 | K21: RHCT | M21: 0.173 | N21: Adding it Up, 2011 Methodology paper, pg 53 | P21: 10.12047813 | Q21: RHCT | Z21: 0.06950145246
D22: Césarienne | J22: 0.1 | K22: RHCT | M22: 0.3 | N22: Adding it up report, 2012 (pg.23) | P22: 68.15603459 | Q22: RHCT | Z22: 2.044681038
D23: Hémorragie antépartum | J23: 0.010212 | K23: RHCT | M23: 0.175 | N23: Adding it Up, 2011 Methodology paper, pg 53 | P23: 54.69842274 | Q23: RHCT | Z23: 0.09775155127
D24: Hémorragie post-partum | J24: 0.040848 | K24: RHCT | M24: 0.175 | N24: Adding it Up, 2011 Methodology paper, pg 53 | P24: 73.94655175 | Q24: RHCT | Z24: 0.5285995305
D25: Septicémie puerpérale | J25: 0.06503 | K25: RHCT | M25: 0.163 | N25: Adding it Up, 2011 Methodology paper, pg 53 | P25: 74.80251144 | Q25: RHCT | Z25: 0.792898393
D26: Eclampsie/Pré-éclampsie sévère | J26: 0.06428 | K26: RHCT | M26: 0.165 | N26: Adding it Up, 2011 Methodology paper, pg 53 | P26: 28.21541763 | Q26: RHCT | Z26: 0.2992583625
D27: Prise en charge des complications liées à l'avortement (SAA) | J27: 0.08 | K27: Assumption | M27: 0.5 | N27: Assumption | P27: 32.7107914 | Q27: RHCT | Z27: 1.308431656
D28: Fistule obstétricale | J28: 0.0006616 | K28: RHCT | M28: 0.5 | N28: Assumption | P28: 66.75560314 | Q28: RHCT | Z28: 0.02208275352
D29: Mastite | J29: 0.15 | K29: RHCT | M29: 0.5 | N29: Assumption | P29: 1.987613336 | Q29: RHCT | Z29: 0.1490710002
D30: Soins néonatals de routine | J30: 1 | K30: RHCT | M30: 0.5 | N30: Assumption | P30: 3.035795883 | Q30: RHCT | Z30: 1.517897941
D31: Septicémie/infections du nouveau-né | J31: 0.05 | K31: RHCT | M31: 0.358 | N31: Adding it Up, 2011 Methodology paper, pg 54 | P31: 48.3238794 | Q31: RHCT | Z31: 0.8649974413
D32: Asphyxie à la naissance/détresse respiratoire | J32: 0.03 | K32: RHCT | M32: 0.351 | N32: Adding it Up, 2011 Methodology paper, pg 54 | P32: 8.131631815 | Q32: RHCT | Z32: 0.08562608301
D33: Insuffisance pondérale à la naissance (IPN) | J33: 0.102 | K33: RHCT | M33: 0.345 | N33: Adding it Up, 2011 Methodology paper, pg 54 | P33: 7.800422399 | Q33: RHCT | Z33: 0.2744968642
D34: Vaccinations BCG | J34: 1 | K34: Assumption | M34: 0.86 | N34: WHO/UNICEF estimated coverage | P34: 0.107 | Q34: UNICEF Supply Division, Vaccine Centre, April 2012 (non-GAVI vaccines) and Product menu for vaccines supplied by UNICEF for the GAVI Alliance, UNICEF, June 2016 | Z34: 0.09202
D35: Hépatite B3 | J35: 1 | K35: Assumption | M35: 0.88 | N35: WHO/UNICEF estimated coverage | P35: 2.95 | Q35: UNICEF Supply Division, Vaccine Centre, April 2012 (non-GAVI vaccines) and Product menu for vaccines supplied by UNICEF for the GAVI Alliance, UNICEF, June 2016 | Z35: 2.596
D36: Polio 3 | J36: 1 | K36: Assumption | M36: 0.88 | N36: WHO/UNICEF estimated coverage | P36: 0.68 | Q36: UNICEF Supply Division, Vaccine Centre, April 2012 (non-GAVI vaccines) and Product menu for vaccines supplied by UNICEF for the GAVI Alliance, UNICEF, June 2016 | Z36: 0.5984
D37: DTC 3 | J37: 1 | K37: Assumption | M37: 0.88 | N37: WHO/UNICEF estimated coverage | P37: 2.95 | Q37: UNICEF Supply Division, Vaccine Centre, April 2012 (non-GAVI vaccines) and Product menu for vaccines supplied by UNICEF for the GAVI Alliance, UNICEF, June 2016 | Z37: 2.596
D38: Haemophilius Influenzae type B3 | J38: 1 | K38: Assumption | M38: 0.88 | N38: WHO/UNICEF estimated coverage | P38: 2.95 | Q38: UNICEF Supply Division, Vaccine Centre, April 2012 (non-GAVI vaccines) and Product menu for vaccines supplied by UNICEF for the GAVI Alliance, UNICEF, June 2016 | Z38: 2.596
D39: Pneumococcique | J39: 1 | K39: Assumption | M39: 0.85 | N39: WHO/UNICEF estimated coverage | P39: 21 | Q39: UNICEF Supply Division, Vaccine Centre, April 2012 (non-GAVI vaccines) and Product menu for vaccines supplied by UNICEF for the GAVI Alliance, UNICEF, June 2016 | Z39: 17.85
D40: Rotavirus | J40: 1 | K40: Assumption | M40: 0.02 | N40: WHO/UNICEF estimated coverage (Africa region) | P40: 15 | Q40: UNICEF Supply Division, Vaccine Centre, April 2012 (non-GAVI vaccines) and Product menu for vaccines supplied by UNICEF for the GAVI Alliance, UNICEF, June 2016 | Z40: 0.3
D41: Rougeole | J41: 1 | K41: Assumption | M41: 0.87 | N41: WHO/UNICEF estimated coverage | P41: 1.19 | Q41: UNICEF Supply Division, Vaccine Centre, April 2012 (non-GAVI vaccines) and Product menu for vaccines supplied by UNICEF for the GAVI Alliance, UNICEF, June 2016 | Z41: 1.0353
D42: Rubéole | J42: 1 | K42: Assumption | M42: 0 | N42: estimated based on WHO 2010 report | P42: 0.513 | Q42: UNICEF Supply Division, Vaccine Centre, April 2012 (non-GAVI vaccines) and Product menu for vaccines supplied by UNICEF for the GAVI Alliance, UNICEF, June 2016 | Z42: 0
Y43: AvgTreatment costs per live birth | Z43: =SUM(Z16:Z42) -> 50.55243049
P50: 1

Sheet Input_Scen1_Health
A1: Scen1
E5: charger
D6: =CONCATENATE("Health Indicators: ",inScen1Name) -> Health Indicators: Scen2 | E6: =CONCATENATE(E5,inUsualName) -> charger Usual
D11: Scenario Name | F11: Scen2
Q12: 2
M13: Input | O13: Commentaires/Sources
D14: % de femmes qui vivent en union | M14: 0.583 | O14: 2009 DHS
D15: Taux d’avortement (pour 100 naissances vivantes) | M15: 20.6887007 | O15: WHO Unsafe Abortion (2008) and Guttmacher Institute special tabulations (2012)
D16: Mort-nés (pour 1000 naissances vivantes) | M16: 21.8173 | O16: Cousens 2011
D17: taux d’avortement à risque (pour 100 naissances vivantes) | M17: 19.81154113 | O17: WHO Unsafe Abortion (2008) and Guttmacher Institute special tabulations (2012)
D18: % d'avortements à risques nécessitant les SAA | M18: 0.42 | O18: Adding it up methodology
D19: % des grossesses non-désirées qui se terminent par un avortement | M19: 0.31 | O19: Sedgh et al. Intended and Unintended Pregnancies Worldwide, Studies in Family Planning 2014; 45(3): 301-314
D21: paramètres | H21: =Configuration!$F$12 -> 2011 | J21: =Configuration!$F$14 -> 2020 | L21: Comments/Source
D22: les femmes de 15 à 49 ans | H22: 10180175 | J22: 13218940 | L22: UN Population Prospects 2010 Revision
D23: taux de mortalité maternelle | H23: 444 | J23: 300 | L23: Interpolation | AD23: =inScen1Name -> Scen2
AD24: =ConStartYr -> 2011 | AE24: =IFERROR(IF(AD24+1<=ConEndYr,AD24+1,""),"") -> 2012 | AF24: 2013 | AG24: 2014 | AH24: 2015 | AI24: 2016 | AJ24: 2017 | AK24: 2018 | AL24: 2019 | AM24: 2020 | AO24: Slope | AP24: Intercept
D25: Ecart interquartile plausible pour le taux de grossesse des femmes ayant un besoin non satisfait | AD25: =inScen1S15 -> 10180175 | AE25: =IFERROR(inScen1Yr2*inScen1Slope1+inScen1Inter1,"") -> 10517815.56 | AF25: =IFERROR(inScen1Yr3*inScen1Slope1+inScen1Inter1,"") -> 10855456.11 | AG25: =IFERROR(inScen1Yr4*inScen1Slope1+inScen1Inter1,"") -> 11193096.67 | AH25: =IFERROR(inScen1Yr5*inScen1Slope1+inScen1Inter1,"") -> 11530737.22 | AI25: =IFERROR(inScen1Yr6*inScen1Slope1+inScen1Inter1,"") -> 11868377.78 | AJ25: =IFERROR(inScen1Yr7*inScen1Slope1+inScen1Inter1,"") -> 12206018.33 | AK25: =IFERROR(inScen1Yr8*inScen1Slope1+inScen1Inter1,"") -> 12543658.89 | AL25: =IFERROR(inScen1Yr9*inScen1Slope1+inScen1Inter1,"") -> 12881299.44 | AM25: =IFERROR(inScen1Yr10*inScen1Slope1+inScen1Inter1,"") -> 13218940 | AO25: =(inScen1S19-inScen1S15)/(ConEndYr-ConStartYr) -> 337640.5556 | AP25: =inScen1S15-(AO25*ConStartYr) -> -668814982.2
AD26: =inScen1S16 -> 444 | AE26: =IFERROR(inScen1Yr2*inScen1Slope2+inScen1Inter2,"") -> 428 | AF26: =IFERROR(inScen1Yr3*inScen1Slope2+inScen1Inter2,"") -> 412 | AG26: =IFERROR(inScen1Yr4*inScen1Slope2+inScen1Inter2,"") -> 396 | AH26: =IFERROR(inScen1Yr5*inScen1Slope2+inScen1Inter2,"") -> 380 | AI26: =IFERROR(inScen1Yr6*inScen1Slope2+inScen1Inter2,"") -> 364 | AJ26: =IFERROR(inScen1Yr7*inScen1Slope2+inScen1Inter2,"") -> 348 | AK26: =IFERROR(inScen1Yr8*inScen1Slope2+inScen1Inter2,"") -> 332 | AL26: =IFERROR(inScen1Yr9*inScen1Slope2+inScen1Inter2,"") -> 316 | AM26: =IFERROR(inScen1Yr10*inScen1Slope2+inScen1Inter2,"") -> 300 | AO26: =(inScen1S20-inScen1S16)/(ConEndYr-ConStartYr) -> -16 | AP26: =inScen1S16-(AO26*ConStartYr) -> 32620

Sheet Input_Scen1_Con
D5: Efficacité des contraceptifs:
D6: =CONCATENATE(D5,Input_Scen1_Health!F11) -> Efficacité des contraceptifs:Scen2
D12: Efficacité des contraceptifs pour
E13: Préservatif masculin | L13: 0.902 | O13: Cleland J, Ali MM and Shah I. 2006. “Dynamics of contraceptive use”, in: UN Department of Economic and Social Affairs, Population Division, Levels and Trends of Contraceptive Use as Assessed in 2002, pp. 87–115, Table 22, page 98.
E14: Contraceptif injectable | L14: 0.971 | O14: Cleland J, Ali MM and Shah I. 2006. “Dynamics of contraceptive use”, in: UN Department of Economic and Social Affairs, Population Division, Levels and Trends of Contraceptive Use as Assessed in 2002, pp. 87–115, Table 22, page 98.
E15: Pilule | L15: 0.931 | O15: Cleland J, Ali MM and Shah I. 2006. “Dynamics of contraceptive use”, in: UN Department of Economic and Social Affairs, Population Division, Levels and Trends of Contraceptive Use as Assessed in 2002, pp. 87–115, Table 22, page 98.
E16: Stérilisation masculine | L16: 0.9998 | O16: Trussell J. 2007. Contraceptive efficacy, in: Hatcher RA et al., eds., Contraceptive Technology, 19th ed., New York: Ardent Media.
E17: Stérilisation féminine | L17: 0.9995 | O17: Trussell J. 2007. Contraceptive efficacy, in: Hatcher RA et al., eds., Contraceptive Technology, 19th ed., New York: Ardent Media.
E18: DIU | L18: 0.984 | O18: Cleland J, Ali MM and Shah I. 2006. “Dynamics of contraceptive use”, in: UN Department of Economic and Social Affairs, Population Division, Levels and Trends of Contraceptive Use as Assessed in 2002, pp. 87–115, Table 22, page 98.
E19: Implant | L19: 0.9995 | O19: Trussell J. 2007. Contraceptive efficacy, in: Hatcher RA et al., eds., Contraceptive Technology, 19th ed., New York: Ardent Media.
E20: Méthode des jours fixes (MJF) ou Méthode collier | L20: 0.88 | O20: Arevalo, Marcos, Jennings V and Sinai I. 2002. “Efficacy of a new method of family planning: the Standard Days Method,” Contraception 65 (2002) 333–338.
E21: Autre moderne | L21: 0.95 | O21: Assumption
E22: Toutes traditionnelles | L22: 0.8165 | O22: Cleland J, Ali MM and Shah I. 2006. “Dynamics of contraceptive use”, in: UN Department of Economic and Social Affairs, Population Division, Levels and Trends of Contraceptive Use as Assessed in 2002, pp. 87–115, Table 22, page 98.
E23: Autres spécifiques au pays

Sheet Input_Scen1_Age
D5: Age médian de l’utilisation des contraceptifs:
D6: =CONCATENATE(D5,inScen1Name) -> Age médian de l’utilisation des contraceptifs:Scen2
D16: Age médian de l’utilisation des
E17: Stérilisation féminine | L17: 32 | O17: DHS
E18: DIU | L18: 30 | O18: Assumption
E19: Implant | L19: 30 | O19: Assumption
E20: Méthode des jours fixes (MJF) ou Méthode collier | L20: 30 | O20: Assumption

Sheet Input_Scen1_UtlPreg
D6: =CONCATENATE("Health Care Utlization per Pregnancy: ",Input_Scen1_Health!F11) -> Health Care Utlization per Pregnancy: Scen2
Z12: 2
D14: Traitement | J14: % de femmes enceintes exigeant des soins pour : | M14: % de femmes exigeant des soins qui y ont accès: | P14: Coûts associés au traitement de:
J15: % | K15: Remarques | M15: % | N15: Remarques | P15: DEU | Q15: Remarques | Z15: Coûts
D16: Soins prénatals- CPN | J16: 1 | K16: RHCT | M16: 0.42 | N16: Adding it up report, 2012 (pg.23) | P16: 17.3254961 | Q16: RHCT | Z16: =J16*M16*P16 -> 7.276708362
D17: Traitement d’anémia sévère | J17: 0.47 | K17: RHCT | M17: 0.5 | N17: Assumption | P17: 0.05657586716 | Q17: RHCT | Z17: 0.01329532878
D18: Hypertension artérielle sur de grossesse | J18: 0.06428 | K18: RHCT | M18: 0.5 | N18: Assumption | P18: 7.488980591 | Q18: RHCT | Z18: 0.2406958362
D19: Prévention du paludisme dans la CPN | J19: 1 | K19: RHCT | M19: 0.412000001 | N19: CHERG/OneHealth 2012 | P19: 7.245336399 | Q19: RHCT | Z19: 2.985078604
D20: Traitement du paludisme dans la CPN (0 si toutes les femmes reçoivent CPN) | J20: 0 | K20: RHCT | M20: 0.5 | N20: Assumption | P20: 22.3286142 | Q20: RHCT | Z20: 0
D21: Infections urinaires | J21: 0.25 | K21: RHCT | M21: 0.104 | N21: CHERG/OneHealth 2012 | P21: 0.700098233 | Q21: RHCT | Z21: 0.01820255406
Y22: AvgTreatment costs per pregnancy | Z22: =SUM(Z16:Z21) -> 10.53398069

Sheet Input_Scen1_UtlBirth
D5: Utilisation des soins de santé par naissance:
D6: =CONCATENATE(D5,Input_Scen1_Health!F11) -> Utilisation des soins de santé par naissance:Scen2
Z12: 2
D14: Traitement | J14: % de naissances exigeant des soins | M14: % de naissances exigeant des soins qui y ont accès: | P14: Coûts associés au traitement de:
J15: % | K15: Remarques | M15: % | N15: Remarques | P15: DEU | Q15: Remarques | Z15: Coûts
D16: Soins à l’accouchement | J16: 1 | K16: RHCT | M16: 0.4377 | N16: CHERG/OneHealth 2012 | P16: 9.909714054 | Q16: RHCT | Z16: =J16*M16*P16 -> 4.337481841
D17: Soins du post-partum | J17: 1 | K17: RHCT | M17: 0.0689296 | N17: CHERG/OneHealth 2012 | P17: 1.28952268 | Q17: RHCT | Z17: =J17*M17*P17 -> 0.08888628255
D18: Soins d'urgence avant transfert | J18: 0.2 | K18: RHCT | M18: 0.5 | N18: Assumption | P18: 77.5315472 | Q18: RHCT | Z18: 7.75315472
D19: Rupture prématurée des membranes (RPM) | J19: 0.1 | K19: RHCT | M19: 0.5 | N19: CHERG/OneHealth 2012 | P19: 46.80462406 | Q19: RHCT | Z19: 2.340231203
D20: Travail prolongé (>18 heures) | J20: 0.079392 | K20: RHCT | M20: 0.5 | N20: Assumption | P20: 7.901611531 | Q20: RHCT | Z20: 0.3136623713
D21: Accouchement avec forceps ou ventouse | J21: 0.039696 | K21: RHCT | M21: 0.173 | N21: Adding it Up, 2011 Methodology paper, pg 53 | P21: 10.12047813 | Q21: RHCT | Z21: 0.06950145246
D22: Césarienne | J22: 0.1 | K22: RHCT | M22: 0.3 | N22: Adding it up report, 2012 (pg.23) | P22: 68.15603459 | Q22: RHCT | Z22: 2.044681038
D23: Hémorragie antépartum | J23: 0.010212 | K23: RHCT | M23: 0.175 | N23: Adding it Up, 2011 Methodology paper, pg 53 | P23: 54.69842274 | Q23: RHCT | Z23: 0.09775155127
D24: Hémorragie post-partum | J24: 0.040848 | K24: RHCT | M24: 0.175 | N24: Adding it Up, 2011 Methodology paper, pg 53 | P24: 73.94655175 | Q24: RHCT | Z24: 0.5285995305
D25: Septicémie puerpérale | J25: 0.06503 | K25: RHCT | M25: 0.163 | N25: Adding it Up, 2011 Methodology paper, pg 53 | P25: 74.80251144 | Q25: RHCT | Z25: 0.792898393
D26: Eclampsie/Pré-éclampsie sévère | J26: 0.06428 | K26: RHCT | M26: 0.165 | N26: Adding it Up, 2011 Methodology paper, pg 53 | P26: 28.21541763 | Q26: RHCT | Z26: 0.2992583625
D27: Prise en charge des complications liées à l'avortement (SAA) | J27: 0.08 | K27: Assumption | M27: 0.5 | N27: Assumption | P27: 32.7107914 | Q27: RHCT | Z27: 1.308431656
D28: Fistule obstétricale | J28: 0.0006616 | K28: RHCT | M28: 0.5 | N28: Assumption | P28: 66.75560314 | Q28: RHCT | Z28: 0.02208275352
D29: Mastite | J29: 0.15 | K29: RHCT | M29: 0.5 | N29: Assumption | P29: 1.987613336 | Q29: RHCT | Z29: 0.1490710002
D30: Soins néonatals de routine | J30: 1 | K30: RHCT | M30: 0.5 | N30: Assumption | P30: 3.035795883 | Q30: RHCT | Z30: 1.517897941
D31: Septicémie/infections du nouveau-né | J31: 0.05 | K31: RHCT | M31: 0.358 | N31: Adding it Up, 2011 Methodology paper, pg 54 | P31: 48.3238794 | Q31: RHCT | Z31: 0.8649974413
D32: Asphyxie à la naissance/détresse respiratoire | J32: 0.03 | K32: RHCT | M32: 0.351 | N32: Adding it Up, 2011 Methodology paper, pg 54 | P32: 8.131631815 | Q32: RHCT | Z32: 0.08562608301
D33: Insuffisance pondérale à la naissance (IPN) | J33: 0.102 | K33: RHCT | M33: 0.345 | N33: Adding it Up, 2011 Methodology paper, pg 54 | P33: 7.800422399 | Q33: RHCT | Z33: 0.2744968642
D34: Vaccinations BCG | J34: 1 | K34: Assumption | M34: 0.86 | N34: WHO/UNICEF estimated coverage | P34: 0.107 | Q34: UNICEF Supply Division, Vaccine Centre, April 2012 (non-GAVI vaccines) and Product menu for vaccines supplied by UNICEF for the GAVI Alliance, UNICEF, June 2016 | Z34: 0.09202
D35: Hépatite B3 | J35: 1 | K35: Assumption | M35: 0.88 | N35: WHO/UNICEF estimated coverage | P35: 2.95 | Q35: UNICEF Supply Division, Vaccine Centre, April 2012 (non-GAVI vaccines) and Product menu for vaccines supplied by UNICEF for the GAVI Alliance, UNICEF, June 2016 | Z35: 2.596
D36: Polio 3 | J36: 1 | K36: Assumption | M36: 0.88 | N36: WHO/UNICEF estimated coverage | P36: 0.68 | Q36: UNICEF Supply Division, Vaccine Centre, April 2012 (non-GAVI vaccines) and Product menu for vaccines supplied by UNICEF for the GAVI Alliance, UNICEF, June 2016 | Z36: 0.5984
D37: DTC 3 | J37: 1 | K37: Assumption | M37: 0.88 | N37: WHO/UNICEF estimated coverage | P37: 2.95 | Q37: UNICEF Supply Division, Vaccine Centre, April 2012 (non-GAVI vaccines) and Product menu for vaccines supplied by UNICEF for the GAVI Alliance, UNICEF, June 2016 | Z37: 2.596
D38: Haemophilius Influenzae type B3 | J38: 1 | K38: Assumption | M38: 0.88 | N38: WHO/UNICEF estimated coverage | P38: 2.95 | Q38: UNICEF Supply Division, Vaccine Centre, April 2012 (non-GAVI vaccines) and Product menu for vaccines supplied by UNICEF for the GAVI Alliance, UNICEF, June 2016 | Z38: 2.596
D39: Pneumococcique | J39: 1 | K39: Assumption | M39: 0.85 | N39: WHO/UNICEF estimated coverage | P39: 21 | Q39: UNICEF Supply Division, Vaccine Centre, April 2012 (non-GAVI vaccines) and Product menu for vaccines supplied by UNICEF for the GAVI Alliance, UNICEF, June 2016 | Z39: 17.85
D40: Rotavirus | J40: 1 | K40: Assumption | M40: 0.02 | N40: WHO/UNICEF estimated coverage (Africa region) | P40: 15 | Q40: UNICEF Supply Division, Vaccine Centre, April 2012 (non-GAVI vaccines) and Product menu for vaccines supplied by UNICEF for the GAVI Alliance, UNICEF, June 2016 | Z40: 0.3
D41: Rougeole | J41: 1 | K41: Assumption | M41: 0.87 | N41: WHO/UNICEF estimated coverage | P41: 1.19 | Q41: UNICEF Supply Division, Vaccine Centre, April 2012 (non-GAVI vaccines) and Product menu for vaccines supplied by UNICEF for the GAVI Alliance, UNICEF, June 2016 | Z41: 1.0353
D42: Rubéole | J42: 1 | K42: Assumption | M42: 0 | N42: estimated based on WHO 2010 report | P42: 0.513 | Q42: UNICEF Supply Division, Vaccine Centre, April 2012 (non-GAVI vaccines) and Product menu for vaccines supplied by UNICEF for the GAVI Alliance, UNICEF, June 2016 | Z42: 0
Y43: AvgTreatment costs per live birth | Z43: =SUM(Z16:Z42) -> 50.55243049
P50: 1

Sheet Input_Scen2_Health
D5: Indicateurs de santé: | E5: charger
D6: =CONCATENATE(D5,inScen2Name) -> Indicateurs de santé:Scen3 | E6: =CONCATENATE(E5,inUsualName) -> charger Usual | F6: =CONCATENATE(E5,inScen1Name) -> charger Scen2
D11: Scenario Name | F11: Scen3
Q12: 2
M13: Input | O13: Commentaires/Sources
D14: % de femmes qui vivent en union | M14: 0.583 | O14: 2009 DHS
D15: Taux d’avortement (pour 100 naissances vivantes) | M15: 20.6887007 | O15: WHO Unsafe Abortion (2008) and Guttmacher Institute special tabulations (2012)
D16: Mort-nés (pour 1000 naissances vivantes) | M16: 21.8173 | O16: Cousens 2011
D17: taux d’avortement à risque (pour 100 naissances vivantes) | M17: 19.81154113 | O17: WHO Unsafe Abortion (2008) and Guttmacher Institute special tabulations (2012)
D18: % d'avortements à risques nécessitant les SAA | M18: 0.42 | O18: Adding it up methodology
D19: % des grossesses non-désirées qui se terminent par un avortement | M19: 0.31 | O19: Sedgh et al. Intended and Unintended Pregnancies Worldwide, Studies in Family Planning 2014; 45(3): 301-314
D21: paramètres | H21: =Configuration!$F$12 -> 2011 | J21: =Configuration!$F$14 -> 2020 | L21: Commentaires/Sources
D22: les femmes de 15 à 49 ans | H22: 10180175 | J22: 13218940 | L22: UN Population Prospects 2010 Revision
D23: taux de mortalité maternelle | H23: 444 | J23: 300 | L23: Interpolation | AD23: =inScen2Name -> Scen3
AD24: =ConStartYr -> 2011 | AE24: =IFERROR(IF(AD24+1<=ConEndYr,AD24+1,""),"") -> 2012 | AF24: 2013 | AG24: 2014 | AH24: 2015 | AI24: 2016 | AJ24: 2017 | AK24: 2018 | AL24: 2019 | AM24: 2020 | AO24: Slope | AP24: Intercept
D25: Ecart interquartile plausible pour le taux de grossesse des femmes ayant un besoin non satisfait | AD25: =inScen2S15 -> 10180175 | AE25: =IFERROR(AE$24*$AO25+$AP25,"") -> 10517815.56 | AF25: 10855456.11 | AG25: 11193096.67 | AH25: 11530737.22 | AI25: 11868377.78 | AJ25: 12206018.33 | AK25: 12543658.89 | AL25: 12881299.44 | AM25: 13218940 | AO25: =(inScen2S19-inScen2S15)/(ConEndYr-ConStartYr) -> 337640.5556 | AP25: =inScen2S15-(AO25*ConStartYr) -> -668814982.2
AD26: =inScen2S16 -> 444 | AE26: =IFERROR(AE$24*$AO26+$AP26,"") -> 428 | AF26: 412 | AG26: 396 | AH26: 380 | AI26: 364 | AJ26: 348 | AK26: 332 | AL26: =IFERROR(AL$24*$AO26+$AP26,"") -> 316 | AM26: =IFERROR(AM$24*$AO26+$AP26,"") -> 300 | AO26: =(inScen2S20-inScen2S16)/(ConEndYr-ConStartYr) -> -16 | AP26: =inScen2S16-(AO26*ConStartYr) -> 32620

Sheet Input_Scen2_Con
D5: Efficacité des contraceptifs:
D6: =CONCATENATE(D5,inScen2Name) -> Efficacité des contraceptifs:Scen3
D12: Efficacité des contraceptifs pour
E13: Préservatif masculin | L13: 0.902 | O13: Cleland J, Ali MM and Shah I. 2006. “Dynamics of contraceptive use”, in: UN Department of Economic and Social Affairs, Population Division, Levels and Trends of Contraceptive Use as Assessed in 2002, pp. 87–115, Table 22, page 98.
E14: Contraceptif injectable | L14: 0.971 | O14: Cleland J, Ali MM and Shah I. 2006. “Dynamics of contraceptive use”, in: UN Department of Economic and Social Affairs, Population Division, Levels and Trends of Contraceptive Use as Assessed in 2002, pp. 87–115, Table 22, page 98.
E15: Pilule | L15: 0.931 | O15: Cleland J, Ali MM and Shah I. 2006. “Dynamics of contraceptive use”, in: UN Department of Economic and Social Affairs, Population Division, Levels and Trends of Contraceptive Use as Assessed in 2002, pp. 87–115, Table 22, page 98.
E16: Stérilisation masculine | L16: 0.9998 | O16: Trussell J. 2007. Contraceptive efficacy, in: Hatcher RA et al., eds., Contraceptive Technology, 19th ed., New York: Ardent Media.
E17: Stérilisation féminine | L17: 0.9995 | O17: Trussell J. 2007. Contraceptive efficacy, in: Hatcher RA et al., eds., Contraceptive Technology, 19th ed., New York: Ardent Media.
E18: DIU | L18: 0.984 | O18: Cleland J, Ali MM and Shah I. 2006. “Dynamics of contraceptive use”, in: UN Department of Economic and Social Affairs, Population Division, Levels and Trends of Contraceptive Use as Assessed in 2002, pp. 87–115, Table 22, page 98.
E19: Implant | L19: 0.9995 | O19: Trussell J. 2007. Contraceptive efficacy, in: Hatcher RA et al., eds., Contraceptive Technology, 19th ed., New York: Ardent Media.
E20: Méthode des jours fixes (MJF) ou Méthode collier | L20: 0.88 | O20: Arevalo, Marcos, Jennings V and Sinai I. 2002. “Efficacy of a new method of family planning: the Standard Days Method,” Contraception 65 (2002) 333–338.
E21: Autre moderne | L21: 0.95 | O21: Assumption
E22: Toutes traditionnelles | L22: 0.8165 | O22: Cleland J, Ali MM and Shah I. 2006. “Dynamics of contraceptive use”, in: UN Department of Economic and Social Affairs, Population Division, Levels and Trends of Contraceptive Use as Assessed in 2002, pp. 87–115, Table 22, page 98.
E23: Autres spécifiques au pays

Sheet Input_Scen2_Age
D5: Age médian de l’utilisation des contraceptifs:
D6: =CONCATENATE(D5,inScen2Name) -> Age médian de l’utilisation des contraceptifs:Scen3
D16: Age médian de l’utilisation des
E17: Stérilisation féminine | L17: 32 | O17: DHS
E18: DIU | L18: 30 | O18: Assumption
E19: Implant | L19: 30 | O19: Assumption
E20: Méthode des jours fixes (MJF) ou Méthode collier | L20: 30 | O20: Assumption

Sheet Input_Scen2_UtlPreg
D5: Utilisation des soins de santé par grossesse:
D6: =CONCATENATE(D5,inScen2Name) -> Utilisation des soins de santé par grossesse: Scen3
Z12: 2
D14: Traitement | J14: % de femmes enceintes exigeant des soins pour : | M14: % de femmes exigeant des soins qui y ont accès: | P14: Coûts associés au traitement de:
J15: % | K15: Remarques | M15: % | N15: Remarques | P15: DEU | Q15: Remarques | Z15: Coûts
D16: Soins prénatals- CPN | J16: 1 | K16: RHCT | M16: 0.42 | N16: Adding it up report, 2012 (pg.23) | P16: 17.3254961 | Q16: RHCT | Z16: =J16*M16*P16 -> 7.276708362
D17: Traitement d’anémia sévère | J17: 0.47 | K17: RHCT | M17: 0.5 | N17: Assumption | P17: 0.05657586716 | Q17: RHCT | Z17: 0.01329532878
D18: Hypertension artérielle sur de grossesse | J18: 0.06428 | K18: RHCT | M18: 0.5 | N18: Assumption | P18: 7.488980591 | Q18: RHCT | Z18: 0.2406958362
D19: Prévention du paludisme dans la CPN | J19: 1 | K19: RHCT | M19: 0.412000001 | N19: CHERG/OneHealth 2012 | P19: 7.245336399 | Q19: RHCT | Z19: 2.985078604
D20: Traitement du paludisme dans la CPN (0 si toutes les femmes reçoivent CPN) | J20: 0 | K20: RHCT | M20: 0.5 | N20: Assumption | P20: 22.3286142 | Q20: RHCT | Z20: 0
D21: Infections urinaires | J21: 0.25 | K21: RHCT | M21: 0.104 | N21: CHERG/OneHealth 2012 | P21: 0.700098233 | Q21: RHCT | Z21: 0.01820255406
Y22: AvgTreatment costs per pregnancy | Z22: =SUM(Z16:Z21) -> 10.53398069

Sheet Input_Scen2_UtlBirth
D5: Utilisation des soins de santé par naissance:
D6: =CONCATENATE(D5,inScen2Name) -> Utilisation des soins de santé par naissance:Scen3
Z12: 2
D14: Traitement | J14: % de naissances exigeant des soins | M14: % de naissances exigeant des soins qui y ont accès: | P14: Coûts associés au traitement de:
J15: % | K15: Remarques | M15: % | N15: Remarques | P15: DEU | Q15: Remarques | Z15: Coûts
D16: Soins à l’accouchement | J16: 1 | K16: RHCT | M16: 0.4377 | N16: CHERG/OneHealth 2012 | P16: 9.909714054 | Q16: RHCT | Z16: =J16*M16*P16 -> 4.337481841
D17: Soins du post-partum | J17: 1 | K17: RHCT | M17: 0.0689296 | N17: CHERG/OneHealth 2012 | P17: 1.28952268 | Q17: RHCT | Z17: =J17*M17*P17 -> 0.08888628255
D18: Soins d'urgence avant transfert | J18: 0.2 | K18: RHCT | M18: 0.5 | N18: Assumption | P18: 77.5315472 | Q18: RHCT | Z18: 7.75315472
D19: Rupture prématurée des membranes (RPM) | J19: 0.1 | K19: RHCT | M19: 0.5 | N19: CHERG/OneHealth 2012 | P19: 46.80462406 | Q19: RHCT | Z19: 2.340231203
D20: Travail prolongé (>18 heures) | J20: 0.079392 | K20: RHCT | M20: 0.5 | N20: Assumption | P20: 7.901611531 | Q20: RHCT | Z20: 0.3136623713
D21: Accouchement avec forceps ou ventouse | J21: 0.039696 | K21: RHCT | M21: 0.173 | N21: Adding it Up, 2011 Methodology paper, pg 53 | P21: 10.12047813 | Q21: RHCT | Z21: 0.06950145246
D22: Césarienne | J22: 0.1 | K22: RHCT | M22: 0.3 | N22: Adding it up report, 2012 (pg.23) | P22: 68.15603459 | Q22: RHCT | Z22: 2.044681038
D23: Hémorragie antépartum | J23: 0.010212 | K23: RHCT | M23: 0.175 | N23: Adding it Up, 2011 Methodology paper, pg 53 | P23: 54.69842274 | Q23: RHCT | Z23: 0.09775155127
D24: Hémorragie post-partum | J24: 0.040848 | K24: RHCT | M24: 0.175 | N24: Adding it Up, 2011 Methodology paper, pg 53 | P24: 73.94655175 | Q24: RHCT | Z24: 0.5285995305
D25: Septicémie puerpérale | J25: 0.06503 | K25: RHCT | M25: 0.163 | N25: Adding it Up, 2011 Methodology paper, pg 53 | P25: 74.80251144 | Q25: RHCT | Z25: 0.792898393
D26: Eclampsie/Pré-éclampsie sévère | J26: 0.06428 | K26: RHCT | M26: 0.165 | N26: Adding it Up, 2011 Methodology paper, pg 53 | P26: 28.21541763 | Q26: RHCT | Z26: 0.2992583625
D27: Prise en charge des complications liées à l'avortement (SAA) | J27: 0.08 | K27: Assumption | M27: 0.5 | N27: Assumption | P27: 32.7107914 | Q27: RHCT | Z27: 1.308431656
D28: Fistule obstétricale | J28: 0.0006616 | K28: RHCT | M28: 0.5 | N28: Assumption | P28: 66.75560314 | Q28: RHCT | Z28: 0.02208275352
D29: Mastite | J29: 0.15 | K29: RHCT | M29: 0.5 | N29: Assumption | P29: 1.987613336 | Q29: RHCT | Z29: 0.1490710002
D30: Soins néonatals de routine | J30: 1 | K30: RHCT | M30: 0.5 | N30: Assumption | P30: 3.035795883 | Q30: RHCT | Z30: 1.517897941
D31: Septicémie/infections du nouveau-né | J31: 0.05 | K31: RHCT | M31: 0.358 | N31: Adding it Up, 2011 Methodology paper, pg 54 | P31: 48.3238794 | Q31: RHCT | Z31: 0.8649974413
D32: Asphyxie à la naissance/détresse respiratoire | J32: 0.03 | K32: RHCT | M32: 0.351 | N32: Adding it Up, 2011 Methodology paper, pg 54 | P32: 8.131631815 | Q32: RHCT | Z32: 0.08562608301
D33: Insuffisance pondérale à la naissance (IPN) | J33: 0.102 | K33: RHCT | M33: 0.345 | N33: Adding it Up, 2011 Methodology paper, pg 54 | P33: 7.800422399 | Q33: RHCT | Z33: 0.2744968642
D34: Vaccinations BCG | J34: 1 | K34: Assumption | M34: 0.86 | N34: WHO/UNICEF estimated coverage | P34: 0.107 | Q34: UNICEF Supply Division, Vaccine Centre, April 2012 (non-GAVI vaccines) and Product menu for vaccines supplied by UNICEF for the GAVI Alliance, UNICEF, June 2016 | Z34: 0.09202
D35: Hépatite B3 | J35: 1 | K35: Assumption | M35: 0.88 | N35: WHO/UNICEF estimated coverage | P35: 2.95 | Q35: UNICEF Supply Division, Vaccine Centre, April 2012 (non-GAVI vaccines) and Product menu for vaccines supplied by UNICEF for the GAVI Alliance, UNICEF, June 2016 | Z35: 2.596
D36: Polio 3 | J36: 1 | K36: Assumption | M36: 0.88 | N36: WHO/UNICEF estimated coverage | P36: 0.68 | Q36: UNICEF Supply Division, Vaccine Centre, April 2012 (non-GAVI vaccines) and Product menu for vaccines supplied by UNICEF for the GAVI Alliance, UNICEF, June 2016 | Z36: 0.5984
D37: DTC 3 | J37: 1 | K37: Assumption | M37: 0.88 | N37: WHO/UNICEF estimated coverage | P37: 2.95 | Q37: UNICEF Supply Division, Vaccine Centre, April 2012 (non-GAVI vaccines) and Product menu for vaccines supplied by UNICEF for the GAVI Alliance, UNICEF, June 2016 | Z37: 2.596
D38: Haemophilius Influenzae type B3 | J38: 1 | K38: Assumption | M38: 0.88 | N38: WHO/UNICEF estimated coverage | P38: 2.95 | Q38: UNICEF Supply Division, Vaccine Centre, April 2012 (non-GAVI vaccines) and Product menu for vaccines supplied by UNICEF for the GAVI Alliance, UNICEF, June 2016 | Z38: 2.596
D39: Pneumococcique | J39: 1 | K39: Assumption | M39: 0.85 | N39: WHO/UNICEF estimated coverage | P39: 21 | Q39: UNICEF Supply Division, Vaccine Centre, April 2012 (non-GAVI vaccines) and Product menu for vaccines supplied by UNICEF for the GAVI Alliance, UNICEF, June 2016 | Z39: 17.85
D40: Rotavirus | J40: 1 | K40: Assumption | M40: 0.02 | N40: WHO/UNICEF estimated coverage (Africa region) | P40: 15 | Q40: UNICEF Supply Division, Vaccine Centre, April 2012 (non-GAVI vaccines) and Product menu for vaccines supplied by UNICEF for the GAVI Alliance, UNICEF, June 2016 | Z40: 0.3
D41: Rougeole | J41: 1 | K41: Assumption | M41: 0.87 | N41: WHO/UNICEF estimated coverage | P41: 1.19 | Q41: UNICEF Supply Division, Vaccine Centre, April 2012 (non-GAVI vaccines) and Product menu for vaccines supplied by UNICEF for the GAVI Alliance, UNICEF, June 2016 | Z41: 1.0353
D42: Rubéole | J42: 1 | K42: Assumption | M42: 0 | N42: estimated based on WHO 2010 report | P42: 0.513 | Q42: UNICEF Supply Division, Vaccine Centre, April 2012 (non-GAVI vaccines) and Product menu for vaccines supplied by UNICEF for the GAVI Alliance, UNICEF, June 2016 | Z42: 0
Y43: AvgTreatment costs per live birth | Z43: =SUM(Z16:Z42) -> 50.55243049
P50: 2

Sheet PolicyGoals_Main
E4: CPR Policy Goal - Unmet Need Yr1 and CPR - 1
E5: Unmet Need Policy Goal - CPR Yr1 and Unmet Need - 1
D6: =IF(conZ2=1,E4,IF(conZ2=2,E5,E6)) -> Budget Policy Goal - Budget - 1 | E6: Budget Policy Goal - Budget - 1
F11: besoin non satisfait | H11: TPC
F12: Référence | H12: Référence | J12: =inUsualName -> Usual | K12: =inScen1Name -> Scen2 | L12: =inScen2Name -> Scen3
F13: =Configuration!$F$12 -> 2011 | G13: Commentaires/Sources | H13: =Configuration!$F$12 -> 2011 | I13: Commentaires/Sources | J13: =Configuration!$F$14 -> 2020 | K13: =Configuration!$F$14 -> 2020 | L13: =Configuration!$F$14 -> 2020 | Y13: 0 | Z13: 0
F14: 0.256 | G14: Extrapolated from DHS 2009 | H14: 0.4756666667 | I14: Extrapolated from DHS 2009 | J14: 0.5686666667 | K14: 0.5686666667 | L14: 0.5686666667
F16: TPC | H16: Référence | J16: besoin non satisfait
F17: 2011 | H17: besoin non satisfait | J17: =inUsualName -> Usual | K17: =inScen1Name -> Scen2 | L17: =inScen2Name -> Scen3
F18: =Configuration!$F$12 -> 2011 | G18: Source / Comment | H18: =Configuration!$F$12 -> 2011 | I18: Source / Comment | J18: =Configuration!$F$14 -> 2020 | K18: =Configuration!$F$14 -> 2020 | L18: =Configuration!$F$14 -> 2020
F19: 0.4756666667 | G19: Extrapolated from DHS 2009 | H19: 0.256 | I19: Extrapolated from DHS 2009 | J19: 0.163 | K19: 0.163 | L19: 0.163
I21: Budget
I22: Base | J22: =inUsualName -> Usual | K22: =inScen1Name -> Scen2 | L22: =inScen2Name -> Scen3
I23: =ConStartYr -> 2011 | J23: =ConEndYr -> 2020 | K23: =ConEndYr -> 2020 | L23: =ConEndYr -> 2020
I24: 2000000 | J24: 3000000 | K24: 4000000 | L24: 5000000
O46: 0

Sheet PolicyGoals_MethodMix
E4: CPR Policy Goal - Method Mix -1
E5: Unmet Need Policy Goal - Method Mix-1
D6: =IF(conZ2=1,E4,IF(conZ2=2,E5,E6)) -> Budget Policy Goal - Method Mix-1 | E6: Budget Policy Goal - Method Mix-1
I11: Référence | K11: =inUsualName -> Usual | L11: =inScen1Name -> Scen2 | M11: =inScen2Name -> Scen3 | O11: Commentaires/Sources
I12: =ConStartYr -> 2011 | K12: =ConEndYr -> 2020 | L12: =ConEndYr -> 2020 | M12: =ConEndYr -> 2020
D13: Préservatif masculin | I13: 0.04 | K13: 0.04 | L13: 0.04 | M13: 0.04 | O13: DHS 2009
D14: Contraceptif injectable | I14: 0.476 | K14: 0.476 | L14: 0.476 | M14: 0.476 | O14: DHS 2009
D15: Pilule | I15: 0.158 | K15: 0.158 | L15: 0.158 | M15: 0.158 | O15: DHS 2009
D16: Stérilisation masculine | I16: 0 | K16: 0 | L16: 0 | M16: 0 | O16: DHS 2009
D17: Stérilisation féminine | I17: 0.105 | K17: 0.105 | L17: 0.105 | M17: 0.105 | O17: DHS 2009
D18: DIU | I18: 0.035 | K18: 0.035 | L18: 0.035 | M18: 0.035 | O18: DHS 2009
D19: Implant | I19: 0.042 | K19: 0.042 | L19: 0.042 | M19: 0.042 | O19: DHS 2009
D20: Méthode des jours fixes (MJF) ou Méthode collier | I20: 0 | K20: 0 | L20: 0 | M20: 0 | O20: DHS 2009
D21: Autre moderne | I21: 0.011 | K21: 0.011 | L21: 0.011 | M21: 0.011 | O21: DHS 2009
D22: Toutes traditionnelles | I22: 0.133 | K22: 0.133 | L22: 0.133 | M22: 0.133 | O22: DHS 2009
D23: Autres spécifiques au pays | O23: DHS 2009
D24: totaux/ total | I24: =SUM(I13:I23) -> 1 | K24: =SUM(K13:K23) -> 1 | L24: =SUM(L13:L23) -> 1 | M24: =SUM(M13:M23) -> 1

Sheet PolicyGoals_FPCosts
E4: CPR Policy Goal - FP Costs -1
E5: Unmet Need Policy Goal - FP Costs -1
D6: =IF(conZ2=1,E4,IF(conZ2=2,E5,E6)) -> Budget Policy Goal - FP Costs -1 | E6: Budget Policy Goal - FP Costs -1
I11: Coût ($) | J11: Commentaires/Sources
D13: Préservatif masculin | I13: 4.15 | J13: Adding it up report (June 2012), Guttmacher institute
D14: Contraceptif injectable | I14: 9.14 | J14: Adding it up report (June 2012), Guttmacher institute
D15: Pilule | I15: 8.72 | J15: Adding it up report (June 2012), Guttmacher institute
D16: Stérilisation masculine | I16: 1.59 | J16: Adding it up report (June 2012), Guttmacher institute
D17: Stérilisation féminine | I17: 2.79 | J17: Adding it up report (June 2012), Guttmacher institute
D18: DIU | I18: 1.01 | J18: Adding it up report (June 2012), Guttmacher institute
D19: Implant | I19: 7.74 | J19: Adding it up report (June 2012), Guttmacher institute
D20: Méthode des jours fixes (MJF) ou Méthode collier | I20: 0 | J20: Adding it up report (June 2012), Guttmacher institute
D21: Autre moderne | I21: 5.02 | J21: Adding it up report (June 2012), Guttmacher institute
D22: Toutes traditionnelles | I22: 0 | J22: Adding it up report (June 2012), Guttmacher institute
D23: Autres spécifiques au pays | J23: Adding it up report (June 2012), Guttmacher institute

Sheet CPR_Indicator
J7: =F8&" by Scenario" -> Grossesses non-désirées évitées by Scenario
D8: Choisir sortie | F8: Grossesses non-désirées évitées
P10: TPC par an | S10: 1
Q12: =ConStartYr -> 2011 | R12: =ConEndYr -> 2020
P13: =inUsualName -> Usual | Q13: =inCPR1 -> 0.4756666667 | R13: =inUsual400 -> 0.5686666667
P14: =inScen1Name -> Scen2 | Q14: =inCPR1 -> 0.4756666667 | R14: =inScen1400 -> 0.5686666667
P15: =inScen2Name -> Scen3 | Q15: =inCPR1 -> 0.4756666667 | R15: =inScen2400 -> 0.5686666667
F22: =Configuration!F12 -> 2011 | G22: =IFERROR(IF(F22+1<=Configuration!$F$14,F22+1,""),"") -> 2012 | H22: =IFERROR(IF(G22+1<=Configuration!$F$14,G22+1,""),"") -> 2013 | I22: =IFERROR(IF(H22+1<=Configuration!$F$14,H22+1,""),"") -> 2014 | J22: =IFERROR(IF(I22+1<=Configuration!$F$14,I22+1,""),"") -> 2015 | K22: =IFERROR(IF(J22+1<=Configuration!$F$14,J22+1,""),"") -> 2016 | L22: =IFERROR(IF(K22+1<=Configuration!$F$14,K22+1,""),"") -> 2017 | M22: =IFERROR(IF(L22+1<=Configuration!$F$14,L22+1,""),"") -> 2018 | N22: =IFERROR(IF(M22+1<=Configuration!$F$14,M22+1,""),"") -> 2019 | O22: =IFERROR(IF(N22+1<=Configuration!$F$14,N22+1,""),"") -> 2020
C23: Usual | D23: =inUsualName -> Usual | F23: =IF(F$22="","",INDIRECT("'Calculations'!" & ADDRESS(ROW(CPR_List)-1 + MATCH($F$8,CPR_List,0),COLUMN(INDIRECT("calc"&$C23&"Yr1"))))) -> 728845.8009 | G23: =IF(G$22="","",INDIRECT("'Calculations'!" & ADDRESS(ROW(CPR_List)-1 + MATCH($F$8,CPR_List,0),COLUMN(INDIRECT("calc"&$C23&"Yr2"))))) -> 769377.5572 | H23: =IF(H$22="","",INDIRECT("'Calculations'!" & ADDRESS(ROW(CPR_List)-1 + MATCH($F$8,CPR_List,0),COLUMN(INDIRECT("calc"&$C23&"Yr3"))))) -> 810959.5878 | I23: =IF(I$22="","",INDIRECT("'Calculations'!" & ADDRESS(ROW(CPR_List)-1 + MATCH($F$8,CPR_List,0),COLUMN(INDIRECT("calc"&$C23&"Yr4"))))) -> 853591.8928 | J23: =IF(J$22="","",INDIRECT("'Calculations'!" & ADDRESS(ROW(CPR_List)-1 + MATCH($F$8,CPR_List,0),COLUMN(INDIRECT("calc"&$C23&"Yr5"))))) -> 897274.472 | K23: =IF(K$22="","",INDIRECT("'Calculations'!" & ADDRESS(ROW(CPR_List)-1 + MATCH($F$8,CPR_List,0),COLUMN(INDIRECT("calc"&$C23&"Yr6"))))) -> 942007.3255 | L23: =IF(L$22="","",INDIRECT("'Calculations'!" & ADDRESS(ROW(CPR_List)-1 + MATCH($F$8,CPR_List,0),COLUMN(INDIRECT("calc"&$C23&"Yr7"))))) -> 987790.4533 | M23: =IF(M$22="","",INDIRECT("'Calculations'!" & ADDRESS(ROW(CPR_List)-1 + MATCH($F$8,CPR_List,0),COLUMN(INDIRECT("calc"&$C23&"Yr8"))))) -> 1034623.855 | N23: =IF(N$22="","",INDIRECT("'Calculations'!" & ADDRESS(ROW(CPR_List)-1 + MATCH($F$8,CPR_List,0),COLUMN(INDIRECT("calc"&$C23&"Yr9"))))) -> 1082507.532 | O23: =IF(O$22="","",INDIRECT("'Calculations'!" & ADDRESS(ROW(CPR_List)-1 + MATCH($F$8,CPR_List,0),COLUMN(INDIRECT("calc"&$C23&"Yr10"))))) -> 1131441.482
C24: Scen1 | D24: =inScen1Name -> Scen2 | F24: =IF(F$22="","",INDIRECT("'Calculations'!" & ADDRESS(ROW(CPR_List)-1 + MATCH($F$8,CPR_List,0),COLUMN(INDIRECT("calc"&$C24&"Yr1"))))) -> 728845.8009 | G24: =IF(G$22="","",INDIRECT("'Calculations'!" & ADDRESS(ROW(CPR_List)-1 + MATCH($F$8,CPR_List,0),COLUMN(INDIRECT("calc"&$C24&"Yr2"))))) -> 769377.5572 | H24: =IF(H$22="","",INDIRECT("'Calculations'!" & ADDRESS(ROW(CPR_List)-1 + MATCH($F$8,CPR_List,0),COLUMN(INDIRECT("calc"&$C24&"Yr3"))))) -> 810959.5878 | I24: =IF(I$22="","",INDIRECT("'Calculations'!" & ADDRESS(ROW(CPR_List)-1 + MATCH($F$8,CPR_List,0),COLUMN(INDIRECT("calc"&$C24&"Yr4"))))) -> 853591.8928 | J24: =IF(J$22="","",INDIRECT("'Calculations'!" & ADDRESS(ROW(CPR_List)-1 + MATCH($F$8,CPR_List,0),COLUMN(INDIRECT("calc"&$C24&"Yr5"))))) -> 897274.472 | K24: =IF(K$22="","",INDIRECT("'Calculations'!" & ADDRESS(ROW(CPR_List)-1 + MATCH($F$8,CPR_List,0),COLUMN(INDIRECT("calc"&$C24&"Yr6"))))) -> 942007.3255 | L24: =IF(L$22="","",INDIRECT("'Calculations'!" & ADDRESS(ROW(CPR_List)-1 + MATCH($F$8,CPR_List,0),COLUMN(INDIRECT("calc"&$C24&"Yr7"))))) -> 987790.4533 | M24: =IF(M$22="","",INDIRECT("'Calculations'!" & ADDRESS(ROW(CPR_List)-1 + MATCH($F$8,CPR_List,0),COLUMN(INDIRECT("calc"&$C24&"Yr8"))))) -> 1034623.855 | N24: =IF(N$22="","",INDIRECT("'Calculations'!" & ADDRESS(ROW(CPR_List)-1 + MATCH($F$8,CPR_List,0),COLUMN(INDIRECT("calc"&$C24&"Yr9"))))) -> 1082507.532 | O24: =IF(O$22="","",INDIRECT("'Calculations'!" & ADDRESS(ROW(CPR_List)-1 + MATCH($F$8,CPR_List,0),COLUMN(INDIRECT("calc"&$C24&"Yr10"))))) -> 1131441.482
C25: Scen2 | D25: =inScen2Name -> Scen3 | F25: =IF(F$22="","",INDIRECT("'Calculations'!" & ADDRESS(ROW(CPR_List)-1 + MATCH($F$8,CPR_List,0),COLUMN(INDIRECT("calc"&$C25&"Yr1"))))) -> 728845.8009 | G25: =IF(G$22="","",INDIRECT("'Calculations'!" & ADDRESS(ROW(CPR_List)-1 + MATCH($F$8,CPR_List,0),COLUMN(INDIRECT("calc"&$C25&"Yr2"))))) -> 769377.5572 | H25: =IF(H$22="","",INDIRECT("'Calculations'!" & ADDRESS(ROW(CPR_List)-1 + MATCH($F$8,CPR_List,0),COLUMN(INDIRECT("calc"&$C25&"Yr3"))))) -> 810959.5878 | I25: =IF(I$22="","",INDIRECT("'Calculations'!" & ADDRESS(ROW(CPR_List)-1 + MATCH($F$8,CPR_List,0),COLUMN(INDIRECT("calc"&$C25&"Yr4"))))) -> 853591.8928 | J25: =IF(J$22="","",INDIRECT("'Calculations'!" & ADDRESS(ROW(CPR_List)-1 + MATCH($F$8,CPR_List,0),COLUMN(INDIRECT("calc"&$C25&"Yr5"))))) -> 897274.472 | K25: =IF(K$22="","",INDIRECT("'Calculations'!" & ADDRESS(ROW(CPR_List)-1 + MATCH($F$8,CPR_List,0),COLUMN(INDIRECT("calc"&$C25&"Yr6"))))) -> 942007.3255 | L25: =IF(L$22="","",INDIRECT("'Calculations'!" & ADDRESS(ROW(CPR_List)-1 + MATCH($F$8,CPR_List,0),COLUMN(INDIRECT("calc"&$C25&"Yr7"))))) -> 987790.4533 | M25: =IF(M$22="","",INDIRECT("'Calculations'!" & ADDRESS(ROW(CPR_List)-1 + MATCH($F$8,CPR_List,0),COLUMN(INDIRECT("calc"&$C25&"Yr8"))))) -> 1034623.855 | N25: =IF(N$22="","",INDIRECT("'Calculations'!" & ADDRESS(ROW(CPR_List)-1 + MATCH($F$8,CPR_List,0),COLUMN(INDIRECT("calc"&$C25&"Yr9"))))) -> 1082507.532 | O25: =IF(O$22="","",INDIRECT("'Calculations'!" & ADDRESS(ROW(CPR_List)-1 + MATCH($F$8,CPR_List,0),COLUMN(INDIRECT("calc"&$C25&"Yr10"))))) -> 1131441.482
D26: * Les résultats des acceptants sont exprimés comme étant le nombre annuel moyen d'acceptants sur la période de l'analyse
H31: =Q12 -> 2011 | I31: =IFERROR(IF(H31+1<=Configuration!$F$14,H31+1,""),"") -> 2012 | J31: =IFERROR(IF(I31+1<=Configuration!$F$14,I31+1,""),"") -> 2013 | K31: =IFERROR(IF(J31+1<=Configuration!$F$14,J31+1,""),"") -> 2014 | L31: =IFERROR(IF(K31+1<=Configuration!$F$14,K31+1,""),"") -> 2015 | M31: =IFERROR(IF(L31+1<=Configuration!$F$14,L31+1,""),"") -> 2016 | N31: =IFERROR(IF(M31+1<=Configuration!$F$14,M31+1,""),"") -> 2017 | O31: =IFERROR(IF(N31+1<=Configuration!$F$14,N31+1,""),"") -> 2018 | P31: =IFERROR(IF(O31+1<=Configuration!$F$14,O31+1,""),"") -> 2019 | Q31: =IFERROR(IF(P31+1<=Configuration!$F$14,P31+1,""),"") -> 2020
G32: Usual | H32: =inCPR1 -> 0.4756666667 | I32: =IF(I31="","",$H$42*I31+$H$43) -> 0.486 | J32: =IF(J31="","",$H$42*J31+$H$43) -> 0.4963333333 | K32: 0.5066666667 | L32: 0.517 | M32: 0.5273333333 | N32: 0.5376666667 | O32: 0.548 | P32: 0.5583333333 | Q32: 0.5686666667
G33: Scen1 | H33: =inCPR1 -> 0.4756666667 | I33: =IF(I31="","",$H$45*I31+$H$46) -> 0.486 | J33: =IF(J31="","",$H$45*J31+$H$46) -> 0.4963333333 | K33: 0.5066666667 | L33: 0.517 | M33: 0.5273333333 | N33: 0.5376666667 | O33: 0.548 | P33: 0.5583333333 | Q33: 0.5686666667
G34: Scen2 | H34: =inCPR1 -> 0.4756666667 | I34: =IF(I31="","",$H$48*I31+$H$49) -> 0.486 | J34: =IF(J31="","",$H$48*J31+$H$49) -> 0.4963333333 | K34: 0.5066666667 | L34: 0.517 | M34: 0.5273333333 | N34: 0.5376666667 | O34: 0.548 | P34: 0.5583333333 | Q34: 0.5686666667
H36: =Q12 -> 2011 | I36: 2020
G37: =G32 -> Usual | H37: 0.4756666667 | I37: 0.5686666667
G38: =G33 -> Scen1 | H38: 0.4756666667 | I38: 0.5686666667
G39: =G34 -> Scen2 | H39: 0.4756666667 | I39: 0.5686666667
G42: Slope | H42: =(I37-H37)/(I36-H36) -> 0.01033333333
G43: Intercept | H43: =H37-H42*H36 -> -20.30466667
G45: Slope | H45: =(I38-H38)/(I36-H36) -> 0.01033333333
G46: Intercept | H46: =H38-H45*H36 -> -20.30466667
G48: Slope | H48: =(I39-H39)/(I36-H36) -> 0.01033333333
G49: Intercept | H49: =H39-H48*H36 -> -20.30466667

Sheet CPR_Summary
C2: 0
G9: Usual | H9: =inUsualName -> Usual | I9: ="usual"&I10 -> usual2011 | J9: ="usual"&J10 -> usual2012 | K9: usual2013 | L9: usual2014 | M9: usual2015 | N9: usual2016 | O9: usual2017 | P9: usual2018 | Q9: usual2019 | R9: usual2020
H10: Indicateur | I10: =ConStartYr -> 2011 | J10: =IFERROR(IF(I10+1<=ConEndYr,I10+1,""),"") -> 2012 | K10: 2013 | L10: 2014 | M10: 2015 | N10: 2016 | O10: 2017 | P10: 2018 | Q10: 2019 | R10: 2020
H11: Grossesses non-désirées évitées | I11: =IF(I$10="","",INDIRECT("'Calculations'!" & ADDRESS(ROW(CPR_List)-1 + MATCH($H11,CPR_List,0),COLUMN(INDIRECT("calc"&$G$9&"Yr1"))))) -> 728845.8009 | J11: =IF(J$10="","",INDIRECT("'Calculations'!" & ADDRESS(ROW(CPR_List)-1 + MATCH($H11,CPR_List,0),COLUMN(INDIRECT("calc"&$G$9&"Yr2"))))) -> 769377.5572 | K11: =IF(K$10="","",INDIRECT("'Calculations'!" & ADDRESS(ROW(CPR_List)-1 + MATCH($H11,CPR_List,0),COLUMN(INDIRECT("calc"&$G$9&"Yr3"))))) -> 810959.5878 | L11: =IF(L$10="","",INDIRECT("'Calculations'!" & ADDRESS(ROW(CPR_List)-1 + MATCH($H11,CPR_List,0),COLUMN(INDIRECT("calc"&$G$9&"Yr4"))))) -> 853591.8928 | M11: =IF(M$10="","",INDIRECT("'Calculations'!" & ADDRESS(ROW(CPR_List)-1 + MATCH($H11,CPR_List,0),COLUMN(INDIRECT("calc"&$G$9&"Yr5"))))) -> 897274.472 | N11: =IF(N$10="","",INDIRECT("'Calculations'!" & ADDRESS(ROW(CPR_List)-1 + MATCH($H11,CPR_List,0),COLUMN(INDIRECT("calc"&$G$9&"Yr6"))))) -> 942007.3255 | O11: =IF(O$10="","",INDIRECT("'Calculations'!" & ADDRESS(ROW(CPR_List)-1 + MATCH($H11,CPR_List,0),COLUMN(INDIRECT("calc"&$G$9&"Yr7"))))) -> 987790.4533 | P11: =IF(P$10="","",INDIRECT("'Calculations'!" & ADDRESS(ROW(CPR_List)-1 + MATCH($H11,CPR_List,0),COLUMN(INDIRECT("calc"&$G$9&"Yr8"))))) -> 1034623.855 | Q11: =IF(Q$10="","",INDIRECT("'Calculations'!" & ADDRESS(ROW(CPR_List)-1 + MATCH($H11,CPR_List,0),COLUMN(INDIRECT("calc"&$G$9&"Yr9"))))) -> 1082507.532 | R11: =IF(R$10="","",INDIRECT("'Calculations'!" & ADDRESS(ROW(CPR_List)-1 + MATCH($H11,CPR_List,0),COLUMN(INDIRECT("calc"&$G$9&"Yr10"))))) -> 1131441.482 | S11: =SUM(I11:R11) -> 9238419.959
H12: Nombre de naissances vivantes évitées | I12: 397445.5275 | J12: 419547.8231 | K12: 442222.8417 | L12: 465470.5834 | M12: 489291.0482 | N12: 513684.236 | O12: 538650.147 | P12: 564188.7811 | Q12: 590300.1382 | R12: 616984.2185 | S12: =SUM(I12:R12) -> 5037785.345
H13: Avortements évités | I13: 225942.1983 | J13: 238507.0427 | K13: 251397.4722 | L13: 264613.4868 | M13: 278155.0863 | N13: 292022.2709 | O13: 306215.0405 | P13: 320733.3952 | Q13: 335577.3348 | R13: 350746.8595 | S13: 2863910.187
H14: Avortements à risque évités | I14: 216362.7005 | J14: 228394.8207 | K14: 240738.7217 | L14: 253394.4037 | M14: 266361.8665 | N14: 279641.1101 | O14: 293232.1347 | P14: 307134.9401 | Q14: 321349.5264 | R14: 335875.8936 | S14: 2742486.118
H15: Décès maternels évités | I15: 2442.442358 | J15: 2485.362778 | K15: 2521.760332 | L15: 2551.254543 | M15: 2573.464935 | N15: 2588.011031 | O15: 2594.512355 | P15: 2592.588429 | Q15: 2581.858778 | R15: 2561.942924 | S15: 25493.19846
H16: Décès infantils évités | I16: 11447.03638 | J16: 12083.61614 | K16: 12736.6912 | L16: 13406.26156 | M16: 14092.32722 | N16: 14794.88817 | O16: 15513.94443 | P16: 16249.49597 | Q16: 17001.54282 | R16: 17770.08496 | S16: 145095.8889
H17: AVCI évitées | I17: 1120011.876 | J17: 1176508.651 | K17: 1233993.727 | L17: 1292443.4 | M17: 1351833.966 | N17: 1412141.721 | O17: 1473342.962 | P17: 1535413.984 | Q17: 1598331.084 | R17: 1662070.558 | S17: 13856091.93
H18: Coûts de soins de santé maternelle et infantile sauvés | I18: 27769484.99 | J18: 29313770.49 | K18: 30898072.1 | L18: 32522389.82 | M18: 34186723.66 | N18: 35891073.61 | O18: 37635439.67 | P18: 39419821.85 | Q18: 41244220.13 | R18: 43108634.54 | S18: 351989630.8
H19: besoin non satisfait | I19: 0.256 | J19: 0.2456666667 | K19: 0.2353333333 | L19: 0.225 | M19: 0.2146666667 | N19: 0.2043333333 | O19: =IF(O$10="","",INDIRECT("'Calculations'!" & ADDRESS(ROW(CPR_List)-1 + MATCH($H19,CPR_List,0),COLUMN(INDIRECT("calc"&$G$9&"Yr7"))))) -> 0.194 | P19: 0.1836666667 | Q19: 0.1733333333 | R19: 0.163 | S19: =IFERROR(AVERAGE(I19:R19),"") -> 0.2095
H20: coûts totaux de la PF | I20: 18640940.24 | J20: 19677579.33 | K20: 20741080.2 | L20: 21831442.87 | M20: 22948667.32 | N20: 24092753.55 | O20: 25263701.57 | P20: 26461511.38 | Q20: 27686182.98 | R20: 28937716.36 | S20: 236281575.8
H21: Rapport coût-bénéfice | I21: 1.489704094 | J21: 1.489704094 | K21: 1.489704094 | L21: 1.489704094 | M21: 1.489704094 | N21: 1.489704094 | O21: 1.489704094 | P21: 1.489704094 | Q21: 1.489704094 | R21: 1.489704094 | S21: =IFERROR(AVERAGE(I21:R21),"") -> 1.489704094
H22: Nombre total d’utilisatrices de PF | I22: 2823101.657 | J22: 2980096.824 | K22: 3141160.11 | L22: 3306291.514 | M22: 3475491.037 | N22: 3648758.678 | O22: 3826094.438 | P22: 4007498.316 | Q22: 4192970.313 | R22: 4382510.429 | S22: 35783973.32
H23: Utilisateurs du préservatif | I23: 112924.0663 | J23: 119203.873 | K23: 125646.4044 | L23: 132251.6606 | M23: 139019.6415 | N23: 145950.3471 | O23: 153043.7775 | P23: 160299.9327 | Q23: 167718.8125 | R23: 175300.4171 | S23: 1431358.933
H24: Utilisatrices des injectables | I24: 1343796.389 | J24: 1418526.088 | K24: 1495192.212 | L24: 1573794.761 | M24: 1654333.734 | N24: 1736809.131 | O24: 1821220.953 | P24: 1907569.199 | Q24: 1995853.869 | R24: 2086074.964 | S24: 17033171.3
H25: Utilisatrices de la pilule | I25: 446050.0617 | J25: 470855.2982 | K25: 496303.2973 | L25: 522394.0592 | M25: 549127.5838 | N25: 576503.8712 | O25: 604522.9212 | P25: 633184.734 | Q25: 662489.3095 | R25: 692436.6477 | S25: 5653867.784
H26: Utilisateurs de la stérilisation masculine | I26: 0 | J26: 0 | K26: 0 | L26: 0 | M26: 0 | N26: 0 | O26: 0 | P26: 0 | Q26: 0 | R26: 0 | S26: 0
H27: Utilisatrices de la stérilisation féminine | I27: 296425.6739 | J27: 312910.1665 | K27: 329821.8115 | L27: 347160.609 | M27: 364926.5589 | N27: 383119.6612 | O27: 401739.916 | P27: 420787.3232 | Q27: 440261.8829 | R27: 460163.595 | S27: 3757317.198
H28: Utilisatrices du DIU | I28: 98808.55798 | J28: 104303.3888 | K28: 109940.6038 | L28: 115720.203 | M28: 121642.1863 | N28: 127706.5537 | O28: 133913.3053 | P28: 140262.4411 | Q28: 146753.961 | R28: 153387.865 | S28: 1252439.066
H29: Utilisatrices des implants | I29: 118570.2696 | J29: 125164.0666 | K29: 131928.7246 | L29: 138864.2436 | M29: 145970.6235 | N29: 153247.8645 | O29: 160695.9664 | P29: 168314.9293 | Q29: 176104.7532 | R29: 184065.438 | S29: 1502926.879
H30: Utilisatrices de la méthode des jours fixes (MJF) | I30: 0 | J30: 0 | K30: 0 | L30: 0 | M30: 0 | N30: 0 | O30: 0 | P30: 0 | Q30: 0 | R30: 0 | S30: 0
H31: Utilisatrices d'autres méthodes modernes | I31: 31054.11822 | J31: 32781.06506 | K31: 34552.76121 | L31: 36369.20665 | M31: 38230.40141 | N31: 40136.34546 | O31: 42087.03882 | P31: 44082.48148 | Q31: 46122.67345 | R31: 48207.61472 | S31: 393623.7065
H32: Utilisatrices des méthodes traditionnelles | I32: 375472.5203 | J32: 396352.8776 | K32: 417774.2946 | L32: 439736.7714 | M32: 462240.3079 | N32: 485284.9042 | O32: 508870.5603 | P32: 532997.2761 | Q32: 557665.0517 | R32: 582873.887 | S32: 4759268.451
H33: Acceptants de la stérilisation masculine* | I33: 0 | J33: 0 | K33: 0 | L33: 0 | M33: 0 | N33: 0 | O33: 0 | P33: 0 | Q33: 0 | R33: 0 | S33: 0
H34: Acceptantes de la stérilisation féminine* | I34: 121598.8423 | J34: 121598.8423 | K34: 121598.8423 | L34: 121598.8423 | M34: 121598.8423 | N34: 121598.8423 | O34: 121598.8423 | P34: 121598.8423 | Q34: 121598.8423 | R34: 121598.8423 | S34: 1215988.423
H35: Acceptantes du DIU* | I35: 29623.29851 | J35: 29623.29851 | K35: 29623.29851 | L35: 29623.29851 | M35: 29623.29851 | N35: 29623.29851 | O35: 29623.29851 | P35: 29623.29851 | Q35: 29623.29851 | R35: 29623.29851 | S35: 296232.9851
H36: Acceptantes des implants* | I36: 44815.38186 | J36: 44815.38186 | K36: 44815.38186 | L36: 44815.38186 | M36: 44815.38186 | N36: 44815.38186 | O36: 44815.38186 | P36: 44815.38186 | Q36: 44815.38186 | R36: 44815.38186 | S36: 448153.8186
H37: Acceptantes de la MJF | I37: 0 | J37: 0 | K37: 0 | L37: 0 | M37: 0 | N37: 0 | O37: 0 | P37: 0 | Q37: 0 | R37: 0 | S37: 0
G38: Scen1 | H38: =inScen1Name -> Scen2 | I38: ="scen1"&I39 -> scen12011 | J38: ="scen1"&J39 -> scen12012 | K38: scen12013 | L38: scen12014 | M38: scen12015 | N38: scen12016 | O38: scen12017 | P38: scen12018 | Q38: scen12019 | R38: scen12020
H39: Indicateur | I39: =Configuration!$F$12 -> 2011 | J39: =IFERROR(IF(I39+1<=Configuration!$F$14,I39+1,""),"") -> 2012 | K39: =IFERROR(IF(J39+1<=Configuration!$F$14,J39+1,""),"") -> 2013 | L39: =IFERROR(IF(K39+1<=Configuration!$F$14,K39+1,""),"") -> 2014 | M39: =IFERROR(IF(L39+1<=Configuration!$F$14,L39+1,""),"") -> 2015 | N39: =IFERROR(IF(M39+1<=Configuration!$F$14,M39+1,""),"") -> 2016 | O39: =IFERROR(IF(N39+1<=Configuration!$F$14,N39+1,""),"") -> 2017 | P39: =IFERROR(IF(O39+1<=Configuration!$F$14,O39+1,""),"") -> 2018 | Q39: =IFERROR(IF(P39+1<=Configuration!$F$14,P39+1,""),"") -> 2019 | R39: =IFERROR(IF(Q39+1<=Configuration!$F$14,Q39+1,""),"") -> 2020
H40: Grossesses non-désirées évitées | I40: =IF(I$10="","",INDIRECT("'Calculations'!" & ADDRESS(ROW(CPR_List)-1 + MATCH($H40,CPR_List,0),COLUMN(INDIRECT("calc"&$G$38&"Yr1"))))) -> 728845.8009 | J40: =IF(J$10="","",INDIRECT("'Calculations'!" & ADDRESS(ROW(CPR_List)-1 + MATCH($H40,CPR_List,0),COLUMN(INDIRECT("calc"&$G$38&"Yr2"))))) -> 769377.5572 | K40: =IF(K$10="","",INDIRECT("'Calculations'!" & ADDRESS(ROW(CPR_List)-1 + MATCH($H40,CPR_List,0),COLUMN(INDIRECT("calc"&$G$38&"Yr3"))))) -> 810959.5878 | L40: =IF(L$10="","",INDIRECT("'Calculations'!" & ADDRESS(ROW(CPR_List)-1 + MATCH($H40,CPR_List,0),COLUMN(INDIRECT("calc"&$G$38&"Yr4"))))) -> 853591.8928 | M40: =IF(M$10="","",INDIRECT("'Calculations'!" & ADDRESS(ROW(CPR_List)-1 + MATCH($H40,CPR_List,0),COLUMN(INDIRECT("calc"&$G$38&"Yr5"))))) -> 897274.472 | N40: =IF(N$10="","",INDIRECT("'Calculations'!" & ADDRESS(ROW(CPR_List)-1 + MATCH($H40,CPR_List,0),COLUMN(INDIRECT("calc"&$G$38&"Yr6"))))) -> 942007.3255 | O40: =IF(O$10="","",INDIRECT("'Calculations'!" & ADDRESS(ROW(CPR_List)-1 + MATCH($H40,CPR_List,0),COLUMN(INDIRECT("calc"&$G$38&"Yr7"))))) -> 987790.4533 | P40: =IF(P$10="","",INDIRECT("'Calculations'!" & ADDRESS(ROW(CPR_List)-1 + MATCH($H40,CPR_List,0),COLUMN(INDIRECT("calc"&$G$38&"Yr8"))))) -> 1034623.855 | Q40: =IF(Q$10="","",INDIRECT("'Calculations'!" & ADDRESS(ROW(CPR_List)-1 + MATCH($H40,CPR_List,0),COLUMN(INDIRECT("calc"&$G$38&"Yr9"))))) -> 1082507.532 | R40: =IF(R$10="","",INDIRECT("'Calculations'!" & ADDRESS(ROW(CPR_List)-1 + MATCH($H40,CPR_List,0),COLUMN(INDIRECT("calc"&$G$38&"Yr10"))))) -> 1131441.482 | S40: =SUM(I40:R40) -> 9238419.959
H41: Nombre de naissances vivantes évitées | I41: 397445.5275 | J41: 419547.8231 | K41: 442222.8417 | L41: 465470.5834 | M41: 489291.0482 | N41: 513684.236 | O41: 538650.147 | P41: 564188.7811 | Q41: 590300.1382 | R41: 616984.2185 | S41: =SUM(I41:R41) -> 5037785.345
H42: Avortements évités | I42: 225942.1983 | J42: 238507.0427 | K42: 251397.4722 | L42: 264613.4868 | M42: 278155.0863 | N42: 292022.2709 | O42: 306215.0405 | P42: 320733.3952 | Q42: 335577.3348 | R42: 350746.8595 | S42: 2863910.187
H43: Avortements à risque évités | I43: 216362.7005 | J43: 228394.8207 | K43: 240738.7217 | L43: 253394.4037 | M43: 266361.8665 | N43: 279641.1101 | O43: 293232.1347 | P43: 307134.9401 | Q43: 321349.5264 | R43: 335875.8936 | S43: 2742486.118
H44: Décès maternels évités | I44: 2442.442358 | J44: 2485.362778 | K44: 2521.760332 | L44: 2551.254543 | M44: 2573.464935 | N44: 2588.011031 | O44: 2594.512355 | P44: 2592.588429 | Q44: 2581.858778 | R44: 2561.942924 | S44: 25493.19846
H45: Décès infantils évités | I45: 11447.03638 | J45: 12083.61614 | K45: 12736.6912 | L45: 13406.26156 | M45: 14092.32722 | N45: 14794.88817 | O45: 15513.94443 | P45: 16249.49597 | Q45: 17001.54282 | R45: 17770.08496 | S45: 145095.8889
H46: AVCI évitées | I46: 1120011.876 | J46: 1176508.651 | K46: 1233993.727 | L46: 1292443.4 | M46: 1351833.966 | N46: 1412141.721 | O46: 1473342.962 | P46: 1535413.984 | Q46: 1598331.084 | R46: 1662070.558 | S46: 13856091.93
H47: Coûts de soins de santé maternelle et infantile sauvés | I47: 27769484.99 | J47: 29313770.49 | K47: 30898072.1 | L47: 32522389.82 | M47: 34186723.66 | N47: 35891073.61 | O47: 37635439.67 | P47: 39419821.85 | Q47: 41244220.13 | R47: 43108634.54 | S47: =SUM(I47:R47) -> 351989630.8
H48: besoin non satisfait | I48: 0.256 | J48: 0.2456666667 | K48: 0.2353333333 | L48: 0.225 | M48: 0.2146666667 | N48: 0.2043333333 | O48: 0.194 | P48: 0.1836666667 | Q48: 0.1733333333 | R48: 0.163 | S48: =IFERROR(AVERAGE(I48:R48),"") -> 0.2095
H49: coûts totaux de la PF | I49: 18640940.24 | J49: 19677579.33 | K49: 20741080.2 | L49: 21831442.87 | M49: 22948667.32 | N49: 24092753.55 | O49: 25263701.57 | P49: 26461511.38 | Q49: 27686182.98 | R49: 28937716.36 | S49: 236281575.8
H50: Rapport coût-bénéfice | I50: 1.489704094 | J50: 1.489704094 | K50: 1.489704094 | L50: 1.489704094 | M50: 1.489704094 | N50: 1.489704094 | O50: 1.489704094 | P50: 1.489704094 | Q50: 1.489704094 | R50: 1.489704094 | S50: =IFERROR(AVERAGE(I50:R50),"") -> 1.489704094
H51: Nombre total d’utilisatrices de PF | I51: 2823101.657 | J51: 2980096.824 | K51: 3141160.11 | L51: 3306291.514 | M51: 3475491.037 | N51: 3648758.678 | O51: 3826094.438 | P51: 4007498.316 | Q51: 4192970.313 | R51: 4382510.429 | S51: 35783973.32
H52: Utilisateurs du préservatif | I52: 112924.0663 | J52: 119203.873 | K52: 125646.4044 | L52: 132251.6606 | M52: 139019.6415 | N52: 145950.3471 | O52: 153043.7775 | P52: 160299.9327 | Q52: 167718.8125 | R52: 175300.4171 | S52: 1431358.933
H53: Utilisatrices des injectables | I53: 1343796.389 | J53: 1418526.088 | K53: 1495192.212 | L53: 1573794.761 | M53: 1654333.734 | N53: 1736809.131 | O53: 1821220.953 | P53: 1907569.199 | Q53: 1995853.869 | R53: 2086074.964 | S53: 17033171.3
H54: Utilisatrices de la pilule | I54: 446050.0617 | J54: 470855.2982 | K54: 496303.2973 | L54: 522394.0592 | M54: 549127.5838 | N54: 576503.8712 | O54: 604522.9212 | P54: 633184.734 | Q54: 662489.3095 | R54: 692436.6477 | S54: 5653867.784
H55: Utilisateurs de la stérilisation masculine | I55: 0 | J55: 0 | K55: 0 | L55: 0 | M55: 0 | N55: 0 | O55: 0 | P55: 0 | Q55: 0 | R55: 0 | S55: 0
H56: Utilisatrices de la stérilisation féminine | I56: 296425.6739 | J56: 312910.1665 | K56: 329821.8115 | L56: 347160.609 | M56: 364926.5589 | N56: 383119.6612 | O56: 401739.916 | P56: 420787.3232 | Q56: 440261.8829 | R56: 460163.595 | S56: 3757317.198
H57: Utilisatrices du DIU | I57: 98808.55798 | J57: 104303.3888 | K57: 109940.6038 | L57: 115720.203 | M57: 121642.1863 | N57: 127706.5537 | O57: 133913.3053 | P57: 140262.4411 | Q57: 146753.961 | R57: 153387.865 | S57: 1252439.066
H58: Utilisatrices des implants | I58: 118570.2696 | J58: 125164.0666 | K58: 131928.7246 | L58: 138864.2436 | M58: 145970.6235 | N58: 153247.8645 | O58: 160695.9664 | P58: 168314.9293 | Q58: 176104.7532 | R58: 184065.438 | S58: 1502926.879
H59: Utilisatrices de la méthode des jours fixes (MJF) | I59: 0 | J59: 0 | K59: 0 | L59: 0 | M59: 0 | N59: 0 | O59: 0 | P59: 0 | Q59: 0 | R59: 0 | S59: 0
H60: Utilisatrices d'autres méthodes modernes | I60: 31054.11822 | J60: 32781.06506 | K60: 34552.76121 | L60: 36369.20665 | M60: 38230.40141 | N60: 40136.34546 | O60: 42087.03882 | P60: 44082.48148 | Q60: 46122.67345 | R60: 48207.61472 | S60: 393623.7065
H61: Utilisatrices des méthodes traditionnelles | I61: 375472.5203 | J61: 396352.8776 | K61: 417774.2946 | L61: 439736.7714 | M61: 462240.3079 | N61: 485284.9042 | O61: 508870.5603 | P61: 532997.2761 | Q61: 557665.0517 | R61: 582873.887 | S61: 4759268.451
H62: Acceptants de la stérilisation masculine* | I62: 0 | J62: 0 | K62: 0 | L62: 0 | M62: 0 | N62: 0 | O62: 0 | P62: 0 | Q62: 0 | R62: 0 | S62: 0
H63: Acceptantes de la stérilisation féminine* | I63: 121598.8423 | J63: 121598.8423 | K63: 121598.8423 | L63: 121598.8423 | M63: 121598.8423 | N63: 121598.8423 | O63: 121598.8423 | P63: 121598.8423 | Q63: 121598.8423 | R63: 121598.8423 | S63: 1215988.423
H64: Acceptantes du DIU* | I64: 29623.29851 | J64: 29623.29851 | K64: 29623.29851 | L64: 29623.29851 | M64: 29623.29851 | N64: 29623.29851 | O64: 29623.29851 | P64: 29623.29851 | Q64: 29623.29851 | R64: 29623.29851 | S64: 296232.9851
H65: Acceptantes des implants* | I65: 44815.38186 | J65: 44815.38186 | K65: 44815.38186 | L65: 44815.38186 | M65: 44815.38186 | N65: 44815.38186 | O65: 44815.38186 | P65: 44815.38186 | Q65: 44815.38186 | R65: 44815.38186 | S65: 448153.8186
H66: Acceptantes de la MJF | I66: 0 | J66: 0 | K66: 0 | L66: 0 | M66: 0 | N66: 0 | O66: 0 | P66: 0 | Q66: 0 | R66: 0 | S66: 0
G67: Scen2 | H67: =inScen2Name -> Scen3 | I67: ="scen2"&I68 -> scen22011 | J67: ="scen2"&J68 -> scen22012 | K67: scen22013 | L67: scen22014 | M67: scen22015 | N67: scen22016 | O67: scen22017 | P67: scen22018 | Q67: scen22019 | R67: scen22020
H68: Indicateur | I68: =Configuration!$F$12 -> 2011 | J68: =IFERROR(IF(I68+1<=Configuration!$F$14,I68+1,""),"") -> 2012 | K68: =IFERROR(IF(J68+1<=Configuration!$F$14,J68+1,""),"") -> 2013 | L68: =IFERROR(IF(K68+1<=Configuration!$F$14,K68+1,""),"") -> 2014 | M68: =IFERROR(IF(L68+1<=Configuration!$F$14,L68+1,""),"") -> 2015 | N68: =IFERROR(IF(M68+1<=Configuration!$F$14,M68+1,""),"") -> 2016 | O68: =IFERROR(IF(N68+1<=Configuration!$F$14,N68+1,""),"") -> 2017 | P68: =IFERROR(IF(O68+1<=Configuration!$F$14,O68+1,""),"") -> 2018 | Q68: =IFERROR(IF(P68+1<=Configuration!$F$14,P68+1,""),"") -> 2019 | R68: =IFERROR(IF(Q68+1<=Configuration!$F$14,Q68+1,""),"") -> 2020
H69: Grossesses non-désirées évitées | I69: =IF(I$10="","",INDIRECT("'Calculations'!" & ADDRESS(ROW(CPR_List)-1 + MATCH($H69,CPR_List,0),COLUMN(INDIRECT("calc"&$G$67&"Yr1"))))) -> 728845.8009 | J69: =IF(J$10="","",INDIRECT("'Calculations'!" & ADDRESS(ROW(CPR_List)-1 + MATCH($H69,CPR_List,0),COLUMN(INDIRECT("calc"&$G$67&"Yr2"))))) -> 769377.5572 | K69: =IF(K$10="","",INDIRECT("'Calculations'!" & ADDRESS(ROW(CPR_List)-1 + MATCH($H69,CPR_List,0),COLUMN(INDIRECT("calc"&$G$67&"Yr3"))))) -> 810959.5878 | L69: =IF(L$10="","",INDIRECT("'Calculations'!" & ADDRESS(ROW(CPR_List)-1 + MATCH($H69,CPR_List,0),COLUMN(INDIRECT("calc"&$G$67&"Yr4"))))) -> 853591.8928 | M69: =IF(M$10="","",INDIRECT("'Calculations'!" & ADDRESS(ROW(CPR_List)-1 + MATCH($H69,CPR_List,0),COLUMN(INDIRECT("calc"&$G$67&"Yr5"))))) -> 897274.472 | N69: =IF(N$10="","",INDIRECT("'Calculations'!" & ADDRESS(ROW(CPR_List)-1 + MATCH($H69,CPR_List,0),COLUMN(INDIRECT("calc"&$G$67&"Yr6"))))) -> 942007.3255 | O69: =IF(O$10="","",INDIRECT("'Calculations'!" & ADDRESS(ROW(CPR_List)-1 + MATCH($H69,CPR_List,0),COLUMN(INDIRECT("calc"&$G$67&"Yr7"))))) -> 987790.4533 | P69: =IF(P$10="","",INDIRECT("'Calculations'!" & ADDRESS(ROW(CPR_List)-1 + MATCH($H69,CPR_List,0),COLUMN(INDIRECT("calc"&$G$67&"Yr8"))))) -> 1034623.855 | Q69: =IF(Q$10="","",INDIRECT("'Calculations'!" & ADDRESS(ROW(CPR_List)-1 + MATCH($H69,CPR_List,0),COLUMN(INDIRECT("calc"&$G$67&"Yr9"))))) -> 1082507.532 | R69: =IF(R$10="","",INDIRECT("'Calculations'!" & ADDRESS(ROW(CPR_List)-1 + MATCH($H69,CPR_List,0),COLUMN(INDIRECT("calc"&$G$67&"Yr10"))))) -> 1131441.482 | S69: =SUM(I69:R69) -> 9238419.959
H70: Nombre de naissances vivantes évitées | I70: 397445.5275 | J70: 419547.8231 | K70: 442222.8417 | L70: 465470.5834 | M70: 489291.0482 | N70: 513684.236 | O70: 538650.147 | P70: 564188.7811 | Q70: 590300.1382 | R70: 616984.2185 | S70: 5037785.345
H71: Avortements évités | I71: 225942.1983 | J71: 238507.0427 | K71: 251397.4722 | L71: 264613.4868 | M71: 278155.0863 | N71: 292022.2709 | O71: 306215.0405 | P71: 320733.3952 | Q71: 335577.3348 | R71: 350746.8595 | S71: 2863910.187
H72: Avortements à risque évités | I72: 216362.7005 | J72: 228394.8207 | K72: 240738.7217 | L72: 253394.4037 | M72: 266361.8665 | N72: 279641.1101 | O72: 293232.1347 | P72: 307134.9401 | Q72: 321349.5264 | R72: 335875.8936 | S72: 2742486.118
H73: Décès maternels évités | I73: 2442.442358 | J73: 2485.362778 | K73: 2521.760332 | L73: 2551.254543 | M73: 2573.464935 | N73: 2588.011031 | O73: 2594.512355 | P73: 2592.588429 | Q73: 2581.858778 | R73: 2561.942924 | S73: 25493.19846
H74: Décès infantils évités | I74: 11447.03638 | J74: 12083.61614 | K74: 12736.6912 | L74: 13406.26156 | M74: 14092.32722 | N74: 14794.88817 | O74: 15513.94443 | P74: 16249.49597 | Q74: 17001.54282 | R74: 17770.08496 | S74: 145095.8889
H75: AVCI évitées | I75: 1120011.876 | J75: 1176508.651 | K75: 1233993.727 | L75: 1292443.4 | M75: 1351833.966 | N75: 1412141.721 | O75: 1473342.962 | P75: 1535413.984 | Q75: 1598331.084 | R75: 1662070.558 | S75: 13856091.93
H76: Coûts de soins de santé maternelle et infantile sauvés | I76: 27769484.99 | J76: 29313770.49 | K76: 30898072.1 | L76: 32522389.82 | M76: 34186723.66 | N76: 35891073.61 | O76: 37635439.67 | P76: 39419821.85 | Q76: 41244220.13 | R76: 43108634.54 | S76: 351989630.8
H77: besoin non satisfait | I77: 0.256 | J77: 0.2456666667 | K77: 0.2353333333 | L77: 0.225 | M77: 0.2146666667 | N77: 0.2043333333 | O77: 0.194 | P77: 0.1836666667 | Q77: 0.1733333333 | R77: 0.163 | S77: =IFERROR(AVERAGE(I77:R77),"") -> 0.2095
H78: coûts totaux de la PF | I78: 18640940.24 | J78: 19677579.33 | K78: 20741080.2 | L78: 21831442.87 | M78: 22948667.32 | N78: 24092753.55 | O78: 25263701.57 | P78: 26461511.38 | Q78: 27686182.98 | R78: 28937716.36 | S78: =SUM(I78:R78) -> 236281575.8
H79: Rapport coût-bénéfice | I79: 1.489704094 | J79: 1.489704094 | K79: 1.489704094 | L79: 1.489704094 | M79: 1.489704094 | N79: 1.489704094 | O79: 1.489704094 | P79: 1.489704094 | Q79: 1.489704094 | R79: 1.489704094 | S79: =IFERROR(AVERAGE(I79:R79),"") -> 1.489704094
H80: Nombre total d’utilisatrices de PF | I80: 2823101.657 | J80: 2980096.824 | K80: 3141160.11 | L80: 3306291.514 | M80: 3475491.037 | N80: 3648758.678 | O80: 3826094.438 | P80: 4007498.316 | Q80: 4192970.313 | R80: 4382510.429 | S80: 35783973.32
H81: Utilisateurs du préservatif | I81: 112924.0663 | J81: 119203.873 | K81: 125646.4044 | L81: 132251.6606 | M81: 139019.6415 | N81: 145950.3471 | O81: 153043.7775 | P81: 160299.9327 | Q81: 167718.8125 | R81: 175300.4171 | S81: 1431358.933
H82: Utilisatrices des injectables | I82: 1343796.389 | J82: 1418526.088 | K82: 1495192.212 | L82: 1573794.761 | M82: 1654333.734 | N82: 1736809.131 | O82: 1821220.953 | P82: 1907569.199 | Q82: 1995853.869 | R82: 2086074.964 | S82: 17033171.3
H83: Utilisatrices de la pilule | I83: 446050.0617 | J83: 470855.2982 | K83: 496303.2973 | L83: 522394.0592 | M83: 549127.5838 | N83: 576503.8712 | O83: 604522.9212 | P83: 633184.734 | Q83: 662489.3095 | R83: 692436.6477 | S83: 5653867.784
H84: Utilisateurs de la stérilisation masculine | I84: 0 | J84: 0 | K84: 0 | L84: 0 | M84: 0 | N84: 0 | O84: 0 | P84: 0 | Q84: 0 | R84: 0 | S84: 0
H85: Utilisatrices de la stérilisation féminine | I85: 296425.6739 | J85: 312910.1665 | K85: 329821.8115 | L85: 347160.609 | M85: 364926.5589 | N85: 383119.6612 | O85: 401739.916 | P85: 420787.3232 | Q85: 440261.8829 | R85: 460163.595 | S85: 3757317.198
H86: Utilisatrices du DIU | I86: 98808.55798 | J86: 104303.3888 | K86: 109940.6038 | L86: 115720.203 | M86: 121642.1863 | N86: 127706.5537 | O86: 133913.3053 | P86: 140262.4411 | Q86: 146753.961 | R86: 153387.865 | S86: 1252439.066
H87: Utilisatrices des implants | I87: 118570.2696 | J87: 125164.0666 | K87: 131928.7246 | L87: 138864.2436 | M87: 145970.6235 | N87: 153247.8645 | O87: 160695.9664 | P87: 168314.9293 | Q87: 176104.7532 | R87: 184065.438 | S87: 1502926.879
H88: Utilisatrices de la méthode des jours fixes (MJF) | I88: 0 | J88: 0 | K88: 0 | L88: 0 | M88: 0 | N88: 0 | O88: 0 | P88: 0 | Q88: 0 | R88: 0 | S88: 0
H89: Utilisatrices d'autres méthodes modernes | I89: 31054.11822 | J89: 32781.06506 | K89: 34552.76121 | L89: 36369.20665 | M89: 38230.40141 | N89: 40136.34546 | O89: 42087.03882 | P89: 44082.48148 | Q89: 46122.67345 | R89: 48207.61472 | S89: 393623.7065
H90: Utilisatrices des méthodes traditionnelles | I90: 375472.5203 | J90: 396352.8776 | K90: 417774.2946 | L90: 439736.7714 | M90: 462240.3079 | N90: 485284.9042 | O90: 508870.5603 | P90: 532997.2761 | Q90: 557665.0517 | R90: 582873.887 | S90: 4759268.451
H91: Acceptants de la stérilisation masculine* | I91: 0 | J91: 0 | K91: 0 | L91: 0 | M91: 0 | N91: 0 | O91: 0 | P91: 0 | Q91: 0 | R91: 0 | S91: 0
H92: Acceptantes de la stérilisation féminine* | I92: 121598.8423 | J92: 121598.8423 | K92: 121598.8423 | L92: 121598.8423 | M92: 121598.8423 | N92: 121598.8423 | O92: 121598.8423 | P92: 121598.8423 | Q92: 121598.8423 | R92: 121598.8423 | S92: 1215988.423
H93: Acceptantes du DIU* | I93: 29623.29851 | J93: 29623.29851 | K93: 29623.29851 | L93: 29623.29851 | M93: 29623.29851 | N93: 29623.29851 | O93: 29623.29851 | P93: 29623.29851 | Q93: 29623.29851 | R93: 29623.29851 | S93: 296232.9851
H94: Acceptantes des implants* | I94: 44815.38186 | J94: 44815.38186 | K94: 44815.38186 | L94: 44815.38186 | M94: 44815.38186 | N94: 44815.38186 | O94: 44815.38186 | P94: 44815.38186 | Q94: 44815.38186 | R94: 44815.38186 | S94: 448153.8186
H95: Acceptantes de la MJF | I95: 0 | J95: 0 | K95: 0 | L95: 0 | M95: 0 | N95: 0 | O95: 0 | P95: 0 | Q95: 0 | R95: 0 | S95: 0
H96: * Les résultats des acceptants sont exprimés comme étant le nombre annuel moyen d'acceptants sur la période de l'analyse

Sheet CPR_Comparison
C2: 0
D3: Différence cumulative comparée à
D4: Différence en % comparée à
K9: =D3 & inUsualName -> Différence cumulative comparée à Usual | O9: =D4 & inUsualName -> Différence en % comparée àUsual
D10: Indicateur | E10: =inUsualName -> Usual | G10: =inScen1Name -> Scen2 | I10: =inScen2Name -> Scen3 | K10: =inScen1Name -> Scen2 | M10: =inScen2Name -> Scen3 | O10: =inScen1Name -> Scen2 | Q10: =inScen2Name -> Scen3
D11: Grossesses non-désirées évitées | E11: =CPR_Summary!S11 -> 9238419.959 | G11: =CPR_Summary!S40 -> 9238419.959 | I11: =CPR_Summary!S69 -> 9238419.959 | K11: =IFERROR(G11-E11,"") -> 0 | M11: =IFERROR(I11-E11,"") -> 0 | O11: =IFERROR(K11/E11,"") -> 0 | Q11: =IFERROR(M11/E11,"") -> 0
D12: Nombre de naissances vivantes évitées | E12: =CPR_Summary!S12 -> 5037785.345 | G12: =CPR_Summary!S41 -> 5037785.345 | I12: =CPR_Summary!S70 -> 5037785.345 | K12: =IFERROR(G12-E12,"") -> 0 | M12: =IFERROR(I12-E12,"") -> 0 | O12: =IFERROR(K12/E12,"") -> 0 | Q12: 0
D13: Avortements évités | E13: =CPR_Summary!S13 -> 2863910.187 | G13: =CPR_Summary!S42 -> 2863910.187 | I13: =CPR_Summary!S71 -> 2863910.187 | K13: 0 | M13: 0 | O13: 0 | Q13: 0
D14: Avortements à risque évités | E14: =CPR_Summary!S14 -> 2742486.118 | G14: =CPR_Summary!S43 -> 2742486.118 | I14: =CPR_Summary!S72 -> 2742486.118 | K14: 0 | M14: 0 | O14: 0 | Q14: 0
D15: Décès maternels évités | E15: =CPR_Summary!S15 -> 25493.19846 | G15: =CPR_Summary!S44 -> 25493.19846 | I15: =CPR_Summary!S73 -> 25493.19846 | K15: 0 | M15: 0 | O15: 0 | Q15: 0
D16: Décès infantils évités | E16: =CPR_Summary!S16 -> 145095.8889 | G16: =CPR_Summary!S45 -> 145095.8889 | I16: =CPR_Summary!S74 -> 145095.8889 | K16: 0 | M16: 0 | O16: 0 | Q16: 0
D17: AVCI évitées | E17: =CPR_Summary!S17 -> 13856091.93 | G17: =CPR_Summary!S46 -> 13856091.93 | I17: =CPR_Summary!S75 -> 13856091.93 | K17: 0 | M17: 0 | O17: 0 | Q17: 0
D18: Coûts de soins de santé maternelle et infantile sauvés | E18: =CPR_Summary!S18 -> 351989630.8 | G18: =CPR_Summary!S47 -> 351989630.8 | I18: =CPR_Summary!S76 -> 351989630.8 | K18: 0 | M18: 0 | O18: =IFERROR(K18/E18,"") -> 0 | Q18: =IFERROR(M18/E18,"") -> 0
D19: besoin non satisfait | E19: =CPR_Summary!S19 -> 0.2095 | G19: =CPR_Summary!S48 -> 0.2095 | I19: =CPR_Summary!S77 -> 0.2095 | K19: 0 | M19: 0 | O19: 0 | Q19: 0
D20: coûts totaux de la PF | E20: =CPR_Summary!S20 -> 236281575.8 | G20: =CPR_Summary!S49 -> 236281575.8 | I20: =CPR_Summary!S78 -> 236281575.8 | K20: =IFERROR(G20-E20,"") -> 0 | M20: =IFERROR(I20-E20,"") -> 0 | O20: 0 | Q20: 0
D21: Rapport coût-bénéfice | E21: =CPR_Summary!S21 -> 1.489704094 | G21: =CPR_Summary!S50 -> 1.489704094 | I21: =CPR_Summary!S79 -> 1.489704094 | K21: =IFERROR(G21-E21,"") -> 0 | M21: =IFERROR(I21-E21,"") -> 0 | O21: 0 | Q21: 0
D22: Total user-years | E22: =CPR_Summary!S22 -> 35783973.32 | G22: =CPR_Summary!S51 -> 35783973.32 | I22: =CPR_Summary!S80 -> 35783973.32 | K22: 0 | M22: 0 | O22: 0 | Q22: 0
D23: Condom user-years | E23: =CPR_Summary!S23 -> 1431358.933 | G23: =CPR_Summary!S52 -> 1431358.933 | I23: =CPR_Summary!S81 -> 1431358.933 | K23: 0 | M23: 0 | O23: 0 | Q23: 0
D24: Injectable user-years | E24: =CPR_Summary!S24 -> 17033171.3 | G24: =CPR_Summary!S53 -> 17033171.3 | I24: =CPR_Summary!S82 -> 17033171.3 | K24: 0 | M24: 0 | O24: 0 | Q24: 0
D25: Pill user-years | E25: =CPR_Summary!S25 -> 5653867.784 | G25: =CPR_Summary!S54 -> 5653867.784 | I25: =CPR_Summary!S83 -> 5653867.784 | K25: 0 | M25: 0 | O25: 0 | Q25: 0
D26: Male sterilization user-years | E26: =CPR_Summary!S26 -> 0 | G26: =CPR_Summary!S55 -> 0 | I26: =CPR_Summary!S84 -> 0 | K26: 0 | M26: 0
D27: Female sterilization user-years | E27: =CPR_Summary!S27 -> 3757317.198 | G27: =CPR_Summary!S56 -> 3757317.198 | I27: =CPR_Summary!S85 -> 3757317.198 | K27: 0 | M27: 0 | O27: 0 | Q27: 0
D28: IUD user-years | E28: =CPR_Summary!S28 -> 1252439.066 | G28: =CPR_Summary!S57 -> 1252439.066 | I28: =CPR_Summary!S86 -> 1252439.066 | K28: 0 | M28: 0 | O28: 0 | Q28: 0
D29: Implant user-years | E29: =CPR_Summary!S29 -> 1502926.879 | G29: =CPR_Summary!S58 -> 1502926.879 | I29: =CPR_Summary!S87 -> 1502926.879 | K29: 0 | M29: 0 | O29: 0 | Q29: 0
D30: Standard Days Method (SDM) user-years | E30: =CPR_Summary!S30 -> 0 | G30: =CPR_Summary!S59 -> 0 | I30: =CPR_Summary!S88 -> 0 | K30: 0 | M30: 0
D31: Other modern user-years | E31: =CPR_Summary!S31 -> 393623.7065 | G31: =CPR_Summary!S60 -> 393623.7065 | I31: =CPR_Summary!S89 -> 393623.7065 | K31: 0 | M31: 0 | O31: 0 | Q31: 0
D32: All traditional user-years | E32: =CPR_Summary!S32 -> 4759268.451 | G32: =CPR_Summary!S61 -> 4759268.451 | I32: =CPR_Summary!S90 -> 4759268.451 | K32: 0 | M32: 0 | O32: 0 | Q32: 0
D33: Acceptants de la stérilisation masculine* | E33: =CPR_Summary!S33 -> 0 | G33: =CPR_Summary!S62 -> 0 | I33: =CPR_Summary!S91 -> 0 | K33: 0 | M33: 0
D34: Acceptantes de la stérilisation féminine* | E34: =CPR_Summary!S34 -> 1215988.423 | G34: =CPR_Summary!S63 -> 1215988.423 | I34: =CPR_Summary!S92 -> 1215988.423 | K34: 0 | M34: 0 | O34: 0 | Q34: 0
D35: Acceptantes du DIU* | E35: =CPR_Summary!S35 -> 296232.9851 | G35: =CPR_Summary!S64 -> 296232.9851 | I35: =CPR_Summary!S93 -> 296232.9851 | K35: 0 | M35: 0 | O35: 0 | Q35: 0
D36: Acceptantes des implants* | E36: =SUM(CPR_Summary!S36) -> 448153.8186 | G36: =SUM(CPR_Summary!S65) -> 448153.8186 | I36: =SUM(CPR_Summary!S94) -> 448153.8186 | K36: 0 | M36: 0 | O36: 0 | Q36: 0
D37: Acceptantes de la MJF | E37: =CPR_Summary!S37 -> 0 | G37: =CPR_Summary!S66 -> 0 | I37: =CPR_Summary!S95 -> 0 | K37: =IFERROR(G37-E37,"") -> 0 | M37: =IFERROR(I37-E37,"") -> 0
D38: * Les résultats des acceptants sont exprimés comme étant le nombre annuel moyen d'acceptants sur la période de l'analyse

Sheet CPR_ICER
C2: 0
D20: Sorties | E20: Grossesses non-désirées évitées
E21: Programmes | G21: Coûts de PF | H21: Sorties | I21: Coûts différentiels de la PF | K21: Différence dans résultat X | N21: RCED
E22: =inUsualName -> Usual | G22: =CPR_Comparison!E17 -> 13856091.93 | H22: =INDEX(CPRCompOut,MATCH(CPR_ICER!$E$20,CPRCompList,0),1) -> 9238419.959
E23: =inScen1Name -> Scen2 | G23: =CPR_Comparison!G17 -> 13856091.93 | H23: =INDEX(CPRCompOut,MATCH(CPR_ICER!$E$20,CPRCompList,0),3) -> 9238419.959 | I23: =G23-G22 -> 0 | K23: =H23-H22 -> 0 | N23: =IFERROR(I23/K23,"") -> 
E24: =inScen2Name -> Scen3 | G24: =CPR_Comparison!I17 -> 13856091.93 | H24: =INDEX(CPRCompOut,MATCH(CPR_ICER!$E$20,CPRCompList,0),5) -> 9238419.959 | I24: =G24-G22 -> 0 | K24: =H24-H22 -> 0 | N24: =IFERROR(I24/K24,"") -> 
E25: * Les résultats des acceptants sont exprimés comme étant le nombre annuel moyen d'acceptants sur la période de l'analyse

Sheet Unmet_Indicator
C2: 0
J7: =F8&" by scenario" -> Grossesses non-désirées évitées by scenario
D8: Choisir sortie | F8: Grossesses non-désirées évitées | Z8: Grossesses non-désirées évitées
Z9: Nombre de naissances vivantes évitées
P10: Unmet Need by Year | S10: 1 | Z10: Décès maternels évités
Q11: =Configuration!F12 -> 2011 | R11: =Configuration!F14 -> 2020 | Z11: Décès infantils évités
P12: =D23 -> Usual | Q12: =inUnmet1 -> 0.256 | R12: =inUsual412 -> 0.163 | Z12: AVCI évitées
P13: =D24 -> Scen2 | Q13: =inUnmet1 -> 0.256 | R13: =inScen1412 -> 0.163 | Z13: Coûts de soins de santé maternelle et infantile sauvés
P14: =D25 -> Scen3 | Q14: =inUnmet1 -> 0.256 | R14: =inScen2412 -> 0.163 | Z14: TPC
Z15: coûts totaux de la PF
Z16: Rapport coût-bénéfice
Q17: Baseline CPR | R17: =inCPR2 -> 0.4756666667 | T17: =R17 -> 0.4756666667 | U17: =$R$17+($Q$12-R12) -> 0.5686666667 | Z17: Nombre total d’utilisatrices de PF
T18: =R17 -> 0.4756666667 | U18: =$R$17+($Q$13-R13) -> 0.5686666667 | Z18: Utilisateurs du préservatif
T19: =R17 -> 0.4756666667 | U19: =$R$17+($Q$14-R14) -> 0.5686666667 | Z19: Utilisatrices des injectables
X20: Therefore increase increase a CPR by a % each year. | Z20: Utilisatrices de la pilule
Z21: Utilisateurs de la stérilisation masculine
F22: =Configuration!F12 -> 2011 | G22: =IFERROR(IF(F22+1<=Configuration!$F$14,F22+1,""),"") -> 2012 | H22: =IFERROR(IF(G22+1<=Configuration!$F$14,G22+1,""),"") -> 2013 | I22: =IFERROR(IF(H22+1<=Configuration!$F$14,H22+1,""),"") -> 2014 | J22: =IFERROR(IF(I22+1<=Configuration!$F$14,I22+1,""),"") -> 2015 | K22: =IFERROR(IF(J22+1<=Configuration!$F$14,J22+1,""),"") -> 2016 | L22: =IFERROR(IF(K22+1<=Configuration!$F$14,K22+1,""),"") -> 2017 | M22: =IFERROR(IF(L22+1<=Configuration!$F$14,L22+1,""),"") -> 2018 | N22: =IFERROR(IF(M22+1<=Configuration!$F$14,M22+1,""),"") -> 2019 | O22: =IFERROR(IF(N22+1<=Configuration!$F$14,N22+1,""),"") -> 2020 | Z22: Female sterilization users
C23: Usual | D23: =inUsualName -> Usual | F23: =IF(F$22="","",INDIRECT("'Calculations'!" & ADDRESS(ROW(Unmet_List)-1 + MATCH($F$8,Unmet_List,0),COLUMN(INDIRECT("calc"&$C23&"Yr1"))))) -> 728845.8009 | G23: =IF(G$22="","",INDIRECT("'Calculations'!" & ADDRESS(ROW(Unmet_List)-1 + MATCH($F$8,Unmet_List,0),COLUMN(INDIRECT("calc"&$C23&"Yr2"))))) -> 769377.5572 | H23: =IF(H$22="","",INDIRECT("'Calculations'!" & ADDRESS(ROW(Unmet_List)-1 + MATCH($F$8,Unmet_List,0),COLUMN(INDIRECT("calc"&$C23&"Yr3"))))) -> 810959.5878 | I23: =IF(I$22="","",INDIRECT("'Calculations'!"&ADDRESS(ROW(Unmet_List)-1+MATCH($F$8,Unmet_List,0),COLUMN(INDIRECT("calc"&$C23&"Yr4"))))) -> 853591.8928 | J23: =IF(J$22="","",INDIRECT("'Calculations'!" & ADDRESS(ROW(Unmet_List)-1 + MATCH($F$8,Unmet_List,0),COLUMN(INDIRECT("calc"&$C23&"Yr5"))))) -> 897274.472 | K23: =IF(K$22="","",INDIRECT("'Calculations'!" & ADDRESS(ROW(Unmet_List)-1 + MATCH($F$8,Unmet_List,0),COLUMN(INDIRECT("calc"&$C23&"Yr6"))))) -> 942007.3255 | L23: =IF(L$22="","",INDIRECT("'Calculations'!" & ADDRESS(ROW(Unmet_List)-1 + MATCH($F$8,Unmet_List,0),COLUMN(INDIRECT("calc"&$C23&"Yr7"))))) -> 987790.4533 | M23: =IF(M$22="","",INDIRECT("'Calculations'!" & ADDRESS(ROW(Unmet_List)-1 + MATCH($F$8,Unmet_List,0),COLUMN(INDIRECT("calc"&$C23&"Yr8"))))) -> 1034623.855 | N23: =IF(N$22="","",INDIRECT("'Calculations'!" & ADDRESS(ROW(Unmet_List)-1 + MATCH($F$8,Unmet_List,0),COLUMN(INDIRECT("calc"&$C23&"Yr9"))))) -> 1082507.532 | O23: =IF(O$22="","",INDIRECT("'Calculations'!" & ADDRESS(ROW(Unmet_List)-1 + MATCH($F$8,Unmet_List,0),COLUMN(INDIRECT("calc"&$C23&"Yr10"))))) -> 1131441.482 | W23: 23 | Z23: IUD users
C24: Scen1 | D24: =inScen1Name -> Scen2 | F24: =IF(F$22="","",INDIRECT("'Calculations'!" & ADDRESS(ROW(Unmet_List)-1 + MATCH($F$8,Unmet_List,0),COLUMN(INDIRECT("calc"&$C24&"Yr1"))))) -> 728845.8009 | G24: =IF(G$22="","",INDIRECT("'Calculations'!" & ADDRESS(ROW(Unmet_List)-1 + MATCH($F$8,Unmet_List,0),COLUMN(INDIRECT("calc"&$C24&"Yr2"))))) -> 769377.5572 | H24: =IF(H$22="","",INDIRECT("'Calculations'!" & ADDRESS(ROW(Unmet_List)-1 + MATCH($F$8,Unmet_List,0),COLUMN(INDIRECT("calc"&$C24&"Yr3"))))) -> 810959.5878 | I24: =IF(I$22="","",INDIRECT("'Calculations'!"&ADDRESS(ROW(Unmet_List)-1+MATCH($F$8,Unmet_List,0),COLUMN(INDIRECT("calc"&$C24&"Yr4"))))) -> 853591.8928 | J24: =IF(J$22="","",INDIRECT("'Calculations'!" & ADDRESS(ROW(Unmet_List)-1 + MATCH($F$8,Unmet_List,0),COLUMN(INDIRECT("calc"&$C24&"Yr5"))))) -> 897274.472 | K24: =IF(K$22="","",INDIRECT("'Calculations'!" & ADDRESS(ROW(Unmet_List)-1 + MATCH($F$8,Unmet_List,0),COLUMN(INDIRECT("calc"&$C24&"Yr6"))))) -> 942007.3255 | L24: =IF(L$22="","",INDIRECT("'Calculations'!" & ADDRESS(ROW(Unmet_List)-1 + MATCH($F$8,Unmet_List,0),COLUMN(INDIRECT("calc"&$C24&"Yr7"))))) -> 987790.4533 | M24: =IF(M$22="","",INDIRECT("'Calculations'!" & ADDRESS(ROW(Unmet_List)-1 + MATCH($F$8,Unmet_List,0),COLUMN(INDIRECT("calc"&$C24&"Yr8"))))) -> 1034623.855 | N24: =IF(N$22="","",INDIRECT("'Calculations'!" & ADDRESS(ROW(Unmet_List)-1 + MATCH($F$8,Unmet_List,0),COLUMN(INDIRECT("calc"&$C24&"Yr9"))))) -> 1082507.532 | O24: =IF(O$22="","",INDIRECT("'Calculations'!" & ADDRESS(ROW(Unmet_List)-1 + MATCH($F$8,Unmet_List,0),COLUMN(INDIRECT("calc"&$C24&"Yr10"))))) -> 1131441.482 | W24: 22 | Z24: Utilisatrices des implants
C25: Scen2 | D25: =inScen2Name -> Scen3 | F25: =IF(F$22="","",INDIRECT("'Calculations'!" & ADDRESS(ROW(Unmet_List)-1 + MATCH($F$8,Unmet_List,0),COLUMN(INDIRECT("calc"&$C25&"Yr1"))))) -> 728845.8009 | G25: =IF(G$22="","",INDIRECT("'Calculations'!" & ADDRESS(ROW(Unmet_List)-1 + MATCH($F$8,Unmet_List,0),COLUMN(INDIRECT("calc"&$C25&"Yr2"))))) -> 769377.5572 | H25: =IF(H$22="","",INDIRECT("'Calculations'!" & ADDRESS(ROW(Unmet_List)-1 + MATCH($F$8,Unmet_List,0),COLUMN(INDIRECT("calc"&$C25&"Yr3"))))) -> 810959.5878 | I25: =IF(I$22="","",INDIRECT("'Calculations'!"&ADDRESS(ROW(Unmet_List)-1+MATCH($F$8,Unmet_List,0),COLUMN(INDIRECT("calc"&$C25&"Yr4"))))) -> 853591.8928 | J25: =IF(J$22="","",INDIRECT("'Calculations'!" & ADDRESS(ROW(Unmet_List)-1 + MATCH($F$8,Unmet_List,0),COLUMN(INDIRECT("calc"&$C25&"Yr5"))))) -> 897274.472 | K25: =IF(K$22="","",INDIRECT("'Calculations'!" & ADDRESS(ROW(Unmet_List)-1 + MATCH($F$8,Unmet_List,0),COLUMN(INDIRECT("calc"&$C25&"Yr6"))))) -> 942007.3255 | L25: =IF(L$22="","",INDIRECT("'Calculations'!" & ADDRESS(ROW(Unmet_List)-1 + MATCH($F$8,Unmet_List,0),COLUMN(INDIRECT("calc"&$C25&"Yr7"))))) -> 987790.4533 | M25: =IF(M$22="","",INDIRECT("'Calculations'!" & ADDRESS(ROW(Unmet_List)-1 + MATCH($F$8,Unmet_List,0),COLUMN(INDIRECT("calc"&$C25&"Yr8"))))) -> 1034623.855 | N25: =IF(N$22="","",INDIRECT("'Calculations'!" & ADDRESS(ROW(Unmet_List)-1 + MATCH($F$8,Unmet_List,0),COLUMN(INDIRECT("calc"&$C25&"Yr9"))))) -> 1082507.532 | O25: =IF(O$22="","",INDIRECT("'Calculations'!" & ADDRESS(ROW(Unmet_List)-1 + MATCH($F$8,Unmet_List,0),COLUMN(INDIRECT("calc"&$C25&"Yr10"))))) -> 1131441.482 | Z25: Utilisatrices de la méthode des jours fixes (MJF)
D26: * Les résultats des acceptants sont exprimés comme étant le nombre annuel moyen d'acceptants sur la période de l'analyse | Z26: Utilisatrices d'autres méthodes modernes
Z27: Utilisatrices des méthodes traditionnelles
Z28: Acceptants de la stérilisation masculine*
Z29: Acceptantes de la stérilisation féminine*
Z30: Acceptantes du DIU*
H31: =ConStartYr -> 2011 | I31: =IFERROR(IF(H31+1<=Configuration!$F$14,H31+1,""),"") -> 2012 | J31: =IFERROR(IF(I31+1<=Configuration!$F$14,I31+1,""),"") -> 2013 | K31: =IFERROR(IF(J31+1<=Configuration!$F$14,J31+1,""),"") -> 2014 | L31: =IFERROR(IF(K31+1<=Configuration!$F$14,K31+1,""),"") -> 2015 | M31: =IFERROR(IF(L31+1<=Configuration!$F$14,L31+1,""),"") -> 2016 | N31: =IFERROR(IF(M31+1<=Configuration!$F$14,M31+1,""),"") -> 2017 | O31: =IFERROR(IF(N31+1<=Configuration!$F$14,N31+1,""),"") -> 2018 | P31: =IFERROR(IF(O31+1<=Configuration!$F$14,O31+1,""),"") -> 2019 | Q31: =IFERROR(IF(P31+1<=Configuration!$F$14,P31+1,""),"") -> 2020 | Z31: Acceptantes des implants*
G32: Usual | H32: =inUnmet1 -> 0.256 | I32: =IF(I31="","",$H$42*I31+$H$43) -> 0.2456666667 | J32: =IF(J31="","",$H$42*J31+$H$43) -> 0.2353333333 | K32: 0.225 | L32: 0.2146666667 | M32: 0.2043333333 | N32: 0.194 | O32: 0.1836666667 | P32: 0.1733333333 | Q32: 0.163 | Z32: Acceptantes de la MJF
G33: Scen1 | H33: =inUnmet1 -> 0.256 | I33: =IF(I31="","",$H$45*I31+$H$46) -> 0.2456666667 | J33: =IF(J31="","",$H$45*J31+$H$46) -> 0.2353333333 | K33: 0.225 | L33: 0.2146666667 | M33: 0.2043333333 | N33: 0.194 | O33: 0.1836666667 | P33: 0.1733333333 | Q33: 0.163
G34: Scen2 | H34: =inUnmet1 -> 0.256 | I34: =IF(I31="","",$H$48*I31+$H$49) -> 0.2456666667 | J34: =IF(J31="","",$H$48*J31+$H$49) -> 0.2353333333 | K34: 0.225 | L34: 0.2146666667 | M34: 0.2043333333 | N34: 0.194 | O34: 0.1836666667 | P34: 0.1733333333 | Q34: 0.163
H36: =ConStartYr -> 2011 | I36: =ConEndYr -> 2020
G37: =G32 -> Usual | H37: =Q12 -> 0.256 | I37: 0.163
G38: =G33 -> Scen1 | H38: 0.256 | I38: 0.163
G39: =G34 -> Scen2 | H39: 0.256 | I39: 0.163
G42: Slope | H42: =(I37-H37)/(I36-H36) -> -0.01033333333
G43: Intercept | H43: =H37-H42*H36 -> 21.03633333
G45: Slope | H45: =(I38-H38)/(I36-H36) -> -0.01033333333
G46: Intercept | H46: =H38-H45*H36 -> 21.03633333
G48: Slope | H48: =(I39-H39)/(I36-H36) -> -0.01033333333
G49: Intercept | H49: =H39-H48*H36 -> 21.03633333

Sheet Unmet_Summary
C2: 0
G9: Usual | H9: =inUsualName -> Usual | I9: ="usual"&I10 -> usual2011 | J9: ="usual"&J10 -> usual2012 | K9: usual2013 | L9: usual2014 | M9: usual2015 | N9: usual2016 | O9: usual2017 | P9: usual2018 | Q9: usual2019 | R9: usual2020
H10: Indicateur | I10: =ConStartYr -> 2011 | J10: =IFERROR(IF(I10+1<=ConEndYr,I10+1,""),"") -> 2012 | K10: 2013 | L10: 2014 | M10: 2015 | N10: 2016 | O10: 2017 | P10: 2018 | Q10: 2019 | R10: 2020
H11: Grossesses non-désirées évitées | I11: =IF(I$10="","",INDIRECT("'Calculations'!" & ADDRESS(ROW(Unmet_List)-1 + MATCH($H11,Unmet_List,0),COLUMN(INDIRECT("calc"&$G$9&"Yr1"))))) -> 728845.8009 | J11: =IF(J$10="","",INDIRECT("'Calculations'!" & ADDRESS(ROW(Unmet_List)-1 + MATCH($H11,Unmet_List,0),COLUMN(INDIRECT("calc"&$G$9&"Yr2"))))) -> 769377.5572 | K11: =IF(K$10="","",INDIRECT("'Calculations'!" & ADDRESS(ROW(Unmet_List)-1 + MATCH($H11,Unmet_List,0),COLUMN(INDIRECT("calc"&$G$9&"Yr3"))))) -> 810959.5878 | L11: =IF(L$10="","",INDIRECT("'Calculations'!" & ADDRESS(ROW(Unmet_List)-1 + MATCH($H11,Unmet_List,0),COLUMN(INDIRECT("calc"&$G$9&"Yr4"))))) -> 853591.8928 | M11: =IF(M$10="","",INDIRECT("'Calculations'!" & ADDRESS(ROW(Unmet_List)-1 + MATCH($H11,Unmet_List,0),COLUMN(INDIRECT("calc"&$G$9&"Yr5"))))) -> 897274.472 | N11: =IF(N$10="","",INDIRECT("'Calculations'!" & ADDRESS(ROW(Unmet_List)-1 + MATCH($H11,Unmet_List,0),COLUMN(INDIRECT("calc"&$G$9&"Yr6"))))) -> 942007.3255 | O11: =IF(O$10="","",INDIRECT("'Calculations'!" & ADDRESS(ROW(Unmet_List)-1 + MATCH($H11,Unmet_List,0),COLUMN(INDIRECT("calc"&$G$9&"Yr7"))))) -> 987790.4533 | P11: =IF(P$10="","",INDIRECT("'Calculations'!" & ADDRESS(ROW(Unmet_List)-1 + MATCH($H11,Unmet_List,0),COLUMN(INDIRECT("calc"&$G$9&"Yr8"))))) -> 1034623.855 | Q11: =IF(Q$10="","",INDIRECT("'Calculations'!" & ADDRESS(ROW(Unmet_List)-1 + MATCH($H11,Unmet_List,0),COLUMN(INDIRECT("calc"&$G$9&"Yr9"))))) -> 1082507.532 | R11: =IF(R$10="","",INDIRECT("'Calculations'!" & ADDRESS(ROW(Unmet_List)-1 + MATCH($H11,Unmet_List,0),COLUMN(INDIRECT("calc"&$G$9&"Yr10"))))) -> 1131441.482 | S11: =SUM(I11:R11) -> 9238419.959
H12: Nombre de naissances vivantes évitées | I12: 397445.5275 | J12: 419547.8231 | K12: 442222.8417 | L12: 465470.5834 | M12: 489291.0482 | N12: 513684.236 | O12: 538650.147 | P12: =IF(P$10="","",INDIRECT("'Calculations'!" & ADDRESS(ROW(Unmet_List)-1 + MATCH($H12,Unmet_List,0),COLUMN(INDIRECT("calc"&$G$9&"Yr8"))))) -> 564188.7811 | Q12: 590300.1382 | R12: 616984.2185 | S12: 5037785.345
H13: Avortements évités | I13: 225942.1983 | J13: 238507.0427 | K13: 251397.4722 | L13: 264613.4868 | M13: 278155.0863 | N13: 292022.2709 | O13: 306215.0405 | P13: 320733.3952 | Q13: 335577.3348 | R13: 350746.8595 | S13: 2863910.187
H14: Avortements à risque évités | I14: 216362.7005 | J14: 228394.8207 | K14: 240738.7217 | L14: 253394.4037 | M14: 266361.8665 | N14: 279641.1101 | O14: 293232.1347 | P14: 307134.9401 | Q14: 321349.5264 | R14: 335875.8936 | S14: 2742486.118
H15: Décès maternels évités | I15: 2442.442358 | J15: 2485.362778 | K15: 2521.760332 | L15: 2551.254543 | M15: 2573.464935 | N15: 2588.011031 | O15: 2594.512355 | P15: 2592.588429 | Q15: 2581.858778 | R15: 2561.942924 | S15: 25493.19846
H16: Décès infantils évités | I16: 11447.03638 | J16: 12083.61614 | K16: 12736.6912 | L16: 13406.26156 | M16: 14092.32722 | N16: 14794.88817 | O16: 15513.94443 | P16: 16249.49597 | Q16: 17001.54282 | R16: 17770.08496 | S16: 145095.8889
H17: AVCI évitées | I17: 1120011.876 | J17: 1176508.651 | K17: 1233993.727 | L17: 1292443.4 | M17: 1351833.966 | N17: 1412141.721 | O17: 1473342.962 | P17: 1535413.984 | Q17: 1598331.084 | R17: 1662070.558 | S17: 13856091.93
H18: Coûts de soins de santé maternelle et infantile sauvés | I18: 27769484.99 | J18: 29313770.49 | K18: 30898072.1 | L18: 32522389.82 | M18: 34186723.66 | N18: 35891073.61 | O18: 37635439.67 | P18: 39419821.85 | Q18: 41244220.13 | R18: 43108634.54 | S18: 351989630.8
H19: TPC | I19: 0.4756666667 | J19: 0.486 | K19: 0.4963333333 | L19: 0.5066666667 | M19: 0.517 | N19: 0.5273333333 | O19: 0.5376666667 | P19: 0.548 | Q19: 0.5583333333 | R19: 0.5686666667 | S19: =IFERROR(AVERAGE(I19:R19),"") -> 0.5221666667
H20: coûts totaux de la PF | I20: 18640940.24 | J20: 19677579.33 | K20: 20741080.2 | L20: 21831442.87 | M20: 22948667.32 | N20: 24092753.55 | O20: 25263701.57 | P20: 26461511.38 | Q20: 27686182.98 | R20: 28937716.36 | S20: 236281575.8
H21: Rapport coût-bénéfice | I21: 1.489704094 | J21: 1.489704094 | K21: 1.489704094 | L21: 1.489704094 | M21: 1.489704094 | N21: 1.489704094 | O21: 1.489704094 | P21: 1.489704094 | Q21: 1.489704094 | R21: 1.489704094 | S21: =IFERROR(AVERAGE(I21:R21),"") -> 1.489704094
H22: Nombre total d’utilisatrices de PF | I22: 2823101.657 | J22: 2980096.824 | K22: 3141160.11 | L22: 3306291.514 | M22: 3475491.037 | N22: 3648758.678 | O22: 3826094.438 | P22: 4007498.316 | Q22: 4192970.313 | R22: 4382510.429 | S22: 35783973.32
H23: Utilisateurs du préservatif | I23: 112924.0663 | J23: 119203.873 | K23: 125646.4044 | L23: 132251.6606 | M23: 139019.6415 | N23: 145950.3471 | O23: 153043.7775 | P23: 160299.9327 | Q23: 167718.8125 | R23: 175300.4171 | S23: 1431358.933
H24: Utilisatrices des injectables | I24: 1343796.389 | J24: 1418526.088 | K24: 1495192.212 | L24: 1573794.761 | M24: 1654333.734 | N24: 1736809.131 | O24: 1821220.953 | P24: 1907569.199 | Q24: 1995853.869 | R24: 2086074.964 | S24: 17033171.3
H25: Utilisatrices de la pilule | I25: 446050.0617 | J25: 470855.2982 | K25: 496303.2973 | L25: 522394.0592 | M25: 549127.5838 | N25: 576503.8712 | O25: 604522.9212 | P25: 633184.734 | Q25: 662489.3095 | R25: 692436.6477 | S25: 5653867.784
H26: Utilisateurs de la stérilisation masculine | I26: 0 | J26: 0 | K26: 0 | L26: 0 | M26: 0 | N26: 0 | O26: 0 | P26: 0 | Q26: 0 | R26: 0 | S26: 0
H27: Utilisatrices de la stérilisation féminine | I27: 296425.6739 | J27: 312910.1665 | K27: 329821.8115 | L27: 347160.609 | M27: 364926.5589 | N27: 383119.6612 | O27: 401739.916 | P27: 420787.3232 | Q27: 440261.8829 | R27: 460163.595 | S27: 3757317.198
H28: Utilisatrices du DIU | I28: 98808.55798 | J28: 104303.3888 | K28: 109940.6038 | L28: 115720.203 | M28: 121642.1863 | N28: 127706.5537 | O28: 133913.3053 | P28: 140262.4411 | Q28: 146753.961 | R28: 153387.865 | S28: 1252439.066
H29: Utilisatrices des implants | I29: 118570.2696 | J29: 125164.0666 | K29: 131928.7246 | L29: 138864.2436 | M29: 145970.6235 | N29: 153247.8645 | O29: 160695.9664 | P29: 168314.9293 | Q29: 176104.7532 | R29: 184065.438 | S29: 1502926.879
H30: Utilisatrices de la méthode des jours fixes (MJF) | I30: 0 | J30: 0 | K30: 0 | L30: 0 | M30: 0 | N30: 0 | O30: 0 | P30: 0 | Q30: 0 | R30: 0 | S30: 0
H31: Utilisatrices d'autres méthodes modernes | I31: 31054.11822 | J31: 32781.06506 | K31: 34552.76121 | L31: 36369.20665 | M31: 38230.40141 | N31: 40136.34546 | O31: 42087.03882 | P31: 44082.48148 | Q31: 46122.67345 | R31: 48207.61472 | S31: 393623.7065
H32: Utilisatrices des méthodes traditionnelles | I32: 375472.5203 | J32: 396352.8776 | K32: 417774.2946 | L32: 439736.7714 | M32: 462240.3079 | N32: 485284.9042 | O32: 508870.5603 | P32: 532997.2761 | Q32: 557665.0517 | R32: 582873.887 | S32: 4759268.451
H33: Acceptants de la stérilisation masculine* | I33: 0 | J33: 0 | K33: 0 | L33: 0 | M33: 0 | N33: 0 | O33: 0 | P33: 0 | Q33: 0 | R33: 0 | S33: 0
H34: Acceptantes de la stérilisation féminine* | I34: 121598.8423 | J34: 121598.8423 | K34: 121598.8423 | L34: 121598.8423 | M34: 121598.8423 | N34: 121598.8423 | O34: 121598.8423 | P34: 121598.8423 | Q34: 121598.8423 | R34: 121598.8423 | S34: 1215988.423
H35: Acceptantes du DIU* | I35: 29623.29851 | J35: 29623.29851 | K35: 29623.29851 | L35: 29623.29851 | M35: 29623.29851 | N35: 29623.29851 | O35: 29623.29851 | P35: 29623.29851 | Q35: 29623.29851 | R35: 29623.29851 | S35: 296232.9851
H36: Acceptantes des implants* | I36: 44815.38186 | J36: 44815.38186 | K36: 44815.38186 | L36: 44815.38186 | M36: 44815.38186 | N36: 44815.38186 | O36: 44815.38186 | P36: 44815.38186 | Q36: 44815.38186 | R36: 44815.38186 | S36: 448153.8186
H37: Acceptantes de la MJF | I37: 0 | J37: 0 | K37: 0 | L37: 0 | M37: 0 | N37: 0 | O37: 0 | P37: 0 | Q37: 0 | R37: 0 | S37: 0
G38: Scen1 | H38: =inScen1Name -> Scen2 | I38: ="scen1"&I39 -> scen12011 | J38: ="scen1"&J39 -> scen12012 | K38: scen12013 | L38: scen12014 | M38: scen12015 | N38: scen12016 | O38: scen12017 | P38: scen12018 | Q38: scen12019 | R38: scen12020
H39: Indicateur | I39: =ConStartYr -> 2011 | J39: =IFERROR(IF(I39+1<=ConEndYr,I39+1,""),"") -> 2012 | K39: 2013 | L39: 2014 | M39: 2015 | N39: 2016 | O39: 2017 | P39: 2018 | Q39: 2019 | R39: 2020
H40: Grossesses non-désirées évitées | I40: =IF(I$10="","",INDIRECT("'Calculations'!" & ADDRESS(ROW(Unmet_List)-1 + MATCH($H40,Unmet_List,0),COLUMN(INDIRECT("calc"&$G$38&"Yr1"))))) -> 728845.8009 | J40: =IF(J$10="","",INDIRECT("'Calculations'!" & ADDRESS(ROW(Unmet_List)-1 + MATCH($H40,Unmet_List,0),COLUMN(INDIRECT("calc"&$G$38&"Yr2"))))) -> 769377.5572 | K40: =IF(K$10="","",INDIRECT("'Calculations'!" & ADDRESS(ROW(Unmet_List)-1 + MATCH($H40,Unmet_List,0),COLUMN(INDIRECT("calc"&$G$38&"Yr3"))))) -> 810959.5878 | L40: =IF(L$10="","",INDIRECT("'Calculations'!" & ADDRESS(ROW(Unmet_List)-1 + MATCH($H40,Unmet_List,0),COLUMN(INDIRECT("calc"&$G$38&"Yr4"))))) -> 853591.8928 | M40: =IF(M$10="","",INDIRECT("'Calculations'!" & ADDRESS(ROW(Unmet_List)-1 + MATCH($H40,Unmet_List,0),COLUMN(INDIRECT("calc"&$G$38&"Yr5"))))) -> 897274.472 | N40: =IF(N$10="","",INDIRECT("'Calculations'!" & ADDRESS(ROW(Unmet_List)-1 + MATCH($H40,Unmet_List,0),COLUMN(INDIRECT("calc"&$G$38&"Yr6"))))) -> 942007.3255 | O40: =IF(O$10="","",INDIRECT("'Calculations'!" & ADDRESS(ROW(Unmet_List)-1 + MATCH($H40,Unmet_List,0),COLUMN(INDIRECT("calc"&$G$38&"Yr7"))))) -> 987790.4533 | P40: =IF(P$10="","",INDIRECT("'Calculations'!" & ADDRESS(ROW(Unmet_List)-1 + MATCH($H40,Unmet_List,0),COLUMN(INDIRECT("calc"&$G$38&"Yr8"))))) -> 1034623.855 | Q40: =IF(Q$10="","",INDIRECT("'Calculations'!" & ADDRESS(ROW(Unmet_List)-1 + MATCH($H40,Unmet_List,0),COLUMN(INDIRECT("calc"&$G$38&"Yr9"))))) -> 1082507.532 | R40: =IF(R$10="","",INDIRECT("'Calculations'!" & ADDRESS(ROW(Unmet_List)-1 + MATCH($H40,Unmet_List,0),COLUMN(INDIRECT("calc"&$G$38&"Yr10"))))) -> 1131441.482 | S40: =SUM(I40:R40) -> 9238419.959
H41: Nombre de naissances vivantes évitées | I41: 397445.5275 | J41: 419547.8231 | K41: 442222.8417 | L41: 465470.5834 | M41: 489291.0482 | N41: 513684.236 | O41: 538650.147 | P41: 564188.7811 | Q41: 590300.1382 | R41: 616984.2185 | S41: =SUM(I41:R41) -> 5037785.345
H42: Avortements évités | I42: 225942.1983 | J42: 238507.0427 | K42: 251397.4722 | L42: 264613.4868 | M42: 278155.0863 | N42: 292022.2709 | O42: 306215.0405 | P42: 320733.3952 | Q42: 335577.3348 | R42: 350746.8595 | S42: 2863910.187
H43: Avortements à risque évités | I43: 216362.7005 | J43: 228394.8207 | K43: 240738.7217 | L43: 253394.4037 | M43: 266361.8665 | N43: 279641.1101 | O43: 293232.1347 | P43: 307134.9401 | Q43: 321349.5264 | R43: 335875.8936 | S43: 2742486.118
H44: Décès maternels évités | I44: 2442.442358 | J44: 2485.362778 | K44: 2521.760332 | L44: 2551.254543 | M44: 2573.464935 | N44: 2588.011031 | O44: 2594.512355 | P44: 2592.588429 | Q44: 2581.858778 | R44: 2561.942924 | S44: 25493.19846
H45: Décès infantils évités | I45: 11447.03638 | J45: 12083.61614 | K45: 12736.6912 | L45: 13406.26156 | M45: 14092.32722 | N45: 14794.88817 | O45: 15513.94443 | P45: 16249.49597 | Q45: 17001.54282 | R45: 17770.08496 | S45: 145095.8889
H46: AVCI évitées | I46: 1120011.876 | J46: 1176508.651 | K46: 1233993.727 | L46: 1292443.4 | M46: 1351833.966 | N46: 1412141.721 | O46: 1473342.962 | P46: 1535413.984 | Q46: 1598331.084 | R46: 1662070.558 | S46: 13856091.93
H47: Coûts de soins de santé maternelle et infantile sauvés | I47: 27769484.99 | J47: 29313770.49 | K47: 30898072.1 | L47: 32522389.82 | M47: 34186723.66 | N47: 35891073.61 | O47: 37635439.67 | P47: 39419821.85 | Q47: 41244220.13 | R47: 43108634.54 | S47: 351989630.8
H48: TPC | I48: 0.4756666667 | J48: 0.486 | K48: 0.4963333333 | L48: 0.5066666667 | M48: 0.517 | N48: 0.5273333333 | O48: 0.5376666667 | P48: 0.548 | Q48: 0.5583333333 | R48: 0.5686666667 | S48: =IFERROR(AVERAGE(I48:R48),"") -> 0.5221666667
H49: coûts totaux de la PF | I49: 18640940.24 | J49: 19677579.33 | K49: 20741080.2 | L49: 21831442.87 | M49: 22948667.32 | N49: 24092753.55 | O49: 25263701.57 | P49: 26461511.38 | Q49: 27686182.98 | R49: 28937716.36 | S49: 236281575.8
H50: Rapport coût-bénéfice | I50: 1.489704094 | J50: 1.489704094 | K50: 1.489704094 | L50: 1.489704094 | M50: 1.489704094 | N50: 1.489704094 | O50: 1.489704094 | P50: 1.489704094 | Q50: 1.489704094 | R50: 1.489704094 | S50: =IFERROR(AVERAGE(I50:R50),"") -> 1.489704094
H51: Nombre total d’utilisatrices de PF | I51: 2823101.657 | J51: 2980096.824 | K51: 3141160.11 | L51: 3306291.514 | M51: 3475491.037 | N51: 3648758.678 | O51: 3826094.438 | P51: 4007498.316 | Q51: 4192970.313 | R51: 4382510.429 | S51: 35783973.32
H52: Utilisateurs du préservatif | I52: 112924.0663 | J52: 119203.873 | K52: 125646.4044 | L52: 132251.6606 | M52: 139019.6415 | N52: 145950.3471 | O52: 153043.7775 | P52: 160299.9327 | Q52: 167718.8125 | R52: 175300.4171 | S52: 1431358.933
H53: Utilisatrices des injectables | I53: 1343796.389 | J53: 1418526.088 | K53: 1495192.212 | L53: 1573794.761 | M53: 1654333.734 | N53: 1736809.131 | O53: 1821220.953 | P53: 1907569.199 | Q53: 1995853.869 | R53: 2086074.964 | S53: 17033171.3
H54: Utilisatrices de la pilule | I54: 446050.0617 | J54: 470855.2982 | K54: 496303.2973 | L54: 522394.0592 | M54: 549127.5838 | N54: 576503.8712 | O54: 604522.9212 | P54: 633184.734 | Q54: 662489.3095 | R54: 692436.6477 | S54: 5653867.784
H55: Utilisateurs de la stérilisation masculine | I55: 0 | J55: 0 | K55: 0 | L55: 0 | M55: 0 | N55: 0 | O55: 0 | P55: 0 | Q55: 0 | R55: 0 | S55: 0
H56: Utilisatrices de la stérilisation féminine | I56: 296425.6739 | J56: 312910.1665 | K56: 329821.8115 | L56: 347160.609 | M56: 364926.5589 | N56: 383119.6612 | O56: 401739.916 | P56: 420787.3232 | Q56: 440261.8829 | R56: 460163.595 | S56: 3757317.198
H57: Utilisatrices du DIU | I57: 98808.55798 | J57: 104303.3888 | K57: 109940.6038 | L57: 115720.203 | M57: 121642.1863 | N57: 127706.5537 | O57: 133913.3053 | P57: 140262.4411 | Q57: 146753.961 | R57: 153387.865 | S57: 1252439.066
H58: Utilisatrices des implants | I58: 118570.2696 | J58: 125164.0666 | K58: 131928.7246 | L58: 138864.2436 | M58: 145970.6235 | N58: 153247.8645 | O58: 160695.9664 | P58: 168314.9293 | Q58: 176104.7532 | R58: 184065.438 | S58: 1502926.879
H59: Utilisatrices de la méthode des jours fixes (MJF) | I59: 0 | J59: 0 | K59: 0 | L59: 0 | M59: 0 | N59: 0 | O59: 0 | P59: 0 | Q59: 0 | R59: 0 | S59: 0
H60: Utilisatrices d'autres méthodes modernes | I60: 31054.11822 | J60: 32781.06506 | K60: 34552.76121 | L60: 36369.20665 | M60: 38230.40141 | N60: 40136.34546 | O60: 42087.03882 | P60: 44082.48148 | Q60: 46122.67345 | R60: 48207.61472 | S60: 393623.7065
H61: Utilisatrices des méthodes traditionnelles | I61: 375472.5203 | J61: 396352.8776 | K61: 417774.2946 | L61: 439736.7714 | M61: 462240.3079 | N61: 485284.9042 | O61: 508870.5603 | P61: 532997.2761 | Q61: 557665.0517 | R61: 582873.887 | S61: 4759268.451
H62: Acceptants de la stérilisation masculine* | I62: 0 | J62: 0 | K62: 0 | L62: 0 | M62: 0 | N62: 0 | O62: 0 | P62: 0 | Q62: 0 | R62: 0 | S62: 0
H63: Acceptantes de la stérilisation féminine* | I63: 121598.8423 | J63: 121598.8423 | K63: 121598.8423 | L63: 121598.8423 | M63: 121598.8423 | N63: 121598.8423 | O63: 121598.8423 | P63: 121598.8423 | Q63: 121598.8423 | R63: 121598.8423 | S63: 1215988.423
H64: Acceptantes du DIU* | I64: 29623.29851 | J64: 29623.29851 | K64: 29623.29851 | L64: 29623.29851 | M64: 29623.29851 | N64: 29623.29851 | O64: 29623.29851 | P64: 29623.29851 | Q64: 29623.29851 | R64: 29623.29851 | S64: 296232.9851
H65: Acceptantes des implants* | I65: 44815.38186 | J65: 44815.38186 | K65: 44815.38186 | L65: 44815.38186 | M65: 44815.38186 | N65: 44815.38186 | O65: 44815.38186 | P65: 44815.38186 | Q65: 44815.38186 | R65: 44815.38186 | S65: 448153.8186
H66: Acceptantes de la MJF | I66: 0 | J66: 0 | K66: 0 | L66: 0 | M66: 0 | N66: 0 | O66: 0 | P66: 0 | Q66: 0 | R66: 0 | S66: 0
G67: Scen2 | H67: =inScen1Name -> Scen2 | I67: ="scen2"&I68 -> scen22011 | J67: ="scen2"&J68 -> scen22012 | K67: scen22013 | L67: scen22014 | M67: scen22015 | N67: scen22016 | O67: scen22017 | P67: scen22018 | Q67: scen22019 | R67: scen22020
H68: Indicateur | I68: =ConStartYr -> 2011 | J68: =IFERROR(IF(I68+1<=ConEndYr,I68+1,""),"") -> 2012 | K68: 2013 | L68: 2014 | M68: 2015 | N68: 2016 | O68: 2017 | P68: 2018 | Q68: 2019 | R68: 2020
H69: Grossesses non-désirées évitées | I69: =IF(I$10="","",INDIRECT("'Calculations'!" & ADDRESS(ROW(Unmet_List)-1 + MATCH($H69,Unmet_List,0),COLUMN(INDIRECT("calc"&$G$67&"Yr1"))))) -> 728845.8009 | J69: =IF(J$10="","",INDIRECT("'Calculations'!" & ADDRESS(ROW(Unmet_List)-1 + MATCH($H69,Unmet_List,0),COLUMN(INDIRECT("calc"&$G$67&"Yr2"))))) -> 769377.5572 | K69: =IF(K$10="","",INDIRECT("'Calculations'!" & ADDRESS(ROW(Unmet_List)-1 + MATCH($H69,Unmet_List,0),COLUMN(INDIRECT("calc"&$G$67&"Yr3"))))) -> 810959.5878 | L69: =IF(L$10="","",INDIRECT("'Calculations'!" & ADDRESS(ROW(Unmet_List)-1 + MATCH($H69,Unmet_List,0),COLUMN(INDIRECT("calc"&$G$67&"Yr4"))))) -> 853591.8928 | M69: =IF(M$10="","",INDIRECT("'Calculations'!" & ADDRESS(ROW(Unmet_List)-1 + MATCH($H69,Unmet_List,0),COLUMN(INDIRECT("calc"&$G$67&"Yr5"))))) -> 897274.472 | N69: =IF(N$10="","",INDIRECT("'Calculations'!" & ADDRESS(ROW(Unmet_List)-1 + MATCH($H69,Unmet_List,0),COLUMN(INDIRECT("calc"&$G$67&"Yr6"))))) -> 942007.3255 | O69: =IF(O$10="","",INDIRECT("'Calculations'!" & ADDRESS(ROW(Unmet_List)-1 + MATCH($H69,Unmet_List,0),COLUMN(INDIRECT("calc"&$G$67&"Yr7"))))) -> 987790.4533 | P69: =IF(P$10="","",INDIRECT("'Calculations'!" & ADDRESS(ROW(Unmet_List)-1 + MATCH($H69,Unmet_List,0),COLUMN(INDIRECT("calc"&$G$67&"Yr8"))))) -> 1034623.855 | Q69: =IF(Q$10="","",INDIRECT("'Calculations'!" & ADDRESS(ROW(Unmet_List)-1 + MATCH($H69,Unmet_List,0),COLUMN(INDIRECT("calc"&$G$67&"Yr9"))))) -> 1082507.532 | R69: =IF(R$10="","",INDIRECT("'Calculations'!" & ADDRESS(ROW(Unmet_List)-1 + MATCH($H69,Unmet_List,0),COLUMN(INDIRECT("calc"&$G$67&"Yr10"))))) -> 1131441.482 | S69: =SUM(I69:R69) -> 9238419.959
H70: Nombre de naissances vivantes évitées | I70: 397445.5275 | J70: 419547.8231 | K70: 442222.8417 | L70: 465470.5834 | M70: 489291.0482 | N70: 513684.236 | O70: 538650.147 | P70: 564188.7811 | Q70: 590300.1382 | R70: 616984.2185 | S70: 5037785.345
H71: Avortements évités | I71: 225942.1983 | J71: 238507.0427 | K71: 251397.4722 | L71: 264613.4868 | M71: 278155.0863 | N71: 292022.2709 | O71: 306215.0405 | P71: 320733.3952 | Q71: 335577.3348 | R71: 350746.8595 | S71: 2863910.187
H72: Avortements à risque évités | I72: 216362.7005 | J72: 228394.8207 | K72: 240738.7217 | L72: 253394.4037 | M72: 266361.8665 | N72: 279641.1101 | O72: 293232.1347 | P72: 307134.9401 | Q72: 321349.5264 | R72: 335875.8936 | S72: 2742486.118
H73: Décès maternels évités | I73: 2442.442358 | J73: 2485.362778 | K73: 2521.760332 | L73: 2551.254543 | M73: 2573.464935 | N73: 2588.011031 | O73: 2594.512355 | P73: 2592.588429 | Q73: 2581.858778 | R73: 2561.942924 | S73: 25493.19846
H74: Décès infantils évités | I74: 11447.03638 | J74: 12083.61614 | K74: 12736.6912 | L74: 13406.26156 | M74: 14092.32722 | N74: 14794.88817 | O74: 15513.94443 | P74: 16249.49597 | Q74: 17001.54282 | R74: 17770.08496 | S74: 145095.8889
H75: AVCI évitées | I75: 1120011.876 | J75: 1176508.651 | K75: 1233993.727 | L75: 1292443.4 | M75: 1351833.966 | N75: 1412141.721 | O75: 1473342.962 | P75: 1535413.984 | Q75: 1598331.084 | R75: 1662070.558 | S75: 13856091.93
H76: Coûts de soins de santé maternelle et infantile sauvés | I76: 27769484.99 | J76: 29313770.49 | K76: 30898072.1 | L76: 32522389.82 | M76: 34186723.66 | N76: 35891073.61 | O76: 37635439.67 | P76: 39419821.85 | Q76: 41244220.13 | R76: 43108634.54 | S76: 351989630.8
H77: TPC | I77: 0.4756666667 | J77: 0.486 | K77: 0.4963333333 | L77: 0.5066666667 | M77: 0.517 | N77: 0.5273333333 | O77: 0.5376666667 | P77: 0.548 | Q77: 0.5583333333 | R77: 0.5686666667 | S77: =IFERROR(AVERAGE(I77:R77),"") -> 0.5221666667
H78: coûts totaux de la PF | I78: 18640940.24 | J78: 19677579.33 | K78: 20741080.2 | L78: 21831442.87 | M78: 22948667.32 | N78: 24092753.55 | O78: 25263701.57 | P78: 26461511.38 | Q78: 27686182.98 | R78: 28937716.36 | S78: 236281575.8
H79: Rapport coût-bénéfice | I79: 1.489704094 | J79: 1.489704094 | K79: 1.489704094 | L79: 1.489704094 | M79: 1.489704094 | N79: 1.489704094 | O79: 1.489704094 | P79: 1.489704094 | Q79: 1.489704094 | R79: 1.489704094 | S79: =IFERROR(AVERAGE(I79:R79),"") -> 1.489704094
H80: Nombre total d’utilisatrices de PF | I80: 2823101.657 | J80: 2980096.824 | K80: 3141160.11 | L80: 3306291.514 | M80: 3475491.037 | N80: 3648758.678 | O80: 3826094.438 | P80: 4007498.316 | Q80: 4192970.313 | R80: 4382510.429 | S80: 35783973.32
H81: Utilisateurs du préservatif | I81: 112924.0663 | J81: 119203.873 | K81: 125646.4044 | L81: 132251.6606 | M81: 139019.6415 | N81: 145950.3471 | O81: 153043.7775 | P81: 160299.9327 | Q81: 167718.8125 | R81: 175300.4171 | S81: 1431358.933
H82: Utilisatrices des injectables | I82: 1343796.389 | J82: 1418526.088 | K82: 1495192.212 | L82: 1573794.761 | M82: 1654333.734 | N82: 1736809.131 | O82: 1821220.953 | P82: 1907569.199 | Q82: 1995853.869 | R82: 2086074.964 | S82: 17033171.3
H83: Utilisatrices de la pilule | I83: 446050.0617 | J83: 470855.2982 | K83: 496303.2973 | L83: 522394.0592 | M83: 549127.5838 | N83: 576503.8712 | O83: 604522.9212 | P83: 633184.734 | Q83: 662489.3095 | R83: 692436.6477 | S83: 5653867.784
H84: Utilisateurs de la stérilisation masculine | I84: 0 | J84: 0 | K84: 0 | L84: 0 | M84: 0 | N84: 0 | O84: 0 | P84: 0 | Q84: 0 | R84: 0 | S84: 0
H85: Utilisatrices de la stérilisation féminine | I85: 296425.6739 | J85: 312910.1665 | K85: 329821.8115 | L85: 347160.609 | M85: 364926.5589 | N85: 383119.6612 | O85: 401739.916 | P85: 420787.3232 | Q85: 440261.8829 | R85: 460163.595 | S85: 3757317.198
H86: Utilisatrices du DIU | I86: 98808.55798 | J86: 104303.3888 | K86: 109940.6038 | L86: 115720.203 | M86: 121642.1863 | N86: 127706.5537 | O86: 133913.3053 | P86: 140262.4411 | Q86: 146753.961 | R86: 153387.865 | S86: 1252439.066
H87: Utilisatrices des implants | I87: 118570.2696 | J87: 125164.0666 | K87: 131928.7246 | L87: 138864.2436 | M87: 145970.6235 | N87: 153247.8645 | O87: 160695.9664 | P87: 168314.9293 | Q87: 176104.7532 | R87: 184065.438 | S87: 1502926.879
H88: Utilisatrices de la méthode des jours fixes (MJF) | I88: 0 | J88: 0 | K88: 0 | L88: 0 | M88: 0 | N88: 0 | O88: 0 | P88: 0 | Q88: 0 | R88: 0 | S88: 0
H89: Utilisatrices d'autres méthodes modernes | I89: 31054.11822 | J89: 32781.06506 | K89: 34552.76121 | L89: 36369.20665 | M89: 38230.40141 | N89: 40136.34546 | O89: 42087.03882 | P89: 44082.48148 | Q89: 46122.67345 | R89: 48207.61472 | S89: 393623.7065
H90: Utilisatrices des méthodes traditionnelles | I90: 375472.5203 | J90: 396352.8776 | K90: 417774.2946 | L90: 439736.7714 | M90: 462240.3079 | N90: 485284.9042 | O90: 508870.5603 | P90: 532997.2761 | Q90: 557665.0517 | R90: 582873.887 | S90: 4759268.451
H91: Acceptants de la stérilisation masculine* | I91: 0 | J91: 0 | K91: 0 | L91: 0 | M91: 0 | N91: 0 | O91: 0 | P91: 0 | Q91: 0 | R91: 0 | S91: 0
H92: Acceptantes de la stérilisation féminine* | I92: 121598.8423 | J92: 121598.8423 | K92: 121598.8423 | L92: 121598.8423 | M92: 121598.8423 | N92: 121598.8423 | O92: 121598.8423 | P92: 121598.8423 | Q92: 121598.8423 | R92: 121598.8423 | S92: 1215988.423
H93: Acceptantes du DIU* | I93: 29623.29851 | J93: 29623.29851 | K93: 29623.29851 | L93: 29623.29851 | M93: 29623.29851 | N93: 29623.29851 | O93: 29623.29851 | P93: 29623.29851 | Q93: 29623.29851 | R93: 29623.29851 | S93: 296232.9851
H94: Acceptantes des implants* | I94: 44815.38186 | J94: 44815.38186 | K94: 44815.38186 | L94: 44815.38186 | M94: 44815.38186 | N94: 44815.38186 | O94: 44815.38186 | P94: 44815.38186 | Q94: 44815.38186 | R94: 44815.38186 | S94: 448153.8186
H95: Acceptantes de la MJF | I95: 0 | J95: 0 | K95: 0 | L95: 0 | M95: 0 | N95: 0 | O95: 0 | P95: 0 | Q95: 0 | R95: 0 | S95: 0
H96: * Les résultats des acceptants sont exprimés comme étant le nombre annuel moyen d'acceptants sur la période de l'analyse

Sheet Unmet_Comparison
C2: 0
D3: Différence cumulative comparée à
D4: Différence en % comparée à
K9: =D3 & inUsualName -> Différence cumulative comparée à Usual | O9: =D4 & inUsualName -> Différence en % comparée àUsual
E10: =inUsualName -> Usual | G10: =inScen1Name -> Scen2 | I10: =inScen2Name -> Scen3 | K10: =inScen1Name -> Scen2 | M10: =inScen2Name -> Scen3 | O10: =inScen1Name -> Scen2 | Q10: =inScen2Name -> Scen3
D11: =Unmet_Summary!H11 -> Grossesses non-désirées évitées | E11: =Unmet_Summary!S11 -> 9238419.959 | G11: =Unmet_Summary!S40 -> 9238419.959 | I11: =Unmet_Summary!S69 -> 9238419.959 | K11: =IFERROR(G11-E11,"") -> 0 | M11: =IFERROR(I11-E11,"") -> 0 | O11: =IFERROR(K11/E11,"") -> 0 | Q11: =IFERROR(M11/E11,"") -> 0
D12: =Unmet_Summary!H12 -> Nombre de naissances vivantes évitées | E12: =Unmet_Summary!S12 -> 5037785.345 | G12: =Unmet_Summary!S41 -> 5037785.345 | I12: =Unmet_Summary!S70 -> 5037785.345 | K12: 0 | M12: 0 | O12: =IFERROR(K12/E12,"") -> 0 | Q12: =IFERROR(M12/E12,"") -> 0
D13: =Unmet_Summary!H13 -> Avortements évités | E13: =Unmet_Summary!S13 -> 2863910.187 | G13: =Unmet_Summary!S42 -> 2863910.187 | I13: =Unmet_Summary!S71 -> 2863910.187 | K13: 0 | M13: 0 | O13: 0 | Q13: 0
D14: =Unmet_Summary!H14 -> Avortements à risque évités | E14: =Unmet_Summary!S14 -> 2742486.118 | G14: =Unmet_Summary!S43 -> 2742486.118 | I14: =Unmet_Summary!S72 -> 2742486.118 | K14: 0 | M14: 0 | O14: 0 | Q14: 0
D15: =Unmet_Summary!H15 -> Décès maternels évités | E15: =Unmet_Summary!S15 -> 25493.19846 | G15: =Unmet_Summary!S44 -> 25493.19846 | I15: =Unmet_Summary!S73 -> 25493.19846 | K15: 0 | M15: 0 | O15: 0 | Q15: 0
D16: =Unmet_Summary!H16 -> Décès infantils évités | E16: =Unmet_Summary!S16 -> 145095.8889 | G16: =Unmet_Summary!S45 -> 145095.8889 | I16: =Unmet_Summary!S74 -> 145095.8889 | K16: 0 | M16: 0 | O16: 0 | Q16: 0
D17: =Unmet_Summary!H17 -> AVCI évitées | E17: =Unmet_Summary!S17 -> 13856091.93 | G17: =Unmet_Summary!S46 -> 13856091.93 | I17: =Unmet_Summary!S75 -> 13856091.93 | K17: 0 | M17: 0 | O17: 0 | Q17: 0
D18: =Unmet_Summary!H18 -> Coûts de soins de santé maternelle et infantile sauvés | E18: =Unmet_Summary!S18 -> 351989630.8 | G18: =Unmet_Summary!S47 -> 351989630.8 | I18: =Unmet_Summary!S76 -> 351989630.8 | K18: 0 | M18: 0 | O18: 0 | Q18: 0
D19: =Unmet_Summary!H19 -> TPC | E19: =Unmet_Summary!S19 -> 0.5221666667 | G19: =Unmet_Summary!S48 -> 0.5221666667 | I19: =Unmet_Summary!S77 -> 0.5221666667 | K19: 0 | M19: 0 | O19: 0 | Q19: 0
D20: =Unmet_Summary!H20 -> coûts totaux de la PF | E20: =Unmet_Summary!S20 -> 236281575.8 | G20: =Unmet_Summary!S49 -> 236281575.8 | I20: =Unmet_Summary!S78 -> 236281575.8 | K20: 0 | M20: 0 | O20: 0 | Q20: 0
D21: =Unmet_Summary!H21 -> Rapport coût-bénéfice | E21: =Unmet_Summary!S21 -> 1.489704094 | G21: =Unmet_Summary!S50 -> 1.489704094 | I21: =Unmet_Summary!S79 -> 1.489704094 | K21: 0 | M21: 0 | O21: 0 | Q21: 0
D22: Total user-years | E22: =Unmet_Summary!S22 -> 35783973.32 | G22: =Unmet_Summary!S51 -> 35783973.32 | I22: =Unmet_Summary!S80 -> 35783973.32 | K22: 0 | M22: 0 | O22: 0 | Q22: 0
D23: Condom user-years | E23: =Unmet_Summary!S23 -> 1431358.933 | G23: =Unmet_Summary!S52 -> 1431358.933 | I23: =Unmet_Summary!S81 -> 1431358.933 | K23: 0 | M23: 0 | O23: 0 | Q23: 0
D24: Injectible user-years | E24: =Unmet_Summary!S24 -> 17033171.3 | G24: =Unmet_Summary!S53 -> 17033171.3 | I24: =Unmet_Summary!S82 -> 17033171.3 | K24: 0 | M24: 0 | O24: 0 | Q24: 0
D25: Pill user-years | E25: =Unmet_Summary!S25 -> 5653867.784 | G25: =Unmet_Summary!S54 -> 5653867.784 | I25: =Unmet_Summary!S83 -> 5653867.784 | K25: 0 | M25: 0 | O25: 0 | Q25: 0
D26: Male sterilization user-years | E26: =Unmet_Summary!S26 -> 0 | G26: =Unmet_Summary!S55 -> 0 | I26: =Unmet_Summary!S84 -> 0 | K26: 0 | M26: 0
D27: Female sterilization user-years | E27: =Unmet_Summary!S27 -> 3757317.198 | G27: =Unmet_Summary!S56 -> 3757317.198 | I27: =Unmet_Summary!S85 -> 3757317.198 | K27: 0 | M27: 0 | O27: 0 | Q27: 0
D28: IUD user-years | E28: =Unmet_Summary!S28 -> 1252439.066 | G28: =Unmet_Summary!S57 -> 1252439.066 | I28: =Unmet_Summary!S86 -> 1252439.066 | K28: 0 | M28: 0 | O28: 0 | Q28: 0
D29: Implant user-years | E29: =Unmet_Summary!S29 -> 1502926.879 | G29: =Unmet_Summary!S58 -> 1502926.879 | I29: =Unmet_Summary!S87 -> 1502926.879 | K29: 0 | M29: 0 | O29: 0 | Q29: 0
D30: Standard Days Method (SDM) user-years | E30: =Unmet_Summary!S30 -> 0 | G30: =Unmet_Summary!S59 -> 0 | I30: =Unmet_Summary!S88 -> 0 | K30: 0 | M30: 0
D31: Other modern user-years | E31: =Unmet_Summary!S31 -> 393623.7065 | G31: =Unmet_Summary!S60 -> 393623.7065 | I31: =Unmet_Summary!S89 -> 393623.7065 | K31: 0 | M31: 0 | O31: 0 | Q31: 0
D32: All traditional user-years | E32: =Unmet_Summary!S32 -> 4759268.451 | G32: =Unmet_Summary!S61 -> 4759268.451 | I32: =Unmet_Summary!S90 -> 4759268.451 | K32: =IFERROR(G32-E32,"") -> 0 | M32: 0 | O32: 0 | Q32: 0
D33: =Unmet_Summary!H33 -> Acceptants de la stérilisation masculine* | E33: =Unmet_Summary!S33 -> 0 | G33: =Unmet_Summary!S62 -> 0 | I33: =Unmet_Summary!S91 -> 0 | K33: 0 | M33: 0
D34: =Unmet_Summary!H34 -> Acceptantes de la stérilisation féminine* | E34: =Unmet_Summary!S34 -> 1215988.423 | G34: =Unmet_Summary!S63 -> 1215988.423 | I34: =Unmet_Summary!S92 -> 1215988.423 | K34: 0 | M34: =IFERROR(I34-E34,"") -> 0 | O34: =IFERROR(K34/E34,"") -> 0 | Q34: 0
D35: =Unmet_Summary!H35 -> Acceptantes du DIU* | E35: =Unmet_Summary!S35 -> 296232.9851 | G35: =Unmet_Summary!S64 -> 296232.9851 | I35: =Unmet_Summary!S93 -> 296232.9851 | K35: 0 | M35: =IFERROR(I35-E35,"") -> 0 | O35: =IFERROR(K35/E35,"") -> 0 | Q35: 0
D36: =Unmet_Summary!H36 -> Acceptantes des implants* | E36: =Unmet_Summary!S36 -> 448153.8186 | G36: =Unmet_Summary!S65 -> 448153.8186 | I36: =Unmet_Summary!S94 -> 448153.8186 | K36: 0 | M36: =IFERROR(I36-E36,"") -> 0 | O36: =IFERROR(K36/E36,"") -> 0 | Q36: 0
D37: =Unmet_Summary!H37 -> Acceptantes de la MJF | E37: =Unmet_Summary!S37 -> 0 | G37: =Unmet_Summary!S66 -> 0 | I37: =Unmet_Summary!S95 -> 0 | K37: 0 | M37: =IFERROR(I37-E37,"") -> 0 | O37: =IFERROR(K37/E37,"") -> 
D38: * Les résultats des acceptants sont exprimés comme étant le nombre annuel moyen d'acceptants sur la période de l'analyse

Sheet Unmet_ICER
C2: 0
D20: Sorties | E20: Utilisateurs de la stérilisation masculine
E21: Programmes | G21: Coûts de PF | H21: Sorties | I21: Incremental Costs | K21: Différence dans résultat X | N21: RCED
E22: =inUsualName -> Usual | G22: =Unmet_Comparison!E18 -> 351989630.8 | H22: =INDEX(UnmetCompOut,MATCH($E$20,UnmetCompList,0),1) -> 
E23: =inScen1Name -> Scen2 | G23: =Unmet_Comparison!G18 -> 351989630.8 | H23: =INDEX(UnmetCompOut,MATCH($E$20,UnmetCompList,0),3) ->  | I23: =G23-G22 -> 0 | K23: =H23-H22 ->  | N23: =IFERROR(I23/K23,"") -> 
E24: =inScen2Name -> Scen3 | G24: =Unmet_Comparison!I18 -> 351989630.8 | H24: =INDEX(UnmetCompOut,MATCH($E$20,UnmetCompList,0),5) ->  | I24: =G24-G22 -> 0 | K24: =H24-H22 ->  | N24: =IFERROR(I24/K24,"") -> 
E25: * Les résultats des acceptants sont exprimés comme étant le nombre annuel moyen d'acceptants sur la période de l'analyse

Sheet Budget_Indicator
C2: 0
J7: =F8&" by Scenario" -> Acceptantes de la stérilisation féminine* by Scenario
D8: Choisir sortie | F8: Acceptantes de la stérilisation féminine*
S9: 0
P10: Budget Constraint by Year
Q11: =Configuration!F12 -> 2011 | R11: =Configuration!F14 -> 2020
P12: =D23 -> Usual | Q12: =inBudget1 -> 2000000 | R12: =inUsual413 -> 3000000
P13: =D24 -> Scen2 | Q13: =inBudget1 -> 2000000 | R13: =inScen1413 -> 4000000
P14: =D25 -> Scen3 | Q14: =inBudget1 -> 2000000 | R14: =inScen2413 -> 5000000
F22: =Configuration!F12 -> 2011 | G22: =IFERROR(IF(F22+1<=Configuration!$F$14,F22+1,""),"") -> 2012 | H22: =IFERROR(IF(G22+1<=Configuration!$F$14,G22+1,""),"") -> 2013 | I22: =IFERROR(IF(H22+1<=Configuration!$F$14,H22+1,""),"") -> 2014 | J22: =IFERROR(IF(I22+1<=Configuration!$F$14,I22+1,""),"") -> 2015 | K22: =IFERROR(IF(J22+1<=Configuration!$F$14,J22+1,""),"") -> 2016 | L22: =IFERROR(IF(K22+1<=Configuration!$F$14,K22+1,""),"") -> 2017 | M22: =IFERROR(IF(L22+1<=Configuration!$F$14,L22+1,""),"") -> 2018 | N22: =IFERROR(IF(M22+1<=Configuration!$F$14,M22+1,""),"") -> 2019 | O22: =IFERROR(IF(N22+1<=Configuration!$F$14,N22+1,""),"") -> 2020
C23: Usual | D23: =inUsualName -> Usual | F23: =IF(F$22="","",INDIRECT("'Calculations'!" & ADDRESS(ROW(Budget_List)-1 + MATCH($F$8,Budget_List,0),COLUMN(INDIRECT("calc"&$C23&"Yr1"))))) -> 121598.8423 | G23: =IF(G$22="","",INDIRECT("'Calculations'!" & ADDRESS(ROW(Budget_List)-1 + MATCH($F$8,Budget_List,0),COLUMN(INDIRECT("calc"&$C23&"Yr2"))))) -> 121598.8423 | H23: =IF(H$22="","",INDIRECT("'Calculations'!" & ADDRESS(ROW(Budget_List)-1 + MATCH($F$8,Budget_List,0),COLUMN(INDIRECT("calc"&$C23&"Yr3"))))) -> 121598.8423 | I23: =IF(I$22="","",INDIRECT("'Calculations'!" & ADDRESS(ROW(Budget_List)-1 + MATCH($F$8,Budget_List,0),COLUMN(INDIRECT("calc"&$C23&"Yr4"))))) -> 121598.8423 | J23: =IF(J$22="","",INDIRECT("'Calculations'!" & ADDRESS(ROW(Budget_List)-1 + MATCH($F$8,Budget_List,0),COLUMN(INDIRECT("calc"&$C23&"Yr5"))))) -> 121598.8423 | K23: =IF(K$22="","",INDIRECT("'Calculations'!" & ADDRESS(ROW(Budget_List)-1 + MATCH($F$8,Budget_List,0),COLUMN(INDIRECT("calc"&$C23&"Yr6"))))) -> 121598.8423 | L23: =IF(L$22="","",INDIRECT("'Calculations'!" & ADDRESS(ROW(Budget_List)-1 + MATCH($F$8,Budget_List,0),COLUMN(INDIRECT("calc"&$C23&"Yr7"))))) -> 121598.8423 | M23: =IF(M$22="","",INDIRECT("'Calculations'!" & ADDRESS(ROW(Budget_List)-1 + MATCH($F$8,Budget_List,0),COLUMN(INDIRECT("calc"&$C23&"Yr8"))))) -> 121598.8423 | N23: =IF(N$22="","",INDIRECT("'Calculations'!" & ADDRESS(ROW(Budget_List)-1 + MATCH($F$8,Budget_List,0),COLUMN(INDIRECT("calc"&$C23&"Yr9"))))) -> 121598.8423 | O23: =IF(O$22="","",INDIRECT("'Calculations'!" & ADDRESS(ROW(Budget_List)-1 + MATCH($F$8,Budget_List,0),COLUMN(INDIRECT("calc"&$C23&"Yr10"))))) -> 121598.8423 | V23: 0.26
C24: Scen1 | D24: =inScen1Name -> Scen2 | F24: =IF(F$22="","",INDIRECT("'Calculations'!" & ADDRESS(ROW(Budget_List)-1 + MATCH($F$8,Budget_List,0),COLUMN(INDIRECT("calc"&$C24&"Yr1"))))) -> 121598.8423 | G24: =IF(G$22="","",INDIRECT("'Calculations'!" & ADDRESS(ROW(Budget_List)-1 + MATCH($F$8,Budget_List,0),COLUMN(INDIRECT("calc"&$C24&"Yr2"))))) -> 121598.8423 | H24: =IF(H$22="","",INDIRECT("'Calculations'!" & ADDRESS(ROW(Budget_List)-1 + MATCH($F$8,Budget_List,0),COLUMN(INDIRECT("calc"&$C24&"Yr3"))))) -> 121598.8423 | I24: =IF(I$22="","",INDIRECT("'Calculations'!" & ADDRESS(ROW(Budget_List)-1 + MATCH($F$8,Budget_List,0),COLUMN(INDIRECT("calc"&$C24&"Yr4"))))) -> 121598.8423 | J24: =IF(J$22="","",INDIRECT("'Calculations'!" & ADDRESS(ROW(Budget_List)-1 + MATCH($F$8,Budget_List,0),COLUMN(INDIRECT("calc"&$C24&"Yr5"))))) -> 121598.8423 | K24: =IF(K$22="","",INDIRECT("'Calculations'!" & ADDRESS(ROW(Budget_List)-1 + MATCH($F$8,Budget_List,0),COLUMN(INDIRECT("calc"&$C24&"Yr6"))))) -> 121598.8423 | L24: =IF(L$22="","",INDIRECT("'Calculations'!" & ADDRESS(ROW(Budget_List)-1 + MATCH($F$8,Budget_List,0),COLUMN(INDIRECT("calc"&$C24&"Yr7"))))) -> 121598.8423 | M24: =IF(M$22="","",INDIRECT("'Calculations'!" & ADDRESS(ROW(Budget_List)-1 + MATCH($F$8,Budget_List,0),COLUMN(INDIRECT("calc"&$C24&"Yr8"))))) -> 121598.8423 | N24: =IF(N$22="","",INDIRECT("'Calculations'!" & ADDRESS(ROW(Budget_List)-1 + MATCH($F$8,Budget_List,0),COLUMN(INDIRECT("calc"&$C24&"Yr9"))))) -> 121598.8423 | O24: =IF(O$22="","",INDIRECT("'Calculations'!" & ADDRESS(ROW(Budget_List)-1 + MATCH($F$8,Budget_List,0),COLUMN(INDIRECT("calc"&$C24&"Yr10"))))) -> 121598.8423
C25: Scen2 | D25: =inScen2Name -> Scen3 | F25: =IF(F$22="","",INDIRECT("'Calculations'!" & ADDRESS(ROW(Budget_List)-1 + MATCH($F$8,Budget_List,0),COLUMN(INDIRECT("calc"&$C25&"Yr1"))))) -> 121598.8423 | G25: =IF(G$22="","",INDIRECT("'Calculations'!" & ADDRESS(ROW(Budget_List)-1 + MATCH($F$8,Budget_List,0),COLUMN(INDIRECT("calc"&$C25&"Yr2"))))) -> 121598.8423 | H25: =IF(H$22="","",INDIRECT("'Calculations'!" & ADDRESS(ROW(Budget_List)-1 + MATCH($F$8,Budget_List,0),COLUMN(INDIRECT("calc"&$C25&"Yr3"))))) -> 121598.8423 | I25: =IF(I$22="","",INDIRECT("'Calculations'!" & ADDRESS(ROW(Budget_List)-1 + MATCH($F$8,Budget_List,0),COLUMN(INDIRECT("calc"&$C25&"Yr4"))))) -> 121598.8423 | J25: =IF(J$22="","",INDIRECT("'Calculations'!" & ADDRESS(ROW(Budget_List)-1 + MATCH($F$8,Budget_List,0),COLUMN(INDIRECT("calc"&$C25&"Yr5"))))) -> 121598.8423 | K25: =IF(K$22="","",INDIRECT("'Calculations'!" & ADDRESS(ROW(Budget_List)-1 + MATCH($F$8,Budget_List,0),COLUMN(INDIRECT("calc"&$C25&"Yr6"))))) -> 121598.8423 | L25: =IF(L$22="","",INDIRECT("'Calculations'!" & ADDRESS(ROW(Budget_List)-1 + MATCH($F$8,Budget_List,0),COLUMN(INDIRECT("calc"&$C25&"Yr7"))))) -> 121598.8423 | M25: =IF(M$22="","",INDIRECT("'Calculations'!" & ADDRESS(ROW(Budget_List)-1 + MATCH($F$8,Budget_List,0),COLUMN(INDIRECT("calc"&$C25&"Yr8"))))) -> 121598.8423 | N25: =IF(N$22="","",INDIRECT("'Calculations'!" & ADDRESS(ROW(Budget_List)-1 + MATCH($F$8,Budget_List,0),COLUMN(INDIRECT("calc"&$C25&"Yr9"))))) -> 121598.8423 | O25: =IF(O$22="","",INDIRECT("'Calculations'!" & ADDRESS(ROW(Budget_List)-1 + MATCH($F$8,Budget_List,0),COLUMN(INDIRECT("calc"&$C25&"Yr10"))))) -> 121598.8423
D26: * Les résultats des acceptants sont exprimés comme étant le nombre annuel moyen d'acceptants sur la période de l'analyse
J30: =Configuration!F12 -> 2011 | K30: =IFERROR(IF(J30+1<=Configuration!$F$14,J30+1,""),"") -> 2012 | L30: =IFERROR(IF(K30+1<=Configuration!$F$14,K30+1,""),"") -> 2013 | M30: =IFERROR(IF(L30+1<=Configuration!$F$14,L30+1,""),"") -> 2014 | N30: =IFERROR(IF(M30+1<=Configuration!$F$14,M30+1,""),"") -> 2015 | O30: =IFERROR(IF(N30+1<=Configuration!$F$14,N30+1,""),"") -> 2016 | P30: =IFERROR(IF(O30+1<=Configuration!$F$14,O30+1,""),"") -> 2017 | Q30: =IFERROR(IF(P30+1<=Configuration!$F$14,P30+1,""),"") -> 2018 | R30: =IFERROR(IF(Q30+1<=Configuration!$F$14,Q30+1,""),"") -> 2019 | S30: =IFERROR(IF(R30+1<=Configuration!$F$14,R30+1,""),"") -> 2020
G31: Slope | H31: Intercept
F32: Usual | G32: =(R12-Q12)/(ConEndYr-ConStartYr) -> 111111.1111 | H32: =R12-G32*ConEndYr -> -221444444.4 | J32: =IFERROR(BudUsualSlope*$J$30+BudUsualInter,"") -> 2000000 | K32: =IFERROR($G$32*K30+$H$32,"") -> 2111111.111 | L32: 2222222.222 | M32: 2333333.333 | N32: 2444444.444 | O32: 2555555.556 | P32: 2666666.667 | Q32: 2777777.778 | R32: 2888888.889 | S32: 3000000 | T32: =SUM(J32:S32) -> 25000000
F33: Scen1 | G33: =(R13-Q13)/(ConEndYr-ConStartYr) -> 222222.2222 | H33: =R13-G33*ConEndYr -> -444888888.9 | J33: =IFERROR(BudScen1Slope*$J$30+BudScen1Inter,"") -> 2000000 | K33: =IFERROR($G$33*K30+$H$33,"") -> 2222222.222 | L33: =IFERROR($G$33*L30+$H$33,"") -> 2444444.444 | M33: 2666666.667 | N33: 2888888.889 | O33: 3111111.111 | P33: 3333333.333 | Q33: 3555555.556 | R33: 3777777.778 | S33: 4000000 | T33: =SUM(J33:S33) -> 30000000
F34: Scen2 | G34: =(R14-Q14)/(ConEndYr-ConStartYr) -> 333333.3333 | H34: =R14-G34*ConEndYr -> -668333333.3 | J34: =IFERROR($G$34*J30+$H$34,"") -> 2000000 | K34: =IFERROR($G$34*K30+$H$34,"") -> 2333333.333 | L34: 2666666.667 | M34: 3000000 | N34: 3333333.333 | O34: 3666666.667 | P34: 4000000 | Q34: 4333333.333 | R34: 4666666.667 | S34: 5000000 | T34: =SUM(J34:S34) -> 35000000

Sheet Budget_Summary
C2: 0
G9: Usual | H9: =inUsualName -> Usual | I9: ="usual"&I10 -> usual2011 | J9: ="usual"&J10 -> usual2012 | K9: usual2013 | L9: usual2014 | M9: usual2015 | N9: usual2016 | O9: usual2017 | P9: usual2018 | Q9: usual2019 | R9: usual2020
H10: Indicateur | I10: =Configuration!$F$12 -> 2011 | J10: =IFERROR(IF(I10+1<=Configuration!$F$14,I10+1,""),"") -> 2012 | K10: =IFERROR(IF(J10+1<=Configuration!$F$14,J10+1,""),"") -> 2013 | L10: =IFERROR(IF(K10+1<=Configuration!$F$14,K10+1,""),"") -> 2014 | M10: =IFERROR(IF(L10+1<=Configuration!$F$14,L10+1,""),"") -> 2015 | N10: =IFERROR(IF(M10+1<=Configuration!$F$14,M10+1,""),"") -> 2016 | O10: =IFERROR(IF(N10+1<=Configuration!$F$14,N10+1,""),"") -> 2017 | P10: =IFERROR(IF(O10+1<=Configuration!$F$14,O10+1,""),"") -> 2018 | Q10: =IFERROR(IF(P10+1<=Configuration!$F$14,P10+1,""),"") -> 2019 | R10: =IFERROR(IF(Q10+1<=Configuration!$F$14,Q10+1,""),"") -> 2020
H11: Grossesses non-désirées évitées | I11: =IF(I$10="","",INDIRECT("'Calculations'!" & ADDRESS(ROW(Budget_List)-1 + MATCH($H11,Budget_List,0),COLUMN(INDIRECT("calc"&$G$9&"Yr1"))))) -> 66472.36105 | J11: =IF(J$10="","",INDIRECT("'Calculations'!" & ADDRESS(ROW(Budget_List)-1 + MATCH($H11,Budget_List,0),COLUMN(INDIRECT("calc"&$G$9&"Yr2"))))) -> 70165.27 | K11: =IF(K$10="","",INDIRECT("'Calculations'!" & ADDRESS(ROW(Budget_List)-1 + MATCH($H11,Budget_List,0),COLUMN(INDIRECT("calc"&$G$9&"Yr3"))))) -> 73858.17894 | L11: =IF(L$10="","",INDIRECT("'Calculations'!" & ADDRESS(ROW(Budget_List)-1 + MATCH($H11,Budget_List,0),COLUMN(INDIRECT("calc"&$G$9&"Yr4"))))) -> 77551.08789 | M11: =IF(M$10="","",INDIRECT("'Calculations'!" & ADDRESS(ROW(Budget_List)-1 + MATCH($H11,Budget_List,0),COLUMN(INDIRECT("calc"&$G$9&"Yr5"))))) -> 81243.99684 | N11: =IF(N$10="","",INDIRECT("'Calculations'!" & ADDRESS(ROW(Budget_List)-1 + MATCH($H11,Budget_List,0),COLUMN(INDIRECT("calc"&$G$9&"Yr6"))))) -> 84936.90578 | O11: =IF(O$10="","",INDIRECT("'Calculations'!" & ADDRESS(ROW(Budget_List)-1 + MATCH($H11,Budget_List,0),COLUMN(INDIRECT("calc"&$G$9&"Yr7"))))) -> 88629.81473 | P11: =IF(P$10="","",INDIRECT("'Calculations'!" & ADDRESS(ROW(Budget_List)-1 + MATCH($H11,Budget_List,0),COLUMN(INDIRECT("calc"&$G$9&"Yr8"))))) -> 92322.72368 | Q11: =IF(Q$10="","",INDIRECT("'Calculations'!" & ADDRESS(ROW(Budget_List)-1 + MATCH($H11,Budget_List,0),COLUMN(INDIRECT("calc"&$G$9&"Yr9"))))) -> 96015.63262 | R11: =IF(R$10="","",INDIRECT("'Calculations'!" & ADDRESS(ROW(Budget_List)-1 + MATCH($H11,Budget_List,0),COLUMN(INDIRECT("calc"&$G$9&"Yr10"))))) -> 99708.54157 | S11: =SUM(I11:R11) -> 830904.5131
H12: Nombre de naissances vivantes évitées | I12: 36247.9177 | J12: 38261.6909 | K12: 40275.46411 | L12: 42289.23731 | M12: 44303.01052 | N12: 46316.78372 | O12: 48330.55693 | P12: 50344.33013 | Q12: 52358.10334 | R12: 54371.87654 | S12: 453098.9712
H13: Avortements évités | I13: 20606.43192 | J13: 21751.2337 | K13: 22896.03547 | L13: 24040.83725 | M13: 25185.63902 | N13: 26330.44079 | O13: 27475.24257 | P13: 28620.04434 | Q13: 29764.84611 | R13: 30909.64789 | S13: 257580.3991
H14: Avortements à risque évités | I14: 19732.76039 | J14: 20829.02485 | K14: 21925.28932 | L14: 23021.55378 | M14: 24117.81825 | N14: 25214.08272 | O14: 26310.34718 | P14: 27406.61165 | Q14: 28502.87611 | R14: 29599.14058 | S14: 246659.5048
H15: Décès maternels évités | I15: 222.7561853 | J15: 226.6587435 | K15: 229.6694295 | L15: 231.7882433 | M15: 233.015185 | N15: 233.3502545 | O15: 232.7934519 | P15: 231.3447771 | Q15: 229.0042301 | R15: 225.771811 | S15: 2296.152311
H16: Décès infantils évités | I16: 1043.995224 | J16: 1101.994958 | K16: 1159.994693 | L16: 1217.994428 | M16: 1275.994162 | N16: 1333.993897 | O16: 1391.993631 | P16: 1449.993366 | Q16: 1507.993101 | R16: 1565.992835 | S16: 13049.94029
H17: AVCI évitées | I17: 102147.5787 | J17: 107294.5869 | K17: 112386.0312 | L17: 117421.9115 | M17: 122402.228 | N17: 127326.9805 | O17: 132196.169 | P17: 137009.7937 | Q17: 141767.8544 | R17: 146470.3512 | S17: =IFERROR(AVERAGE(I17:R17),"") -> 124642.3485
H18: Coûts de soins de santé maternelle et infantile sauvés | I18: 2532638.907 | J18: 2673341.068 | K18: 2814043.23 | L18: 2954745.391 | M18: 3095447.553 | N18: 3236149.714 | O18: 3376851.876 | P18: 3517554.037 | Q18: 3658256.199 | R18: 3798958.36 | S18: =SUM(I18:R18) -> 31657986.34
H19: TPC | I19: 0.05103462171 | J19: 0.05214055971 | K19: 0.05317770107 | L19: 0.05415227154 | M19: 0.05506976768 | N19: 0.05593506059 | O19: 0.05675248235 | P19: 0.05752589866 | Q19: 0.05825876988 | R19: 0.05895420284 | S19: =IFERROR(AVERAGE(I19:R19),"") -> 0.0553001336
H20: besoin non satisfait | I20: 0.256 | J20: 0.2456666667 | K20: 0.2353333333 | L20: 0.225 | M20: 0.2146666667 | N20: 0.2043333333 | O20: 0.194 | P20: 0.1836666667 | Q20: 0.1733333333 | R20: 0.163 | S20: 2.095
H21: Rapport coût-bénéfice | I21: =IF(I$10="","",INDIRECT("'Calculations'!" & ADDRESS(ROW(Budget_List)-1 + MATCH($H21,Budget_List,0),COLUMN(INDIRECT("calc"&$G$9&"Yr1"))))) -> 
H22: Nombre total d’utilisatrices de PF | I22: 302892.6246 | J22: 319719.9926 | K22: 336547.3606 | L22: 353374.7287 | M22: 370202.0967 | N22: 387029.4647 | O22: 403856.8328 | P22: 420684.2008 | Q22: 437511.5688 | R22: 454338.9368 | S22: 3786157.807
H23: Utilisateurs du préservatif | I23: 12115.70498 | J23: 12788.7997 | K23: 13461.89443 | L23: 14134.98915 | M23: 14808.08387 | N23: 15481.17859 | O23: 16154.27331 | P23: 16827.36803 | Q23: 17500.46275 | R23: 18173.55747 | S23: 151446.3123
H24: Utilisatrices des injectables | I24: 144176.8893 | J24: 152186.7165 | K24: 160196.5437 | L24: 168206.3708 | M24: 176216.198 | N24: 184226.0252 | O24: 192235.8524 | P24: 200245.6796 | Q24: 208255.5068 | R24: 216265.3339 | S24: 1802211.116
H25: Utilisatrices de la pilule | I25: 47857.03468 | J25: 50515.75883 | K25: 53174.48298 | L25: 55833.20713 | M25: 58491.93128 | N25: 61150.65543 | O25: 63809.37957 | P25: 66468.10372 | Q25: 69126.82787 | R25: 71785.55202 | S25: 598212.9335
H26: Utilisateurs de la stérilisation masculine | I26: 0 | J26: 0 | K26: 0 | L26: 0 | M26: 0 | N26: 0 | O26: 0 | P26: 0 | Q26: 0 | R26: 0 | S26: 0
H27: Utilisatrices de la stérilisation féminine | I27: 31803.72558 | J27: 33570.59922 | K27: 35337.47287 | L27: 37104.34651 | M27: 38871.22015 | N27: 40638.0938 | O27: 42404.96744 | P27: 44171.84108 | Q27: 45938.71473 | R27: 47705.58837 | S27: 397546.5697
H28: Utilisatrices du DIU | I28: 10601.24186 | J28: 11190.19974 | K28: 11779.15762 | L28: 12368.1155 | M28: 12957.07338 | N28: 13546.03127 | O28: 14134.98915 | P28: 14723.94703 | Q28: 15312.90491 | R28: 15901.86279 | S28: 132515.5232
H29: Utilisatrices des implants | I29: 12721.49023 | J29: 13428.23969 | K29: 14134.98915 | L29: 14841.7386 | M29: 15548.48806 | N29: 16255.23752 | O29: 16961.98698 | P29: 17668.73643 | Q29: 18375.48589 | R29: 19082.23535 | S29: 159018.6279
H30: Utilisatrices de la méthode des jours fixes (MJF) | I30: 0 | J30: 0 | K30: 0 | L30: 0 | M30: 0 | N30: 0 | O30: 0 | P30: 0 | Q30: 0 | R30: 0 | S30: 0
H31: Utilisatrices d'autres méthodes modernes | I31: 3331.81887 | J31: 3516.919919 | K31: 3702.020967 | L31: 3887.122015 | M31: 4072.223064 | N31: 4257.324112 | O31: 4442.42516 | P31: 4627.526209 | Q31: 4812.627257 | R31: 4997.728305 | S31: 41647.73588
H32: Utilisatrices des méthodes traditionnelles | I32: 40284.71907 | J32: 42522.75902 | K32: 44760.79896 | L32: 46998.83891 | M32: 49236.87886 | N32: 51474.91881 | O32: 53712.95876 | P32: 55950.9987 | Q32: 58189.03865 | R32: 60427.0786 | S32: 503558.9883
H33: Acceptants de la stérilisation masculine* | I33: 0 | J33: 0 | K33: 0 | L33: 0 | M33: 0 | N33: 0 | O33: 0 | P33: 0 | Q33: 0 | R33: 0 | S33: 0
H34: Acceptantes de la stérilisation féminine* | I34: 121598.8423 | J34: 121598.8423 | K34: 121598.8423 | L34: 121598.8423 | M34: 121598.8423 | N34: 121598.8423 | O34: 121598.8423 | P34: 121598.8423 | Q34: 121598.8423 | R34: 121598.8423 | S34: 1215988.423
H35: Acceptantes du DIU* | I35: 29623.29851 | J35: 29623.29851 | K35: 29623.29851 | L35: 29623.29851 | M35: 29623.29851 | N35: 29623.29851 | O35: 29623.29851 | P35: 29623.29851 | Q35: 29623.29851 | R35: 29623.29851
H36: Acceptantes des implants* | I36: 44815.38186 | J36: 44815.38186 | K36: 44815.38186 | L36: 44815.38186 | M36: 44815.38186 | N36: 44815.38186 | O36: 44815.38186 | P36: 44815.38186 | Q36: 44815.38186 | R36: 44815.38186
H37: Acceptantes de la MJF | I37: 0 | J37: 0 | K37: 0 | L37: 0 | M37: 0 | N37: 0 | O37: 0 | P37: 0 | Q37: 0 | R37: 0 | S37: 0
G38: Scen1 | H38: =inScen1Name -> Scen2 | I38: ="scen1"&I39 -> scen12011 | J38: ="scen1"&J39 -> scen12012 | K38: scen12013 | L38: scen12014 | M38: scen12015 | N38: scen12016 | O38: scen12017 | P38: scen12018 | Q38: scen12019 | R38: scen12020 | S38: =SUM(I38:R38) -> 0
H39: Indicateur | I39: =Configuration!$F$12 -> 2011 | J39: =IFERROR(IF(I39+1<=Configuration!$F$14,I39+1,""),"") -> 2012 | K39: =IFERROR(IF(J39+1<=Configuration!$F$14,J39+1,""),"") -> 2013 | L39: =IFERROR(IF(K39+1<=Configuration!$F$14,K39+1,""),"") -> 2014 | M39: =IFERROR(IF(L39+1<=Configuration!$F$14,L39+1,""),"") -> 2015 | N39: =IFERROR(IF(M39+1<=Configuration!$F$14,M39+1,""),"") -> 2016 | O39: =IFERROR(IF(N39+1<=Configuration!$F$14,N39+1,""),"") -> 2017 | P39: =IFERROR(IF(O39+1<=Configuration!$F$14,O39+1,""),"") -> 2018 | Q39: =IFERROR(IF(P39+1<=Configuration!$F$14,P39+1,""),"") -> 2019 | R39: =IFERROR(IF(Q39+1<=Configuration!$F$14,Q39+1,""),"") -> 2020 | S39: =SUM(I39:R39) -> 20155
H40: Grossesses non-désirées évitées | I40: =IF(I$10="","",INDIRECT("'Calculations'!" & ADDRESS(ROW(Budget_List)-1 + MATCH($H40,Budget_List,0),COLUMN(INDIRECT("calc"&$G$38&"Yr1"))))) -> 66472.36105 | J40: =IF(J$10="","",INDIRECT("'Calculations'!" & ADDRESS(ROW(Budget_List)-1 + MATCH($H40,Budget_List,0),COLUMN(INDIRECT("calc"&$G$38&"Yr2"))))) -> 73858.17894 | K40: =IF(K$10="","",INDIRECT("'Calculations'!" & ADDRESS(ROW(Budget_List)-1 + MATCH($H40,Budget_List,0),COLUMN(INDIRECT("calc"&$G$38&"Yr3"))))) -> 81243.99684 | L40: =IF(L$10="","",INDIRECT("'Calculations'!" & ADDRESS(ROW(Budget_List)-1 + MATCH($H40,Budget_List,0),COLUMN(INDIRECT("calc"&$G$38&"Yr4"))))) -> 88629.81473 | M40: =IF(M$10="","",INDIRECT("'Calculations'!" & ADDRESS(ROW(Budget_List)-1 + MATCH($H40,Budget_List,0),COLUMN(INDIRECT("calc"&$G$38&"Yr5"))))) -> 96015.63262 | N40: =IF(N$10="","",INDIRECT("'Calculations'!" & ADDRESS(ROW(Budget_List)-1 + MATCH($H40,Budget_List,0),COLUMN(INDIRECT("calc"&$G$38&"Yr6"))))) -> 103401.4505 | O40: =IF(O$10="","",INDIRECT("'Calculations'!" & ADDRESS(ROW(Budget_List)-1 + MATCH($H40,Budget_List,0),COLUMN(INDIRECT("calc"&$G$38&"Yr7"))))) -> 103401.4505 | P40: =IF(P$10="","",INDIRECT("'Calculations'!" & ADDRESS(ROW(Budget_List)-1 + MATCH($H40,Budget_List,0),COLUMN(INDIRECT("calc"&$G$38&"Yr8"))))) -> 118173.0863 | Q40: =IF(Q$10="","",INDIRECT("'Calculations'!" & ADDRESS(ROW(Budget_List)-1 + MATCH($H40,Budget_List,0),COLUMN(INDIRECT("calc"&$G$38&"Yr9"))))) -> 125558.9042 | R40: =IF(R$10="","",INDIRECT("'Calculations'!" & ADDRESS(ROW(Budget_List)-1 + MATCH($H40,Budget_List,0),COLUMN(INDIRECT("calc"&$G$38&"Yr10"))))) -> 132944.7221 | S40: =SUM(I40:R40) -> 989699.5978
H41: Nombre de naissances vivantes évitées | I41: 36247.9177 | J41: 40275.46411 | K41: 44303.01052 | L41: 48330.55693 | M41: 52358.10334 | N41: 56385.64975 | O41: 56385.64975 | P41: 64440.74257 | Q41: 68468.28898 | R41: 72495.83539 | S41: =SUM(I41:R41) -> 539691.219
H42: Avortements évités | I42: 20606.43192 | J42: 22896.03547 | K42: 25185.63902 | L42: 27475.24257 | M42: 29764.84611 | N42: 32054.44966 | O42: 32054.44966 | P42: 36633.65676 | Q42: 38923.2603 | R42: 41212.86385 | S42: 306806.8753
H43: Avortements à risque évités | I43: 19732.76039 | J43: 21925.28932 | K43: 24117.81825 | L43: 26310.34718 | M43: 28502.87611 | N43: 30695.40505 | O43: 30695.40505 | P43: 35080.46291 | Q43: 37272.99184 | R43: 39465.52077 | S43: 293798.8769
H44: Décès maternels évités | I44: 222.7561853 | J44: 238.588151 | K44: 252.6363724 | L44: 264.9008495 | M44: 275.3815822 | N44: 284.0785707 | O44: 271.5923605 | P44: 296.1213147 | Q44: 299.4670702 | R44: 301.0290814 | S44: 2706.551538
H45: Décès infantils évités | I45: 1043.995224 | J45: 1159.994693 | K45: 1275.994162 | L45: 1391.993631 | M45: 1507.993101 | N45: 1623.99257 | O45: 1623.99257 | P45: 1855.991509 | Q45: 1971.990978 | R45: 2087.990447 | S45: 15543.92888
H46: AVCI évitées | I46: 102147.5787 | J46: 112941.6704 | K46: 123624.6343 | L46: 134196.4703 | M46: 144657.1785 | N46: 155006.7588 | O46: 154228.8639 | P46: 175372.5359 | Q46: 185388.7327 | R46: 195293.8016 | S46: =IFERROR(AVERAGE(I46:R46),"") -> 148285.8225
H47: Coûts de soins de santé maternelle et infantile sauvés | I47: 2532638.907 | J47: 2814043.23 | K47: 3095447.553 | L47: 3376851.876 | M47: 3658256.199 | N47: 3939660.522 | O47: 3939660.522 | P47: 4502469.168 | Q47: 4783873.491 | R47: 5065277.814 | S47: 37708179.28
H48: TPC | I48: 0.05103462171 | J48: 0.0548847997 | K48: 0.05849547118 | L48: 0.06188831033 | M48: 0.06508245272 | N48: 0.06809485637 | O48: 0.06621122941 | P48: 0.07363315028 | Q48: 0.07618454522 | R48: 0.07860560378 | S48: =IFERROR(AVERAGE(I48:R48),"") -> 0.06541150407
H49: besoin non satisfait | I49: 0.256 | J49: 0.2456666667 | K49: 0.2353333333 | L49: 0.225 | M49: 0.2146666667 | N49: 0.2043333333 | O49: 0.194 | P49: 0.1836666667 | Q49: 0.1733333333 | R49: 0.163 | S49: 2.095
H50: Rapport coût-bénéfice
H51: Nombre total d’utilisatrices de PF | I51: 302892.6246 | J51: 336547.3606 | K51: 370202.0967 | L51: 403856.8328 | M51: 437511.5688 | N51: 471166.3049 | O51: 471166.3049 | P51: 538475.777 | Q51: 572130.5131 | R51: 605785.2491 | S51: 4509734.632
H52: Utilisateurs du préservatif | I52: 12115.70498 | J52: 13461.89443 | K52: 14808.08387 | L52: 16154.27331 | M52: 17500.46275 | N52: 18846.6522 | O52: 18846.6522 | P52: 21539.03108 | Q52: 22885.22052 | R52: 24231.40997 | S52: 180389.3853
H53: Utilisatrices des injectables | I53: 144176.8893 | J53: 160196.5437 | K53: 176216.198 | L53: 192235.8524 | M53: 208255.5068 | N53: 224275.1611 | O53: 224275.1611 | P53: 256314.4699 | Q53: 272334.1242 | R53: 288353.7786 | S53: 2146633.685
H54: Utilisatrices de la pilule | I54: 47857.03468 | J54: 53174.48298 | K54: 58491.93128 | L54: 63809.37957 | M54: 69126.82787 | N54: 74444.27617 | O54: 74444.27617 | P54: 85079.17277 | Q54: 90396.62106 | R54: 95714.06936 | S54: 712538.0719
H55: Utilisateurs de la stérilisation masculine | I55: 0 | J55: 0 | K55: 0 | L55: 0 | M55: 0 | N55: 0 | O55: 0 | P55: 0 | Q55: 0 | R55: 0 | S55: 0
H56: Utilisatrices de la stérilisation féminine | I56: 31803.72558 | J56: 35337.47287 | K56: 38871.22015 | L56: 42404.96744 | M56: 45938.71473 | N56: 49472.46201 | O56: 49472.46201 | P56: 56539.95659 | Q56: 60073.70387 | R56: 63607.45116 | S56: 473522.1364
H57: Utilisatrices du DIU | I57: 10601.24186 | J57: 11779.15762 | K57: 12957.07338 | L57: 14134.98915 | M57: 15312.90491 | N57: 16490.82067 | O57: 16490.82067 | P57: 18846.6522 | Q57: 20024.56796 | R57: 21202.48372 | S57: 157840.7121
H58: Utilisatrices des implants | I58: 12721.49023 | J58: 14134.98915 | K58: 15548.48806 | L58: 16961.98698 | M58: 18375.48589 | N58: 19788.9848 | O58: 19788.9848 | P58: 22615.98263 | Q58: 24029.48155 | R58: 25442.98046 | S58: 189408.8546
H59: Utilisatrices de la méthode des jours fixes (MJF) | I59: 0 | J59: 0 | K59: 0 | L59: 0 | M59: 0 | N59: 0 | O59: 0 | P59: 0 | Q59: 0 | R59: 0 | S59: 0
H60: Utilisatrices d'autres méthodes modernes | I60: 3331.81887 | J60: 3702.020967 | K60: 4072.223064 | L60: 4442.42516 | M60: 4812.627257 | N60: 5182.829354 | O60: 5182.829354 | P60: 5923.233547 | Q60: 6293.435644 | R60: 6663.63774 | S60: 49607.08096
H61: Utilisatrices des méthodes traditionnelles | I61: 40284.71907 | J61: 44760.79896 | K61: 49236.87886 | L61: 53712.95876 | M61: 58189.03865 | N61: 62665.11855 | O61: 62665.11855 | P61: 71617.27834 | Q61: 76093.35824 | R61: 80569.43813 | S61: 599794.7061
H62: Acceptants de la stérilisation masculine* | I62: 0 | J62: 0 | K62: 0 | L62: 0 | M62: 0 | N62: 0 | O62: 0 | P62: 0 | Q62: 0 | R62: 0 | S62: 0
H63: Acceptantes de la stérilisation féminine* | I63: 121598.8423 | J63: 121598.8423 | K63: 121598.8423 | L63: 121598.8423 | M63: 121598.8423 | N63: 121598.8423 | O63: 121598.8423 | P63: 121598.8423 | Q63: 121598.8423 | R63: 121598.8423 | S63: 1215988.423
H64: Acceptantes du DIU* | I64: 29623.29851 | J64: 29623.29851 | K64: 29623.29851 | L64: 29623.29851 | M64: 29623.29851 | N64: 29623.29851 | O64: 29623.29851 | P64: 29623.29851 | Q64: 29623.29851 | R64: 29623.29851
H65: Acceptantes des implants* | I65: 44815.38186 | J65: 44815.38186 | K65: 44815.38186 | L65: 44815.38186 | M65: 44815.38186 | N65: 44815.38186 | O65: 44815.38186 | P65: 44815.38186 | Q65: 44815.38186 | R65: 44815.38186
H66: Acceptantes de la MJF | I66: 0 | J66: 0 | K66: 0 | L66: 0 | M66: 0 | N66: 0 | O66: 0 | P66: 0 | Q66: 0 | R66: 0 | S66: 0
G67: Scen2 | H67: =inScen2Name -> Scen3 | I67: ="scen2"&I68 -> scen22011 | J67: ="scen2"&J68 -> scen22012 | K67: scen22013 | L67: scen22014 | M67: scen22015 | N67: scen22016 | O67: scen22017 | P67: scen22018 | Q67: scen22019 | R67: scen22020 | S67: =SUM(I67:R67) -> 0
H68: Indicateur | I68: =Configuration!$F$12 -> 2011 | J68: =IFERROR(IF(I68+1<=Configuration!$F$14,I68+1,""),"") -> 2012 | K68: =IFERROR(IF(J68+1<=Configuration!$F$14,J68+1,""),"") -> 2013 | L68: =IFERROR(IF(K68+1<=Configuration!$F$14,K68+1,""),"") -> 2014 | M68: =IFERROR(IF(L68+1<=Configuration!$F$14,L68+1,""),"") -> 2015 | N68: =IFERROR(IF(M68+1<=Configuration!$F$14,M68+1,""),"") -> 2016 | O68: =IFERROR(IF(N68+1<=Configuration!$F$14,N68+1,""),"") -> 2017 | P68: =IFERROR(IF(O68+1<=Configuration!$F$14,O68+1,""),"") -> 2018 | Q68: =IFERROR(IF(P68+1<=Configuration!$F$14,P68+1,""),"") -> 2019 | R68: =IFERROR(IF(Q68+1<=Configuration!$F$14,Q68+1,""),"") -> 2020 | S68: =SUM(I68:R68) -> 20155
H69: Grossesses non-désirées évitées | I69: =IF(I$10="","",INDIRECT("'Calculations'!" & ADDRESS(ROW(Budget_List)-1 + MATCH($H69,Budget_List,0),COLUMN(INDIRECT("calc"&$G$67&"Yr1"))))) -> 66472.36105 | J69: =IF(J$10="","",INDIRECT("'Calculations'!" & ADDRESS(ROW(Budget_List)-1 + MATCH($H69,Budget_List,0),COLUMN(INDIRECT("calc"&$G$67&"Yr2"))))) -> 77551.08789 | K69: =IF(K$10="","",INDIRECT("'Calculations'!" & ADDRESS(ROW(Budget_List)-1 + MATCH($H69,Budget_List,0),COLUMN(INDIRECT("calc"&$G$67&"Yr3"))))) -> 88629.81473 | L69: =IF(L$10="","",INDIRECT("'Calculations'!" & ADDRESS(ROW(Budget_List)-1 + MATCH($H69,Budget_List,0),COLUMN(INDIRECT("calc"&$G$67&"Yr4"))))) -> 99708.54157 | M69: =IF(M$10="","",INDIRECT("'Calculations'!" & ADDRESS(ROW(Budget_List)-1 + MATCH($H69,Budget_List,0),COLUMN(INDIRECT("calc"&$G$67&"Yr5"))))) -> 110787.2684 | N69: =IF(N$10="","",INDIRECT("'Calculations'!" & ADDRESS(ROW(Budget_List)-1 + MATCH($H69,Budget_List,0),COLUMN(INDIRECT("calc"&$G$67&"Yr6"))))) -> 121865.9953 | O69: =IF(O$10="","",INDIRECT("'Calculations'!" & ADDRESS(ROW(Budget_List)-1 + MATCH($H69,Budget_List,0),COLUMN(INDIRECT("calc"&$G$67&"Yr7"))))) -> 121865.9953 | P69: =IF(P$10="","",INDIRECT("'Calculations'!" & ADDRESS(ROW(Budget_List)-1 + MATCH($H69,Budget_List,0),COLUMN(INDIRECT("calc"&$G$67&"Yr8"))))) -> 144023.4489 | Q69: =IF(Q$10="","",INDIRECT("'Calculations'!" & ADDRESS(ROW(Budget_List)-1 + MATCH($H69,Budget_List,0),COLUMN(INDIRECT("calc"&$G$67&"Yr9"))))) -> 155102.1758 | R69: =IF(R$10="","",INDIRECT("'Calculations'!" & ADDRESS(ROW(Budget_List)-1 + MATCH($H69,Budget_List,0),COLUMN(INDIRECT("calc"&$G$67&"Yr10"))))) -> 166180.9026 | S69: =SUM(I69:R69) -> 1152187.591
H70: Nombre de naissances vivantes évitées | I70: 36247.9177 | J70: 42289.23731 | K70: 48330.55693 | L70: 54371.87654 | M70: 60413.19616 | N70: 66454.51578 | O70: 66454.51578 | P70: 78537.15501 | Q70: 84578.47462 | R70: 90619.79424 | S70: =SUM(I70:R70) -> 628297.2401
H71: Avortements évités | I71: 20606.43192 | J71: 24040.83725 | K71: 27475.24257 | L71: 30909.64789 | M71: 34344.05321 | N71: 37778.45853 | O71: 37778.45853 | P71: 44647.26917 | Q71: 48081.67449 | R71: 51516.07981 | S71: 357178.1534
H72: Avortements à risque évités | I72: 19732.76039 | J72: 23021.55378 | K72: 26310.34718 | L72: 29599.14058 | M72: 32887.93398 | N72: 36176.72738 | O72: 36176.72738 | P72: 42754.31417 | Q72: 46043.10757 | R72: 49331.90097 | S72: 342034.5134
H73: Décès maternels évités | I73: 222.7561853 | J73: 250.5175586 | K73: 275.6033153 | L73: 298.0134557 | M73: 317.7479795 | N73: 334.8068869 | O73: 320.0909963 | P73: 360.8978522 | Q73: 369.9299102 | R73: 376.2863517 | S73: 3126.650492
H74: Décès infantils évités | I74: 1043.995224 | J74: 1217.994428 | K74: 1391.993631 | L74: 1565.992835 | M74: 1739.992039 | N74: 1913.991243 | O74: 1913.991243 | P74: 2261.989651 | Q74: 2435.988855 | R74: 2609.988059 | S74: 18095.91721
H75: AVCI évitées | I75: 102147.5787 | J75: 118588.7539 | K75: 134863.2374 | L75: 150971.0291 | M75: 166912.129 | N75: 182686.5372 | O75: 181769.7324 | P75: 213735.2782 | Q75: 229009.611 | R75: 244117.2521 | S75: =IFERROR(AVERAGE(I75:R75),"") -> 172480.1139
H76: Coûts de soins de santé maternelle et infantile sauvés | I76: 2532638.907 | J76: 2954745.391 | K76: 3376851.876 | L76: 3798958.36 | M76: 4221064.845 | N76: 4643171.329 | O76: 4643171.329 | P76: 5487384.298 | Q76: 5909490.783 | R76: 6331597.267 | S76: 43899074.39
H77: TPC | I77: 0.05103462171 | J77: 0.05762903968 | K77: 0.06381324128 | L77: 0.06962434912 | M77: 0.07509513775 | N77: 0.08025465214 | O77: 0.07803466323 | P77: 0.08974040191 | Q77: 0.09411032057 | R77: 0.09825700473 | S77: =IFERROR(AVERAGE(I77:R77),"") -> 0.07575934321
H78: besoin non satisfait | I78: 0.256 | J78: 0.2456666667 | K78: 0.2353333333 | L78: 0.225 | M78: 0.2146666667 | N78: 0.2043333333 | O78: 0.194 | P78: 0.1836666667 | Q78: 0.1733333333 | R78: 0.163 | S78: 2.095
H79: Rapport coût-bénéfice
H80: Nombre total d’utilisatrices de PF | I80: 302892.6246 | J80: 353374.7287 | K80: 403856.8328 | L80: 454338.9368 | M80: 504821.0409 | N80: 555303.145 | O80: 555303.145 | P80: 656267.3532 | Q80: 706749.4573 | R80: 757231.5614 | S80: 5250138.826
H81: Utilisateurs du préservatif | I81: 12115.70498 | J81: 14134.98915 | K81: 16154.27331 | L81: 18173.55747 | M81: 20192.84164 | N81: 22212.1258 | O81: 22212.1258 | P81: 26250.69413 | Q81: 28269.97829 | R81: 30289.26246 | S81: 210005.553
H82: Utilisatrices des injectables | I82: 144176.8893 | J82: 168206.3708 | K82: 192235.8524 | L82: 216265.3339 | M82: 240294.8155 | N82: 264324.297 | O82: 264324.297 | P82: 312383.2601 | Q82: 336412.7417 | R82: 360442.2232 | S82: 2499066.081
H83: Utilisatrices de la pilule | I83: 47857.03468 | J83: 55833.20713 | K83: 63809.37957 | L83: 71785.55202 | M83: 79761.72447 | N83: 87737.89692 | O83: 87737.89692 | P83: 103690.2418 | Q83: 111666.4143 | R83: 119642.5867 | S83: 829521.9345
H84: Utilisateurs de la stérilisation masculine | I84: 0 | J84: 0 | K84: 0 | L84: 0 | M84: 0 | N84: 0 | O84: 0 | P84: 0 | Q84: 0 | R84: 0 | S84: 0
H85: Utilisatrices de la stérilisation féminine | I85: 31803.72558 | J85: 37104.34651 | K85: 42404.96744 | L85: 47705.58837 | M85: 53006.2093 | N85: 58306.83023 | O85: 58306.83023 | P85: 68908.07209 | Q85: 74208.69302 | R85: 79509.31395 | S85: 551264.5767
H86: Utilisatrices du DIU | I86: 10601.24186 | J86: 12368.1155 | K86: 14134.98915 | L86: 15901.86279 | M86: 17668.73643 | N86: 19435.61008 | O86: 19435.61008 | P86: 22969.35736 | Q86: 24736.23101 | R86: 26503.10465 | S86: 183754.8589
H87: Utilisatrices des implants | I87: 12721.49023 | J87: 14841.7386 | K87: 16961.98698 | L87: 19082.23535 | M87: 21202.48372 | N87: 23322.73209 | O87: 23322.73209 | P87: 27563.22884 | Q87: 29683.47721 | R87: 31803.72558 | S87: 220505.8307
H88: Utilisatrices de la méthode des jours fixes (MJF) | I88: 0 | J88: 0 | K88: 0 | L88: 0 | M88: 0 | N88: 0 | O88: 0 | P88: 0 | Q88: 0 | R88: 0 | S88: 0
H89: Utilisatrices d'autres méthodes modernes | I89: 3331.81887 | J89: 3887.122015 | K89: 4442.42516 | L89: 4997.728305 | M89: 5553.03145 | N89: 6108.334595 | O89: 6108.334595 | P89: 7218.940885 | Q89: 7774.24403 | R89: 8329.547176 | S89: 57751.52708
H90: Utilisatrices des méthodes traditionnelles | I90: 40284.71907 | J90: 46998.83891 | K90: 53712.95876 | L90: 60427.0786 | M90: 67141.19845 | N90: 73855.31829 | O90: 73855.31829 | P90: 87283.55798 | Q90: 93997.67782 | R90: 100711.7977 | S90: 698268.4638
H91: Acceptants de la stérilisation masculine* | I91: 0 | J91: 0 | K91: 0 | L91: 0 | M91: 0 | N91: 0 | O91: 0 | P91: 0 | Q91: 0 | R91: 0 | S91: 0
H92: Acceptantes de la stérilisation féminine* | I92: 121598.8423 | J92: 121598.8423 | K92: 121598.8423 | L92: 121598.8423 | M92: 121598.8423 | N92: 121598.8423 | O92: 121598.8423 | P92: 121598.8423 | Q92: 121598.8423 | R92: 121598.8423 | S92: 1215988.423
H93: Acceptantes du DIU* | I93: 29623.29851 | J93: 29623.29851 | K93: 29623.29851 | L93: 29623.29851 | M93: 29623.29851 | N93: 29623.29851 | O93: 29623.29851 | P93: 29623.29851 | Q93: 29623.29851 | R93: 29623.29851
H94: Acceptantes des implants* | I94: 44815.38186 | J94: 44815.38186 | K94: 44815.38186 | L94: 44815.38186 | M94: 44815.38186 | N94: 44815.38186 | O94: 44815.38186 | P94: 44815.38186 | Q94: 44815.38186 | R94: 44815.38186
H95: Acceptantes de la MJF | I95: 0 | J95: 0 | K95: 0 | L95: 0 | M95: 0 | N95: 0 | O95: 0 | P95: 0 | Q95: 0 | R95: 0 | S95: 0
H96: * Les résultats des acceptants sont exprimés comme étant le nombre annuel moyen d'acceptants sur la période de l'analyse

Sheet Budget_Comparison
C2: 0
D3: Différence cumulative comparée à
D4: Différence en % comparée à
E9: =E10 -> Usual | G9: =G10 -> Scen2 | I9: =I10 -> Scen3 | K9: =D3 & inUsualName -> Différence cumulative comparée à Usual | O9: =D4 &inUsualName -> Différence en % comparée àUsual
E10: =inUsualName -> Usual | G10: =inScen1Name -> Scen2 | I10: =inScen2Name -> Scen3 | K10: =inScen1Name -> Scen2 | M10: =inScen2Name -> Scen3 | O10: =inScen1Name -> Scen2 | Q10: =inScen2Name -> Scen3
D11: Grossesses non-désirées évitées | E11: =Budget_Summary!S11 -> 830904.5131 | G11: =Budget_Summary!S40 -> 989699.5978 | I11: =Budget_Summary!S69 -> 1152187.591 | K11: =IFERROR(G11-E11,"") -> 158795.0847 | M11: =IFERROR(I11-E11,"") -> 321283.0784 | O11: =IFERROR(K11/E11,"") -> 0.1911111111 | Q11: =IFERROR(M11/E11,"") -> 0.3866666667
D12: Nombre de naissances vivantes évitées | E12: =Budget_Summary!S12 -> 453098.9712 | G12: =Budget_Summary!S41 -> 539691.219 | I12: =Budget_Summary!S70 -> 628297.2401 | K12: =IFERROR(G12-E12,"") -> 86592.24783 | M12: =IFERROR(I12-E12,"") -> 175198.2689 | O12: 0.1911111111 | Q12: =IFERROR(M12/E12,"") -> 0.3866666667
D13: Avortements évités | E13: =Budget_Summary!S13 -> 257580.3991 | G13: =Budget_Summary!S42 -> 306806.8753 | I13: =Budget_Summary!S71 -> 357178.1534 | K13: 49226.47626 | M13: 99597.7543 | O13: 0.1911111111 | Q13: 0.3866666667
D14: Avortements à risque évités | E14: =Budget_Summary!S14 -> 246659.5048 | G14: =Budget_Summary!S43 -> 293798.8769 | I14: =Budget_Summary!S72 -> 342034.5134 | K14: 47139.37203 | M14: 95375.00854 | O14: 0.1911111111 | Q14: 0.3866666667
D15: Décès maternels évités | E15: =Budget_Summary!S15 -> 2296.152311 | G15: =Budget_Summary!S44 -> 2706.551538 | I15: =Budget_Summary!S73 -> 3126.650492 | K15: 410.3992268 | M15: 830.4981807 | O15: 0.1787334511 | Q15: 0.3616912418
D16: Décès infantils évités | E16: =Budget_Summary!S16 -> 13049.94029 | G16: =Budget_Summary!S45 -> 15543.92888 | I16: =Budget_Summary!S74 -> 18095.91721 | K16: 2493.98859 | M16: 5045.976914 | O16: 0.1911111111 | Q16: 0.3866666667
D17: AVCI évitées | E17: =Budget_Summary!S17 -> 124642.3485 | G17: =Budget_Summary!S46 -> 148285.8225 | I17: =Budget_Summary!S75 -> 172480.1139 | K17: 23643.47401 | M17: 47837.76539 | O17: 0.1896905369 | Q17: 0.383800257
D18: Coûts de soins de santé maternelle et infantile sauvés | E18: =Budget_Summary!S18 -> 31657986.34 | G18: =Budget_Summary!S47 -> 37708179.28 | I18: =Budget_Summary!S76 -> 43899074.39 | K18: 6050192.944 | M18: 12241088.05 | O18: 0.1911111111 | Q18: 0.3866666667
D19: TPC | E19: =Budget_Summary!S19 -> 0.0553001336 | G19: =Budget_Summary!S48 -> 0.06541150407 | I19: =Budget_Summary!S77 -> 0.07575934321 | K19: 0.01011137047 | M19: 0.02045920961 | O19: 0.1828453172 | Q19: 0.3699667302
D20: besoin non satisfait | E20: =Budget_Summary!S20 -> 2.095 | G20: =Budget_Summary!S49 -> 2.095 | I20: =Budget_Summary!S78 -> 2.095 | K20: 0 | M20: 0 | O20: 0 | Q20: 0
D21: Rapport coût-bénéfice | E21: =Budget_Summary!S21 ->  | G21: =Budget_Summary!S50 ->  | I21: =Budget_Summary!S79 -> 
D22: Total user-years | E22: =Budget_Summary!S22 -> 3786157.807 | G22: =Budget_Summary!S51 -> 4509734.632 | I22: =Budget_Summary!S80 -> 5250138.826 | K22: 723576.8253 | M22: 1463981.019 | O22: 0.1911111111 | Q22: 0.3866666667
D23: Condom user-years | E23: =Budget_Summary!S23 -> 151446.3123 | G23: =Budget_Summary!S52 -> 180389.3853 | I23: =Budget_Summary!S81 -> 210005.553 | K23: 28943.07301 | M23: 58559.24075 | O23: 0.1911111111 | Q23: 0.3866666667
D24: Injectible user-years | E24: =Budget_Summary!S24 -> 1802211.116 | G24: =Budget_Summary!S53 -> 2146633.685 | I24: =Budget_Summary!S82 -> 2499066.081 | K24: 344422.5689 | M24: 696854.9649 | O24: 0.1911111111 | Q24: 0.3866666667
D25: Pill user-years | E25: =Budget_Summary!S25 -> 598212.9335 | G25: =Budget_Summary!S54 -> 712538.0719 | I25: =Budget_Summary!S83 -> 829521.9345 | K25: 114325.1384 | M25: 231309.001 | O25: 0.1911111111 | Q25: 0.3866666667
D26: Male sterilization user-years | E26: =Budget_Summary!S26 -> 0 | G26: =Budget_Summary!S55 -> 0 | I26: =Budget_Summary!S84 -> 0 | K26: 0 | M26: 0
D27: Female sterilization user-years | E27: =Budget_Summary!S27 -> 397546.5697 | G27: =Budget_Summary!S56 -> 473522.1364 | I27: =Budget_Summary!S85 -> 551264.5767 | K27: 75975.56666 | M27: 153718.007 | O27: 0.1911111111 | Q27: 0.3866666667
D28: IUD user-years | E28: =Budget_Summary!S28 -> 132515.5232 | G28: =Budget_Summary!S57 -> 157840.7121 | I28: =Budget_Summary!S86 -> 183754.8589 | K28: 25325.18889 | M28: 51239.33566 | O28: 0.1911111111 | Q28: 0.3866666667
D29: Implant user-years | E29: =Budget_Summary!S29 -> 159018.6279 | G29: =Budget_Summary!S58 -> 189408.8546 | I29: =Budget_Summary!S87 -> 220505.8307 | K29: 30390.22666 | M29: 61487.20279 | O29: 0.1911111111 | Q29: 0.3866666667
D30: Standard Days Method (SDM) user-years | E30: =Budget_Summary!S30 -> 0 | G30: =Budget_Summary!S59 -> 0 | I30: =Budget_Summary!S88 -> 0 | K30: 0 | M30: 0
D31: Other modern user-years | E31: =Budget_Summary!S31 -> 41647.73588 | G31: =Budget_Summary!S60 -> 49607.08096 | I31: =Budget_Summary!S89 -> 57751.52708 | K31: 7959.345079 | M31: 16103.79121 | O31: 0.1911111111 | Q31: 0.3866666667
D32: All traditional user-years | E32: =Budget_Summary!S32 -> 503558.9883 | G32: =Budget_Summary!S61 -> 599794.7061 | I32: =Budget_Summary!S90 -> 698268.4638 | K32: 96235.71777 | M32: 194709.4755 | O32: 0.1911111111 | Q32: 0.3866666667
D33: Acceptants de la stérilisation masculine* | E33: =Budget_Summary!S33 -> 0 | G33: =Budget_Summary!S62 -> 0 | I33: =Budget_Summary!S91 -> 0 | K33: 0 | M33: 0
D34: Acceptantes de la stérilisation féminine* | E34: =Budget_Summary!S34 -> 1215988.423 | G34: =Budget_Summary!S63 -> 1215988.423 | I34: =Budget_Summary!S92 -> 1215988.423 | K34: 0 | M34: 0 | O34: 0 | Q34: 0
D35: Acceptantes du DIU* | E35: =Budget_Summary!S35 -> 0 | G35: =Budget_Summary!S64 -> 0 | I35: =Budget_Summary!S93 -> 0 | K35: =IFERROR(G35-E35,"") -> 0 | M35: =IFERROR(I35-E35,"") -> 0 | O35: =IFERROR(K35/E35,"") -> 
D36: Acceptantes des implants* | E36: =Budget_Summary!S36 -> 0 | G36: =Budget_Summary!S65 -> 0 | I36: =Budget_Summary!S94 -> 0 | K36: =IFERROR(G36-E36,"") -> 0 | M36: =IFERROR(I36-E36,"") -> 0 | O36: =IFERROR(K36/E36,"") -> 
D37: Acceptantes de la MJF | E37: =Budget_Summary!S37 -> 0 | G37: =Budget_Summary!S66 -> 0 | I37: =Budget_Summary!S95 -> 0 | K37: =IFERROR(G37-E37,"") -> 0 | M37: =IFERROR(I37-E37,"") -> 0 | O37: =IFERROR(K37/E37,"") -> 
D38: * Les résultats des acceptants sont exprimés comme étant le nombre annuel moyen d'acceptants sur la période de l'analyse

Sheet Budget_ICER
C2: 0
D20: Sorties | E20: besoin non satisfait
E21: Programmes | G21: Coûts de PF | H21: Sorties | I21: Incremental Costs | K21: Différence dans résultat X | N21: RCED
E22: =Budget_Indicator!D23 -> Usual | G22: =Budget_Indicator!T32 -> 25000000 | H22: =INDEX(Budget_Comparison!$E$11:$J$37,MATCH($E$20,Budget_Comparison!$D$11:$D$37,0),1) -> 2.095 | I22: - | K22: - | N22: -
E23: =Budget_Indicator!D24 -> Scen2 | G23: =Budget_Indicator!T33 -> 30000000 | H23: =INDEX(Budget_Comparison!$E$11:$J$37,MATCH($E$20,Budget_Comparison!$D$11:$D$37,0),3) -> 2.095 | I23: =G23-G22 -> 5000000 | K23: =H23-H22 -> 0 | N23: =IFERROR(I23/K23,0) -> 0
E24: =Budget_Indicator!D25 -> Scen3 | G24: =Budget_Indicator!T34 -> 35000000 | H24: =INDEX(Budget_Comparison!$E$11:$J$37,MATCH($E$20,Budget_Comparison!$D$11:$D$37,0),5) -> 2.095 | I24: =G24-G22 -> 10000000 | K24: =H24-H22 -> 0 | N24: =IFERROR(I24/K24,0) -> 0
E25: * Les résultats des acceptants sont exprimés comme étant le nombre annuel moyen d'acceptants sur la période de l'analyse

Sheet Calculations
C1: CPR: | E1: Unmet need: | G1: Budget Constraint: | I1: All:
B2: Scenario | C2: Usual | D2: Usual | E2: Usual | F2: Usual | G2: Usual | H2: Usual | I2: Usual | J2: Usual | K2: Usual | L2: Usual | N2: Scen1 | O2: Scen1 | P2: Scen1 | Q2: Scen1 | R2: Scen1 | S2: Scen1 | T2: Scen1 | U2: Scen1 | V2: Scen1 | W2: Scen1 | Y2: Scen2 | Z2: Scen2 | AA2: Scen2 | AB2: Scen2 | AC2: Scen2 | AD2: Scen2 | AE2: Scen2 | AF2: Scen2 | AG2: Scen2 | AH2: Scen2
C3: =INDIRECT("in" & C$2 &"Yr1") -> 2011 | D3: =IF(C3="","",IF(C3+1<=ConEndYr,C3+1,"")) -> 2012 | E3: 2013 | F3: 2014 | G3: 2015 | H3: 2016 | I3: 2017 | J3: 2018 | K3: 2019 | L3: 2020 | N3: =C3 -> 2011 | O3: =D3 -> 2012 | P3: 2013 | Q3: 2014 | R3: 2015 | S3: 2016 | T3: 2017 | U3: 2018 | V3: 2019 | W3: 2020 | Y3: =N3 -> 2011 | Z3: 2012 | AA3: 2013 | AB3: 2014 | AC3: 2015 | AD3: 2016 | AE3: 2017 | AF3: 2018 | AG3: 2019 | AH3: 2020
B4: Women Ages 15 to 49 | C4: =IF(conZ1=2,INDIRECT("in"&C$2&"40"),INDIRECT("in"&C$2&"40")*INDIRECT("in"&C$2&"1")) -> 5935042.025 | D4: =IF(conZ1=2,INDIRECT("in"&D$2&"41"),INDIRECT("in"&D$2&"41")*INDIRECT("in"&D$2&"1")) -> 6131886.469 | E4: =IF(conZ1=2,INDIRECT("in"&E$2&"42"),INDIRECT("in"&E$2&"42")*INDIRECT("in"&E$2&"1")) -> 6328730.913 | F4: =IF(conZ1=2,INDIRECT("in"&F$2&"43"),INDIRECT("in"&F$2&"43")*INDIRECT("in"&F$2&"1")) -> 6525575.357 | G4: =IF(conZ1=2,INDIRECT("in"&G$2&"44"),INDIRECT("in"&G$2&"44")*INDIRECT("in"&G$2&"1")) -> 6722419.801 | H4: =IF(conZ1=2,INDIRECT("in"&H$2&"45"),INDIRECT("in"&H$2&"45")*INDIRECT("in"&H$2&"1")) -> 6919264.244 | I4: =IF(conZ1=2,INDIRECT("in"&I$2&"46"),INDIRECT("in"&I$2&"46")*INDIRECT("in"&I$2&"1")) -> 7116108.688 | J4: =IF(conZ1=2,INDIRECT("in"&J$2&"47"),INDIRECT("in"&J$2&"47")*INDIRECT("in"&J$2&"1")) -> 7312953.132 | K4: =IF(conZ1=2,INDIRECT("in"&K$2&"48"),INDIRECT("in"&K$2&"48")*INDIRECT("in"&K$2&"1")) -> 7509797.576 | L4: =IF(conZ1=2,INDIRECT("in"&L$2&"49"),INDIRECT("in"&L$2&"49")*INDIRECT("in"&L$2&"1")) -> 7706642.02 | N4: =IF(conZ1=2,INDIRECT("in"&N$2&"40"),INDIRECT("in"&N$2&"40")*INDIRECT("in"&N$2&"1")) -> 5935042.025 | O4: =IF(conZ1=2,INDIRECT("in"&O$2&"41"),INDIRECT("in"&O$2&"41")*INDIRECT("in"&O$2&"1")) -> 6131886.469 | P4: =IF(conZ1=2,INDIRECT("in"&P$2&"42"),INDIRECT("in"&P$2&"42")*INDIRECT("in"&P$2&"1")) -> 6328730.913 | Q4: =IF(conZ1=2,INDIRECT("in"&Q$2&"43"),INDIRECT("in"&Q$2&"43")*INDIRECT("in"&Q$2&"1")) -> 6525575.357 | R4: =IF(conZ1=2,INDIRECT("in"&R$2&"44"),INDIRECT("in"&R$2&"44")*INDIRECT("in"&R$2&"1")) -> 6722419.801 | S4: =IF(conZ1=2,INDIRECT("in"&S$2&"45"),INDIRECT("in"&S$2&"45")*INDIRECT("in"&S$2&"1")) -> 6919264.244 | T4: =IF(conZ1=2,INDIRECT("in"&T$2&"46"),INDIRECT("in"&T$2&"46")*INDIRECT("in"&T$2&"1")) -> 7116108.688 | U4: =IF(conZ1=2,INDIRECT("in"&U$2&"47"),INDIRECT("in"&U$2&"47")*INDIRECT("in"&U$2&"1")) -> 7312953.132 | V4: =IF(conZ1=2,INDIRECT("in"&V$2&"48"),INDIRECT("in"&V$2&"48")*INDIRECT("in"&V$2&"1")) -> 7509797.576 | W4: =IF(conZ1=2,INDIRECT("in"&W$2&"49"),INDIRECT("in"&W$2&"49")*INDIRECT("in"&W$2&"1")) -> 7706642.02 | Y4: =IF(conZ1=2,INDIRECT("in"&Y$2&"40"),INDIRECT("in"&Y$2&"40")*INDIRECT("in"&Y$2&"1")) -> 5935042.025 | Z4: =IF(conZ1=2,INDIRECT("in"&Z$2&"41"),INDIRECT("in"&Z$2&"41")*INDIRECT("in"&Z$2&"1")) -> 6131886.469 | AA4: =IF(conZ1=2,INDIRECT("in"&AA$2&"42"),INDIRECT("in"&AA$2&"42")*INDIRECT("in"&AA$2&"1")) -> 6328730.913 | AB4: =IF(conZ1=2,INDIRECT("in"&AB$2&"43"),INDIRECT("in"&AB$2&"43")*INDIRECT("in"&AB$2&"1")) -> 6525575.357 | AC4: =IF(conZ1=2,INDIRECT("in"&AC$2&"44"),INDIRECT("in"&AC$2&"44")*INDIRECT("in"&AC$2&"1")) -> 6722419.801 | AD4: =IF(conZ1=2,INDIRECT("in"&AD$2&"45"),INDIRECT("in"&AD$2&"45")*INDIRECT("in"&AD$2&"1")) -> 6919264.244 | AE4: =IF(conZ1=2,INDIRECT("in"&AE$2&"46"),INDIRECT("in"&AE$2&"46")*INDIRECT("in"&AE$2&"1")) -> 7116108.688 | AF4: =IF(conZ1=2,INDIRECT("in"&AF$2&"47"),INDIRECT("in"&AF$2&"47")*INDIRECT("in"&AF$2&"1")) -> 7312953.132 | AG4: =IF(conZ1=2,INDIRECT("in"&AG$2&"48"),INDIRECT("in"&AG$2&"48")*INDIRECT("in"&AG$2&"1")) -> 7509797.576 | AH4: =IF(conZ1=2,INDIRECT("in"&AH$2&"49"),INDIRECT("in"&AH$2&"49")*INDIRECT("in"&AH$2&"1")) -> 7706642.02
A5: Diverses méthodes
B6: Préservatif masculin | C6: =INDIRECT("'methodmix_calc'!"&ADDRESS(ROW(mmUsers1),COLUMN(INDIRECT("mm"& C$2 &"Yr1")))) -> 0.04 | D6: =INDIRECT("'methodmix_calc'!"&ADDRESS(ROW(mmUsers1),COLUMN(INDIRECT("mm"& D$2 &"Yr2")))) -> 0.04 | E6: =INDIRECT("'methodmix_calc'!"&ADDRESS(ROW(mmUsers1),COLUMN(INDIRECT("mm"& E$2 &"Yr3")))) -> 0.04 | F6: =INDIRECT("'methodmix_calc'!"&ADDRESS(ROW(mmUsers1),COLUMN(INDIRECT("mm"& F$2 &"Yr4")))) -> 0.04 | G6: =INDIRECT("'methodmix_calc'!"&ADDRESS(ROW(mmUsers1),COLUMN(INDIRECT("mm"& G$2 &"Yr5")))) -> 0.04 | H6: =INDIRECT("'methodmix_calc'!"&ADDRESS(ROW(mmUsers1),COLUMN(INDIRECT("mm"& H$2 &"Yr6")))) -> 0.04 | I6: =INDIRECT("'methodmix_calc'!"&ADDRESS(ROW(mmUsers1),COLUMN(INDIRECT("mm"& I$2 &"Yr7")))) -> 0.04 | J6: =INDIRECT("'methodmix_calc'!"&ADDRESS(ROW(mmUsers1),COLUMN(INDIRECT("mm"& J$2 &"Yr8")))) -> 0.04 | K6: =INDIRECT("'methodmix_calc'!"&ADDRESS(ROW(mmUsers1),COLUMN(INDIRECT("mm"& K$2 &"Yr9")))) -> 0.04 | L6: =INDIRECT("'methodmix_calc'!"&ADDRESS(ROW(mmUsers1),COLUMN(INDIRECT("mm"& L$2 &"Yr10")))) -> 0.04 | N6: =INDIRECT("'methodmix_calc'!"&ADDRESS(ROW(mmUsers1),COLUMN(INDIRECT("mm"& N$2 &"Yr1")))) -> 0.04 | O6: =INDIRECT("'methodmix_calc'!"&ADDRESS(ROW(mmUsers1),COLUMN(INDIRECT("mm"& O$2 &"Yr2")))) -> 0.04 | P6: =INDIRECT("'methodmix_calc'!"&ADDRESS(ROW(mmUsers1),COLUMN(INDIRECT("mm"& P$2 &"Yr3")))) -> 0.04 | Q6: =INDIRECT("'methodmix_calc'!"&ADDRESS(ROW(mmUsers1),COLUMN(INDIRECT("mm"& Q$2 &"Yr4")))) -> 0.04 | R6: =INDIRECT("'methodmix_calc'!"&ADDRESS(ROW(mmUsers1),COLUMN(INDIRECT("mm"& R$2 &"Yr5")))) -> 0.04 | S6: =INDIRECT("'methodmix_calc'!"&ADDRESS(ROW(mmUsers1),COLUMN(INDIRECT("mm"& S$2 &"Yr6")))) -> 0.04 | T6: =INDIRECT("'methodmix_calc'!"&ADDRESS(ROW(mmUsers1),COLUMN(INDIRECT("mm"& T$2 &"Yr7")))) -> 0.04 | U6: =INDIRECT("'methodmix_calc'!"&ADDRESS(ROW(mmUsers1),COLUMN(INDIRECT("mm"& U$2 &"Yr8")))) -> 0.04 | V6: =INDIRECT("'methodmix_calc'!"&ADDRESS(ROW(mmUsers1),COLUMN(INDIRECT("mm"& V$2 &"Yr9")))) -> 0.04 | W6: =INDIRECT("'methodmix_calc'!"&ADDRESS(ROW(mmUsers1),COLUMN(INDIRECT("mm"& W$2 &"Yr10")))) -> 0.04 | Y6: =INDIRECT("'methodmix_calc'!"&ADDRESS(ROW(mmUsers1),COLUMN(INDIRECT("mm"& Y$2 &"Yr1")))) -> 0.04 | Z6: =INDIRECT("'methodmix_calc'!"&ADDRESS(ROW(mmUsers1),COLUMN(INDIRECT("mm"& Z$2 &"Yr2")))) -> 0.04 | AA6: =INDIRECT("'methodmix_calc'!"&ADDRESS(ROW(mmUsers1),COLUMN(INDIRECT("mm"& AA$2 &"Yr3")))) -> 0.04 | AB6: =INDIRECT("'methodmix_calc'!"&ADDRESS(ROW(mmUsers1),COLUMN(INDIRECT("mm"& AB$2 &"Yr4")))) -> 0.04 | AC6: =INDIRECT("'methodmix_calc'!"&ADDRESS(ROW(mmUsers1),COLUMN(INDIRECT("mm"& AC$2 &"Yr5")))) -> 0.04 | AD6: =INDIRECT("'methodmix_calc'!"&ADDRESS(ROW(mmUsers1),COLUMN(INDIRECT("mm"& AD$2 &"Yr6")))) -> 0.04 | AE6: =INDIRECT("'methodmix_calc'!"&ADDRESS(ROW(mmUsers1),COLUMN(INDIRECT("mm"& AE$2 &"Yr7")))) -> 0.04 | AF6: =INDIRECT("'methodmix_calc'!"&ADDRESS(ROW(mmUsers1),COLUMN(INDIRECT("mm"& AF$2 &"Yr8")))) -> 0.04 | AG6: =INDIRECT("'methodmix_calc'!"&ADDRESS(ROW(mmUsers1),COLUMN(INDIRECT("mm"& AG$2 &"Yr9")))) -> 0.04 | AH6: =INDIRECT("'methodmix_calc'!"&ADDRESS(ROW(mmUsers1),COLUMN(INDIRECT("mm"& AH$2 &"Yr10")))) -> 0.04
B7: Contraceptif injectable | C7: =INDIRECT("'methodmix_calc'!"&ADDRESS(ROW(mmUsers2),COLUMN(INDIRECT("mm"& C$2 &"Yr1")))) -> 0.476 | D7: =INDIRECT("'methodmix_calc'!"&ADDRESS(ROW(mmUsers2),COLUMN(INDIRECT("mm"& D$2 &"Yr2")))) -> 0.476 | E7: =INDIRECT("'methodmix_calc'!"&ADDRESS(ROW(mmUsers2),COLUMN(INDIRECT("mm"& E$2 &"Yr3")))) -> 0.476 | F7: =INDIRECT("'methodmix_calc'!"&ADDRESS(ROW(mmUsers2),COLUMN(INDIRECT("mm"& F$2 &"Yr4")))) -> 0.476 | G7: =INDIRECT("'methodmix_calc'!"&ADDRESS(ROW(mmUsers2),COLUMN(INDIRECT("mm"& G$2 &"Yr5")))) -> 0.476 | H7: =INDIRECT("'methodmix_calc'!"&ADDRESS(ROW(mmUsers2),COLUMN(INDIRECT("mm"& H$2 &"Yr6")))) -> 0.476 | I7: =INDIRECT("'methodmix_calc'!"&ADDRESS(ROW(mmUsers2),COLUMN(INDIRECT("mm"& I$2 &"Yr7")))) -> 0.476 | J7: =INDIRECT("'methodmix_calc'!"&ADDRESS(ROW(mmUsers2),COLUMN(INDIRECT("mm"& J$2 &"Yr8")))) -> 0.476 | K7: =INDIRECT("'methodmix_calc'!"&ADDRESS(ROW(mmUsers2),COLUMN(INDIRECT("mm"& K$2 &"Yr9")))) -> 0.476 | L7: =INDIRECT("'methodmix_calc'!"&ADDRESS(ROW(mmUsers2),COLUMN(INDIRECT("mm"& L$2 &"Yr10")))) -> 0.476 | N7: =INDIRECT("'methodmix_calc'!"&ADDRESS(ROW(mmUsers2),COLUMN(INDIRECT("mm"& N$2 &"Yr1")))) -> 0.476 | O7: =INDIRECT("'methodmix_calc'!"&ADDRESS(ROW(mmUsers2),COLUMN(INDIRECT("mm"& O$2 &"Yr2")))) -> 0.476 | P7: =INDIRECT("'methodmix_calc'!"&ADDRESS(ROW(mmUsers2),COLUMN(INDIRECT("mm"& P$2 &"Yr3")))) -> 0.476 | Q7: =INDIRECT("'methodmix_calc'!"&ADDRESS(ROW(mmUsers2),COLUMN(INDIRECT("mm"& Q$2 &"Yr4")))) -> 0.476 | R7: =INDIRECT("'methodmix_calc'!"&ADDRESS(ROW(mmUsers2),COLUMN(INDIRECT("mm"& R$2 &"Yr5")))) -> 0.476 | S7: =INDIRECT("'methodmix_calc'!"&ADDRESS(ROW(mmUsers2),COLUMN(INDIRECT("mm"& S$2 &"Yr6")))) -> 0.476 | T7: =INDIRECT("'methodmix_calc'!"&ADDRESS(ROW(mmUsers2),COLUMN(INDIRECT("mm"& T$2 &"Yr7")))) -> 0.476 | U7: =INDIRECT("'methodmix_calc'!"&ADDRESS(ROW(mmUsers2),COLUMN(INDIRECT("mm"& U$2 &"Yr8")))) -> 0.476 | V7: =INDIRECT("'methodmix_calc'!"&ADDRESS(ROW(mmUsers2),COLUMN(INDIRECT("mm"& V$2 &"Yr9")))) -> 0.476 | W7: =INDIRECT("'methodmix_calc'!"&ADDRESS(ROW(mmUsers2),COLUMN(INDIRECT("mm"& W$2 &"Yr10")))) -> 0.476 | Y7: =INDIRECT("'methodmix_calc'!"&ADDRESS(ROW(mmUsers2),COLUMN(INDIRECT("mm"& Y$2 &"Yr1")))) -> 0.476 | Z7: =INDIRECT("'methodmix_calc'!"&ADDRESS(ROW(mmUsers2),COLUMN(INDIRECT("mm"& Z$2 &"Yr2")))) -> 0.476 | AA7: =INDIRECT("'methodmix_calc'!"&ADDRESS(ROW(mmUsers2),COLUMN(INDIRECT("mm"& AA$2 &"Yr3")))) -> 0.476 | AB7: =INDIRECT("'methodmix_calc'!"&ADDRESS(ROW(mmUsers2),COLUMN(INDIRECT("mm"& AB$2 &"Yr4")))) -> 0.476 | AC7: =INDIRECT("'methodmix_calc'!"&ADDRESS(ROW(mmUsers2),COLUMN(INDIRECT("mm"& AC$2 &"Yr5")))) -> 0.476 | AD7: =INDIRECT("'methodmix_calc'!"&ADDRESS(ROW(mmUsers2),COLUMN(INDIRECT("mm"& AD$2 &"Yr6")))) -> 0.476 | AE7: =INDIRECT("'methodmix_calc'!"&ADDRESS(ROW(mmUsers2),COLUMN(INDIRECT("mm"& AE$2 &"Yr7")))) -> 0.476 | AF7: =INDIRECT("'methodmix_calc'!"&ADDRESS(ROW(mmUsers2),COLUMN(INDIRECT("mm"& AF$2 &"Yr8")))) -> 0.476 | AG7: =INDIRECT("'methodmix_calc'!"&ADDRESS(ROW(mmUsers2),COLUMN(INDIRECT("mm"& AG$2 &"Yr9")))) -> 0.476 | AH7: =INDIRECT("'methodmix_calc'!"&ADDRESS(ROW(mmUsers2),COLUMN(INDIRECT("mm"& AH$2 &"Yr10")))) -> 0.476
B8: Pilule | C8: =INDIRECT("'methodmix_calc'!"&ADDRESS(ROW(mmUsers3),COLUMN(INDIRECT("mm"& C$2 &"Yr1")))) -> 0.158 | D8: =INDIRECT("'methodmix_calc'!"&ADDRESS(ROW(mmUsers3),COLUMN(INDIRECT("mm"& D$2 &"Yr2")))) -> 0.158 | E8: =INDIRECT("'methodmix_calc'!"&ADDRESS(ROW(mmUsers3),COLUMN(INDIRECT("mm"& E$2 &"Yr3")))) -> 0.158 | F8: =INDIRECT("'methodmix_calc'!"&ADDRESS(ROW(mmUsers3),COLUMN(INDIRECT("mm"& F$2 &"Yr4")))) -> 0.158 | G8: =INDIRECT("'methodmix_calc'!"&ADDRESS(ROW(mmUsers3),COLUMN(INDIRECT("mm"& G$2 &"Yr5")))) -> 0.158 | H8: =INDIRECT("'methodmix_calc'!"&ADDRESS(ROW(mmUsers3),COLUMN(INDIRECT("mm"& H$2 &"Yr6")))) -> 0.158 | I8: =INDIRECT("'methodmix_calc'!"&ADDRESS(ROW(mmUsers3),COLUMN(INDIRECT("mm"& I$2 &"Yr7")))) -> 0.158 | J8: =INDIRECT("'methodmix_calc'!"&ADDRESS(ROW(mmUsers3),COLUMN(INDIRECT("mm"& J$2 &"Yr8")))) -> 0.158 | K8: =INDIRECT("'methodmix_calc'!"&ADDRESS(ROW(mmUsers3),COLUMN(INDIRECT("mm"& K$2 &"Yr9")))) -> 0.158 | L8: =INDIRECT("'methodmix_calc'!"&ADDRESS(ROW(mmUsers3),COLUMN(INDIRECT("mm"& L$2 &"Yr10")))) -> 0.158 | N8: =INDIRECT("'methodmix_calc'!"&ADDRESS(ROW(mmUsers3),COLUMN(INDIRECT("mm"& N$2 &"Yr1")))) -> 0.158 | O8: =INDIRECT("'methodmix_calc'!"&ADDRESS(ROW(mmUsers3),COLUMN(INDIRECT("mm"& O$2 &"Yr2")))) -> 0.158 | P8: =INDIRECT("'methodmix_calc'!"&ADDRESS(ROW(mmUsers3),COLUMN(INDIRECT("mm"& P$2 &"Yr3")))) -> 0.158 | Q8: =INDIRECT("'methodmix_calc'!"&ADDRESS(ROW(mmUsers3),COLUMN(INDIRECT("mm"& Q$2 &"Yr4")))) -> 0.158 | R8: =INDIRECT("'methodmix_calc'!"&ADDRESS(ROW(mmUsers3),COLUMN(INDIRECT("mm"& R$2 &"Yr5")))) -> 0.158 | S8: =INDIRECT("'methodmix_calc'!"&ADDRESS(ROW(mmUsers3),COLUMN(INDIRECT("mm"& S$2 &"Yr6")))) -> 0.158 | T8: =INDIRECT("'methodmix_calc'!"&ADDRESS(ROW(mmUsers3),COLUMN(INDIRECT("mm"& T$2 &"Yr7")))) -> 0.158 | U8: =INDIRECT("'methodmix_calc'!"&ADDRESS(ROW(mmUsers3),COLUMN(INDIRECT("mm"& U$2 &"Yr8")))) -> 0.158 | V8: =INDIRECT("'methodmix_calc'!"&ADDRESS(ROW(mmUsers3),COLUMN(INDIRECT("mm"& V$2 &"Yr9")))) -> 0.158 | W8: =INDIRECT("'methodmix_calc'!"&ADDRESS(ROW(mmUsers3),COLUMN(INDIRECT("mm"& W$2 &"Yr10")))) -> 0.158 | Y8: =INDIRECT("'methodmix_calc'!"&ADDRESS(ROW(mmUsers3),COLUMN(INDIRECT("mm"& Y$2 &"Yr1")))) -> 0.158 | Z8: =INDIRECT("'methodmix_calc'!"&ADDRESS(ROW(mmUsers3),COLUMN(INDIRECT("mm"& Z$2 &"Yr2")))) -> 0.158 | AA8: =INDIRECT("'methodmix_calc'!"&ADDRESS(ROW(mmUsers3),COLUMN(INDIRECT("mm"& AA$2 &"Yr3")))) -> 0.158 | AB8: =INDIRECT("'methodmix_calc'!"&ADDRESS(ROW(mmUsers3),COLUMN(INDIRECT("mm"& AB$2 &"Yr4")))) -> 0.158 | AC8: =INDIRECT("'methodmix_calc'!"&ADDRESS(ROW(mmUsers3),COLUMN(INDIRECT("mm"& AC$2 &"Yr5")))) -> 0.158 | AD8: =INDIRECT("'methodmix_calc'!"&ADDRESS(ROW(mmUsers3),COLUMN(INDIRECT("mm"& AD$2 &"Yr6")))) -> 0.158 | AE8: =INDIRECT("'methodmix_calc'!"&ADDRESS(ROW(mmUsers3),COLUMN(INDIRECT("mm"& AE$2 &"Yr7")))) -> 0.158 | AF8: =INDIRECT("'methodmix_calc'!"&ADDRESS(ROW(mmUsers3),COLUMN(INDIRECT("mm"& AF$2 &"Yr8")))) -> 0.158 | AG8: =INDIRECT("'methodmix_calc'!"&ADDRESS(ROW(mmUsers3),COLUMN(INDIRECT("mm"& AG$2 &"Yr9")))) -> 0.158 | AH8: =INDIRECT("'methodmix_calc'!"&ADDRESS(ROW(mmUsers3),COLUMN(INDIRECT("mm"& AH$2 &"Yr10")))) -> 0.158
B9: Stérilisation masculine | C9: =INDIRECT("'methodmix_calc'!"&ADDRESS(ROW(mmUsers4),COLUMN(INDIRECT("mm"& C$2 &"Yr1")))) -> 0 | D9: =INDIRECT("'methodmix_calc'!"&ADDRESS(ROW(mmUsers4),COLUMN(INDIRECT("mm"& D$2 &"Yr2")))) -> 0 | E9: =INDIRECT("'methodmix_calc'!"&ADDRESS(ROW(mmUsers4),COLUMN(INDIRECT("mm"& E$2 &"Yr3")))) -> 0 | F9: =INDIRECT("'methodmix_calc'!"&ADDRESS(ROW(mmUsers4),COLUMN(INDIRECT("mm"& F$2 &"Yr4")))) -> 0 | G9: =INDIRECT("'methodmix_calc'!"&ADDRESS(ROW(mmUsers4),COLUMN(INDIRECT("mm"& G$2 &"Yr5")))) -> 0 | H9: =INDIRECT("'methodmix_calc'!"&ADDRESS(ROW(mmUsers4),COLUMN(INDIRECT("mm"& H$2 &"Yr6")))) -> 0 | I9: =INDIRECT("'methodmix_calc'!"&ADDRESS(ROW(mmUsers4),COLUMN(INDIRECT("mm"& I$2 &"Yr7")))) -> 0 | J9: =INDIRECT("'methodmix_calc'!"&ADDRESS(ROW(mmUsers4),COLUMN(INDIRECT("mm"& J$2 &"Yr8")))) -> 0 | K9: =INDIRECT("'methodmix_calc'!"&ADDRESS(ROW(mmUsers4),COLUMN(INDIRECT("mm"& K$2 &"Yr9")))) -> 0 | L9: =INDIRECT("'methodmix_calc'!"&ADDRESS(ROW(mmUsers4),COLUMN(INDIRECT("mm"& L$2 &"Yr10")))) -> 0 | N9: =INDIRECT("'methodmix_calc'!"&ADDRESS(ROW(mmUsers4),COLUMN(INDIRECT("mm"& N$2 &"Yr1")))) -> 0 | O9: =INDIRECT("'methodmix_calc'!"&ADDRESS(ROW(mmUsers4),COLUMN(INDIRECT("mm"& O$2 &"Yr2")))) -> 0 | P9: =INDIRECT("'methodmix_calc'!"&ADDRESS(ROW(mmUsers4),COLUMN(INDIRECT("mm"& P$2 &"Yr3")))) -> 0 | Q9: =INDIRECT("'methodmix_calc'!"&ADDRESS(ROW(mmUsers4),COLUMN(INDIRECT("mm"& Q$2 &"Yr4")))) -> 0 | R9: =INDIRECT("'methodmix_calc'!"&ADDRESS(ROW(mmUsers4),COLUMN(INDIRECT("mm"& R$2 &"Yr5")))) -> 0 | S9: =INDIRECT("'methodmix_calc'!"&ADDRESS(ROW(mmUsers4),COLUMN(INDIRECT("mm"& S$2 &"Yr6")))) -> 0 | T9: =INDIRECT("'methodmix_calc'!"&ADDRESS(ROW(mmUsers4),COLUMN(INDIRECT("mm"& T$2 &"Yr7")))) -> 0 | U9: =INDIRECT("'methodmix_calc'!"&ADDRESS(ROW(mmUsers4),COLUMN(INDIRECT("mm"& U$2 &"Yr8")))) -> 0 | V9: =INDIRECT("'methodmix_calc'!"&ADDRESS(ROW(mmUsers4),COLUMN(INDIRECT("mm"& V$2 &"Yr9")))) -> 0 | W9: =INDIRECT("'methodmix_calc'!"&ADDRESS(ROW(mmUsers4),COLUMN(INDIRECT("mm"& W$2 &"Yr10")))) -> 0 | Y9: =INDIRECT("'methodmix_calc'!"&ADDRESS(ROW(mmUsers4),COLUMN(INDIRECT("mm"& Y$2 &"Yr1")))) -> 0 | Z9: =INDIRECT("'methodmix_calc'!"&ADDRESS(ROW(mmUsers4),COLUMN(INDIRECT("mm"& Z$2 &"Yr2")))) -> 0 | AA9: =INDIRECT("'methodmix_calc'!"&ADDRESS(ROW(mmUsers4),COLUMN(INDIRECT("mm"& AA$2 &"Yr3")))) -> 0 | AB9: =INDIRECT("'methodmix_calc'!"&ADDRESS(ROW(mmUsers4),COLUMN(INDIRECT("mm"& AB$2 &"Yr4")))) -> 0 | AC9: =INDIRECT("'methodmix_calc'!"&ADDRESS(ROW(mmUsers4),COLUMN(INDIRECT("mm"& AC$2 &"Yr5")))) -> 0 | AD9: =INDIRECT("'methodmix_calc'!"&ADDRESS(ROW(mmUsers4),COLUMN(INDIRECT("mm"& AD$2 &"Yr6")))) -> 0 | AE9: =INDIRECT("'methodmix_calc'!"&ADDRESS(ROW(mmUsers4),COLUMN(INDIRECT("mm"& AE$2 &"Yr7")))) -> 0 | AF9: =INDIRECT("'methodmix_calc'!"&ADDRESS(ROW(mmUsers4),COLUMN(INDIRECT("mm"& AF$2 &"Yr8")))) -> 0 | AG9: =INDIRECT("'methodmix_calc'!"&ADDRESS(ROW(mmUsers4),COLUMN(INDIRECT("mm"& AG$2 &"Yr9")))) -> 0 | AH9: =INDIRECT("'methodmix_calc'!"&ADDRESS(ROW(mmUsers4),COLUMN(INDIRECT("mm"& AH$2 &"Yr10")))) -> 0
B10: Stérilisation féminine | C10: =INDIRECT("'methodmix_calc'!"&ADDRESS(ROW(mmUsers5),COLUMN(INDIRECT("mm"& C$2 &"Yr1")))) -> 0.105 | D10: =INDIRECT("'methodmix_calc'!"&ADDRESS(ROW(mmUsers5),COLUMN(INDIRECT("mm"& D$2 &"Yr2")))) -> 0.105 | E10: =INDIRECT("'methodmix_calc'!"&ADDRESS(ROW(mmUsers5),COLUMN(INDIRECT("mm"& E$2 &"Yr3")))) -> 0.105 | F10: =INDIRECT("'methodmix_calc'!"&ADDRESS(ROW(mmUsers5),COLUMN(INDIRECT("mm"& F$2 &"Yr4")))) -> 0.105 | G10: =INDIRECT("'methodmix_calc'!"&ADDRESS(ROW(mmUsers5),COLUMN(INDIRECT("mm"& G$2 &"Yr5")))) -> 0.105 | H10: =INDIRECT("'methodmix_calc'!"&ADDRESS(ROW(mmUsers5),COLUMN(INDIRECT("mm"& H$2 &"Yr6")))) -> 0.105 | I10: =INDIRECT("'methodmix_calc'!"&ADDRESS(ROW(mmUsers5),COLUMN(INDIRECT("mm"& I$2 &"Yr7")))) -> 0.105 | J10: =INDIRECT("'methodmix_calc'!"&ADDRESS(ROW(mmUsers5),COLUMN(INDIRECT("mm"& J$2 &"Yr8")))) -> 0.105 | K10: =INDIRECT("'methodmix_calc'!"&ADDRESS(ROW(mmUsers5),COLUMN(INDIRECT("mm"& K$2 &"Yr9")))) -> 0.105 | L10: =INDIRECT("'methodmix_calc'!"&ADDRESS(ROW(mmUsers5),COLUMN(INDIRECT("mm"& L$2 &"Yr10")))) -> 0.105 | N10: =INDIRECT("'methodmix_calc'!"&ADDRESS(ROW(mmUsers5),COLUMN(INDIRECT("mm"& N$2 &"Yr1")))) -> 0.105 | O10: =INDIRECT("'methodmix_calc'!"&ADDRESS(ROW(mmUsers5),COLUMN(INDIRECT("mm"& O$2 &"Yr2")))) -> 0.105 | P10: =INDIRECT("'methodmix_calc'!"&ADDRESS(ROW(mmUsers5),COLUMN(INDIRECT("mm"& P$2 &"Yr3")))) -> 0.105 | Q10: =INDIRECT("'methodmix_calc'!"&ADDRESS(ROW(mmUsers5),COLUMN(INDIRECT("mm"& Q$2 &"Yr4")))) -> 0.105 | R10: =INDIRECT("'methodmix_calc'!"&ADDRESS(ROW(mmUsers5),COLUMN(INDIRECT("mm"& R$2 &"Yr5")))) -> 0.105 | S10: =INDIRECT("'methodmix_calc'!"&ADDRESS(ROW(mmUsers5),COLUMN(INDIRECT("mm"& S$2 &"Yr6")))) -> 0.105 | T10: =INDIRECT("'methodmix_calc'!"&ADDRESS(ROW(mmUsers5),COLUMN(INDIRECT("mm"& T$2 &"Yr7")))) -> 0.105 | U10: =INDIRECT("'methodmix_calc'!"&ADDRESS(ROW(mmUsers5),COLUMN(INDIRECT("mm"& U$2 &"Yr8")))) -> 0.105 | V10: =INDIRECT("'methodmix_calc'!"&ADDRESS(ROW(mmUsers5),COLUMN(INDIRECT("mm"& V$2 &"Yr9")))) -> 0.105 | W10: =INDIRECT("'methodmix_calc'!"&ADDRESS(ROW(mmUsers5),COLUMN(INDIRECT("mm"& W$2 &"Yr10")))) -> 0.105 | Y10: =INDIRECT("'methodmix_calc'!"&ADDRESS(ROW(mmUsers5),COLUMN(INDIRECT("mm"& Y$2 &"Yr1")))) -> 0.105 | Z10: =INDIRECT("'methodmix_calc'!"&ADDRESS(ROW(mmUsers5),COLUMN(INDIRECT("mm"& Z$2 &"Yr2")))) -> 0.105 | AA10: =INDIRECT("'methodmix_calc'!"&ADDRESS(ROW(mmUsers5),COLUMN(INDIRECT("mm"& AA$2 &"Yr3")))) -> 0.105 | AB10: =INDIRECT("'methodmix_calc'!"&ADDRESS(ROW(mmUsers5),COLUMN(INDIRECT("mm"& AB$2 &"Yr4")))) -> 0.105 | AC10: =INDIRECT("'methodmix_calc'!"&ADDRESS(ROW(mmUsers5),COLUMN(INDIRECT("mm"& AC$2 &"Yr5")))) -> 0.105 | AD10: =INDIRECT("'methodmix_calc'!"&ADDRESS(ROW(mmUsers5),COLUMN(INDIRECT("mm"& AD$2 &"Yr6")))) -> 0.105 | AE10: =INDIRECT("'methodmix_calc'!"&ADDRESS(ROW(mmUsers5),COLUMN(INDIRECT("mm"& AE$2 &"Yr7")))) -> 0.105 | AF10: =INDIRECT("'methodmix_calc'!"&ADDRESS(ROW(mmUsers5),COLUMN(INDIRECT("mm"& AF$2 &"Yr8")))) -> 0.105 | AG10: =INDIRECT("'methodmix_calc'!"&ADDRESS(ROW(mmUsers5),COLUMN(INDIRECT("mm"& AG$2 &"Yr9")))) -> 0.105 | AH10: =INDIRECT("'methodmix_calc'!"&ADDRESS(ROW(mmUsers5),COLUMN(INDIRECT("mm"& AH$2 &"Yr10")))) -> 0.105
B11: DIU | C11: =INDIRECT("'methodmix_calc'!"&ADDRESS(ROW(mmUsers6),COLUMN(INDIRECT("mm"& C$2 &"Yr1")))) -> 0.035 | D11: =INDIRECT("'methodmix_calc'!"&ADDRESS(ROW(mmUsers6),COLUMN(INDIRECT("mm"& D$2 &"Yr2")))) -> 0.035 | E11: =INDIRECT("'methodmix_calc'!"&ADDRESS(ROW(mmUsers6),COLUMN(INDIRECT("mm"& E$2 &"Yr3")))) -> 0.035 | F11: =INDIRECT("'methodmix_calc'!"&ADDRESS(ROW(mmUsers6),COLUMN(INDIRECT("mm"& F$2 &"Yr4")))) -> 0.035 | G11: =INDIRECT("'methodmix_calc'!"&ADDRESS(ROW(mmUsers6),COLUMN(INDIRECT("mm"& G$2 &"Yr5")))) -> 0.035 | H11: =INDIRECT("'methodmix_calc'!"&ADDRESS(ROW(mmUsers6),COLUMN(INDIRECT("mm"& H$2 &"Yr6")))) -> 0.035 | I11: =INDIRECT("'methodmix_calc'!"&ADDRESS(ROW(mmUsers6),COLUMN(INDIRECT("mm"& I$2 &"Yr7")))) -> 0.035 | J11: =INDIRECT("'methodmix_calc'!"&ADDRESS(ROW(mmUsers6),COLUMN(INDIRECT("mm"& J$2 &"Yr8")))) -> 0.035 | K11: =INDIRECT("'methodmix_calc'!"&ADDRESS(ROW(mmUsers6),COLUMN(INDIRECT("mm"& K$2 &"Yr9")))) -> 0.035 | L11: =INDIRECT("'methodmix_calc'!"&ADDRESS(ROW(mmUsers6),COLUMN(INDIRECT("mm"& L$2 &"Yr10")))) -> 0.035 | N11: =INDIRECT("'methodmix_calc'!"&ADDRESS(ROW(mmUsers6),COLUMN(INDIRECT("mm"& N$2 &"Yr1")))) -> 0.035 | O11: =INDIRECT("'methodmix_calc'!"&ADDRESS(ROW(mmUsers6),COLUMN(INDIRECT("mm"& O$2 &"Yr2")))) -> 0.035 | P11: =INDIRECT("'methodmix_calc'!"&ADDRESS(ROW(mmUsers6),COLUMN(INDIRECT("mm"& P$2 &"Yr3")))) -> 0.035 | Q11: =INDIRECT("'methodmix_calc'!"&ADDRESS(ROW(mmUsers6),COLUMN(INDIRECT("mm"& Q$2 &"Yr4")))) -> 0.035 | R11: =INDIRECT("'methodmix_calc'!"&ADDRESS(ROW(mmUsers6),COLUMN(INDIRECT("mm"& R$2 &"Yr5")))) -> 0.035 | S11: =INDIRECT("'methodmix_calc'!"&ADDRESS(ROW(mmUsers6),COLUMN(INDIRECT("mm"& S$2 &"Yr6")))) -> 0.035 | T11: =INDIRECT("'methodmix_calc'!"&ADDRESS(ROW(mmUsers6),COLUMN(INDIRECT("mm"& T$2 &"Yr7")))) -> 0.035 | U11: =INDIRECT("'methodmix_calc'!"&ADDRESS(ROW(mmUsers6),COLUMN(INDIRECT("mm"& U$2 &"Yr8")))) -> 0.035 | V11: =INDIRECT("'methodmix_calc'!"&ADDRESS(ROW(mmUsers6),COLUMN(INDIRECT("mm"& V$2 &"Yr9")))) -> 0.035 | W11: =INDIRECT("'methodmix_calc'!"&ADDRESS(ROW(mmUsers6),COLUMN(INDIRECT("mm"& W$2 &"Yr10")))) -> 0.035 | Y11: =INDIRECT("'methodmix_calc'!"&ADDRESS(ROW(mmUsers6),COLUMN(INDIRECT("mm"& Y$2 &"Yr1")))) -> 0.035 | Z11: =INDIRECT("'methodmix_calc'!"&ADDRESS(ROW(mmUsers6),COLUMN(INDIRECT("mm"& Z$2 &"Yr2")))) -> 0.035 | AA11: =INDIRECT("'methodmix_calc'!"&ADDRESS(ROW(mmUsers6),COLUMN(INDIRECT("mm"& AA$2 &"Yr3")))) -> 0.035 | AB11: =INDIRECT("'methodmix_calc'!"&ADDRESS(ROW(mmUsers6),COLUMN(INDIRECT("mm"& AB$2 &"Yr4")))) -> 0.035 | AC11: =INDIRECT("'methodmix_calc'!"&ADDRESS(ROW(mmUsers6),COLUMN(INDIRECT("mm"& AC$2 &"Yr5")))) -> 0.035 | AD11: =INDIRECT("'methodmix_calc'!"&ADDRESS(ROW(mmUsers6),COLUMN(INDIRECT("mm"& AD$2 &"Yr6")))) -> 0.035 | AE11: =INDIRECT("'methodmix_calc'!"&ADDRESS(ROW(mmUsers6),COLUMN(INDIRECT("mm"& AE$2 &"Yr7")))) -> 0.035 | AF11: =INDIRECT("'methodmix_calc'!"&ADDRESS(ROW(mmUsers6),COLUMN(INDIRECT("mm"& AF$2 &"Yr8")))) -> 0.035 | AG11: =INDIRECT("'methodmix_calc'!"&ADDRESS(ROW(mmUsers6),COLUMN(INDIRECT("mm"& AG$2 &"Yr9")))) -> 0.035 | AH11: =INDIRECT("'methodmix_calc'!"&ADDRESS(ROW(mmUsers6),COLUMN(INDIRECT("mm"& AH$2 &"Yr10")))) -> 0.035
B12: Implant | C12: =INDIRECT("'methodmix_calc'!"&ADDRESS(ROW(mmUsers7),COLUMN(INDIRECT("mm"& C$2 &"Yr1")))) -> 0.042 | D12: =INDIRECT("'methodmix_calc'!"&ADDRESS(ROW(mmUsers7),COLUMN(INDIRECT("mm"& D$2 &"Yr2")))) -> 0.042 | E12: =INDIRECT("'methodmix_calc'!"&ADDRESS(ROW(mmUsers7),COLUMN(INDIRECT("mm"& E$2 &"Yr3")))) -> 0.042 | F12: =INDIRECT("'methodmix_calc'!"&ADDRESS(ROW(mmUsers7),COLUMN(INDIRECT("mm"& F$2 &"Yr4")))) -> 0.042 | G12: =INDIRECT("'methodmix_calc'!"&ADDRESS(ROW(mmUsers7),COLUMN(INDIRECT("mm"& G$2 &"Yr5")))) -> 0.042 | H12: =INDIRECT("'methodmix_calc'!"&ADDRESS(ROW(mmUsers7),COLUMN(INDIRECT("mm"& H$2 &"Yr6")))) -> 0.042 | I12: =INDIRECT("'methodmix_calc'!"&ADDRESS(ROW(mmUsers7),COLUMN(INDIRECT("mm"& I$2 &"Yr7")))) -> 0.042 | J12: =INDIRECT("'methodmix_calc'!"&ADDRESS(ROW(mmUsers7),COLUMN(INDIRECT("mm"& J$2 &"Yr8")))) -> 0.042 | K12: =INDIRECT("'methodmix_calc'!"&ADDRESS(ROW(mmUsers7),COLUMN(INDIRECT("mm"& K$2 &"Yr9")))) -> 0.042 | L12: =INDIRECT("'methodmix_calc'!"&ADDRESS(ROW(mmUsers7),COLUMN(INDIRECT("mm"& L$2 &"Yr10")))) -> 0.042 | N12: =INDIRECT("'methodmix_calc'!"&ADDRESS(ROW(mmUsers7),COLUMN(INDIRECT("mm"& N$2 &"Yr1")))) -> 0.042 | O12: =INDIRECT("'methodmix_calc'!"&ADDRESS(ROW(mmUsers7),COLUMN(INDIRECT("mm"& O$2 &"Yr2")))) -> 0.042 | P12: =INDIRECT("'methodmix_calc'!"&ADDRESS(ROW(mmUsers7),COLUMN(INDIRECT("mm"& P$2 &"Yr3")))) -> 0.042 | Q12: =INDIRECT("'methodmix_calc'!"&ADDRESS(ROW(mmUsers7),COLUMN(INDIRECT("mm"& Q$2 &"Yr4")))) -> 0.042 | R12: =INDIRECT("'methodmix_calc'!"&ADDRESS(ROW(mmUsers7),COLUMN(INDIRECT("mm"& R$2 &"Yr5")))) -> 0.042 | S12: =INDIRECT("'methodmix_calc'!"&ADDRESS(ROW(mmUsers7),COLUMN(INDIRECT("mm"& S$2 &"Yr6")))) -> 0.042 | T12: =INDIRECT("'methodmix_calc'!"&ADDRESS(ROW(mmUsers7),COLUMN(INDIRECT("mm"& T$2 &"Yr7")))) -> 0.042 | U12: =INDIRECT("'methodmix_calc'!"&ADDRESS(ROW(mmUsers7),COLUMN(INDIRECT("mm"& U$2 &"Yr8")))) -> 0.042 | V12: =INDIRECT("'methodmix_calc'!"&ADDRESS(ROW(mmUsers7),COLUMN(INDIRECT("mm"& V$2 &"Yr9")))) -> 0.042 | W12: =INDIRECT("'methodmix_calc'!"&ADDRESS(ROW(mmUsers7),COLUMN(INDIRECT("mm"& W$2 &"Yr10")))) -> 0.042 | Y12: =INDIRECT("'methodmix_calc'!"&ADDRESS(ROW(mmUsers7),COLUMN(INDIRECT("mm"& Y$2 &"Yr1")))) -> 0.042 | Z12: =INDIRECT("'methodmix_calc'!"&ADDRESS(ROW(mmUsers7),COLUMN(INDIRECT("mm"& Z$2 &"Yr2")))) -> 0.042 | AA12: =INDIRECT("'methodmix_calc'!"&ADDRESS(ROW(mmUsers7),COLUMN(INDIRECT("mm"& AA$2 &"Yr3")))) -> 0.042 | AB12: =INDIRECT("'methodmix_calc'!"&ADDRESS(ROW(mmUsers7),COLUMN(INDIRECT("mm"& AB$2 &"Yr4")))) -> 0.042 | AC12: =INDIRECT("'methodmix_calc'!"&ADDRESS(ROW(mmUsers7),COLUMN(INDIRECT("mm"& AC$2 &"Yr5")))) -> 0.042 | AD12: =INDIRECT("'methodmix_calc'!"&ADDRESS(ROW(mmUsers7),COLUMN(INDIRECT("mm"& AD$2 &"Yr6")))) -> 0.042 | AE12: =INDIRECT("'methodmix_calc'!"&ADDRESS(ROW(mmUsers7),COLUMN(INDIRECT("mm"& AE$2 &"Yr7")))) -> 0.042 | AF12: =INDIRECT("'methodmix_calc'!"&ADDRESS(ROW(mmUsers7),COLUMN(INDIRECT("mm"& AF$2 &"Yr8")))) -> 0.042 | AG12: =INDIRECT("'methodmix_calc'!"&ADDRESS(ROW(mmUsers7),COLUMN(INDIRECT("mm"& AG$2 &"Yr9")))) -> 0.042 | AH12: =INDIRECT("'methodmix_calc'!"&ADDRESS(ROW(mmUsers7),COLUMN(INDIRECT("mm"& AH$2 &"Yr10")))) -> 0.042
B13: Méthode des jours fixes (MJF) ou Méthode collier | C13: =INDIRECT("'methodmix_calc'!"&ADDRESS(ROW(mmUsers8),COLUMN(INDIRECT("mm"& C$2 &"Yr1")))) -> 0 | D13: =INDIRECT("'methodmix_calc'!"&ADDRESS(ROW(mmUsers8),COLUMN(INDIRECT("mm"& D$2 &"Yr2")))) -> 0 | E13: =INDIRECT("'methodmix_calc'!"&ADDRESS(ROW(mmUsers8),COLUMN(INDIRECT("mm"& E$2 &"Yr3")))) -> 0 | F13: =INDIRECT("'methodmix_calc'!"&ADDRESS(ROW(mmUsers8),COLUMN(INDIRECT("mm"& F$2 &"Yr4")))) -> 0 | G13: =INDIRECT("'methodmix_calc'!"&ADDRESS(ROW(mmUsers8),COLUMN(INDIRECT("mm"& G$2 &"Yr5")))) -> 0 | H13: =INDIRECT("'methodmix_calc'!"&ADDRESS(ROW(mmUsers8),COLUMN(INDIRECT("mm"& H$2 &"Yr6")))) -> 0 | I13: =INDIRECT("'methodmix_calc'!"&ADDRESS(ROW(mmUsers8),COLUMN(INDIRECT("mm"& I$2 &"Yr7")))) -> 0 | J13: =INDIRECT("'methodmix_calc'!"&ADDRESS(ROW(mmUsers8),COLUMN(INDIRECT("mm"& J$2 &"Yr8")))) -> 0 | K13: =INDIRECT("'methodmix_calc'!"&ADDRESS(ROW(mmUsers8),COLUMN(INDIRECT("mm"& K$2 &"Yr9")))) -> 0 | L13: =INDIRECT("'methodmix_calc'!"&ADDRESS(ROW(mmUsers8),COLUMN(INDIRECT("mm"& L$2 &"Yr10")))) -> 0 | N13: =INDIRECT("'methodmix_calc'!"&ADDRESS(ROW(mmUsers8),COLUMN(INDIRECT("mm"& N$2 &"Yr1")))) -> 0 | O13: =INDIRECT("'methodmix_calc'!"&ADDRESS(ROW(mmUsers8),COLUMN(INDIRECT("mm"& O$2 &"Yr2")))) -> 0 | P13: =INDIRECT("'methodmix_calc'!"&ADDRESS(ROW(mmUsers8),COLUMN(INDIRECT("mm"& P$2 &"Yr3")))) -> 0 | Q13: =INDIRECT("'methodmix_calc'!"&ADDRESS(ROW(mmUsers8),COLUMN(INDIRECT("mm"& Q$2 &"Yr4")))) -> 0 | R13: =INDIRECT("'methodmix_calc'!"&ADDRESS(ROW(mmUsers8),COLUMN(INDIRECT("mm"& R$2 &"Yr5")))) -> 0 | S13: =INDIRECT("'methodmix_calc'!"&ADDRESS(ROW(mmUsers8),COLUMN(INDIRECT("mm"& S$2 &"Yr6")))) -> 0 | T13: =INDIRECT("'methodmix_calc'!"&ADDRESS(ROW(mmUsers8),COLUMN(INDIRECT("mm"& T$2 &"Yr7")))) -> 0 | U13: =INDIRECT("'methodmix_calc'!"&ADDRESS(ROW(mmUsers8),COLUMN(INDIRECT("mm"& U$2 &"Yr8")))) -> 0 | V13: =INDIRECT("'methodmix_calc'!"&ADDRESS(ROW(mmUsers8),COLUMN(INDIRECT("mm"& V$2 &"Yr9")))) -> 0 | W13: =INDIRECT("'methodmix_calc'!"&ADDRESS(ROW(mmUsers8),COLUMN(INDIRECT("mm"& W$2 &"Yr10")))) -> 0 | Y13: =INDIRECT("'methodmix_calc'!"&ADDRESS(ROW(mmUsers8),COLUMN(INDIRECT("mm"& Y$2 &"Yr1")))) -> 0 | Z13: =INDIRECT("'methodmix_calc'!"&ADDRESS(ROW(mmUsers8),COLUMN(INDIRECT("mm"& Z$2 &"Yr2")))) -> 0 | AA13: =INDIRECT("'methodmix_calc'!"&ADDRESS(ROW(mmUsers8),COLUMN(INDIRECT("mm"& AA$2 &"Yr3")))) -> 0 | AB13: =INDIRECT("'methodmix_calc'!"&ADDRESS(ROW(mmUsers8),COLUMN(INDIRECT("mm"& AB$2 &"Yr4")))) -> 0 | AC13: =INDIRECT("'methodmix_calc'!"&ADDRESS(ROW(mmUsers8),COLUMN(INDIRECT("mm"& AC$2 &"Yr5")))) -> 0 | AD13: =INDIRECT("'methodmix_calc'!"&ADDRESS(ROW(mmUsers8),COLUMN(INDIRECT("mm"& AD$2 &"Yr6")))) -> 0 | AE13: =INDIRECT("'methodmix_calc'!"&ADDRESS(ROW(mmUsers8),COLUMN(INDIRECT("mm"& AE$2 &"Yr7")))) -> 0 | AF13: =INDIRECT("'methodmix_calc'!"&ADDRESS(ROW(mmUsers8),COLUMN(INDIRECT("mm"& AF$2 &"Yr8")))) -> 0 | AG13: =INDIRECT("'methodmix_calc'!"&ADDRESS(ROW(mmUsers8),COLUMN(INDIRECT("mm"& AG$2 &"Yr9")))) -> 0 | AH13: =INDIRECT("'methodmix_calc'!"&ADDRESS(ROW(mmUsers8),COLUMN(INDIRECT("mm"& AH$2 &"Yr10")))) -> 0
B14: Autre moderne | C14: =INDIRECT("'methodmix_calc'!"&ADDRESS(ROW(mmUsers9),COLUMN(INDIRECT("mm"& C$2 &"Yr1")))) -> 0.011 | D14: =INDIRECT("'methodmix_calc'!"&ADDRESS(ROW(mmUsers9),COLUMN(INDIRECT("mm"& D$2 &"Yr2")))) -> 0.011 | E14: =INDIRECT("'methodmix_calc'!"&ADDRESS(ROW(mmUsers9),COLUMN(INDIRECT("mm"& E$2 &"Yr3")))) -> 0.011 | F14: =INDIRECT("'methodmix_calc'!"&ADDRESS(ROW(mmUsers9),COLUMN(INDIRECT("mm"& F$2 &"Yr4")))) -> 0.011 | G14: =INDIRECT("'methodmix_calc'!"&ADDRESS(ROW(mmUsers9),COLUMN(INDIRECT("mm"& G$2 &"Yr5")))) -> 0.011 | H14: =INDIRECT("'methodmix_calc'!"&ADDRESS(ROW(mmUsers9),COLUMN(INDIRECT("mm"& H$2 &"Yr6")))) -> 0.011 | I14: =INDIRECT("'methodmix_calc'!"&ADDRESS(ROW(mmUsers9),COLUMN(INDIRECT("mm"& I$2 &"Yr7")))) -> 0.011 | J14: =INDIRECT("'methodmix_calc'!"&ADDRESS(ROW(mmUsers9),COLUMN(INDIRECT("mm"& J$2 &"Yr8")))) -> 0.011 | K14: =INDIRECT("'methodmix_calc'!"&ADDRESS(ROW(mmUsers9),COLUMN(INDIRECT("mm"& K$2 &"Yr9")))) -> 0.011 | L14: =INDIRECT("'methodmix_calc'!"&ADDRESS(ROW(mmUsers9),COLUMN(INDIRECT("mm"& L$2 &"Yr10")))) -> 0.011 | N14: =INDIRECT("'methodmix_calc'!"&ADDRESS(ROW(mmUsers9),COLUMN(INDIRECT("mm"& N$2 &"Yr1")))) -> 0.011 | O14: =INDIRECT("'methodmix_calc'!"&ADDRESS(ROW(mmUsers9),COLUMN(INDIRECT("mm"& O$2 &"Yr2")))) -> 0.011 | P14: =INDIRECT("'methodmix_calc'!"&ADDRESS(ROW(mmUsers9),COLUMN(INDIRECT("mm"& P$2 &"Yr3")))) -> 0.011 | Q14: =INDIRECT("'methodmix_calc'!"&ADDRESS(ROW(mmUsers9),COLUMN(INDIRECT("mm"& Q$2 &"Yr4")))) -> 0.011 | R14: =INDIRECT("'methodmix_calc'!"&ADDRESS(ROW(mmUsers9),COLUMN(INDIRECT("mm"& R$2 &"Yr5")))) -> 0.011 | S14: =INDIRECT("'methodmix_calc'!"&ADDRESS(ROW(mmUsers9),COLUMN(INDIRECT("mm"& S$2 &"Yr6")))) -> 0.011 | T14: =INDIRECT("'methodmix_calc'!"&ADDRESS(ROW(mmUsers9),COLUMN(INDIRECT("mm"& T$2 &"Yr7")))) -> 0.011 | U14: =INDIRECT("'methodmix_calc'!"&ADDRESS(ROW(mmUsers9),COLUMN(INDIRECT("mm"& U$2 &"Yr8")))) -> 0.011 | V14: =INDIRECT("'methodmix_calc'!"&ADDRESS(ROW(mmUsers9),COLUMN(INDIRECT("mm"& V$2 &"Yr9")))) -> 0.011 | W14: =INDIRECT("'methodmix_calc'!"&ADDRESS(ROW(mmUsers9),COLUMN(INDIRECT("mm"& W$2 &"Yr10")))) -> 0.011 | Y14: =INDIRECT("'methodmix_calc'!"&ADDRESS(ROW(mmUsers9),COLUMN(INDIRECT("mm"& Y$2 &"Yr1")))) -> 0.011 | Z14: =INDIRECT("'methodmix_calc'!"&ADDRESS(ROW(mmUsers9),COLUMN(INDIRECT("mm"& Z$2 &"Yr2")))) -> 0.011 | AA14: =INDIRECT("'methodmix_calc'!"&ADDRESS(ROW(mmUsers9),COLUMN(INDIRECT("mm"& AA$2 &"Yr3")))) -> 0.011 | AB14: =INDIRECT("'methodmix_calc'!"&ADDRESS(ROW(mmUsers9),COLUMN(INDIRECT("mm"& AB$2 &"Yr4")))) -> 0.011 | AC14: =INDIRECT("'methodmix_calc'!"&ADDRESS(ROW(mmUsers9),COLUMN(INDIRECT("mm"& AC$2 &"Yr5")))) -> 0.011 | AD14: =INDIRECT("'methodmix_calc'!"&ADDRESS(ROW(mmUsers9),COLUMN(INDIRECT("mm"& AD$2 &"Yr6")))) -> 0.011 | AE14: =INDIRECT("'methodmix_calc'!"&ADDRESS(ROW(mmUsers9),COLUMN(INDIRECT("mm"& AE$2 &"Yr7")))) -> 0.011 | AF14: =INDIRECT("'methodmix_calc'!"&ADDRESS(ROW(mmUsers9),COLUMN(INDIRECT("mm"& AF$2 &"Yr8")))) -> 0.011 | AG14: =INDIRECT("'methodmix_calc'!"&ADDRESS(ROW(mmUsers9),COLUMN(INDIRECT("mm"& AG$2 &"Yr9")))) -> 0.011 | AH14: =INDIRECT("'methodmix_calc'!"&ADDRESS(ROW(mmUsers9),COLUMN(INDIRECT("mm"& AH$2 &"Yr10")))) -> 0.011
B15: Toutes traditionnelles | C15: =INDIRECT("'methodmix_calc'!"&ADDRESS(ROW(mmUsers10),COLUMN(INDIRECT("mm"& C$2 &"Yr1")))) -> 0.133 | D15: =INDIRECT("'methodmix_calc'!"&ADDRESS(ROW(mmUsers10),COLUMN(INDIRECT("mm"& D$2 &"Yr2")))) -> 0.133 | E15: =INDIRECT("'methodmix_calc'!"&ADDRESS(ROW(mmUsers10),COLUMN(INDIRECT("mm"& E$2 &"Yr3")))) -> 0.133 | F15: =INDIRECT("'methodmix_calc'!"&ADDRESS(ROW(mmUsers10),COLUMN(INDIRECT("mm"& F$2 &"Yr4")))) -> 0.133 | G15: =INDIRECT("'methodmix_calc'!"&ADDRESS(ROW(mmUsers10),COLUMN(INDIRECT("mm"& G$2 &"Yr5")))) -> 0.133 | H15: =INDIRECT("'methodmix_calc'!"&ADDRESS(ROW(mmUsers10),COLUMN(INDIRECT("mm"& H$2 &"Yr6")))) -> 0.133 | I15: =INDIRECT("'methodmix_calc'!"&ADDRESS(ROW(mmUsers10),COLUMN(INDIRECT("mm"& I$2 &"Yr7")))) -> 0.133 | J15: =INDIRECT("'methodmix_calc'!"&ADDRESS(ROW(mmUsers10),COLUMN(INDIRECT("mm"& J$2 &"Yr8")))) -> 0.133 | K15: =INDIRECT("'methodmix_calc'!"&ADDRESS(ROW(mmUsers10),COLUMN(INDIRECT("mm"& K$2 &"Yr9")))) -> 0.133 | L15: =INDIRECT("'methodmix_calc'!"&ADDRESS(ROW(mmUsers10),COLUMN(INDIRECT("mm"& L$2 &"Yr10")))) -> 0.133 | N15: =INDIRECT("'methodmix_calc'!"&ADDRESS(ROW(mmUsers10),COLUMN(INDIRECT("mm"& N$2 &"Yr1")))) -> 0.133 | O15: =INDIRECT("'methodmix_calc'!"&ADDRESS(ROW(mmUsers10),COLUMN(INDIRECT("mm"& O$2 &"Yr2")))) -> 0.133 | P15: =INDIRECT("'methodmix_calc'!"&ADDRESS(ROW(mmUsers10),COLUMN(INDIRECT("mm"& P$2 &"Yr3")))) -> 0.133 | Q15: =INDIRECT("'methodmix_calc'!"&ADDRESS(ROW(mmUsers10),COLUMN(INDIRECT("mm"& Q$2 &"Yr4")))) -> 0.133 | R15: =INDIRECT("'methodmix_calc'!"&ADDRESS(ROW(mmUsers10),COLUMN(INDIRECT("mm"& R$2 &"Yr5")))) -> 0.133 | S15: =INDIRECT("'methodmix_calc'!"&ADDRESS(ROW(mmUsers10),COLUMN(INDIRECT("mm"& S$2 &"Yr6")))) -> 0.133 | T15: =INDIRECT("'methodmix_calc'!"&ADDRESS(ROW(mmUsers10),COLUMN(INDIRECT("mm"& T$2 &"Yr7")))) -> 0.133 | U15: =INDIRECT("'methodmix_calc'!"&ADDRESS(ROW(mmUsers10),COLUMN(INDIRECT("mm"& U$2 &"Yr8")))) -> 0.133 | V15: =INDIRECT("'methodmix_calc'!"&ADDRESS(ROW(mmUsers10),COLUMN(INDIRECT("mm"& V$2 &"Yr9")))) -> 0.133 | W15: =INDIRECT("'methodmix_calc'!"&ADDRESS(ROW(mmUsers10),COLUMN(INDIRECT("mm"& W$2 &"Yr10")))) -> 0.133 | Y15: =INDIRECT("'methodmix_calc'!"&ADDRESS(ROW(mmUsers10),COLUMN(INDIRECT("mm"& Y$2 &"Yr1")))) -> 0.133 | Z15: =INDIRECT("'methodmix_calc'!"&ADDRESS(ROW(mmUsers10),COLUMN(INDIRECT("mm"& Z$2 &"Yr2")))) -> 0.133 | AA15: =INDIRECT("'methodmix_calc'!"&ADDRESS(ROW(mmUsers10),COLUMN(INDIRECT("mm"& AA$2 &"Yr3")))) -> 0.133 | AB15: =INDIRECT("'methodmix_calc'!"&ADDRESS(ROW(mmUsers10),COLUMN(INDIRECT("mm"& AB$2 &"Yr4")))) -> 0.133 | AC15: =INDIRECT("'methodmix_calc'!"&ADDRESS(ROW(mmUsers10),COLUMN(INDIRECT("mm"& AC$2 &"Yr5")))) -> 0.133 | AD15: =INDIRECT("'methodmix_calc'!"&ADDRESS(ROW(mmUsers10),COLUMN(INDIRECT("mm"& AD$2 &"Yr6")))) -> 0.133 | AE15: =INDIRECT("'methodmix_calc'!"&ADDRESS(ROW(mmUsers10),COLUMN(INDIRECT("mm"& AE$2 &"Yr7")))) -> 0.133 | AF15: =INDIRECT("'methodmix_calc'!"&ADDRESS(ROW(mmUsers10),COLUMN(INDIRECT("mm"& AF$2 &"Yr8")))) -> 0.133 | AG15: =INDIRECT("'methodmix_calc'!"&ADDRESS(ROW(mmUsers10),COLUMN(INDIRECT("mm"& AG$2 &"Yr9")))) -> 0.133 | AH15: =INDIRECT("'methodmix_calc'!"&ADDRESS(ROW(mmUsers10),COLUMN(INDIRECT("mm"& AH$2 &"Yr10")))) -> 0.133
B16: Autres spécifiques au pays | C16: =INDIRECT("'methodmix_calc'!"&ADDRESS(ROW(mmUsers12),COLUMN(INDIRECT("mm"& C$2 &"Yr1")))) -> 0 | D16: =INDIRECT("'methodmix_calc'!"&ADDRESS(ROW(mmUsers12),COLUMN(INDIRECT("mm"& D$2 &"Yr2")))) -> 0 | E16: =INDIRECT("'methodmix_calc'!"&ADDRESS(ROW(mmUsers12),COLUMN(INDIRECT("mm"& E$2 &"Yr3")))) -> 0 | F16: =INDIRECT("'methodmix_calc'!"&ADDRESS(ROW(mmUsers12),COLUMN(INDIRECT("mm"& F$2 &"Yr4")))) -> 0 | G16: =INDIRECT("'methodmix_calc'!"&ADDRESS(ROW(mmUsers12),COLUMN(INDIRECT("mm"& G$2 &"Yr5")))) -> 0 | H16: =INDIRECT("'methodmix_calc'!"&ADDRESS(ROW(mmUsers12),COLUMN(INDIRECT("mm"& H$2 &"Yr6")))) -> 0 | I16: =INDIRECT("'methodmix_calc'!"&ADDRESS(ROW(mmUsers12),COLUMN(INDIRECT("mm"& I$2 &"Yr7")))) -> 0 | J16: =INDIRECT("'methodmix_calc'!"&ADDRESS(ROW(mmUsers12),COLUMN(INDIRECT("mm"& J$2 &"Yr8")))) -> 0 | K16: =INDIRECT("'methodmix_calc'!"&ADDRESS(ROW(mmUsers12),COLUMN(INDIRECT("mm"& K$2 &"Yr9")))) -> 0 | L16: =INDIRECT("'methodmix_calc'!"&ADDRESS(ROW(mmUsers12),COLUMN(INDIRECT("mm"& L$2 &"Yr10")))) -> 0 | N16: =INDIRECT("'methodmix_calc'!"&ADDRESS(ROW(mmUsers12),COLUMN(INDIRECT("mm"& N$2 &"Yr1")))) -> 0 | O16: =INDIRECT("'methodmix_calc'!"&ADDRESS(ROW(mmUsers12),COLUMN(INDIRECT("mm"& O$2 &"Yr2")))) -> 0 | P16: =INDIRECT("'methodmix_calc'!"&ADDRESS(ROW(mmUsers12),COLUMN(INDIRECT("mm"& P$2 &"Yr3")))) -> 0 | Q16: =INDIRECT("'methodmix_calc'!"&ADDRESS(ROW(mmUsers12),COLUMN(INDIRECT("mm"& Q$2 &"Yr4")))) -> 0 | R16: =INDIRECT("'methodmix_calc'!"&ADDRESS(ROW(mmUsers12),COLUMN(INDIRECT("mm"& R$2 &"Yr5")))) -> 0 | S16: =INDIRECT("'methodmix_calc'!"&ADDRESS(ROW(mmUsers12),COLUMN(INDIRECT("mm"& S$2 &"Yr6")))) -> 0 | T16: =INDIRECT("'methodmix_calc'!"&ADDRESS(ROW(mmUsers12),COLUMN(INDIRECT("mm"& T$2 &"Yr7")))) -> 0 | U16: =INDIRECT("'methodmix_calc'!"&ADDRESS(ROW(mmUsers12),COLUMN(INDIRECT("mm"& U$2 &"Yr8")))) -> 0 | V16: =INDIRECT("'methodmix_calc'!"&ADDRESS(ROW(mmUsers12),COLUMN(INDIRECT("mm"& V$2 &"Yr9")))) -> 0 | W16: =INDIRECT("'methodmix_calc'!"&ADDRESS(ROW(mmUsers12),COLUMN(INDIRECT("mm"& W$2 &"Yr10")))) -> 0 | Y16: =INDIRECT("'methodmix_calc'!"&ADDRESS(ROW(mmUsers12),COLUMN(INDIRECT("mm"& Y$2 &"Yr1")))) -> 0 | Z16: =INDIRECT("'methodmix_calc'!"&ADDRESS(ROW(mmUsers12),COLUMN(INDIRECT("mm"& Z$2 &"Yr2")))) -> 0 | AA16: =INDIRECT("'methodmix_calc'!"&ADDRESS(ROW(mmUsers12),COLUMN(INDIRECT("mm"& AA$2 &"Yr3")))) -> 0 | AB16: =INDIRECT("'methodmix_calc'!"&ADDRESS(ROW(mmUsers12),COLUMN(INDIRECT("mm"& AB$2 &"Yr4")))) -> 0 | AC16: =INDIRECT("'methodmix_calc'!"&ADDRESS(ROW(mmUsers12),COLUMN(INDIRECT("mm"& AC$2 &"Yr5")))) -> 0 | AD16: =INDIRECT("'methodmix_calc'!"&ADDRESS(ROW(mmUsers12),COLUMN(INDIRECT("mm"& AD$2 &"Yr6")))) -> 0 | AE16: =INDIRECT("'methodmix_calc'!"&ADDRESS(ROW(mmUsers12),COLUMN(INDIRECT("mm"& AE$2 &"Yr7")))) -> 0 | AF16: =INDIRECT("'methodmix_calc'!"&ADDRESS(ROW(mmUsers12),COLUMN(INDIRECT("mm"& AF$2 &"Yr8")))) -> 0 | AG16: =INDIRECT("'methodmix_calc'!"&ADDRESS(ROW(mmUsers12),COLUMN(INDIRECT("mm"& AG$2 &"Yr9")))) -> 0 | AH16: =INDIRECT("'methodmix_calc'!"&ADDRESS(ROW(mmUsers12),COLUMN(INDIRECT("mm"& AH$2 &"Yr10")))) -> 0
A17: Acceptors
B18: Acceptants de la stérilisation masculine* | C18: =IFERROR(INDIRECT("'"&C$2&"_Acceptors of LAPM'!" & ADDRESS(ROW(accmeth1),COLUMN(accyr1))),"") -> 0 | D18: =IFERROR(INDIRECT("'"&D$2&"_Acceptors of LAPM'!" & ADDRESS(ROW(accmeth1),COLUMN(accyr2))),"") -> 0 | E18: =IFERROR(INDIRECT("'"&E$2&"_Acceptors of LAPM'!" & ADDRESS(ROW(accmeth1),COLUMN(accyr3))),"") -> 0 | F18: =IFERROR(INDIRECT("'"&F$2&"_Acceptors of LAPM'!" & ADDRESS(ROW(accmeth1),COLUMN(accyr4))),"") -> 0 | G18: =IFERROR(INDIRECT("'"&G$2&"_Acceptors of LAPM'!" & ADDRESS(ROW(accmeth1),COLUMN(accyr5))),"") -> 0 | H18: =IFERROR(INDIRECT("'"&H$2&"_Acceptors of LAPM'!" & ADDRESS(ROW(accmeth1),COLUMN(accyr6))),"") -> 0 | I18: =IFERROR(INDIRECT("'"&I$2&"_Acceptors of LAPM'!" & ADDRESS(ROW(accmeth1),COLUMN(accyr7))),"") -> 0 | J18: =IFERROR(INDIRECT("'"&J$2&"_Acceptors of LAPM'!" & ADDRESS(ROW(accmeth1),COLUMN(accyr8))),"") -> 0 | K18: =IFERROR(INDIRECT("'"&K$2&"_Acceptors of LAPM'!" & ADDRESS(ROW(accmeth1),COLUMN(accyr9))),"") -> 0 | L18: =IFERROR(INDIRECT("'"&L$2&"_Acceptors of LAPM'!" & ADDRESS(ROW(accmeth1),COLUMN(accyr10))),"") -> 0 | N18: =IFERROR(INDIRECT("'"&N$2&"_Acceptors of LAPM'!" & ADDRESS(ROW(accmeth1),COLUMN(accyr1))),"") -> 0 | O18: =IFERROR(INDIRECT("'"&O$2&"_Acceptors of LAPM'!" & ADDRESS(ROW(accmeth1),COLUMN(accyr2))),"") -> 0 | P18: =IFERROR(INDIRECT("'"&P$2&"_Acceptors of LAPM'!" & ADDRESS(ROW(accmeth1),COLUMN(accyr3))),"") -> 0 | Q18: =IFERROR(INDIRECT("'"&Q$2&"_Acceptors of LAPM'!" & ADDRESS(ROW(accmeth1),COLUMN(accyr4))),"") -> 0 | R18: =IFERROR(INDIRECT("'"&R$2&"_Acceptors of LAPM'!" & ADDRESS(ROW(accmeth1),COLUMN(accyr5))),"") -> 0 | S18: =IFERROR(INDIRECT("'"&S$2&"_Acceptors of LAPM'!" & ADDRESS(ROW(accmeth1),COLUMN(accyr6))),"") -> 0 | T18: =IFERROR(INDIRECT("'"&T$2&"_Acceptors of LAPM'!" & ADDRESS(ROW(accmeth1),COLUMN(accyr7))),"") -> 0 | U18: =IFERROR(INDIRECT("'"&U$2&"_Acceptors of LAPM'!" & ADDRESS(ROW(accmeth1),COLUMN(accyr8))),"") -> 0 | V18: =IFERROR(INDIRECT("'"&V$2&"_Acceptors of LAPM'!" & ADDRESS(ROW(accmeth1),COLUMN(accyr9))),"") -> 0 | W18: =IFERROR(INDIRECT("'"&W$2&"_Acceptors of LAPM'!" & ADDRESS(ROW(accmeth1),COLUMN(accyr10))),"") -> 0 | Y18: =IFERROR(INDIRECT("'"&Y$2&"_Acceptors of LAPM'!" & ADDRESS(ROW(accmeth1),COLUMN(accyr1))),"") -> 0 | Z18: =IFERROR(INDIRECT("'"&Z$2&"_Acceptors of LAPM'!" & ADDRESS(ROW(accmeth1),COLUMN(accyr2))),"") -> 0 | AA18: =IFERROR(INDIRECT("'"&AA$2&"_Acceptors of LAPM'!" & ADDRESS(ROW(accmeth1),COLUMN(accyr3))),"") -> 0 | AB18: =IFERROR(INDIRECT("'"&AB$2&"_Acceptors of LAPM'!" & ADDRESS(ROW(accmeth1),COLUMN(accyr4))),"") -> 0 | AC18: =IFERROR(INDIRECT("'"&AC$2&"_Acceptors of LAPM'!" & ADDRESS(ROW(accmeth1),COLUMN(accyr5))),"") -> 0 | AD18: =IFERROR(INDIRECT("'"&AD$2&"_Acceptors of LAPM'!" & ADDRESS(ROW(accmeth1),COLUMN(accyr6))),"") -> 0 | AE18: =IFERROR(INDIRECT("'"&AE$2&"_Acceptors of LAPM'!" & ADDRESS(ROW(accmeth1),COLUMN(accyr7))),"") -> 0 | AF18: =IFERROR(INDIRECT("'"&AF$2&"_Acceptors of LAPM'!" & ADDRESS(ROW(accmeth1),COLUMN(accyr8))),"") -> 0 | AG18: =IFERROR(INDIRECT("'"&AG$2&"_Acceptors of LAPM'!" & ADDRESS(ROW(accmeth1),COLUMN(accyr9))),"") -> 0 | AH18: =IFERROR(INDIRECT("'"&AH$2&"_Acceptors of LAPM'!" & ADDRESS(ROW(accmeth1),COLUMN(accyr10))),"") -> 0
B19: Acceptantes de la stérilisation féminine* | C19: =IFERROR(INDIRECT("'"&C$2&"_Acceptors of LAPM'!" & ADDRESS(ROW(accmeth2),COLUMN(accyr1))),"") -> 27692.54699 | D19: =IFERROR(INDIRECT("'"&D$2&"_Acceptors of LAPM'!" & ADDRESS(ROW(accmeth2),COLUMN(accyr2))),"") -> 21722.95075 | E19: =IFERROR(INDIRECT("'"&E$2&"_Acceptors of LAPM'!" & ADDRESS(ROW(accmeth2),COLUMN(accyr3))),"") -> 45193.98687 | F19: =IFERROR(INDIRECT("'"&F$2&"_Acceptors of LAPM'!" & ADDRESS(ROW(accmeth2),COLUMN(accyr4))),"") -> 70479.42619 | G19: =IFERROR(INDIRECT("'"&G$2&"_Acceptors of LAPM'!" & ADDRESS(ROW(accmeth2),COLUMN(accyr5))),"") -> 97494.67242 | H19: =IFERROR(INDIRECT("'"&H$2&"_Acceptors of LAPM'!" & ADDRESS(ROW(accmeth2),COLUMN(accyr6))),"") -> 126195.694 | I19: =IFERROR(INDIRECT("'"&I$2&"_Acceptors of LAPM'!" & ADDRESS(ROW(accmeth2),COLUMN(accyr7))),"") -> 156704.7175 | J19: =IFERROR(INDIRECT("'"&J$2&"_Acceptors of LAPM'!" & ADDRESS(ROW(accmeth2),COLUMN(accyr8))),"") -> 188959.6908 | K19: =IFERROR(INDIRECT("'"&K$2&"_Acceptors of LAPM'!" & ADDRESS(ROW(accmeth2),COLUMN(accyr9))),"") -> 222908.578 | L19: =IFERROR(INDIRECT("'"&L$2&"_Acceptors of LAPM'!" & ADDRESS(ROW(accmeth2),COLUMN(accyr10))),"") -> 258636.1595 | N19: =IFERROR(INDIRECT("'"&N$2&"_Acceptors of LAPM'!" & ADDRESS(ROW(accmeth2),COLUMN(accyr1))),"") -> 27692.54699 | O19: =IFERROR(INDIRECT("'"&O$2&"_Acceptors of LAPM'!" & ADDRESS(ROW(accmeth2),COLUMN(accyr2))),"") -> 21722.95075 | P19: =IFERROR(INDIRECT("'"&P$2&"_Acceptors of LAPM'!" & ADDRESS(ROW(accmeth2),COLUMN(accyr3))),"") -> 45193.98687 | Q19: =IFERROR(INDIRECT("'"&Q$2&"_Acceptors of LAPM'!" & ADDRESS(ROW(accmeth2),COLUMN(accyr4))),"") -> 70479.42619 | R19: =IFERROR(INDIRECT("'"&R$2&"_Acceptors of LAPM'!" & ADDRESS(ROW(accmeth2),COLUMN(accyr5))),"") -> 97494.67242 | S19: =IFERROR(INDIRECT("'"&S$2&"_Acceptors of LAPM'!" & ADDRESS(ROW(accmeth2),COLUMN(accyr6))),"") -> 126195.694 | T19: =IFERROR(INDIRECT("'"&T$2&"_Acceptors of LAPM'!" & ADDRESS(ROW(accmeth2),COLUMN(accyr7))),"") -> 156704.7175 | U19: =IFERROR(INDIRECT("'"&U$2&"_Acceptors of LAPM'!" & ADDRESS(ROW(accmeth2),COLUMN(accyr8))),"") -> 188959.6908 | V19: =IFERROR(INDIRECT("'"&V$2&"_Acceptors of LAPM'!" & ADDRESS(ROW(accmeth2),COLUMN(accyr9))),"") -> 222908.578 | W19: =IFERROR(INDIRECT("'"&W$2&"_Acceptors of LAPM'!" & ADDRESS(ROW(accmeth2),COLUMN(accyr10))),"") -> 258636.1595 | Y19: =IFERROR(INDIRECT("'"&Y$2&"_Acceptors of LAPM'!" & ADDRESS(ROW(accmeth2),COLUMN(accyr1))),"") -> 27692.54699 | Z19: =IFERROR(INDIRECT("'"&Z$2&"_Acceptors of LAPM'!" & ADDRESS(ROW(accmeth2),COLUMN(accyr2))),"") -> 21722.95075 | AA19: =IFERROR(INDIRECT("'"&AA$2&"_Acceptors of LAPM'!" & ADDRESS(ROW(accmeth2),COLUMN(accyr3))),"") -> 45193.98687 | AB19: =IFERROR(INDIRECT("'"&AB$2&"_Acceptors of LAPM'!" & ADDRESS(ROW(accmeth2),COLUMN(accyr4))),"") -> 70479.42619 | AC19: =IFERROR(INDIRECT("'"&AC$2&"_Acceptors of LAPM'!" & ADDRESS(ROW(accmeth2),COLUMN(accyr5))),"") -> 97494.67242 | AD19: =IFERROR(INDIRECT("'"&AD$2&"_Acceptors of LAPM'!" & ADDRESS(ROW(accmeth2),COLUMN(accyr6))),"") -> 126195.694 | AE19: =IFERROR(INDIRECT("'"&AE$2&"_Acceptors of LAPM'!" & ADDRESS(ROW(accmeth2),COLUMN(accyr7))),"") -> 156704.7175 | AF19: =IFERROR(INDIRECT("'"&AF$2&"_Acceptors of LAPM'!" & ADDRESS(ROW(accmeth2),COLUMN(accyr8))),"") -> 188959.6908 | AG19: =IFERROR(INDIRECT("'"&AG$2&"_Acceptors of LAPM'!" & ADDRESS(ROW(accmeth2),COLUMN(accyr9))),"") -> 222908.578 | AH19: =IFERROR(INDIRECT("'"&AH$2&"_Acceptors of LAPM'!" & ADDRESS(ROW(accmeth2),COLUMN(accyr10))),"") -> 258636.1595
B20: Acceptantes du DIU* | C20: =IFERROR(INDIRECT("'"&C$2&"_Acceptors of LAPM'!" & ADDRESS(ROW(accmeth3),COLUMN(accyr1))),"") -> 26801.88619 | D20: =IFERROR(INDIRECT("'"&D$2&"_Acceptors of LAPM'!" & ADDRESS(ROW(accmeth3),COLUMN(accyr2))),"") -> 22187.65761 | E20: =IFERROR(INDIRECT("'"&E$2&"_Acceptors of LAPM'!" & ADDRESS(ROW(accmeth3),COLUMN(accyr3))),"") -> 25129.56887 | F20: =IFERROR(INDIRECT("'"&F$2&"_Acceptors of LAPM'!" & ADDRESS(ROW(accmeth3),COLUMN(accyr4))),"") -> 26799.59638 | G20: =IFERROR(INDIRECT("'"&G$2&"_Acceptors of LAPM'!" & ADDRESS(ROW(accmeth3),COLUMN(accyr5))),"") -> 28406.87355 | H20: =IFERROR(INDIRECT("'"&H$2&"_Acceptors of LAPM'!" & ADDRESS(ROW(accmeth3),COLUMN(accyr6))),"") -> 30032.74092 | I20: =IFERROR(INDIRECT("'"&I$2&"_Acceptors of LAPM'!" & ADDRESS(ROW(accmeth3),COLUMN(accyr7))),"") -> 31682.67041 | J20: =IFERROR(INDIRECT("'"&J$2&"_Acceptors of LAPM'!" & ADDRESS(ROW(accmeth3),COLUMN(accyr8))),"") -> 33357.03012 | K20: =IFERROR(INDIRECT("'"&K$2&"_Acceptors of LAPM'!" & ADDRESS(ROW(accmeth3),COLUMN(accyr9))),"") -> 35055.84483 | L20: =IFERROR(INDIRECT("'"&L$2&"_Acceptors of LAPM'!" & ADDRESS(ROW(accmeth3),COLUMN(accyr10))),"") -> 36779.11619 | N20: =IFERROR(INDIRECT("'"&N$2&"_Acceptors of LAPM'!" & ADDRESS(ROW(accmeth3),COLUMN(accyr1))),"") -> 26801.88619 | O20: =IFERROR(INDIRECT("'"&O$2&"_Acceptors of LAPM'!" & ADDRESS(ROW(accmeth3),COLUMN(accyr2))),"") -> 22187.65761 | P20: =IFERROR(INDIRECT("'"&P$2&"_Acceptors of LAPM'!" & ADDRESS(ROW(accmeth3),COLUMN(accyr3))),"") -> 25129.56887 | Q20: =IFERROR(INDIRECT("'"&Q$2&"_Acceptors of LAPM'!" & ADDRESS(ROW(accmeth3),COLUMN(accyr4))),"") -> 26799.59638 | R20: =IFERROR(INDIRECT("'"&R$2&"_Acceptors of LAPM'!" & ADDRESS(ROW(accmeth3),COLUMN(accyr5))),"") -> 28406.87355 | S20: =IFERROR(INDIRECT("'"&S$2&"_Acceptors of LAPM'!" & ADDRESS(ROW(accmeth3),COLUMN(accyr6))),"") -> 30032.74092 | T20: =IFERROR(INDIRECT("'"&T$2&"_Acceptors of LAPM'!" & ADDRESS(ROW(accmeth3),COLUMN(accyr7))),"") -> 31682.67041 | U20: =IFERROR(INDIRECT("'"&U$2&"_Acceptors of LAPM'!" & ADDRESS(ROW(accmeth3),COLUMN(accyr8))),"") -> 33357.03012 | V20: =IFERROR(INDIRECT("'"&V$2&"_Acceptors of LAPM'!" & ADDRESS(ROW(accmeth3),COLUMN(accyr9))),"") -> 35055.84483 | W20: =IFERROR(INDIRECT("'"&W$2&"_Acceptors of LAPM'!" & ADDRESS(ROW(accmeth3),COLUMN(accyr10))),"") -> 36779.11619 | Y20: =IFERROR(INDIRECT("'"&Y$2&"_Acceptors of LAPM'!" & ADDRESS(ROW(accmeth3),COLUMN(accyr1))),"") -> 26801.88619 | Z20: =IFERROR(INDIRECT("'"&Z$2&"_Acceptors of LAPM'!" & ADDRESS(ROW(accmeth3),COLUMN(accyr2))),"") -> 22187.65761 | AA20: =IFERROR(INDIRECT("'"&AA$2&"_Acceptors of LAPM'!" & ADDRESS(ROW(accmeth3),COLUMN(accyr3))),"") -> 25129.56887 | AB20: =IFERROR(INDIRECT("'"&AB$2&"_Acceptors of LAPM'!" & ADDRESS(ROW(accmeth3),COLUMN(accyr4))),"") -> 26799.59638 | AC20: =IFERROR(INDIRECT("'"&AC$2&"_Acceptors of LAPM'!" & ADDRESS(ROW(accmeth3),COLUMN(accyr5))),"") -> 28406.87355 | AD20: =IFERROR(INDIRECT("'"&AD$2&"_Acceptors of LAPM'!" & ADDRESS(ROW(accmeth3),COLUMN(accyr6))),"") -> 30032.74092 | AE20: =IFERROR(INDIRECT("'"&AE$2&"_Acceptors of LAPM'!" & ADDRESS(ROW(accmeth3),COLUMN(accyr7))),"") -> 31682.67041 | AF20: =IFERROR(INDIRECT("'"&AF$2&"_Acceptors of LAPM'!" & ADDRESS(ROW(accmeth3),COLUMN(accyr8))),"") -> 33357.03012 | AG20: =IFERROR(INDIRECT("'"&AG$2&"_Acceptors of LAPM'!" & ADDRESS(ROW(accmeth3),COLUMN(accyr9))),"") -> 35055.84483 | AH20: =IFERROR(INDIRECT("'"&AH$2&"_Acceptors of LAPM'!" & ADDRESS(ROW(accmeth3),COLUMN(accyr10))),"") -> 36779.11619
B21: Acceptantes des implants* | C21: =IFERROR(INDIRECT("'"&C$2&"_Acceptors of LAPM'!" & ADDRESS(ROW(accmeth4),COLUMN(accyr1))),"") -> 42914.50398 | D21: =IFERROR(INDIRECT("'"&D$2&"_Acceptors of LAPM'!" & ADDRESS(ROW(accmeth4),COLUMN(accyr2))),"") -> 28885.32411 | E21: =IFERROR(INDIRECT("'"&E$2&"_Acceptors of LAPM'!" & ADDRESS(ROW(accmeth4),COLUMN(accyr3))),"") -> 35122.58235 | F21: =IFERROR(INDIRECT("'"&F$2&"_Acceptors of LAPM'!" & ADDRESS(ROW(accmeth4),COLUMN(accyr4))),"") -> 40128.23796 | G21: =IFERROR(INDIRECT("'"&G$2&"_Acceptors of LAPM'!" & ADDRESS(ROW(accmeth4),COLUMN(accyr5))),"") -> 45087.39528 | H21: =IFERROR(INDIRECT("'"&H$2&"_Acceptors of LAPM'!" & ADDRESS(ROW(accmeth4),COLUMN(accyr6))),"") -> 50065.63341 | I21: =IFERROR(INDIRECT("'"&I$2&"_Acceptors of LAPM'!" & ADDRESS(ROW(accmeth4),COLUMN(accyr7))),"") -> 43380.00563 | J21: =IFERROR(INDIRECT("'"&J$2&"_Acceptors of LAPM'!" & ADDRESS(ROW(accmeth4),COLUMN(accyr8))),"") -> 56659.29641 | K21: =IFERROR(INDIRECT("'"&K$2&"_Acceptors of LAPM'!" & ADDRESS(ROW(accmeth4),COLUMN(accyr9))),"") -> 51343.98334 | L21: =IFERROR(INDIRECT("'"&L$2&"_Acceptors of LAPM'!" & ADDRESS(ROW(accmeth4),COLUMN(accyr10))),"") -> 54566.8561 | N21: =IFERROR(INDIRECT("'"&N$2&"_Acceptors of LAPM'!" & ADDRESS(ROW(accmeth4),COLUMN(accyr1))),"") -> 42914.50398 | O21: =IFERROR(INDIRECT("'"&O$2&"_Acceptors of LAPM'!" & ADDRESS(ROW(accmeth4),COLUMN(accyr2))),"") -> 28885.32411 | P21: =IFERROR(INDIRECT("'"&P$2&"_Acceptors of LAPM'!" & ADDRESS(ROW(accmeth4),COLUMN(accyr3))),"") -> 35122.58235 | Q21: =IFERROR(INDIRECT("'"&Q$2&"_Acceptors of LAPM'!" & ADDRESS(ROW(accmeth4),COLUMN(accyr4))),"") -> 40128.23796 | R21: =IFERROR(INDIRECT("'"&R$2&"_Acceptors of LAPM'!" & ADDRESS(ROW(accmeth4),COLUMN(accyr5))),"") -> 45087.39528 | S21: =IFERROR(INDIRECT("'"&S$2&"_Acceptors of LAPM'!" & ADDRESS(ROW(accmeth4),COLUMN(accyr6))),"") -> 50065.63341 | T21: =IFERROR(INDIRECT("'"&T$2&"_Acceptors of LAPM'!" & ADDRESS(ROW(accmeth4),COLUMN(accyr7))),"") -> 43380.00563 | U21: =IFERROR(INDIRECT("'"&U$2&"_Acceptors of LAPM'!" & ADDRESS(ROW(accmeth4),COLUMN(accyr8))),"") -> 56659.29641 | V21: =IFERROR(INDIRECT("'"&V$2&"_Acceptors of LAPM'!" & ADDRESS(ROW(accmeth4),COLUMN(accyr9))),"") -> 51343.98334 | W21: =IFERROR(INDIRECT("'"&W$2&"_Acceptors of LAPM'!" & ADDRESS(ROW(accmeth4),COLUMN(accyr10))),"") -> 54566.8561 | Y21: =IFERROR(INDIRECT("'"&Y$2&"_Acceptors of LAPM'!" & ADDRESS(ROW(accmeth4),COLUMN(accyr1))),"") -> 42914.50398 | Z21: =IFERROR(INDIRECT("'"&Z$2&"_Acceptors of LAPM'!" & ADDRESS(ROW(accmeth4),COLUMN(accyr2))),"") -> 28885.32411 | AA21: =IFERROR(INDIRECT("'"&AA$2&"_Acceptors of LAPM'!" & ADDRESS(ROW(accmeth4),COLUMN(accyr3))),"") -> 35122.58235 | AB21: =IFERROR(INDIRECT("'"&AB$2&"_Acceptors of LAPM'!" & ADDRESS(ROW(accmeth4),COLUMN(accyr4))),"") -> 40128.23796 | AC21: =IFERROR(INDIRECT("'"&AC$2&"_Acceptors of LAPM'!" & ADDRESS(ROW(accmeth4),COLUMN(accyr5))),"") -> 45087.39528 | AD21: =IFERROR(INDIRECT("'"&AD$2&"_Acceptors of LAPM'!" & ADDRESS(ROW(accmeth4),COLUMN(accyr6))),"") -> 50065.63341 | AE21: =IFERROR(INDIRECT("'"&AE$2&"_Acceptors of LAPM'!" & ADDRESS(ROW(accmeth4),COLUMN(accyr7))),"") -> 43380.00563 | AF21: =IFERROR(INDIRECT("'"&AF$2&"_Acceptors of LAPM'!" & ADDRESS(ROW(accmeth4),COLUMN(accyr8))),"") -> 56659.29641 | AG21: =IFERROR(INDIRECT("'"&AG$2&"_Acceptors of LAPM'!" & ADDRESS(ROW(accmeth4),COLUMN(accyr9))),"") -> 51343.98334 | AH21: =IFERROR(INDIRECT("'"&AH$2&"_Acceptors of LAPM'!" & ADDRESS(ROW(accmeth4),COLUMN(accyr10))),"") -> 54566.8561
B22: Acceptantes de la MJF | C22: =IFERROR(INDIRECT("'"&C$2&"_Acceptors of LAPM'!" & ADDRESS(ROW(accmeth5),COLUMN(accyr1))),"") -> 0 | D22: =IFERROR(INDIRECT("'"&D$2&"_Acceptors of LAPM'!" & ADDRESS(ROW(accmeth5),COLUMN(accyr2))),"") -> 0 | E22: =IFERROR(INDIRECT("'"&E$2&"_Acceptors of LAPM'!" & ADDRESS(ROW(accmeth5),COLUMN(accyr3))),"") -> 0 | F22: =IFERROR(INDIRECT("'"&F$2&"_Acceptors of LAPM'!" & ADDRESS(ROW(accmeth5),COLUMN(accyr4))),"") -> 0 | G22: =IFERROR(INDIRECT("'"&G$2&"_Acceptors of LAPM'!" & ADDRESS(ROW(accmeth5),COLUMN(accyr5))),"") -> 0 | H22: =IFERROR(INDIRECT("'"&H$2&"_Acceptors of LAPM'!" & ADDRESS(ROW(accmeth5),COLUMN(accyr6))),"") -> 0 | I22: =IFERROR(INDIRECT("'"&I$2&"_Acceptors of LAPM'!" & ADDRESS(ROW(accmeth5),COLUMN(accyr7))),"") -> 0 | J22: =IFERROR(INDIRECT("'"&J$2&"_Acceptors of LAPM'!" & ADDRESS(ROW(accmeth5),COLUMN(accyr8))),"") -> 0 | K22: =IFERROR(INDIRECT("'"&K$2&"_Acceptors of LAPM'!" & ADDRESS(ROW(accmeth5),COLUMN(accyr9))),"") -> 0 | L22: =IFERROR(INDIRECT("'"&L$2&"_Acceptors of LAPM'!" & ADDRESS(ROW(accmeth5),COLUMN(accyr10))),"") -> 0 | N22: =IFERROR(INDIRECT("'"&N$2&"_Acceptors of LAPM'!" & ADDRESS(ROW(accmeth5),COLUMN(accyr1))),"") -> 0 | O22: =IFERROR(INDIRECT("'"&O$2&"_Acceptors of LAPM'!" & ADDRESS(ROW(accmeth5),COLUMN(accyr2))),"") -> 0 | P22: =IFERROR(INDIRECT("'"&P$2&"_Acceptors of LAPM'!" & ADDRESS(ROW(accmeth5),COLUMN(accyr3))),"") -> 0 | Q22: =IFERROR(INDIRECT("'"&Q$2&"_Acceptors of LAPM'!" & ADDRESS(ROW(accmeth5),COLUMN(accyr4))),"") -> 0 | R22: =IFERROR(INDIRECT("'"&R$2&"_Acceptors of LAPM'!" & ADDRESS(ROW(accmeth5),COLUMN(accyr5))),"") -> 0 | S22: =IFERROR(INDIRECT("'"&S$2&"_Acceptors of LAPM'!" & ADDRESS(ROW(accmeth5),COLUMN(accyr6))),"") -> 0 | T22: =IFERROR(INDIRECT("'"&T$2&"_Acceptors of LAPM'!" & ADDRESS(ROW(accmeth5),COLUMN(accyr7))),"") -> 0 | U22: =IFERROR(INDIRECT("'"&U$2&"_Acceptors of LAPM'!" & ADDRESS(ROW(accmeth5),COLUMN(accyr8))),"") -> 0 | V22: =IFERROR(INDIRECT("'"&V$2&"_Acceptors of LAPM'!" & ADDRESS(ROW(accmeth5),COLUMN(accyr9))),"") -> 0 | W22: =IFERROR(INDIRECT("'"&W$2&"_Acceptors of LAPM'!" & ADDRESS(ROW(accmeth5),COLUMN(accyr10))),"") -> 0 | Y22: =IFERROR(INDIRECT("'"&Y$2&"_Acceptors of LAPM'!" & ADDRESS(ROW(accmeth5),COLUMN(accyr1))),"") -> 0 | Z22: =IFERROR(INDIRECT("'"&Z$2&"_Acceptors of LAPM'!" & ADDRESS(ROW(accmeth5),COLUMN(accyr2))),"") -> 0 | AA22: =IFERROR(INDIRECT("'"&AA$2&"_Acceptors of LAPM'!" & ADDRESS(ROW(accmeth5),COLUMN(accyr3))),"") -> 0 | AB22: =IFERROR(INDIRECT("'"&AB$2&"_Acceptors of LAPM'!" & ADDRESS(ROW(accmeth5),COLUMN(accyr4))),"") -> 0 | AC22: =IFERROR(INDIRECT("'"&AC$2&"_Acceptors of LAPM'!" & ADDRESS(ROW(accmeth5),COLUMN(accyr5))),"") -> 0 | AD22: =IFERROR(INDIRECT("'"&AD$2&"_Acceptors of LAPM'!" & ADDRESS(ROW(accmeth5),COLUMN(accyr6))),"") -> 0 | AE22: =IFERROR(INDIRECT("'"&AE$2&"_Acceptors of LAPM'!" & ADDRESS(ROW(accmeth5),COLUMN(accyr7))),"") -> 0 | AF22: =IFERROR(INDIRECT("'"&AF$2&"_Acceptors of LAPM'!" & ADDRESS(ROW(accmeth5),COLUMN(accyr8))),"") -> 0 | AG22: =IFERROR(INDIRECT("'"&AG$2&"_Acceptors of LAPM'!" & ADDRESS(ROW(accmeth5),COLUMN(accyr9))),"") -> 0 | AH22: =IFERROR(INDIRECT("'"&AH$2&"_Acceptors of LAPM'!" & ADDRESS(ROW(accmeth5),COLUMN(accyr10))),"") -> 0
B23: Total Acceptors | C23: =SUM(C18:C22) -> 97408.93716 | D23: =SUM(D18:D22) -> 72795.93247 | E23: 105446.1381 | F23: 137407.2605 | G23: 170988.9412 | H23: 206294.0684 | I23: 231767.3936 | J23: 278976.0173 | K23: 309308.4062 | L23: 349982.1318 | N23: =SUM(N18:N22) -> 97408.93716 | O23: =SUM(O18:O22) -> 72795.93247 | P23: 105446.1381 | Q23: 137407.2605 | R23: 170988.9412 | S23: 206294.0684 | T23: 231767.3936 | U23: 278976.0173 | V23: 309308.4062 | W23: 349982.1318 | Y23: =SUM(Y18:Y22) -> 97408.93716 | Z23: =SUM(Z18:Z22) -> 72795.93247 | AA23: 105446.1381 | AB23: 137407.2605 | AC23: 170988.9412 | AD23: 206294.0684 | AE23: 231767.3936 | AF23: 278976.0173 | AG23: 309308.4062 | AH23: 349982.1318
A24: Pregnancy Rate | C24: =IF(inUsualPR=1,0.23,IF(inUsualPR=2,0.31,0.38)) -> 0.31 | D24: 0.31 | E24: 0.31 | F24: 0.31 | G24: 0.31 | H24: 0.31 | I24: 0.31 | J24: 0.31 | K24: 0.31 | L24: 0.31 | N24: =IF(inScen1PR=1,0.23,IF(inScen1PR=2,0.31,0.38)) -> 0.31 | O24: 0.31 | P24: 0.31 | Q24: 0.31 | R24: 0.31 | S24: 0.31 | T24: 0.31 | U24: 0.31 | V24: 0.31 | W24: 0.31 | Y24: =IF(inScen2PR=1,0.23,IF(inScen2PR=2,0.31,0.38)) -> 0.31 | Z24: 0.31 | AA24: 0.31 | AB24: 0.31 | AC24: 0.31 | AD24: 0.31 | AE24: 0.31 | AF24: 0.31 | AG24: 0.31 | AH24: 0.31
A25: Average Age of Users of LAPM
B26: Stérilisation masculine | C26: =IFERROR(INDIRECT("'"&C$2&"_Acceptors of LAPM'!"&ADDRESS(ROW(accMeth1AvgAge),COLUMN(accyr1))),"") ->  | D26: =IFERROR(INDIRECT("'"&D$2&"_Acceptors of LAPM'!"&ADDRESS(ROW(accMeth1AvgAge),COLUMN(accyr2))),"") ->  | E26: =IFERROR(INDIRECT("'"&E$2&"_Acceptors of LAPM'!"&ADDRESS(ROW(accMeth1AvgAge),COLUMN(accyr3))),"") ->  | F26: =IFERROR(INDIRECT("'"&F$2&"_Acceptors of LAPM'!"&ADDRESS(ROW(accMeth1AvgAge),COLUMN(accyr4))),"") ->  | G26: =IFERROR(INDIRECT("'"&G$2&"_Acceptors of LAPM'!"&ADDRESS(ROW(accMeth1AvgAge),COLUMN(accyr5))),"") ->  | H26: =IFERROR(INDIRECT("'"&H$2&"_Acceptors of LAPM'!"&ADDRESS(ROW(accMeth1AvgAge),COLUMN(accyr6))),"") ->  | I26: =IFERROR(INDIRECT("'"&I$2&"_Acceptors of LAPM'!"&ADDRESS(ROW(accMeth1AvgAge),COLUMN(accyr7))),"") ->  | J26: =IFERROR(INDIRECT("'"&J$2&"_Acceptors of LAPM'!"&ADDRESS(ROW(accMeth1AvgAge),COLUMN(accyr8))),"") ->  | K26: =IFERROR(INDIRECT("'"&K$2&"_Acceptors of LAPM'!"&ADDRESS(ROW(accMeth1AvgAge),COLUMN(accyr9))),"") ->  | L26: =IFERROR(INDIRECT("'"&L$2&"_Acceptors of LAPM'!"&ADDRESS(ROW(accMeth1AvgAge),COLUMN(accyr10))),"") ->  | N26: =IFERROR(INDIRECT("'"&N$2&"_Acceptors of LAPM'!"&ADDRESS(ROW(accMeth1AvgAge),COLUMN(accyr1))),"") ->  | O26: =IFERROR(INDIRECT("'"&O$2&"_Acceptors of LAPM'!"&ADDRESS(ROW(accMeth1AvgAge),COLUMN(accyr2))),"") ->  | P26: =IFERROR(INDIRECT("'"&P$2&"_Acceptors of LAPM'!"&ADDRESS(ROW(accMeth1AvgAge),COLUMN(accyr3))),"") ->  | Q26: =IFERROR(INDIRECT("'"&Q$2&"_Acceptors of LAPM'!"&ADDRESS(ROW(accMeth1AvgAge),COLUMN(accyr4))),"") ->  | R26: =IFERROR(INDIRECT("'"&R$2&"_Acceptors of LAPM'!"&ADDRESS(ROW(accMeth1AvgAge),COLUMN(accyr5))),"") ->  | S26: =IFERROR(INDIRECT("'"&S$2&"_Acceptors of LAPM'!"&ADDRESS(ROW(accMeth1AvgAge),COLUMN(accyr6))),"") ->  | T26: =IFERROR(INDIRECT("'"&T$2&"_Acceptors of LAPM'!"&ADDRESS(ROW(accMeth1AvgAge),COLUMN(accyr7))),"") ->  | U26: =IFERROR(INDIRECT("'"&U$2&"_Acceptors of LAPM'!"&ADDRESS(ROW(accMeth1AvgAge),COLUMN(accyr8))),"") ->  | V26: =IFERROR(INDIRECT("'"&V$2&"_Acceptors of LAPM'!"&ADDRESS(ROW(accMeth1AvgAge),COLUMN(accyr9))),"") ->  | W26: =IFERROR(INDIRECT("'"&W$2&"_Acceptors of LAPM'!"&ADDRESS(ROW(accMeth1AvgAge),COLUMN(accyr10))),"") ->  | Y26: =IFERROR(INDIRECT("'"&Y$2&"_Acceptors of LAPM'!"&ADDRESS(ROW(accMeth1AvgAge),COLUMN(accyr1))),"") ->  | Z26: =IFERROR(INDIRECT("'"&Z$2&"_Acceptors of LAPM'!"&ADDRESS(ROW(accMeth1AvgAge),COLUMN(accyr2))),"") ->  | AA26: =IFERROR(INDIRECT("'"&AA$2&"_Acceptors of LAPM'!"&ADDRESS(ROW(accMeth1AvgAge),COLUMN(accyr3))),"") ->  | AB26: =IFERROR(INDIRECT("'"&AB$2&"_Acceptors of LAPM'!"&ADDRESS(ROW(accMeth1AvgAge),COLUMN(accyr4))),"") ->  | AC26: =IFERROR(INDIRECT("'"&AC$2&"_Acceptors of LAPM'!"&ADDRESS(ROW(accMeth1AvgAge),COLUMN(accyr5))),"") ->  | AD26: =IFERROR(INDIRECT("'"&AD$2&"_Acceptors of LAPM'!"&ADDRESS(ROW(accMeth1AvgAge),COLUMN(accyr6))),"") ->  | AE26: =IFERROR(INDIRECT("'"&AE$2&"_Acceptors of LAPM'!"&ADDRESS(ROW(accMeth1AvgAge),COLUMN(accyr7))),"") ->  | AF26: =IFERROR(INDIRECT("'"&AF$2&"_Acceptors of LAPM'!"&ADDRESS(ROW(accMeth1AvgAge),COLUMN(accyr8))),"") ->  | AG26: =IFERROR(INDIRECT("'"&AG$2&"_Acceptors of LAPM'!"&ADDRESS(ROW(accMeth1AvgAge),COLUMN(accyr9))),"") ->  | AH26: =IFERROR(INDIRECT("'"&AH$2&"_Acceptors of LAPM'!"&ADDRESS(ROW(accMeth1AvgAge),COLUMN(accyr10))),"") -> 
B27: Stérilisation féminine | C27: =IFERROR(INDIRECT("'"&C$2&"_Acceptors of LAPM'!"&ADDRESS(ROW(accMeth2AvgAge),COLUMN(accyr1))),"") -> 38.34260886 | D27: =IFERROR(INDIRECT("'"&D$2&"_Acceptors of LAPM'!"&ADDRESS(ROW(accMeth2AvgAge),COLUMN(accyr2))),"") -> 38.6535999 | E27: =IFERROR(INDIRECT("'"&E$2&"_Acceptors of LAPM'!"&ADDRESS(ROW(accMeth2AvgAge),COLUMN(accyr3))),"") -> 38.83678422 | F27: =IFERROR(INDIRECT("'"&F$2&"_Acceptors of LAPM'!"&ADDRESS(ROW(accMeth2AvgAge),COLUMN(accyr4))),"") -> 38.90463293 | G27: =IFERROR(INDIRECT("'"&G$2&"_Acceptors of LAPM'!"&ADDRESS(ROW(accMeth2AvgAge),COLUMN(accyr5))),"") -> 38.87124622 | H27: =IFERROR(INDIRECT("'"&H$2&"_Acceptors of LAPM'!"&ADDRESS(ROW(accMeth2AvgAge),COLUMN(accyr6))),"") -> 38.74888675 | I27: =IFERROR(INDIRECT("'"&I$2&"_Acceptors of LAPM'!"&ADDRESS(ROW(accMeth2AvgAge),COLUMN(accyr7))),"") -> 38.54374503 | J27: =IFERROR(INDIRECT("'"&J$2&"_Acceptors of LAPM'!"&ADDRESS(ROW(accMeth2AvgAge),COLUMN(accyr8))),"") -> 38.26570307 | K27: =IFERROR(INDIRECT("'"&K$2&"_Acceptors of LAPM'!"&ADDRESS(ROW(accMeth2AvgAge),COLUMN(accyr9))),"") -> 37.92346497 | L27: =IFERROR(INDIRECT("'"&L$2&"_Acceptors of LAPM'!"&ADDRESS(ROW(accMeth2AvgAge),COLUMN(accyr10))),"") -> 37.52090202 | N27: =IFERROR(INDIRECT("'"&N$2&"_Acceptors of LAPM'!"&ADDRESS(ROW(accMeth2AvgAge),COLUMN(accyr1))),"") -> 38.34260886 | O27: =IFERROR(INDIRECT("'"&O$2&"_Acceptors of LAPM'!"&ADDRESS(ROW(accMeth2AvgAge),COLUMN(accyr2))),"") -> 38.6535999 | P27: =IFERROR(INDIRECT("'"&P$2&"_Acceptors of LAPM'!"&ADDRESS(ROW(accMeth2AvgAge),COLUMN(accyr3))),"") -> 38.83678422 | Q27: =IFERROR(INDIRECT("'"&Q$2&"_Acceptors of LAPM'!"&ADDRESS(ROW(accMeth2AvgAge),COLUMN(accyr4))),"") -> 38.90463293 | R27: =IFERROR(INDIRECT("'"&R$2&"_Acceptors of LAPM'!"&ADDRESS(ROW(accMeth2AvgAge),COLUMN(accyr5))),"") -> 38.87124622 | S27: =IFERROR(INDIRECT("'"&S$2&"_Acceptors of LAPM'!"&ADDRESS(ROW(accMeth2AvgAge),COLUMN(accyr6))),"") -> 38.74888675 | T27: =IFERROR(INDIRECT("'"&T$2&"_Acceptors of LAPM'!"&ADDRESS(ROW(accMeth2AvgAge),COLUMN(accyr7))),"") -> 38.54374503 | U27: =IFERROR(INDIRECT("'"&U$2&"_Acceptors of LAPM'!"&ADDRESS(ROW(accMeth2AvgAge),COLUMN(accyr8))),"") -> 38.26570307 | V27: =IFERROR(INDIRECT("'"&V$2&"_Acceptors of LAPM'!"&ADDRESS(ROW(accMeth2AvgAge),COLUMN(accyr9))),"") -> 37.92346497 | W27: =IFERROR(INDIRECT("'"&W$2&"_Acceptors of LAPM'!"&ADDRESS(ROW(accMeth2AvgAge),COLUMN(accyr10))),"") -> 37.52090202 | Y27: =IFERROR(INDIRECT("'"&Y$2&"_Acceptors of LAPM'!"&ADDRESS(ROW(accMeth2AvgAge),COLUMN(accyr1))),"") -> 38.34260886 | Z27: =IFERROR(INDIRECT("'"&Z$2&"_Acceptors of LAPM'!"&ADDRESS(ROW(accMeth2AvgAge),COLUMN(accyr2))),"") -> 38.6535999 | AA27: =IFERROR(INDIRECT("'"&AA$2&"_Acceptors of LAPM'!"&ADDRESS(ROW(accMeth2AvgAge),COLUMN(accyr3))),"") -> 38.83678422 | AB27: =IFERROR(INDIRECT("'"&AB$2&"_Acceptors of LAPM'!"&ADDRESS(ROW(accMeth2AvgAge),COLUMN(accyr4))),"") -> 38.90463293 | AC27: =IFERROR(INDIRECT("'"&AC$2&"_Acceptors of LAPM'!"&ADDRESS(ROW(accMeth2AvgAge),COLUMN(accyr5))),"") -> 38.87124622 | AD27: =IFERROR(INDIRECT("'"&AD$2&"_Acceptors of LAPM'!"&ADDRESS(ROW(accMeth2AvgAge),COLUMN(accyr6))),"") -> 38.74888675 | AE27: =IFERROR(INDIRECT("'"&AE$2&"_Acceptors of LAPM'!"&ADDRESS(ROW(accMeth2AvgAge),COLUMN(accyr7))),"") -> 38.54374503 | AF27: =IFERROR(INDIRECT("'"&AF$2&"_Acceptors of LAPM'!"&ADDRESS(ROW(accMeth2AvgAge),COLUMN(accyr8))),"") -> 38.26570307 | AG27: =IFERROR(INDIRECT("'"&AG$2&"_Acceptors of LAPM'!"&ADDRESS(ROW(accMeth2AvgAge),COLUMN(accyr9))),"") -> 37.92346497 | AH27: =IFERROR(INDIRECT("'"&AH$2&"_Acceptors of LAPM'!"&ADDRESS(ROW(accMeth2AvgAge),COLUMN(accyr10))),"") -> 37.52090202
B28: DIU | C28: =IFERROR(INDIRECT("'"&C$2&"_Acceptors of LAPM'!"&ADDRESS(ROW(accMeth3AvgAge),COLUMN(accyr1))),"") -> 32.22281198 | D28: =IFERROR(INDIRECT("'"&D$2&"_Acceptors of LAPM'!"&ADDRESS(ROW(accMeth3AvgAge),COLUMN(accyr2))),"") -> 32.48147094 | E28: =IFERROR(INDIRECT("'"&E$2&"_Acceptors of LAPM'!"&ADDRESS(ROW(accMeth3AvgAge),COLUMN(accyr3))),"") -> 32.64329142 | F28: =IFERROR(INDIRECT("'"&F$2&"_Acceptors of LAPM'!"&ADDRESS(ROW(accMeth3AvgAge),COLUMN(accyr4))),"") -> 32.74431388 | G28: =IFERROR(INDIRECT("'"&G$2&"_Acceptors of LAPM'!"&ADDRESS(ROW(accMeth3AvgAge),COLUMN(accyr5))),"") -> 32.80087344 | H28: =IFERROR(INDIRECT("'"&H$2&"_Acceptors of LAPM'!"&ADDRESS(ROW(accMeth3AvgAge),COLUMN(accyr6))),"") -> 32.82474772 | I28: =IFERROR(INDIRECT("'"&I$2&"_Acceptors of LAPM'!"&ADDRESS(ROW(accMeth3AvgAge),COLUMN(accyr7))),"") -> 32.82489033 | J28: =IFERROR(INDIRECT("'"&J$2&"_Acceptors of LAPM'!"&ADDRESS(ROW(accMeth3AvgAge),COLUMN(accyr8))),"") -> 32.80812817 | K28: =IFERROR(INDIRECT("'"&K$2&"_Acceptors of LAPM'!"&ADDRESS(ROW(accMeth3AvgAge),COLUMN(accyr9))),"") -> 32.77965519 | L28: =IFERROR(INDIRECT("'"&C$2&"_Acceptors of LAPM'!"&ADDRESS(ROW(accMeth3AvgAge),COLUMN(accyr10))),"") -> 32.74340858 | N28: =IFERROR(INDIRECT("'"&N$2&"_Acceptors of LAPM'!"&ADDRESS(ROW(accMeth3AvgAge),COLUMN(accyr1))),"") -> 32.22281198 | O28: =IFERROR(INDIRECT("'"&O$2&"_Acceptors of LAPM'!"&ADDRESS(ROW(accMeth3AvgAge),COLUMN(accyr2))),"") -> 32.48147094 | P28: =IFERROR(INDIRECT("'"&P$2&"_Acceptors of LAPM'!"&ADDRESS(ROW(accMeth3AvgAge),COLUMN(accyr3))),"") -> 32.64329142 | Q28: =IFERROR(INDIRECT("'"&Q$2&"_Acceptors of LAPM'!"&ADDRESS(ROW(accMeth3AvgAge),COLUMN(accyr4))),"") -> 32.74431388 | R28: =IFERROR(INDIRECT("'"&R$2&"_Acceptors of LAPM'!"&ADDRESS(ROW(accMeth3AvgAge),COLUMN(accyr5))),"") -> 32.80087344 | S28: =IFERROR(INDIRECT("'"&S$2&"_Acceptors of LAPM'!"&ADDRESS(ROW(accMeth3AvgAge),COLUMN(accyr6))),"") -> 32.82474772 | T28: =IFERROR(INDIRECT("'"&T$2&"_Acceptors of LAPM'!"&ADDRESS(ROW(accMeth3AvgAge),COLUMN(accyr7))),"") -> 32.82489033 | U28: =IFERROR(INDIRECT("'"&U$2&"_Acceptors of LAPM'!"&ADDRESS(ROW(accMeth3AvgAge),COLUMN(accyr8))),"") -> 32.80812817 | V28: =IFERROR(INDIRECT("'"&V$2&"_Acceptors of LAPM'!"&ADDRESS(ROW(accMeth3AvgAge),COLUMN(accyr9))),"") -> 32.77965519 | W28: =IFERROR(INDIRECT("'"&N$2&"_Acceptors of LAPM'!"&ADDRESS(ROW(accMeth3AvgAge),COLUMN(accyr10))),"") -> 32.74340858 | Y28: =IFERROR(INDIRECT("'"&Y$2&"_Acceptors of LAPM'!"&ADDRESS(ROW(accMeth3AvgAge),COLUMN(accyr1))),"") -> 32.22281198 | Z28: =IFERROR(INDIRECT("'"&Z$2&"_Acceptors of LAPM'!"&ADDRESS(ROW(accMeth3AvgAge),COLUMN(accyr2))),"") -> 32.48147094 | AA28: =IFERROR(INDIRECT("'"&AA$2&"_Acceptors of LAPM'!"&ADDRESS(ROW(accMeth3AvgAge),COLUMN(accyr3))),"") -> 32.64329142 | AB28: =IFERROR(INDIRECT("'"&AB$2&"_Acceptors of LAPM'!"&ADDRESS(ROW(accMeth3AvgAge),COLUMN(accyr4))),"") -> 32.74431388 | AC28: =IFERROR(INDIRECT("'"&AC$2&"_Acceptors of LAPM'!"&ADDRESS(ROW(accMeth3AvgAge),COLUMN(accyr5))),"") -> 32.80087344 | AD28: =IFERROR(INDIRECT("'"&AD$2&"_Acceptors of LAPM'!"&ADDRESS(ROW(accMeth3AvgAge),COLUMN(accyr6))),"") -> 32.82474772 | AE28: =IFERROR(INDIRECT("'"&AE$2&"_Acceptors of LAPM'!"&ADDRESS(ROW(accMeth3AvgAge),COLUMN(accyr7))),"") -> 32.82489033 | AF28: =IFERROR(INDIRECT("'"&AF$2&"_Acceptors of LAPM'!"&ADDRESS(ROW(accMeth3AvgAge),COLUMN(accyr8))),"") -> 32.80812817 | AG28: =IFERROR(INDIRECT("'"&AG$2&"_Acceptors of LAPM'!"&ADDRESS(ROW(accMeth3AvgAge),COLUMN(accyr9))),"") -> 32.77965519 | AH28: =IFERROR(INDIRECT("'"&Y$2&"_Acceptors of LAPM'!"&ADDRESS(ROW(accMeth3AvgAge),COLUMN(accyr10))),"") -> 32.74340858
B29: Implant | C29: =IFERROR(INDIRECT("'"&C$2&"_Acceptors of LAPM'!"&ADDRESS(ROW(accMeth4AvgAge),COLUMN(accyr1))),"") -> 31.2735828 | D29: =IFERROR(INDIRECT("'"&D$2&"_Acceptors of LAPM'!"&ADDRESS(ROW(accMeth4AvgAge),COLUMN(accyr2))),"") -> 31.59064144 | E29: =IFERROR(INDIRECT("'"&E$2&"_Acceptors of LAPM'!"&ADDRESS(ROW(accMeth4AvgAge),COLUMN(accyr3))),"") -> 31.72121478 | F29: =IFERROR(INDIRECT("'"&F$2&"_Acceptors of LAPM'!"&ADDRESS(ROW(accMeth4AvgAge),COLUMN(accyr4))),"") -> 31.72051391 | G29: =IFERROR(INDIRECT("'"&G$2&"_Acceptors of LAPM'!"&ADDRESS(ROW(accMeth4AvgAge),COLUMN(accyr5))),"") -> 31.62276056 | H29: =IFERROR(INDIRECT("'"&H$2&"_Acceptors of LAPM'!"&ADDRESS(ROW(accMeth4AvgAge),COLUMN(accyr6))),"") -> 31.45425439 | I29: =IFERROR(INDIRECT("'"&I$2&"_Acceptors of LAPM'!"&ADDRESS(ROW(accMeth4AvgAge),COLUMN(accyr7))),"") -> 31.59913231 | J29: =IFERROR(INDIRECT("'"&J$2&"_Acceptors of LAPM'!"&ADDRESS(ROW(accMeth4AvgAge),COLUMN(accyr8))),"") -> 31.59959578 | K29: =IFERROR(INDIRECT("'"&K$2&"_Acceptors of LAPM'!"&ADDRESS(ROW(accMeth4AvgAge),COLUMN(accyr9))),"") -> 31.60997728 | L29: =IFERROR(INDIRECT("'"&L$2&"_Acceptors of LAPM'!"&ADDRESS(ROW(accMeth4AvgAge),COLUMN(accyr10))),"") -> 31.58261521 | N29: =IFERROR(INDIRECT("'"&N$2&"_Acceptors of LAPM'!"&ADDRESS(ROW(accMeth4AvgAge),COLUMN(accyr1))),"") -> 31.2735828 | O29: =IFERROR(INDIRECT("'"&O$2&"_Acceptors of LAPM'!"&ADDRESS(ROW(accMeth4AvgAge),COLUMN(accyr2))),"") -> 31.59064144 | P29: =IFERROR(INDIRECT("'"&P$2&"_Acceptors of LAPM'!"&ADDRESS(ROW(accMeth4AvgAge),COLUMN(accyr3))),"") -> 31.72121478 | Q29: =IFERROR(INDIRECT("'"&Q$2&"_Acceptors of LAPM'!"&ADDRESS(ROW(accMeth4AvgAge),COLUMN(accyr4))),"") -> 31.72051391 | R29: =IFERROR(INDIRECT("'"&R$2&"_Acceptors of LAPM'!"&ADDRESS(ROW(accMeth4AvgAge),COLUMN(accyr5))),"") -> 31.62276056 | S29: =IFERROR(INDIRECT("'"&S$2&"_Acceptors of LAPM'!"&ADDRESS(ROW(accMeth4AvgAge),COLUMN(accyr6))),"") -> 31.45425439 | T29: =IFERROR(INDIRECT("'"&T$2&"_Acceptors of LAPM'!"&ADDRESS(ROW(accMeth4AvgAge),COLUMN(accyr7))),"") -> 31.59913231 | U29: =IFERROR(INDIRECT("'"&U$2&"_Acceptors of LAPM'!"&ADDRESS(ROW(accMeth4AvgAge),COLUMN(accyr8))),"") -> 31.59959578 | V29: =IFERROR(INDIRECT("'"&V$2&"_Acceptors of LAPM'!"&ADDRESS(ROW(accMeth4AvgAge),COLUMN(accyr9))),"") -> 31.60997728 | W29: =IFERROR(INDIRECT("'"&W$2&"_Acceptors of LAPM'!"&ADDRESS(ROW(accMeth4AvgAge),COLUMN(accyr10))),"") -> 31.58261521 | Y29: =IFERROR(INDIRECT("'"&Y$2&"_Acceptors of LAPM'!"&ADDRESS(ROW(accMeth4AvgAge),COLUMN(accyr1))),"") -> 31.2735828 | Z29: =IFERROR(INDIRECT("'"&Z$2&"_Acceptors of LAPM'!"&ADDRESS(ROW(accMeth4AvgAge),COLUMN(accyr2))),"") -> 31.59064144 | AA29: =IFERROR(INDIRECT("'"&AA$2&"_Acceptors of LAPM'!"&ADDRESS(ROW(accMeth4AvgAge),COLUMN(accyr3))),"") -> 31.72121478 | AB29: =IFERROR(INDIRECT("'"&AB$2&"_Acceptors of LAPM'!"&ADDRESS(ROW(accMeth4AvgAge),COLUMN(accyr4))),"") -> 31.72051391 | AC29: =IFERROR(INDIRECT("'"&AC$2&"_Acceptors of LAPM'!"&ADDRESS(ROW(accMeth4AvgAge),COLUMN(accyr5))),"") -> 31.62276056 | AD29: =IFERROR(INDIRECT("'"&AD$2&"_Acceptors of LAPM'!"&ADDRESS(ROW(accMeth4AvgAge),COLUMN(accyr6))),"") -> 31.45425439 | AE29: =IFERROR(INDIRECT("'"&AE$2&"_Acceptors of LAPM'!"&ADDRESS(ROW(accMeth4AvgAge),COLUMN(accyr7))),"") -> 31.59913231 | AF29: =IFERROR(INDIRECT("'"&AF$2&"_Acceptors of LAPM'!"&ADDRESS(ROW(accMeth4AvgAge),COLUMN(accyr8))),"") -> 31.59959578 | AG29: =IFERROR(INDIRECT("'"&AG$2&"_Acceptors of LAPM'!"&ADDRESS(ROW(accMeth4AvgAge),COLUMN(accyr9))),"") -> 31.60997728 | AH29: =IFERROR(INDIRECT("'"&AH$2&"_Acceptors of LAPM'!"&ADDRESS(ROW(accMeth4AvgAge),COLUMN(accyr10))),"") -> 31.58261521
B30: Méthode des jours fixes (MJF) ou Méthode collier | C30: =IFERROR(INDIRECT("'"&C$2&"_Acceptors of LAPM'!"&ADDRESS(ROW(accMeth5AvgAge),COLUMN(accyr1))),"") ->  | D30: =IFERROR(INDIRECT("'"&D$2&"_Acceptors of LAPM'!"&ADDRESS(ROW(accMeth5AvgAge),COLUMN(accyr2))),"") ->  | E30: =IFERROR(INDIRECT("'"&E$2&"_Acceptors of LAPM'!"&ADDRESS(ROW(accMeth5AvgAge),COLUMN(accyr3))),"") ->  | F30: =IFERROR(INDIRECT("'"&F$2&"_Acceptors of LAPM'!"&ADDRESS(ROW(accMeth5AvgAge),COLUMN(accyr4))),"") ->  | G30: =IFERROR(INDIRECT("'"&G$2&"_Acceptors of LAPM'!"&ADDRESS(ROW(accMeth5AvgAge),COLUMN(accyr5))),"") ->  | H30: =IFERROR(INDIRECT("'"&H$2&"_Acceptors of LAPM'!"&ADDRESS(ROW(accMeth5AvgAge),COLUMN(accyr6))),"") ->  | I30: =IFERROR(INDIRECT("'"&I$2&"_Acceptors of LAPM'!"&ADDRESS(ROW(accMeth5AvgAge),COLUMN(accyr7))),"") ->  | J30: =IFERROR(INDIRECT("'"&J$2&"_Acceptors of LAPM'!"&ADDRESS(ROW(accMeth5AvgAge),COLUMN(accyr8))),"") ->  | K30: =IFERROR(INDIRECT("'"&K$2&"_Acceptors of LAPM'!"&ADDRESS(ROW(accMeth5AvgAge),COLUMN(accyr9))),"") ->  | L30: =IFERROR(INDIRECT("'"&L$2&"_Acceptors of LAPM'!"&ADDRESS(ROW(accMeth5AvgAge),COLUMN(accyr10))),"") ->  | N30: =IFERROR(INDIRECT("'"&N$2&"_Acceptors of LAPM'!"&ADDRESS(ROW(accMeth5AvgAge),COLUMN(accyr1))),"") ->  | O30: =IFERROR(INDIRECT("'"&O$2&"_Acceptors of LAPM'!"&ADDRESS(ROW(accMeth5AvgAge),COLUMN(accyr2))),"") ->  | P30: =IFERROR(INDIRECT("'"&P$2&"_Acceptors of LAPM'!"&ADDRESS(ROW(accMeth5AvgAge),COLUMN(accyr3))),"") ->  | Q30: =IFERROR(INDIRECT("'"&Q$2&"_Acceptors of LAPM'!"&ADDRESS(ROW(accMeth5AvgAge),COLUMN(accyr4))),"") ->  | R30: =IFERROR(INDIRECT("'"&R$2&"_Acceptors of LAPM'!"&ADDRESS(ROW(accMeth5AvgAge),COLUMN(accyr5))),"") ->  | S30: =IFERROR(INDIRECT("'"&S$2&"_Acceptors of LAPM'!"&ADDRESS(ROW(accMeth5AvgAge),COLUMN(accyr6))),"") ->  | T30: =IFERROR(INDIRECT("'"&T$2&"_Acceptors of LAPM'!"&ADDRESS(ROW(accMeth5AvgAge),COLUMN(accyr7))),"") ->  | U30: =IFERROR(INDIRECT("'"&U$2&"_Acceptors of LAPM'!"&ADDRESS(ROW(accMeth5AvgAge),COLUMN(accyr8))),"") ->  | V30: =IFERROR(INDIRECT("'"&V$2&"_Acceptors of LAPM'!"&ADDRESS(ROW(accMeth5AvgAge),COLUMN(accyr9))),"") ->  | W30: =IFERROR(INDIRECT("'"&W$2&"_Acceptors of LAPM'!"&ADDRESS(ROW(accMeth5AvgAge),COLUMN(accyr10))),"") ->  | Y30: =IFERROR(INDIRECT("'"&Y$2&"_Acceptors of LAPM'!"&ADDRESS(ROW(accMeth5AvgAge),COLUMN(accyr1))),"") ->  | Z30: =IFERROR(INDIRECT("'"&Z$2&"_Acceptors of LAPM'!"&ADDRESS(ROW(accMeth5AvgAge),COLUMN(accyr2))),"") ->  | AA30: =IFERROR(INDIRECT("'"&AA$2&"_Acceptors of LAPM'!"&ADDRESS(ROW(accMeth5AvgAge),COLUMN(accyr3))),"") ->  | AB30: =IFERROR(INDIRECT("'"&AB$2&"_Acceptors of LAPM'!"&ADDRESS(ROW(accMeth5AvgAge),COLUMN(accyr4))),"") ->  | AC30: =IFERROR(INDIRECT("'"&AC$2&"_Acceptors of LAPM'!"&ADDRESS(ROW(accMeth5AvgAge),COLUMN(accyr5))),"") ->  | AD30: =IFERROR(INDIRECT("'"&AD$2&"_Acceptors of LAPM'!"&ADDRESS(ROW(accMeth5AvgAge),COLUMN(accyr6))),"") ->  | AE30: =IFERROR(INDIRECT("'"&AE$2&"_Acceptors of LAPM'!"&ADDRESS(ROW(accMeth5AvgAge),COLUMN(accyr7))),"") ->  | AF30: =IFERROR(INDIRECT("'"&AF$2&"_Acceptors of LAPM'!"&ADDRESS(ROW(accMeth5AvgAge),COLUMN(accyr8))),"") ->  | AG30: =IFERROR(INDIRECT("'"&AG$2&"_Acceptors of LAPM'!"&ADDRESS(ROW(accMeth5AvgAge),COLUMN(accyr9))),"") ->  | AH30: =IFERROR(INDIRECT("'"&AH$2&"_Acceptors of LAPM'!"&ADDRESS(ROW(accMeth5AvgAge),COLUMN(accyr10))),"") -> 
A31: Fertility Discount Rates per LAPM
B32: Stérilisation masculine | C32: =IFERROR(INDEX(inUsualDisc,MATCH(ROUND(C26,0),inUsualDiscAge,0)),"") ->  | N32: =IFERROR(INDEX(inUsualDisc,MATCH(ROUND(N26,0),inUsualDiscAge,0)),"") ->  | Y32: =IFERROR(INDEX(inUsualDisc,MATCH(ROUND(Y26,0),inUsualDiscAge,0)),"") -> 
B33: Stérilisation féminine | C33: =IFERROR(INDEX(inUsualDisc,MATCH(ROUND(C27,0),inUsualDiscAge,0)),"") -> 1 | D33: 1 | E33: 1 | F33: 1 | G33: 1 | H33: 1 | I33: 1 | J33: 1 | K33: 1 | L33: 1 | N33: =IFERROR(INDEX(inUsualDisc,MATCH(ROUND(N27,0),inUsualDiscAge,0)),"") -> 1 | O33: 1 | P33: 1 | Q33: 1 | R33: 1 | S33: 1 | T33: 1 | U33: 1 | V33: 1 | W33: 1 | Y33: =IFERROR(INDEX(inUsualDisc,MATCH(ROUND(Y27,0),inUsualDiscAge,0)),"") -> 1 | Z33: 1 | AA33: 1 | AB33: 1 | AC33: 1 | AD33: 1 | AE33: 1 | AF33: 1 | AG33: 1 | AH33: 1
B34: DIU | C34: =IFERROR(INDEX(inUsualDisc,MATCH(ROUND(C28,0),inUsualDiscAge,0)),"") -> 1.1 | D34: 1.1 | E34: 1.1 | F34: 1.1 | G34: 1.1 | H34: 1.1 | I34: 1.1 | J34: 1.1 | K34: 1.1 | L34: 1.1 | N34: =IFERROR(INDEX(inUsualDisc,MATCH(ROUND(N28,0),inUsualDiscAge,0)),"") -> 1.1 | O34: 1.1 | P34: 1.1 | Q34: 1.1 | R34: 1.1 | S34: 1.1 | T34: 1.1 | U34: 1.1 | V34: 1.1 | W34: 1.1 | Y34: =IFERROR(INDEX(inUsualDisc,MATCH(ROUND(Y28,0),inUsualDiscAge,0)),"") -> 1.1 | Z34: 1.1 | AA34: 1.1 | AB34: 1.1 | AC34: 1.1 | AD34: 1.1 | AE34: 1.1 | AF34: 1.1 | AG34: 1.1 | AH34: 1.1
B35: Implant | C35: =IFERROR(INDEX(inUsualDisc,MATCH(ROUND(C29,0),inUsualDiscAge,0)),"") -> 1.1 | D35: 1.1 | E35: 1.1 | F35: 1.1 | G35: 1.1 | H35: 1.1 | I35: 1.1 | J35: 1.1 | K35: 1.1 | L35: 1.1 | N35: =IFERROR(INDEX(inUsualDisc,MATCH(ROUND(N29,0),inUsualDiscAge,0)),"") -> 1.1 | O35: 1.1 | P35: 1.1 | Q35: 1.1 | R35: 1.1 | S35: 1.1 | T35: 1.1 | U35: 1.1 | V35: 1.1 | W35: 1.1 | Y35: =IFERROR(INDEX(inUsualDisc,MATCH(ROUND(Y29,0),inUsualDiscAge,0)),"") -> 1.1 | Z35: 1.1 | AA35: 1.1 | AB35: 1.1 | AC35: 1.1 | AD35: 1.1 | AE35: 1.1 | AF35: 1.1 | AG35: 1.1 | AH35: 1.1
B36: Méthode des jours fixes (MJF) ou Méthode collier | C36: =IFERROR(INDEX(inUsualDisc,MATCH(ROUND(C30,0),inUsualDiscAge,0)),"") ->  | N36: =IFERROR(INDEX(inUsualDisc,MATCH(ROUND(N30,0),inUsualDiscAge,0)),"") ->  | Y36: =IFERROR(INDEX(inUsualDisc,MATCH(ROUND(Y30,0),inUsualDiscAge,0)),"") -> 
A37: Abortion Ratio | C37: =inUsual3 -> 20.6887007 | D37: 20.6887007 | E37: 20.6887007 | F37: 20.6887007 | G37: 20.6887007 | H37: 20.6887007 | I37: 20.6887007 | J37: 20.6887007 | K37: 20.6887007 | L37: 20.6887007 | N37: =inScen13 -> 20.6887007 | O37: 20.6887007 | P37: 20.6887007 | Q37: 20.6887007 | R37: 20.6887007 | S37: 20.6887007 | T37: 20.6887007 | U37: 20.6887007 | V37: 20.6887007 | W37: 20.6887007 | Y37: =inScen23 -> 20.6887007 | Z37: 20.6887007 | AA37: 20.6887007 | AB37: 20.6887007 | AC37: 20.6887007 | AD37: 20.6887007 | AE37: 20.6887007 | AF37: 20.6887007 | AG37: 20.6887007 | AH37: 20.6887007
A38: % des grossesses non-désirées qui se terminent par un avortement | C38: =inUsual2 -> 0.31 | D38: 0.31 | E38: 0.31 | F38: 0.31 | G38: 0.31 | H38: 0.31 | I38: 0.31 | J38: 0.31 | K38: 0.31 | L38: 0.31 | N38: =inScen12 -> 0.31 | O38: 0.31 | P38: 0.31 | Q38: 0.31 | R38: 0.31 | S38: 0.31 | T38: 0.31 | U38: 0.31 | V38: 0.31 | W38: 0.31 | Y38: =inScen22 -> 0.31 | Z38: 0.31 | AA38: 0.31 | AB38: 0.31 | AC38: 0.31 | AD38: 0.31 | AE38: 0.31 | AF38: 0.31 | AG38: 0.31 | AH38: 0.31
A39: % abortions that are unsafe | C39: =inUsual5/inUsual3 -> 0.9576019982 | D39: 0.9576019982 | E39: 0.9576019982 | F39: 0.9576019982 | G39: 0.9576019982 | H39: 0.9576019982 | I39: 0.9576019982 | J39: 0.9576019982 | K39: 0.9576019982 | L39: 0.9576019982 | N39: =inScen15/inScen13 -> 0.9576019982 | O39: 0.9576019982 | P39: 0.9576019982 | Q39: 0.9576019982 | R39: 0.9576019982 | S39: 0.9576019982 | T39: 0.9576019982 | U39: 0.9576019982 | V39: 0.9576019982 | W39: 0.9576019982 | Y39: =inScen25/inScen23 -> 0.9576019982 | Z39: 0.9576019982 | AA39: 0.9576019982 | AB39: 0.9576019982 | AC39: 0.9576019982 | AD39: 0.9576019982 | AE39: 0.9576019982 | AF39: 0.9576019982 | AG39: 0.9576019982 | AH39: 0.9576019982
A40: Mort-nés (pour 1000 naissances vivantes) | C40: =inUsual4 -> 21.8173 | D40: 21.8173 | E40: 21.8173 | F40: 21.8173 | G40: 21.8173 | H40: 21.8173 | I40: 21.8173 | J40: 21.8173 | K40: 21.8173 | L40: 21.8173 | N40: =inScen14 -> 21.8173 | O40: 21.8173 | P40: 21.8173 | Q40: 21.8173 | R40: 21.8173 | S40: 21.8173 | T40: 21.8173 | U40: 21.8173 | V40: 21.8173 | W40: 21.8173 | Y40: =inScen24 -> 21.8173 | Z40: 21.8173 | AA40: 21.8173 | AB40: 21.8173 | AC40: 21.8173 | AD40: 21.8173 | AE40: 21.8173 | AF40: 21.8173 | AG40: 21.8173 | AH40: 21.8173
A41: Miscarriages per pregnancy | C41: =srcConst1 -> 0.201 | D41: 0.201 | E41: 0.201 | F41: 0.201 | G41: 0.201 | H41: 0.201 | I41: 0.201 | J41: 0.201 | K41: 0.201 | L41: 0.201 | N41: 0.201 | O41: 0.201 | P41: 0.201 | Q41: 0.201 | R41: 0.201 | S41: 0.201 | T41: 0.201 | U41: 0.201 | V41: 0.201 | W41: 0.201 | Y41: 0.201 | Z41: 0.201 | AA41: 0.201 | AB41: 0.201 | AC41: 0.201 | AD41: 0.201 | AE41: 0.201 | AF41: 0.201 | AG41: 0.201 | AH41: 0.201
A42: Miscarriages per abortion | C42: =srcConst2 -> 0.06609662331 | D42: 0.06609662331 | E42: 0.06609662331 | F42: 0.06609662331 | G42: 0.06609662331 | H42: 0.06609662331 | I42: 0.06609662331 | J42: 0.06609662331 | K42: 0.06609662331 | L42: 0.06609662331 | N42: 0.06609662331 | O42: 0.06609662331 | P42: 0.06609662331 | Q42: 0.06609662331 | R42: 0.06609662331 | S42: 0.06609662331 | T42: 0.06609662331 | U42: 0.06609662331 | V42: 0.06609662331 | W42: 0.06609662331 | Y42: 0.06609662331 | Z42: 0.06609662331 | AA42: 0.06609662331 | AB42: 0.06609662331 | AC42: 0.06609662331 | AD42: 0.06609662331 | AE42: 0.06609662331 | AF42: 0.06609662331 | AG42: 0.06609662331 | AH42: 0.06609662331
A43: Live births per unintended pregnancy | C43: =(1-inUsual2-(inUsual2*srcConst2))/(1+srcConst1+((inUsual4/(1000-inUsual4))*0.2)+(inUsual4/(1000-inUsual4))) -> 0.5453081119 | D43: 0.5453081119 | E43: 0.5453081119 | F43: 0.5453081119 | G43: 0.5453081119 | H43: 0.5453081119 | I43: 0.5453081119 | J43: 0.5453081119 | K43: 0.5453081119 | L43: 0.5453081119 | N43: =(1-inScen12-(inScen12*srcConst2))/(1+srcConst1+((inScen14/(1000-inScen14))*0.2)+(inScen14/(1000-inScen14))) -> 0.5453081119 | O43: 0.5453081119 | P43: 0.5453081119 | Q43: 0.5453081119 | R43: 0.5453081119 | S43: 0.5453081119 | T43: 0.5453081119 | U43: 0.5453081119 | V43: 0.5453081119 | W43: 0.5453081119 | Y43: =(1-inScen22-(inScen22*srcConst2))/(1+srcConst1+((inScen24/(1000-inScen24))*0.2)+(inScen24/(1000-inScen24))) -> 0.5453081119 | Z43: 0.5453081119 | AA43: 0.5453081119 | AB43: 0.5453081119 | AC43: 0.5453081119 | AD43: 0.5453081119 | AE43: 0.5453081119 | AF43: 0.5453081119 | AG43: 0.5453081119 | AH43: 0.5453081119
A44: Unsafe abortion to MMR ratio | C44: =INDIRECT("'default_database'!"&ADDRESS(ConCountryRow,COLUMN(srcC257))) -> 1.04 | D44: 1.04 | E44: 1.04 | F44: 1.04 | G44: 1.04 | H44: 1.04 | I44: 1.04 | J44: 1.04 | K44: 1.04 | L44: 1.04 | N44: =INDIRECT("'default_database'!"&ADDRESS(ConCountryRow,COLUMN(srcC257))) -> 1.04 | O44: 1.04 | P44: 1.04 | Q44: 1.04 | R44: 1.04 | S44: 1.04 | T44: 1.04 | U44: 1.04 | V44: 1.04 | W44: 1.04 | Y44: =INDIRECT("'default_database'!"&ADDRESS(ConCountryRow,COLUMN(srcC257))) -> 1.04 | Z44: 1.04 | AA44: 1.04 | AB44: 1.04 | AC44: 1.04 | AD44: 1.04 | AE44: 1.04 | AF44: 1.04 | AG44: 1.04 | AH44: 1.04
A45: taux de mortalité maternelle | C45: =inUsual124 -> 444 | D45: =inUsual125 -> 428 | E45: =inUsual126 -> 412 | F45: =inUsual127 -> 396 | G45: =inUsual128 -> 380 | H45: =inUsual129 -> 364 | I45: =inUsual130 -> 348 | J45: =inUsual131 -> 332 | K45: =inUsual132 -> 316 | L45: =inUsual133 -> 300 | N45: =inScen1124 -> 444 | O45: =inScen1125 -> 428 | P45: =inScen1126 -> 412 | Q45: =inScen1127 -> 396 | R45: =inScen1128 -> 380 | S45: =inScen1129 -> 364 | T45: =inScen1130 -> 348 | U45: =inScen1131 -> 332 | V45: =inScen1132 -> 316 | W45: =inScen1133 -> 300 | Y45: =inScen2124 -> 444 | Z45: =inScen2125 -> 428 | AA45: =inScen2126 -> 412 | AB45: =inScen2127 -> 396 | AC45: =inScen2128 -> 380 | AD45: =inScen2129 -> 364 | AE45: =inScen2130 -> 348 | AF45: =inScen2131 -> 332 | AG45: =inScen2132 -> 316 | AH45: =inScen2133 -> 300
A46: Live birth MMR | C46: =(C45/100000)-((((inUsual3/100)*(1-C39)*(2/100000))+((inUsual3/100)*C39*(C45/100000*C44))+(inUsual3/100)*srcConst2*C45/100000)+((1+(inUsual4/(1000-inUsual4)))*srcConst1*C45/100000)+((inUsual4/(1000-inUsual4))*C45/100000)) -> 0.002452917652 | D46: 0.002364517902 | E46: 0.002276118151 | F46: 0.0021877184 | G46: 0.002099318649 | H46: 0.002010918898 | I46: 0.001922519148 | J46: 0.001834119397 | K46: 0.001745719646 | L46: 0.001657319895 | N46: =(N45/100000)-((((inScen13/100)*(1-N39)*(2/100000))+((inScen13/100)*N39*(N45/100000*N44))+(inUsual3/100)*srcConst2*N45/100000)+((1+(inScen14/(1000-inScen14)))*srcConst1*N45/100000)+((inUsual4/(1000-inScen14))*N45/100000)) -> 0.002452917652 | O46: 0.002364517902 | P46: 0.002276118151 | Q46: 0.0021877184 | R46: 0.002099318649 | S46: 0.002010918898 | T46: 0.001922519148 | U46: 0.001834119397 | V46: 0.001745719646 | W46: 0.001657319895 | Y46: =(Y45/100000)-((((inScen23/100)*(1-Y39)*(2/100000))+((inScen23/100)*Y39*(Y45/100000*Y44))+(inScen23/100)*srcConst2*Y45/100000)+((1+(inScen24/(1000-inScen24)))*srcConst1*Y45/100000)+((inScen24/(1000-inScen24))*Y45/100000)) -> 0.002452917652 | Z46: 0.002364517902 | AA46: 0.002276118151 | AB46: 0.0021877184 | AC46: 0.002099318649 | AD46: 0.002010918898 | AE46: 0.001922519148 | AF46: 0.001834119397 | AG46: 0.001745719646 | AH46: 0.001657319895
A47: Maternal deaths per unintended pregnancy | C47: =(C46*$C$43)+(inUsual2*C39*C45/100000*C44)+(inUsual2*(1-C39)*(2/100000))+(inUsual2*srcConst2*C45/100000)+(C43+((inUsual4/(1000-inUsual4))*C43))*srcConst1*C45/100000+(((inUsual4/(1000-inUsual4))*C43)*C45/100000) -> 0.003351109872 | D47: 0.003230355181 | E47: 0.00310960049 | F47: 0.0029888458 | G47: 0.002868091109 | H47: 0.002747336418 | I47: 0.002626581727 | J47: 0.002505827036 | K47: 0.002385072346 | L47: 0.002264317655 | N47: =(N46*$C$43)+(inScen12*N39*N45/100000*N44)+(inScen12*(1-N39)*(2/100000))+(inScen12*srcConst2*N45/100000)+(N43+((inUsual4/(1000-inUsual4))*N43))*srcConst1*N45/100000+(((inUsual4/(1000-inUsual4))*N43)*N45/100000) -> 0.003351109872 | O47: 0.003230355181 | P47: 0.00310960049 | Q47: 0.0029888458 | R47: 0.002868091109 | S47: 0.002747336418 | T47: 0.002626581727 | U47: 0.002505827036 | V47: 0.002385072346 | W47: 0.002264317655 | Y47: =(Y46*$C$43)+(inScen22*Y39*Y45/100000*Y44)+(inScen22*(1-Y39)*(2/100000))+(inScen22*srcConst2*Y45/100000)+(Y43+((inUsual4/(1000-inUsual4))*Y43))*srcConst1*Y45/100000+(((inUsual4/(1000-inUsual4))*Y43)*Y45/100000) -> 0.003351109872 | Z47: 0.003230355181 | AA47: 0.00310960049 | AB47: 0.0029888458 | AC47: 0.002868091109 | AD47: 0.002747336418 | AE47: 0.002626581727 | AF47: 0.002505827036 | AG47: 0.002385072346 | AH47: 0.002264317655
A48: If configured for CPR
A49: TPC | C49: =inCPR1 -> 0.4756666667 | D49: =C49+cprUsualSlope -> 0.486 | E49: 0.4963333333 | F49: 0.5066666667 | G49: 0.517 | H49: 0.5273333333 | I49: 0.5376666667 | J49: 0.548 | K49: 0.5583333333 | L49: 0.5686666667 | N49: =inCPR1 -> 0.4756666667 | O49: =N49+cprScen1Slope -> 0.486 | P49: 0.4963333333 | Q49: 0.5066666667 | R49: 0.517 | S49: 0.5273333333 | T49: 0.5376666667 | U49: 0.548 | V49: 0.5583333333 | W49: 0.5686666667 | Y49: =inCPR1 -> 0.4756666667 | Z49: =Y49+cprScen2Slope -> 0.486 | AA49: 0.4963333333 | AB49: 0.5066666667 | AC49: 0.517 | AD49: 0.5273333333 | AE49: 0.5376666667 | AF49: 0.548 | AG49: 0.5583333333 | AH49: 0.5686666667
A50: # Users CPR
B51: Préservatif masculin | C51: =IFERROR(C$4*C$49*C6,"") -> 112924.0663 | D51: 119203.873 | E51: 125646.4044 | F51: 132251.6606 | G51: 139019.6415 | H51: 145950.3471 | I51: 153043.7775 | J51: 160299.9327 | K51: 167718.8125 | L51: 175300.4171 | N51: =IFERROR(N$4*N$49*N6,"") -> 112924.0663 | O51: 119203.873 | P51: 125646.4044 | Q51: 132251.6606 | R51: 139019.6415 | S51: 145950.3471 | T51: 153043.7775 | U51: 160299.9327 | V51: 167718.8125 | W51: 175300.4171 | Y51: =IFERROR(Y$4*Y$49*Y6,"") -> 112924.0663 | Z51: 119203.873 | AA51: 125646.4044 | AB51: 132251.6606 | AC51: 139019.6415 | AD51: 145950.3471 | AE51: 153043.7775 | AF51: 160299.9327 | AG51: 167718.8125 | AH51: 175300.4171
B52: Contraceptif injectable | C52: =IFERROR(C$4*C$49*C7,"") -> 1343796.389 | D52: 1418526.088 | E52: 1495192.212 | F52: 1573794.761 | G52: 1654333.734 | H52: 1736809.131 | I52: 1821220.953 | J52: 1907569.199 | K52: 1995853.869 | L52: 2086074.964 | N52: =IFERROR(N$4*N$49*N7,"") -> 1343796.389 | O52: 1418526.088 | P52: 1495192.212 | Q52: 1573794.761 | R52: 1654333.734 | S52: 1736809.131 | T52: 1821220.953 | U52: 1907569.199 | V52: 1995853.869 | W52: 2086074.964 | Y52: =IFERROR(Y$4*Y$49*Y7,"") -> 1343796.389 | Z52: 1418526.088 | AA52: 1495192.212 | AB52: 1573794.761 | AC52: 1654333.734 | AD52: 1736809.131 | AE52: 1821220.953 | AF52: 1907569.199 | AG52: 1995853.869 | AH52: 2086074.964
B53: Pilule | C53: =IFERROR(C$4*C$49*C8,"") -> 446050.0617 | D53: 470855.2982 | E53: 496303.2973 | F53: 522394.0592 | G53: 549127.5838 | H53: 576503.8712 | I53: 604522.9212 | J53: 633184.734 | K53: 662489.3095 | L53: 692436.6477 | N53: =IFERROR(N$4*N$49*N8,"") -> 446050.0617 | O53: 470855.2982 | P53: 496303.2973 | Q53: 522394.0592 | R53: 549127.5838 | S53: 576503.8712 | T53: 604522.9212 | U53: 633184.734 | V53: 662489.3095 | W53: 692436.6477 | Y53: =IFERROR(Y$4*Y$49*Y8,"") -> 446050.0617 | Z53: 470855.2982 | AA53: 496303.2973 | AB53: 522394.0592 | AC53: 549127.5838 | AD53: 576503.8712 | AE53: 604522.9212 | AF53: 633184.734 | AG53: 662489.3095 | AH53: 692436.6477
B54: Stérilisation masculine | C54: =IFERROR(C$4*C$49*C9,"") -> 0 | D54: 0 | E54: 0 | F54: 0 | G54: 0 | H54: 0 | I54: 0 | J54: 0 | K54: 0 | L54: 0 | N54: =IFERROR(N$4*N$49*N9,"") -> 0 | O54: 0 | P54: 0 | Q54: 0 | R54: 0 | S54: 0 | T54: 0 | U54: 0 | V54: 0 | W54: 0 | Y54: =IFERROR(Y$4*Y$49*Y9,"") -> 0 | Z54: 0 | AA54: 0 | AB54: 0 | AC54: 0 | AD54: 0 | AE54: 0 | AF54: 0 | AG54: 0 | AH54: 0
B55: Stérilisation féminine | C55: =IFERROR(C$4*C$49*C10,"") -> 296425.6739 | D55: 312910.1665 | E55: 329821.8115 | F55: 347160.609 | G55: 364926.5589 | H55: 383119.6612 | I55: 401739.916 | J55: 420787.3232 | K55: 440261.8829 | L55: 460163.595 | N55: =IFERROR(N$4*N$49*N10,"") -> 296425.6739 | O55: 312910.1665 | P55: 329821.8115 | Q55: 347160.609 | R55: 364926.5589 | S55: 383119.6612 | T55: 401739.916 | U55: 420787.3232 | V55: 440261.8829 | W55: 460163.595 | Y55: =IFERROR(Y$4*Y$49*Y10,"") -> 296425.6739 | Z55: 312910.1665 | AA55: 329821.8115 | AB55: 347160.609 | AC55: 364926.5589 | AD55: 383119.6612 | AE55: 401739.916 | AF55: 420787.3232 | AG55: 440261.8829 | AH55: 460163.595
B56: DIU | C56: =IFERROR(C$4*C$49*C11,"") -> 98808.55798 | D56: 104303.3888 | E56: 109940.6038 | F56: 115720.203 | G56: 121642.1863 | H56: 127706.5537 | I56: 133913.3053 | J56: 140262.4411 | K56: 146753.961 | L56: 153387.865 | N56: =IFERROR(N$4*N$49*N11,"") -> 98808.55798 | O56: 104303.3888 | P56: 109940.6038 | Q56: 115720.203 | R56: 121642.1863 | S56: 127706.5537 | T56: 133913.3053 | U56: 140262.4411 | V56: 146753.961 | W56: 153387.865 | Y56: =IFERROR(Y$4*Y$49*Y11,"") -> 98808.55798 | Z56: 104303.3888 | AA56: 109940.6038 | AB56: 115720.203 | AC56: 121642.1863 | AD56: 127706.5537 | AE56: 133913.3053 | AF56: 140262.4411 | AG56: 146753.961 | AH56: 153387.865
B57: Implant | C57: =IFERROR(C$4*C$49*C12,"") -> 118570.2696 | D57: 125164.0666 | E57: 131928.7246 | F57: 138864.2436 | G57: 145970.6235 | H57: 153247.8645 | I57: 160695.9664 | J57: 168314.9293 | K57: 176104.7532 | L57: 184065.438 | N57: =IFERROR(N$4*N$49*N12,"") -> 118570.2696 | O57: 125164.0666 | P57: 131928.7246 | Q57: 138864.2436 | R57: 145970.6235 | S57: 153247.8645 | T57: 160695.9664 | U57: 168314.9293 | V57: 176104.7532 | W57: 184065.438 | Y57: =IFERROR(Y$4*Y$49*Y12,"") -> 118570.2696 | Z57: 125164.0666 | AA57: 131928.7246 | AB57: 138864.2436 | AC57: 145970.6235 | AD57: 153247.8645 | AE57: 160695.9664 | AF57: 168314.9293 | AG57: 176104.7532 | AH57: 184065.438
B58: Méthode des jours fixes (MJF) ou Méthode collier | C58: =IFERROR(C$4*C$49*C13,"") -> 0 | D58: 0 | E58: 0 | F58: 0 | G58: 0 | H58: 0 | I58: 0 | J58: 0 | K58: 0 | L58: 0 | N58: =IFERROR(N$4*N$49*N13,"") -> 0 | O58: 0 | P58: 0 | Q58: 0 | R58: 0 | S58: 0 | T58: 0 | U58: 0 | V58: 0 | W58: 0 | Y58: =IFERROR(Y$4*Y$49*Y13,"") -> 0 | Z58: 0 | AA58: 0 | AB58: 0 | AC58: 0 | AD58: 0 | AE58: 0 | AF58: 0 | AG58: 0 | AH58: 0
B59: Autre moderne | C59: =IFERROR(C$4*C$49*C14,"") -> 31054.11822 | D59: 32781.06506 | E59: 34552.76121 | F59: 36369.20665 | G59: 38230.40141 | H59: 40136.34546 | I59: 42087.03882 | J59: 44082.48148 | K59: 46122.67345 | L59: 48207.61472 | N59: =IFERROR(N$4*N$49*N14,"") -> 31054.11822 | O59: 32781.06506 | P59: 34552.76121 | Q59: 36369.20665 | R59: 38230.40141 | S59: 40136.34546 | T59: 42087.03882 | U59: 44082.48148 | V59: 46122.67345 | W59: 48207.61472 | Y59: =IFERROR(Y$4*Y$49*Y14,"") -> 31054.11822 | Z59: 32781.06506 | AA59: 34552.76121 | AB59: 36369.20665 | AC59: 38230.40141 | AD59: 40136.34546 | AE59: 42087.03882 | AF59: 44082.48148 | AG59: 46122.67345 | AH59: 48207.61472
B60: Toutes traditionnelles | C60: =IFERROR(C$4*C$49*C15,"") -> 375472.5203 | D60: 396352.8776 | E60: 417774.2946 | F60: 439736.7714 | G60: 462240.3079 | H60: 485284.9042 | I60: 508870.5603 | J60: 532997.2761 | K60: 557665.0517 | L60: 582873.887 | N60: =IFERROR(N$4*N$49*N15,"") -> 375472.5203 | O60: 396352.8776 | P60: 417774.2946 | Q60: 439736.7714 | R60: 462240.3079 | S60: 485284.9042 | T60: 508870.5603 | U60: 532997.2761 | V60: 557665.0517 | W60: 582873.887 | Y60: =IFERROR(Y$4*Y$49*Y15,"") -> 375472.5203 | Z60: 396352.8776 | AA60: 417774.2946 | AB60: 439736.7714 | AC60: 462240.3079 | AD60: 485284.9042 | AE60: 508870.5603 | AF60: 532997.2761 | AG60: 557665.0517 | AH60: 582873.887
B61: Autres spécifiques au pays | C61: =IFERROR(C$4*C$49*C16,"") -> 0 | D61: 0 | E61: 0 | F61: 0 | G61: 0 | H61: 0 | I61: 0 | J61: 0 | K61: 0 | L61: 0 | N61: =IFERROR(N$4*N$49*N16,"") -> 0 | O61: 0 | P61: 0 | Q61: 0 | R61: 0 | S61: 0 | T61: 0 | U61: 0 | V61: 0 | W61: 0 | Y61: =IFERROR(Y$4*Y$49*Y16,"") -> 0 | Z61: 0 | AA61: 0 | AB61: 0 | AC61: 0 | AD61: 0 | AE61: 0 | AF61: 0 | AG61: 0 | AH61: 0
B62: Nombre total d’utilisatrices de PF | C62: =SUM(C51:C61) -> 2823101.657 | D62: 2980096.824 | E62: 3141160.11 | F62: 3306291.514 | G62: 3475491.037 | H62: 3648758.678 | I62: 3826094.438 | J62: 4007498.316 | K62: 4192970.313 | L62: 4382510.429 | N62: =SUM(N51:N61) -> 2823101.657 | O62: 2980096.824 | P62: 3141160.11 | Q62: 3306291.514 | R62: 3475491.037 | S62: 3648758.678 | T62: 3826094.438 | U62: 4007498.316 | V62: 4192970.313 | W62: 4382510.429 | Y62: =SUM(Y51:Y61) -> 2823101.657 | Z62: 2980096.824 | AA62: 3141160.11 | AB62: 3306291.514 | AC62: 3475491.037 | AD62: 3648758.678 | AE62: 3826094.438 | AF62: 4007498.316 | AG62: 4192970.313 | AH62: 4382510.429
A63: Pregnancies Averted
B64: Préservatif masculin | C64: =IFERROR(C51*(C$24-(1-INDIRECT("in"&$C2&"27"))),"") -> 23939.90205 | D64: =IFERROR(D51*(D24-(1-INDIRECT("in"&$C2&"27"))),"") -> 25271.22107 | E64: 26637.03773 | F64: 28037.35204 | G64: 29472.16399 | H64: 30941.47359 | I64: 32445.28084 | J64: 33983.58572 | K64: 35556.38826 | L64: 37163.68844 | N64: =IFERROR(N51*(N$24-(1-INDIRECT("in"&N$2&"27"))),"") -> 23939.90205 | O64: 25271.22107 | P64: 26637.03773 | Q64: 28037.35204 | R64: 29472.16399 | S64: 30941.47359 | T64: 32445.28084 | U64: 33983.58572 | V64: 35556.38826 | W64: 37163.68844 | Y64: =IFERROR(Y51*(Y$24-(1-INDIRECT("in"&Y$2&"27"))),"") -> 23939.90205 | Z64: 25271.22107 | AA64: 26637.03773 | AB64: 28037.35204 | AC64: 29472.16399 | AD64: 30941.47359 | AE64: 32445.28084 | AF64: 33983.58572 | AG64: 35556.38826 | AH64: 37163.68844
B65: Contraceptif injectable | C65: =IFERROR(C52*(C24-(1-INDIRECT("in"&$C2&"28"))),"") -> 377606.7852 | D65: 398605.8308 | E65: 420149.0116 | F65: 442236.3278 | G65: 464867.7791 | H65: 488043.3658 | I65: 511763.0877 | J65: 536026.9448 | K65: 560834.9372 | L65: 586187.0649 | N65: =IFERROR(N52*(N24-(1-INDIRECT("in"&N$2&"28"))),"") -> 377606.7852 | O65: 398605.8308 | P65: 420149.0116 | Q65: 442236.3278 | R65: 464867.7791 | S65: 488043.3658 | T65: 511763.0877 | U65: 536026.9448 | V65: 560834.9372 | W65: 586187.0649 | Y65: =IFERROR(Y52*(Y24-(1-INDIRECT("in"&Y$2&"28"))),"") -> 377606.7852 | Z65: 398605.8308 | AA65: 420149.0116 | AB65: 442236.3278 | AC65: 464867.7791 | AD65: 488043.3658 | AE65: 511763.0877 | AF65: 536026.9448 | AG65: 560834.9372 | AH65: 586187.0649
B66: Pilule | C66: =IFERROR(C53*(C24-(1-INDIRECT("in"&$C2&"29"))),"") -> 107498.0649 | D66: 113476.1269 | E66: 119609.0947 | F66: 125896.9683 | G66: 132339.7477 | H66: 138937.4329 | I66: 145690.024 | J66: 152597.5209 | K66: 159659.9236 | L66: 166877.2321 | N66: =IFERROR(N53*(N24-(1-INDIRECT("in"&N$2&"29"))),"") -> 107498.0649 | O66: 113476.1269 | P66: 119609.0947 | Q66: 125896.9683 | R66: 132339.7477 | S66: 138937.4329 | T66: 145690.024 | U66: 152597.5209 | V66: 159659.9236 | W66: 166877.2321 | Y66: =IFERROR(Y53*(Y24-(1-INDIRECT("in"&Y$2&"29"))),"") -> 107498.0649 | Z66: 113476.1269 | AA66: 119609.0947 | AB66: 125896.9683 | AC66: 132339.7477 | AD66: 138937.4329 | AE66: 145690.024 | AF66: 152597.5209 | AG66: 159659.9236 | AH66: 166877.2321
B67: Stérilisation masculine | C67: =IFERROR(C54*(C$24*C32-(1-INDIRECT("in"&C$2&"30"))),"") ->  | N67: =IFERROR(N54*(N$24*N32-(1-INDIRECT("in"&N$2&"30"))),"") ->  | Y67: =IFERROR(Y54*(Y$24*Y32-(1-INDIRECT("in"&Y$2&"30"))),"") -> 
B68: Stérilisation féminine | C68: =IFERROR(C55*(C$24*C33-(1-INDIRECT("in"&C$2&"31"))),"") -> 91743.74608 | D68: 96845.69653 | E68: 102079.8507 | F68: 107446.2085 | G68: 112944.77 | H68: 118575.5351 | I68: 124338.504 | J68: 130233.6765 | K68: 136261.0528 | L68: 142420.6327 | N68: =IFERROR(N55*(N$24*N33-(1-INDIRECT("in"&N$2&"31"))),"") -> 91743.74608 | O68: 96845.69653 | P68: 102079.8507 | Q68: 107446.2085 | R68: 112944.77 | S68: 118575.5351 | T68: 124338.504 | U68: 130233.6765 | V68: 136261.0528 | W68: 142420.6327 | Y68: =IFERROR(Y55*(Y$24*Y33-(1-INDIRECT("in"&Y$2&"31"))),"") -> 91743.74608 | Z68: 96845.69653 | AA68: 102079.8507 | AB68: 107446.2085 | AC68: 112944.77 | AD68: 118575.5351 | AE68: 124338.504 | AF68: 130233.6765 | AG68: 136261.0528 | AH68: 142420.6327
B69: DIU | C69: =IFERROR(C56*(C$24*C34-(1-INDIRECT("in"&C$2&"32"))),"") -> 32112.78134 | D69: 33898.60137 | E69: 35730.69625 | F69: 37609.06597 | G69: 39533.71054 | H69: 41504.62996 | I69: 43521.82423 | J69: 45585.29335 | K69: 47695.03731 | L69: 49851.05613 | N69: =IFERROR(N56*(N$24*N34-(1-INDIRECT("in"&N$2&"32"))),"") -> 32112.78134 | O69: 33898.60137 | P69: 35730.69625 | Q69: 37609.06597 | R69: 39533.71054 | S69: 41504.62996 | T69: 43521.82423 | U69: 45585.29335 | V69: 47695.03731 | W69: 49851.05613 | Y69: =IFERROR(Y56*(Y$24*Y34-(1-INDIRECT("in"&Y$2&"32"))),"") -> 32112.78134 | Z69: 33898.60137 | AA69: 35730.69625 | AB69: 37609.06597 | AC69: 39533.71054 | AD69: 41504.62996 | AE69: 43521.82423 | AF69: 45585.29335 | AG69: 47695.03731 | AH69: 49851.05613
B70: Implant | C70: =IFERROR(C57*(C$24*C35-(1-INDIRECT("in"&C$2&"33"))),"") -> 40373.17679 | D70: 42618.36468 | E70: 44921.73073 | F70: 47283.27494 | G70: 49702.99732 | H70: 52180.89786 | I70: 54716.97656 | J70: 57311.23342 | K70: 59963.66845 | L70: 62674.28164 | N70: =IFERROR(N57*(N$24*N35-(1-INDIRECT("in"&N$2&"33"))),"") -> 40373.17679 | O70: 42618.36468 | P70: 44921.73073 | Q70: 47283.27494 | R70: 49702.99732 | S70: 52180.89786 | T70: 54716.97656 | U70: 57311.23342 | V70: 59963.66845 | W70: 62674.28164 | Y70: =IFERROR(Y57*(Y$24*Y35-(1-INDIRECT("in"&Y$2&"33"))),"") -> 40373.17679 | Z70: 42618.36468 | AA70: 44921.73073 | AB70: 47283.27494 | AC70: 49702.99732 | AD70: 52180.89786 | AE70: 54716.97656 | AF70: 57311.23342 | AG70: 59963.66845 | AH70: 62674.28164
B71: Méthode des jours fixes (MJF) ou Méthode collier | C71: =IFERROR(C58*(C$24*C36-(1-INDIRECT("in"&C$2&"34"))),"") ->  | N71: =IFERROR(N58*(N$24*N36-(1-INDIRECT("in"&N$2&"34"))),"") ->  | Y71: =IFERROR(Y58*(Y$24*Y36-(1-INDIRECT("in"&Y$2&"34"))),"") -> 
B72: Autre moderne | C72: =IFERROR(C59*(C$24-(1-INDIRECT("in"&C$2&"35"))),"") -> 8074.070738 | D72: 8523.076916 | E72: 8983.717914 | F72: 9455.99373 | G72: 9939.904365 | H72: 10435.44982 | I72: 10942.63009 | J72: 11461.44519 | K72: 11991.8951 | L72: 12533.97983 | N72: =IFERROR(N59*(N$24-(1-INDIRECT("in"&N$2&"35"))),"") -> 8074.070738 | O72: 8523.076916 | P72: 8983.717914 | Q72: 9455.99373 | R72: 9939.904365 | S72: 10435.44982 | T72: 10942.63009 | U72: 11461.44519 | V72: 11991.8951 | W72: 12533.97983 | Y72: =IFERROR(Y59*(Y$24-(1-INDIRECT("in"&Y$2&"35"))),"") -> 8074.070738 | Z72: 8523.076916 | AA72: 8983.717914 | AB72: 9455.99373 | AC72: 9939.904365 | AD72: 10435.44982 | AE72: 10942.63009 | AF72: 11461.44519 | AG72: 11991.8951 | AH72: 12533.97983
B73: Toutes traditionnelles | C73: =IFERROR(C60*(C$24-(1-INDIRECT("in"&C$2&"36"))),"") -> 47497.27382 | D73: 50138.63901 | E73: 52848.44827 | F73: 55626.70158 | G73: 58473.39895 | H73: 61388.54038 | I73: 64372.12587 | J73: 67424.15543 | K73: 70544.62904 | L73: 73733.54671 | N73: =IFERROR(N60*(N$24-(1-INDIRECT("in"&N$2&"36"))),"") -> 47497.27382 | O73: 50138.63901 | P73: 52848.44827 | Q73: 55626.70158 | R73: 58473.39895 | S73: 61388.54038 | T73: 64372.12587 | U73: 67424.15543 | V73: 70544.62904 | W73: 73733.54671 | Y73: =IFERROR(Y60*(Y$24-(1-INDIRECT("in"&Y$2&"36"))),"") -> 47497.27382 | Z73: 50138.63901 | AA73: 52848.44827 | AB73: 55626.70158 | AC73: 58473.39895 | AD73: 61388.54038 | AE73: 64372.12587 | AF73: 67424.15543 | AG73: 70544.62904 | AH73: 73733.54671
B74: Autres spécifiques au pays | C74: =IFERROR(C61*(C$24-(1-INDIRECT("in"&C$2&"38"))),"") -> 0 | D74: 0 | E74: 0 | F74: 0 | G74: 0 | H74: 0 | I74: 0 | J74: 0 | K74: 0 | L74: 0 | N74: =IFERROR(N61*(N$24-(1-INDIRECT("in"&N$2&"38"))),"") -> 0 | O74: 0 | P74: 0 | Q74: 0 | R74: 0 | S74: 0 | T74: 0 | U74: 0 | V74: 0 | W74: 0 | Y74: =IFERROR(Y61*(Y$24-(1-INDIRECT("in"&Y$2&"38"))),"") -> 0 | Z74: 0 | AA74: 0 | AB74: 0 | AC74: 0 | AD74: 0 | AE74: 0 | AF74: 0 | AG74: 0 | AH74: 0
B75: Grossesses non-désirées évitées | C75: =SUM(C64:C74) -> 728845.8009 | D75: 769377.5572 | E75: 810959.5878 | F75: 853591.8928 | G75: 897274.472 | H75: 942007.3255 | I75: 987790.4533 | J75: 1034623.855 | K75: 1082507.532 | L75: 1131441.482 | N75: =SUM(N64:N74) -> 728845.8009 | O75: 769377.5572 | P75: 810959.5878 | Q75: 853591.8928 | R75: 897274.472 | S75: 942007.3255 | T75: 987790.4533 | U75: 1034623.855 | V75: 1082507.532 | W75: 1131441.482 | Y75: =SUM(Y64:Y74) -> 728845.8009 | Z75: 769377.5572 | AA75: 810959.5878 | AB75: 853591.8928 | AC75: 897274.472 | AD75: 942007.3255 | AE75: 987790.4533 | AF75: 1034623.855 | AG75: 1082507.532 | AH75: 1131441.482
A76: Live births averted | C76: =C75*C43 -> 397445.5275 | D76: =D75*D43 -> 419547.8231 | E76: 442222.8417 | F76: 465470.5834 | G76: 489291.0482 | H76: 513684.236 | I76: 538650.147 | J76: 564188.7811 | K76: 590300.1382 | L76: 616984.2185 | N76: =N75*N43 -> 397445.5275 | O76: =O75*O43 -> 419547.8231 | P76: 442222.8417 | Q76: 465470.5834 | R76: 489291.0482 | S76: 513684.236 | T76: 538650.147 | U76: 564188.7811 | V76: 590300.1382 | W76: 616984.2185 | Y76: =Y75*Y43 -> 397445.5275 | Z76: =Z75*Z43 -> 419547.8231 | AA76: 442222.8417 | AB76: 465470.5834 | AC76: 489291.0482 | AD76: 513684.236 | AE76: 538650.147 | AF76: 564188.7811 | AG76: 590300.1382 | AH76: 616984.2185
A77: Avortements évités | C77: =C75*C38 -> 225942.1983 | D77: 238507.0427 | E77: 251397.4722 | F77: 264613.4868 | G77: 278155.0863 | H77: 292022.2709 | I77: 306215.0405 | J77: 320733.3952 | K77: 335577.3348 | L77: 350746.8595 | N77: =N75*N38 -> 225942.1983 | O77: 238507.0427 | P77: 251397.4722 | Q77: 264613.4868 | R77: 278155.0863 | S77: 292022.2709 | T77: 306215.0405 | U77: 320733.3952 | V77: 335577.3348 | W77: 350746.8595 | Y77: =Y75*Y38 -> 225942.1983 | Z77: 238507.0427 | AA77: 251397.4722 | AB77: 264613.4868 | AC77: 278155.0863 | AD77: 292022.2709 | AE77: 306215.0405 | AF77: 320733.3952 | AG77: 335577.3348 | AH77: 350746.8595
A78: Avortements à risque évités | C78: =C77*C39 -> 216362.7005 | D78: 228394.8207 | E78: 240738.7217 | F78: 253394.4037 | G78: 266361.8665 | H78: 279641.1101 | I78: 293232.1347 | J78: 307134.9401 | K78: 321349.5264 | L78: 335875.8936 | N78: =N77*N39 -> 216362.7005 | O78: 228394.8207 | P78: 240738.7217 | Q78: 253394.4037 | R78: 266361.8665 | S78: 279641.1101 | T78: 293232.1347 | U78: 307134.9401 | V78: 321349.5264 | W78: 335875.8936 | Y78: =Y77*Y39 -> 216362.7005 | Z78: 228394.8207 | AA78: 240738.7217 | AB78: 253394.4037 | AC78: 266361.8665 | AD78: 279641.1101 | AE78: 293232.1347 | AF78: 307134.9401 | AG78: 321349.5264 | AH78: 335875.8936
A79: Décès maternels évités | C79: =C75*C47 -> 2442.442358 | D79: =D75*D47 -> 2485.362778 | E79: 2521.760332 | F79: 2551.254543 | G79: 2573.464935 | H79: 2588.011031 | I79: 2594.512355 | J79: 2592.588429 | K79: 2581.858778 | L79: 2561.942924 | N79: =N75*N47 -> 2442.442358 | O79: =O75*O47 -> 2485.362778 | P79: 2521.760332 | Q79: 2551.254543 | R79: 2573.464935 | S79: 2588.011031 | T79: 2594.512355 | U79: 2592.588429 | V79: 2581.858778 | W79: 2561.942924 | Y79: =Y75*Y47 -> 2442.442358 | Z79: =Z75*Z47 -> 2485.362778 | AA79: 2521.760332 | AB79: 2551.254543 | AC79: 2573.464935 | AD79: 2588.011031 | AE79: 2594.512355 | AF79: 2592.588429 | AG79: 2581.858778 | AH79: 2561.942924
A80: Décès infantils évités | C80: =C76*INDIRECT("'default_database'!"&ADDRESS(ConCountryRow,COLUMN(srcC267))) -> 11447.03638 | D80: 12083.61614 | E80: 12736.6912 | F80: 13406.26156 | G80: 14092.32722 | H80: 14794.88817 | I80: 15513.94443 | J80: 16249.49597 | K80: 17001.54282 | L80: 17770.08496 | N80: =N76*INDIRECT("'default_database'!"&ADDRESS(ConCountryRow,COLUMN(srcC267))) -> 11447.03638 | O80: 12083.61614 | P80: 12736.6912 | Q80: 13406.26156 | R80: 14092.32722 | S80: 14794.88817 | T80: 15513.94443 | U80: 16249.49597 | V80: 17001.54282 | W80: 17770.08496 | Y80: =Y76*INDIRECT("'default_database'!"&ADDRESS(ConCountryRow,COLUMN(srcC267))) -> 11447.03638 | Z80: 12083.61614 | AA80: 12736.6912 | AB80: 13406.26156 | AC80: 14092.32722 | AD80: 14794.88817 | AE80: 15513.94443 | AF80: 16249.49597 | AG80: 17001.54282 | AH80: 17770.08496
A81: Maternal DALYs averted | C81: =INDIRECT("'DALYs Averted'!"&ADDRESS(ROW(INDIRECT("CPRMatDal"&C$2)),COLUMN(DalyAvY1))) -> 152164.9505 | D81: =INDIRECT("'DALYs Averted'!"&ADDRESS(ROW(INDIRECT("CPRMatDal"&D$2)),COLUMN(DalyAvY2))) -> 154838.9066 | E81: =INDIRECT("'DALYs Averted'!"&ADDRESS(ROW(INDIRECT("CPRMatDal"&E$2)),COLUMN(DalyAvY3))) -> 157106.486 | F81: =INDIRECT("'DALYs Averted'!"&ADDRESS(ROW(INDIRECT("CPRMatDal"&F$2)),COLUMN(DalyAvY4))) -> 158943.9849 | G81: =INDIRECT("'DALYs Averted'!"&ADDRESS(ROW(INDIRECT("CPRMatDal"&G$2)),COLUMN(DalyAvY5))) -> 160327.6995 | H81: =INDIRECT("'DALYs Averted'!"&ADDRESS(ROW(INDIRECT("CPRMatDal"&H$2)),COLUMN(DalyAvY6))) -> 161233.926 | I81: =INDIRECT("'DALYs Averted'!"&ADDRESS(ROW(INDIRECT("CPRMatDal"&I$2)),COLUMN(DalyAvY7))) -> 161638.9606 | J81: =INDIRECT("'DALYs Averted'!"&ADDRESS(ROW(INDIRECT("CPRMatDal"&J$2)),COLUMN(DalyAvY8))) -> 161519.0994 | K81: =INDIRECT("'DALYs Averted'!"&ADDRESS(ROW(INDIRECT("CPRMatDal"&K$2)),COLUMN(DalyAvY9))) -> 160850.6386 | L81: =INDIRECT("'DALYs Averted'!"&ADDRESS(ROW(INDIRECT("CPRMatDal"&L$2)),COLUMN(DalyAvY10))) -> 159609.8745 | N81: =INDIRECT("'DALYs Averted'!"&ADDRESS(ROW(INDIRECT("CPRMatDal"&N$2)),COLUMN(DalyAvY1))) -> 152164.9505 | O81: =INDIRECT("'DALYs Averted'!"&ADDRESS(ROW(INDIRECT("CPRMatDal"&O$2)),COLUMN(DalyAvY2))) -> 154838.9066 | P81: =INDIRECT("'DALYs Averted'!"&ADDRESS(ROW(INDIRECT("CPRMatDal"&P$2)),COLUMN(DalyAvY3))) -> 157106.486 | Q81: =INDIRECT("'DALYs Averted'!"&ADDRESS(ROW(INDIRECT("CPRMatDal"&Q$2)),COLUMN(DalyAvY4))) -> 158943.9849 | R81: =INDIRECT("'DALYs Averted'!"&ADDRESS(ROW(INDIRECT("CPRMatDal"&R$2)),COLUMN(DalyAvY5))) -> 160327.6995 | S81: =INDIRECT("'DALYs Averted'!"&ADDRESS(ROW(INDIRECT("CPRMatDal"&S$2)),COLUMN(DalyAvY6))) -> 161233.926 | T81: =INDIRECT("'DALYs Averted'!"&ADDRESS(ROW(INDIRECT("CPRMatDal"&T$2)),COLUMN(DalyAvY7))) -> 161638.9606 | U81: =INDIRECT("'DALYs Averted'!"&ADDRESS(ROW(INDIRECT("CPRMatDal"&U$2)),COLUMN(DalyAvY8))) -> 161519.0994 | V81: =INDIRECT("'DALYs Averted'!"&ADDRESS(ROW(INDIRECT("CPRMatDal"&V$2)),COLUMN(DalyAvY9))) -> 160850.6386 | W81: =INDIRECT("'DALYs Averted'!"&ADDRESS(ROW(INDIRECT("CPRMatDal"&W$2)),COLUMN(DalyAvY10))) -> 159609.8745 | Y81: =INDIRECT("'DALYs Averted'!"&ADDRESS(ROW(INDIRECT("CPRMatDal"&Y$2)),COLUMN(DalyAvY1))) -> 152164.9505 | Z81: =INDIRECT("'DALYs Averted'!"&ADDRESS(ROW(INDIRECT("CPRMatDal"&Z$2)),COLUMN(DalyAvY2))) -> 154838.9066 | AA81: =INDIRECT("'DALYs Averted'!"&ADDRESS(ROW(INDIRECT("CPRMatDal"&AA$2)),COLUMN(DalyAvY3))) -> 157106.486 | AB81: =INDIRECT("'DALYs Averted'!"&ADDRESS(ROW(INDIRECT("CPRMatDal"&AB$2)),COLUMN(DalyAvY4))) -> 158943.9849 | AC81: =INDIRECT("'DALYs Averted'!"&ADDRESS(ROW(INDIRECT("CPRMatDal"&AC$2)),COLUMN(DalyAvY5))) -> 160327.6995 | AD81: =INDIRECT("'DALYs Averted'!"&ADDRESS(ROW(INDIRECT("CPRMatDal"&AD$2)),COLUMN(DalyAvY6))) -> 161233.926 | AE81: =INDIRECT("'DALYs Averted'!"&ADDRESS(ROW(INDIRECT("CPRMatDal"&AE$2)),COLUMN(DalyAvY7))) -> 161638.9606 | AF81: =INDIRECT("'DALYs Averted'!"&ADDRESS(ROW(INDIRECT("CPRMatDal"&AF$2)),COLUMN(DalyAvY8))) -> 161519.0994 | AG81: =INDIRECT("'DALYs Averted'!"&ADDRESS(ROW(INDIRECT("CPRMatDal"&AG$2)),COLUMN(DalyAvY9))) -> 160850.6386 | AH81: =INDIRECT("'DALYs Averted'!"&ADDRESS(ROW(INDIRECT("CPRMatDal"&AH$2)),COLUMN(DalyAvY10))) -> 159609.8745
A82: PBI Child DALYS averted | C82: =INDIRECT("'DALYs Averted'!"&ADDRESS(ROW(INDIRECT("CPRInfDal"&C$2)),COLUMN(DalyAvY1))) -> 967846.9255 | D82: =INDIRECT("'DALYs Averted'!"&ADDRESS(ROW(INDIRECT("CPRInfDal"&D$2)),COLUMN(DalyAvY2))) -> 1021669.745 | E82: =INDIRECT("'DALYs Averted'!"&ADDRESS(ROW(INDIRECT("CPRInfDal"&E$2)),COLUMN(DalyAvY3))) -> 1076887.241 | F82: =INDIRECT("'DALYs Averted'!"&ADDRESS(ROW(INDIRECT("CPRInfDal"&F$2)),COLUMN(DalyAvY4))) -> 1133499.415 | G82: =INDIRECT("'DALYs Averted'!"&ADDRESS(ROW(INDIRECT("CPRInfDal"&G$2)),COLUMN(DalyAvY5))) -> 1191506.266 | H82: =INDIRECT("'DALYs Averted'!"&ADDRESS(ROW(INDIRECT("CPRInfDal"&H$2)),COLUMN(DalyAvY6))) -> 1250907.795 | I82: =INDIRECT("'DALYs Averted'!"&ADDRESS(ROW(INDIRECT("CPRInfDal"&I$2)),COLUMN(DalyAvY7))) -> 1311704.001 | J82: =INDIRECT("'DALYs Averted'!"&ADDRESS(ROW(INDIRECT("CPRInfDal"&J$2)),COLUMN(DalyAvY8))) -> 1373894.885 | K82: =INDIRECT("'DALYs Averted'!"&ADDRESS(ROW(INDIRECT("CPRInfDal"&K$2)),COLUMN(DalyAvY9))) -> 1437480.445 | L82: =INDIRECT("'DALYs Averted'!"&ADDRESS(ROW(INDIRECT("CPRInfDal"&L$2)),COLUMN(DalyAvY10))) -> 1502460.683 | N82: =INDIRECT("'DALYs Averted'!"&ADDRESS(ROW(INDIRECT("CPRInfDal"&N$2)),COLUMN(DalyAvY1))) -> 967846.9255 | O82: =INDIRECT("'DALYs Averted'!"&ADDRESS(ROW(INDIRECT("CPRInfDal"&O$2)),COLUMN(DalyAvY2))) -> 1021669.745 | P82: =INDIRECT("'DALYs Averted'!"&ADDRESS(ROW(INDIRECT("CPRInfDal"&P$2)),COLUMN(DalyAvY3))) -> 1076887.241 | Q82: =INDIRECT("'DALYs Averted'!"&ADDRESS(ROW(INDIRECT("CPRInfDal"&Q$2)),COLUMN(DalyAvY4))) -> 1133499.415 | R82: =INDIRECT("'DALYs Averted'!"&ADDRESS(ROW(INDIRECT("CPRInfDal"&R$2)),COLUMN(DalyAvY5))) -> 1191506.266 | S82: =INDIRECT("'DALYs Averted'!"&ADDRESS(ROW(INDIRECT("CPRInfDal"&S$2)),COLUMN(DalyAvY6))) -> 1250907.795 | T82: =INDIRECT("'DALYs Averted'!"&ADDRESS(ROW(INDIRECT("CPRInfDal"&T$2)),COLUMN(DalyAvY7))) -> 1311704.001 | U82: =INDIRECT("'DALYs Averted'!"&ADDRESS(ROW(INDIRECT("CPRInfDal"&U$2)),COLUMN(DalyAvY8))) -> 1373894.885 | V82: =INDIRECT("'DALYs Averted'!"&ADDRESS(ROW(INDIRECT("CPRInfDal"&V$2)),COLUMN(DalyAvY9))) -> 1437480.445 | W82: =INDIRECT("'DALYs Averted'!"&ADDRESS(ROW(INDIRECT("CPRInfDal"&W$2)),COLUMN(DalyAvY10))) -> 1502460.683 | Y82: =INDIRECT("'DALYs Averted'!"&ADDRESS(ROW(INDIRECT("CPRInfDal"&Y$2)),COLUMN(DalyAvY1))) -> 967846.9255 | Z82: =INDIRECT("'DALYs Averted'!"&ADDRESS(ROW(INDIRECT("CPRInfDal"&Z$2)),COLUMN(DalyAvY2))) -> 1021669.745 | AA82: =INDIRECT("'DALYs Averted'!"&ADDRESS(ROW(INDIRECT("CPRInfDal"&AA$2)),COLUMN(DalyAvY3))) -> 1076887.241 | AB82: =INDIRECT("'DALYs Averted'!"&ADDRESS(ROW(INDIRECT("CPRInfDal"&AB$2)),COLUMN(DalyAvY4))) -> 1133499.415 | AC82: =INDIRECT("'DALYs Averted'!"&ADDRESS(ROW(INDIRECT("CPRInfDal"&AC$2)),COLUMN(DalyAvY5))) -> 1191506.266 | AD82: =INDIRECT("'DALYs Averted'!"&ADDRESS(ROW(INDIRECT("CPRInfDal"&AD$2)),COLUMN(DalyAvY6))) -> 1250907.795 | AE82: =INDIRECT("'DALYs Averted'!"&ADDRESS(ROW(INDIRECT("CPRInfDal"&AE$2)),COLUMN(DalyAvY7))) -> 1311704.001 | AF82: =INDIRECT("'DALYs Averted'!"&ADDRESS(ROW(INDIRECT("CPRInfDal"&AF$2)),COLUMN(DalyAvY8))) -> 1373894.885 | AG82: =INDIRECT("'DALYs Averted'!"&ADDRESS(ROW(INDIRECT("CPRInfDal"&AG$2)),COLUMN(DalyAvY9))) -> 1437480.445 | AH82: =INDIRECT("'DALYs Averted'!"&ADDRESS(ROW(INDIRECT("CPRInfDal"&AH$2)),COLUMN(DalyAvY10))) -> 1502460.683
A83: AVCI évitées | C83: =SUM(C81:C82) -> 1120011.876 | D83: =SUM(D81:D82) -> 1176508.651 | E83: 1233993.727 | F83: 1292443.4 | G83: 1351833.966 | H83: 1412141.721 | I83: 1473342.962 | J83: 1535413.984 | K83: 1598331.084 | L83: 1662070.558 | N83: =SUM(N81:N82) -> 1120011.876 | O83: =SUM(O81:O82) -> 1176508.651 | P83: 1233993.727 | Q83: 1292443.4 | R83: 1351833.966 | S83: 1412141.721 | T83: 1473342.962 | U83: 1535413.984 | V83: 1598331.084 | W83: 1662070.558 | Y83: =SUM(Y81:Y82) -> 1120011.876 | Z83: =SUM(Z81:Z82) -> 1176508.651 | AA83: 1233993.727 | AB83: 1292443.4 | AC83: 1351833.966 | AD83: 1412141.721 | AE83: 1473342.962 | AF83: 1535413.984 | AG83: 1598331.084 | AH83: 1662070.558
A84: Coûts de soins de santé maternelle et infantile sauvés | C84: =(C75*INDIRECT(C$2 &"AvgTxCostPP"))+(C76*INDIRECT(C$2 &"AvgTxCostPLB")) -> 27769484.99 | D84: =(D75*INDIRECT(D$2 &"AvgTxCostPP"))+(D76*INDIRECT(D$2 &"AvgTxCostPLB")) -> 29313770.49 | E84: 30898072.1 | F84: 32522389.82 | G84: 34186723.66 | H84: 35891073.61 | I84: 37635439.67 | J84: 39419821.85 | K84: 41244220.13 | L84: 43108634.54 | N84: =(N75*INDIRECT(N$2 &"AvgTxCostPP"))+(N76*INDIRECT(N$2 &"AvgTxCostPLB")) -> 27769484.99 | O84: =(O75*INDIRECT(O$2 &"AvgTxCostPP"))+(O76*INDIRECT(O$2 &"AvgTxCostPLB")) -> 29313770.49 | P84: 30898072.1 | Q84: 32522389.82 | R84: 34186723.66 | S84: 35891073.61 | T84: 37635439.67 | U84: 39419821.85 | V84: 41244220.13 | W84: 43108634.54 | Y84: =(Y75*INDIRECT(Y$2 &"AvgTxCostPP"))+(Y76*INDIRECT(Y$2 &"AvgTxCostPLB")) -> 27769484.99 | Z84: =(Z75*INDIRECT(Z$2 &"AvgTxCostPP"))+(Z76*INDIRECT(Z$2 &"AvgTxCostPLB")) -> 29313770.49 | AA84: 30898072.1 | AB84: 32522389.82 | AC84: 34186723.66 | AD84: 35891073.61 | AE84: 37635439.67 | AF84: 39419821.85 | AG84: 41244220.13 | AH84: 43108634.54
A85: besoin non satisfait | C85: =inUnmet1 -> 0.256 | D85: =C85-cprUsualSlope -> 0.2456666667 | E85: 0.2353333333 | F85: 0.225 | G85: 0.2146666667 | H85: 0.2043333333 | I85: 0.194 | J85: 0.1836666667 | K85: 0.1733333333 | L85: 0.163 | N85: =inUnmet1 -> 0.256 | O85: =N85-cprScen1Slope -> 0.2456666667 | P85: 0.2353333333 | Q85: 0.225 | R85: 0.2146666667 | S85: 0.2043333333 | T85: 0.194 | U85: 0.1836666667 | V85: 0.1733333333 | W85: 0.163 | Y85: =inUnmet1 -> 0.256 | Z85: =Y85-cprScen2Slope -> 0.2456666667 | AA85: 0.2353333333 | AB85: 0.225 | AC85: 0.2146666667 | AD85: 0.2043333333 | AE85: 0.194 | AF85: 0.1836666667 | AG85: 0.1733333333 | AH85: 0.163
A86: Annual costs per method (cost * number users):
B87: Préservatif masculin | C87: =IFERROR(C51*inFPC1,"") -> 468634.875 | D87: 494696.0728 | E87: 521432.5782 | F87: 548844.3913 | G87: 576931.5121 | H87: 605693.9406 | I87: 635131.6767 | J87: 665244.7205 | K87: 696033.072 | L87: 727496.7312 | N87: =IFERROR(N51*inFPC1,"") -> 468634.875 | O87: 494696.0728 | P87: 521432.5782 | Q87: 548844.3913 | R87: 576931.5121 | S87: 605693.9406 | T87: 635131.6767 | U87: 665244.7205 | V87: 696033.072 | W87: 727496.7312 | Y87: =IFERROR(Y51*inFPC1,"") -> 468634.875 | Z87: 494696.0728 | AA87: 521432.5782 | AB87: 548844.3913 | AC87: 576931.5121 | AD87: 605693.9406 | AE87: 635131.6767 | AF87: 665244.7205 | AG87: 696033.072 | AH87: 727496.7312
B88: Contraceptif injectable | C88: =IFERROR(C52*inFPC2,"") -> 12282298.99 | D88: 12965328.45 | E88: 13666056.82 | F88: 14384484.11 | G88: 15120610.32 | H88: 15874435.46 | I88: 16645959.51 | J88: 17435182.48 | K88: 18242104.36 | L88: 19066725.17 | N88: =IFERROR(N52*inFPC2,"") -> 12282298.99 | O88: 12965328.45 | P88: 13666056.82 | Q88: 14384484.11 | R88: 15120610.32 | S88: 15874435.46 | T88: 16645959.51 | U88: 17435182.48 | V88: 18242104.36 | W88: 19066725.17 | Y88: =IFERROR(Y52*inFPC2,"") -> 12282298.99 | Z88: 12965328.45 | AA88: 13666056.82 | AB88: 14384484.11 | AC88: 15120610.32 | AD88: 15874435.46 | AE88: 16645959.51 | AF88: 17435182.48 | AG88: 18242104.36 | AH88: 19066725.17
B89: Pilule | C89: =IFERROR(C53*inFPC3,"") -> 3889556.538 | D89: 4105858.2 | E89: 4327764.753 | F89: 4555276.196 | G89: 4788392.531 | H89: 5027113.757 | I89: 5271439.873 | J89: 5521370.88 | K89: 5776906.779 | L89: 6038047.568 | N89: =IFERROR(N53*inFPC3,"") -> 3889556.538 | O89: 4105858.2 | P89: 4327764.753 | Q89: 4555276.196 | R89: 4788392.531 | S89: 5027113.757 | T89: 5271439.873 | U89: 5521370.88 | V89: 5776906.779 | W89: 6038047.568 | Y89: =IFERROR(Y53*inFPC3,"") -> 3889556.538 | Z89: 4105858.2 | AA89: 4327764.753 | AB89: 4555276.196 | AC89: 4788392.531 | AD89: 5027113.757 | AE89: 5271439.873 | AF89: 5521370.88 | AG89: 5776906.779 | AH89: 6038047.568
B90: Stérilisation masculine | C90: =IFERROR(C54*inFPC4,"") -> 0 | D90: 0 | E90: 0 | F90: 0 | G90: 0 | H90: 0 | I90: 0 | J90: 0 | K90: 0 | L90: 0 | N90: =IFERROR(N54*inFPC4,"") -> 0 | O90: 0 | P90: 0 | Q90: 0 | R90: 0 | S90: 0 | T90: 0 | U90: 0 | V90: 0 | W90: 0 | Y90: =IFERROR(Y54*inFPC4,"") -> 0 | Z90: 0 | AA90: 0 | AB90: 0 | AC90: 0 | AD90: 0 | AE90: 0 | AF90: 0 | AG90: 0 | AH90: 0
B91: Stérilisation féminine | C91: =IFERROR(C55*inFPC5,"") -> 827027.6303 | D91: 873019.3646 | E91: 920202.8541 | F91: 968578.099 | G91: 1018145.099 | H91: 1068903.855 | I91: 1120854.366 | J91: 1173996.632 | K91: 1228330.653 | L91: 1283856.43 | N91: =IFERROR(N55*inFPC5,"") -> 827027.6303 | O91: 873019.3646 | P91: 920202.8541 | Q91: 968578.099 | R91: 1018145.099 | S91: 1068903.855 | T91: 1120854.366 | U91: 1173996.632 | V91: 1228330.653 | W91: 1283856.43 | Y91: =IFERROR(Y55*inFPC5,"") -> 827027.6303 | Z91: 873019.3646 | AA91: 920202.8541 | AB91: 968578.099 | AC91: 1018145.099 | AD91: 1068903.855 | AE91: 1120854.366 | AF91: 1173996.632 | AG91: 1228330.653 | AH91: 1283856.43
B92: DIU | C92: =IFERROR(C56*inFPC6,"") -> 99796.64356 | D92: 105346.4227 | E92: 111040.0099 | F92: 116877.405 | G92: 122858.6082 | H92: 128983.6193 | I92: 135252.4384 | J92: 141665.0655 | K92: 148221.5006 | L92: 154921.7437 | N92: =IFERROR(N56*inFPC6,"") -> 99796.64356 | O92: 105346.4227 | P92: 111040.0099 | Q92: 116877.405 | R92: 122858.6082 | S92: 128983.6193 | T92: 135252.4384 | U92: 141665.0655 | V92: 148221.5006 | W92: 154921.7437 | Y92: =IFERROR(Y56*inFPC6,"") -> 99796.64356 | Z92: 105346.4227 | AA92: 111040.0099 | AB92: 116877.405 | AC92: 122858.6082 | AD92: 128983.6193 | AE92: 135252.4384 | AF92: 141665.0655 | AG92: 148221.5006 | AH92: 154921.7437
B93: Implant | C93: =IFERROR(C57*inFPC7,"") -> 917733.8865 | D93: 968769.8755 | E93: 1021128.328 | F93: 1074809.245 | G93: 1129812.626 | H93: 1186138.471 | I93: 1243786.78 | J93: 1302757.553 | K93: 1363050.789 | L93: 1424666.49 | N93: =IFERROR(N57*inFPC7,"") -> 917733.8865 | O93: 968769.8755 | P93: 1021128.328 | Q93: 1074809.245 | R93: 1129812.626 | S93: 1186138.471 | T93: 1243786.78 | U93: 1302757.553 | V93: 1363050.789 | W93: 1424666.49 | Y93: =IFERROR(Y57*inFPC7,"") -> 917733.8865 | Z93: 968769.8755 | AA93: 1021128.328 | AB93: 1074809.245 | AC93: 1129812.626 | AD93: 1186138.471 | AE93: 1243786.78 | AF93: 1302757.553 | AG93: 1363050.789 | AH93: 1424666.49
B94: Méthode des jours fixes (MJF) ou Méthode collier | C94: =IFERROR(C58*inFPC8,"") -> 0 | D94: 0 | E94: 0 | F94: 0 | G94: 0 | H94: 0 | I94: 0 | J94: 0 | K94: 0 | L94: 0 | N94: =IFERROR(N58*inFPC8,"") -> 0 | O94: 0 | P94: 0 | Q94: 0 | R94: 0 | S94: 0 | T94: 0 | U94: 0 | V94: 0 | W94: 0 | Y94: =IFERROR(Y58*inFPC8,"") -> 0 | Z94: 0 | AA94: 0 | AB94: 0 | AC94: 0 | AD94: 0 | AE94: 0 | AF94: 0 | AG94: 0 | AH94: 0
B95: Autre moderne | C95: =IFERROR(C59*inFPC9,"") -> 155891.6735 | D95: 164560.9466 | E95: 173454.8613 | F95: 182573.4174 | G95: 191916.6151 | H95: 201484.4542 | I95: 211276.9349 | J95: 221294.057 | K95: 231535.8207 | L95: 242002.2259 | N95: =IFERROR(N59*inFPC9,"") -> 155891.6735 | O95: 164560.9466 | P95: 173454.8613 | Q95: 182573.4174 | R95: 191916.6151 | S95: 201484.4542 | T95: 211276.9349 | U95: 221294.057 | V95: 231535.8207 | W95: 242002.2259 | Y95: =IFERROR(Y59*inFPC9,"") -> 155891.6735 | Z95: 164560.9466 | AA95: 173454.8613 | AB95: 182573.4174 | AC95: 191916.6151 | AD95: 201484.4542 | AE95: 211276.9349 | AF95: 221294.057 | AG95: 231535.8207 | AH95: 242002.2259
B96: Toutes traditionnelles | C96: =IFERROR(C60*inFPC10,"") -> 0 | D96: 0 | E96: 0 | F96: 0 | G96: 0 | H96: 0 | I96: 0 | J96: 0 | K96: 0 | L96: 0 | N96: =IFERROR(N60*inFPC10,"") -> 0 | O96: 0 | P96: 0 | Q96: 0 | R96: 0 | S96: 0 | T96: 0 | U96: 0 | V96: 0 | W96: 0 | Y96: =IFERROR(Y60*inFPC10,"") -> 0 | Z96: 0 | AA96: 0 | AB96: 0 | AC96: 0 | AD96: 0 | AE96: 0 | AF96: 0 | AG96: 0 | AH96: 0
B97: Autres spécifiques au pays | C97: =IFERROR(C61*inFPC11,"") -> 0 | D97: 0 | E97: 0 | F97: 0 | G97: 0 | H97: 0 | I97: 0 | J97: 0 | K97: 0 | L97: 0 | N97: =IFERROR(N61*inFPC11,"") -> 0 | O97: 0 | P97: 0 | Q97: 0 | R97: 0 | S97: 0 | T97: 0 | U97: 0 | V97: 0 | W97: 0 | Y97: =IFERROR(Y61*inFPC11,"") -> 0 | Z97: 0 | AA97: 0 | AB97: 0 | AC97: 0 | AD97: 0 | AE97: 0 | AF97: 0 | AG97: 0 | AH97: 0
B98: Total costs to deliver FP services | C98: =SUM(C87:C97) -> 18640940.24 | D98: =SUM(D87:D97) -> 19677579.33 | E98: 20741080.2 | F98: 21831442.87 | G98: 22948667.32 | H98: 24092753.55 | I98: 25263701.57 | J98: 26461511.38 | K98: 27686182.98 | L98: 28937716.36 | N98: =SUM(N87:N97) -> 18640940.24 | O98: =SUM(O87:O97) -> 19677579.33 | P98: 20741080.2 | Q98: 21831442.87 | R98: 22948667.32 | S98: 24092753.55 | T98: 25263701.57 | U98: 26461511.38 | V98: 27686182.98 | W98: 28937716.36 | Y98: =SUM(Y87:Y97) -> 18640940.24 | Z98: =SUM(Z87:Z97) -> 19677579.33 | AA98: 20741080.2 | AB98: 21831442.87 | AC98: 22948667.32 | AD98: 24092753.55 | AE98: 25263701.57 | AF98: 26461511.38 | AG98: 27686182.98 | AH98: 28937716.36
A99: IF CONFIGURED FOR UNMET NEED
B100: TPC | C100: =C49 -> 0.4756666667 | D100: =C100-unUsualSlope -> 0.486 | E100: 0.4963333333 | F100: 0.5066666667 | G100: 0.517 | H100: 0.5273333333 | I100: 0.5376666667 | J100: 0.548 | K100: 0.5583333333 | L100: 0.5686666667 | N100: =N49 -> 0.4756666667 | O100: =N100-unScen1Slope -> 0.486 | P100: 0.4963333333 | Q100: 0.5066666667 | R100: 0.517 | S100: 0.5273333333 | T100: 0.5376666667 | U100: 0.548 | V100: 0.5583333333 | W100: 0.5686666667 | Y100: =Y49 -> 0.4756666667 | Z100: =Y100-unScen2Slope -> 0.486 | AA100: 0.4963333333 | AB100: 0.5066666667 | AC100: 0.517 | AD100: 0.5273333333 | AE100: 0.5376666667 | AF100: 0.548 | AG100: 0.5583333333 | AH100: 0.5686666667
A101: # Users | B101: Préservatif masculin | C101: =IFERROR(C$4*C$100*C6,"") -> 112924.0663 | D101: 119203.873 | E101: 125646.4044 | F101: 132251.6606 | G101: 139019.6415 | H101: 145950.3471 | I101: 153043.7775 | J101: 160299.9327 | K101: 167718.8125 | L101: 175300.4171 | N101: =IFERROR(N$4*N$100*N6,"") -> 112924.0663 | O101: 119203.873 | P101: 125646.4044 | Q101: 132251.6606 | R101: 139019.6415 | S101: 145950.3471 | T101: 153043.7775 | U101: 160299.9327 | V101: 167718.8125 | W101: 175300.4171 | Y101: =IFERROR(Y$4*Y$100*Y6,"") -> 112924.0663 | Z101: 119203.873 | AA101: 125646.4044 | AB101: 132251.6606 | AC101: 139019.6415 | AD101: 145950.3471 | AE101: 153043.7775 | AF101: 160299.9327 | AG101: 167718.8125 | AH101: 175300.4171
B102: Contraceptif injectable | C102: =IFERROR(C$4*C$100*C7,"") -> 1343796.389 | D102: 1418526.088 | E102: 1495192.212 | F102: 1573794.761 | G102: 1654333.734 | H102: 1736809.131 | I102: 1821220.953 | J102: 1907569.199 | K102: 1995853.869 | L102: 2086074.964 | N102: =IFERROR(N$4*N$100*N7,"") -> 1343796.389 | O102: 1418526.088 | P102: 1495192.212 | Q102: 1573794.761 | R102: 1654333.734 | S102: 1736809.131 | T102: 1821220.953 | U102: 1907569.199 | V102: 1995853.869 | W102: 2086074.964 | Y102: =IFERROR(Y$4*Y$100*Y7,"") -> 1343796.389 | Z102: 1418526.088 | AA102: 1495192.212 | AB102: 1573794.761 | AC102: 1654333.734 | AD102: 1736809.131 | AE102: 1821220.953 | AF102: 1907569.199 | AG102: 1995853.869 | AH102: 2086074.964
B103: Pilule | C103: =IFERROR(C$4*C$100*C8,"") -> 446050.0617 | D103: 470855.2982 | E103: 496303.2973 | F103: 522394.0592 | G103: 549127.5838 | H103: 576503.8712 | I103: 604522.9212 | J103: 633184.734 | K103: 662489.3095 | L103: 692436.6477 | N103: =IFERROR(N$4*N$100*N8,"") -> 446050.0617 | O103: 470855.2982 | P103: 496303.2973 | Q103: 522394.0592 | R103: 549127.5838 | S103: 576503.8712 | T103: 604522.9212 | U103: 633184.734 | V103: 662489.3095 | W103: 692436.6477 | Y103: =IFERROR(Y$4*Y$100*Y8,"") -> 446050.0617 | Z103: 470855.2982 | AA103: 496303.2973 | AB103: 522394.0592 | AC103: 549127.5838 | AD103: 576503.8712 | AE103: 604522.9212 | AF103: 633184.734 | AG103: 662489.3095 | AH103: 692436.6477
B104: Stérilisation masculine | C104: =IFERROR(C$4*C$100*C9,"") -> 0 | D104: 0 | E104: 0 | F104: 0 | G104: 0 | H104: 0 | I104: 0 | J104: 0 | K104: 0 | L104: 0 | N104: =IFERROR(N$4*N$100*N9,"") -> 0 | O104: 0 | P104: 0 | Q104: 0 | R104: 0 | S104: 0 | T104: 0 | U104: 0 | V104: 0 | W104: 0 | Y104: =IFERROR(Y$4*Y$100*Y9,"") -> 0 | Z104: 0 | AA104: 0 | AB104: 0 | AC104: 0 | AD104: 0 | AE104: 0 | AF104: 0 | AG104: 0 | AH104: 0
B105: Stérilisation féminine | C105: =IFERROR(C$4*C$100*C10,"") -> 296425.6739 | D105: 312910.1665 | E105: 329821.8115 | F105: 347160.609 | G105: 364926.5589 | H105: 383119.6612 | I105: 401739.916 | J105: 420787.3232 | K105: 440261.8829 | L105: 460163.595 | N105: =IFERROR(N$4*N$100*N10,"") -> 296425.6739 | O105: 312910.1665 | P105: 329821.8115 | Q105: 347160.609 | R105: 364926.5589 | S105: 383119.6612 | T105: 401739.916 | U105: 420787.3232 | V105: 440261.8829 | W105: 460163.595 | Y105: =IFERROR(Y$4*Y$100*Y10,"") -> 296425.6739 | Z105: 312910.1665 | AA105: 329821.8115 | AB105: 347160.609 | AC105: 364926.5589 | AD105: 383119.6612 | AE105: 401739.916 | AF105: 420787.3232 | AG105: 440261.8829 | AH105: 460163.595
B106: DIU | C106: =IFERROR(C$4*C$100*C11,"") -> 98808.55798 | D106: 104303.3888 | E106: 109940.6038 | F106: 115720.203 | G106: 121642.1863 | H106: 127706.5537 | I106: 133913.3053 | J106: 140262.4411 | K106: 146753.961 | L106: 153387.865 | N106: =IFERROR(N$4*N$100*N11,"") -> 98808.55798 | O106: 104303.3888 | P106: 109940.6038 | Q106: 115720.203 | R106: 121642.1863 | S106: 127706.5537 | T106: 133913.3053 | U106: 140262.4411 | V106: 146753.961 | W106: 153387.865 | Y106: =IFERROR(Y$4*Y$100*Y11,"") -> 98808.55798 | Z106: 104303.3888 | AA106: 109940.6038 | AB106: 115720.203 | AC106: 121642.1863 | AD106: 127706.5537 | AE106: 133913.3053 | AF106: 140262.4411 | AG106: 146753.961 | AH106: 153387.865
B107: Implant | C107: =IFERROR(C$4*C$100*C12,"") -> 118570.2696 | D107: 125164.0666 | E107: 131928.7246 | F107: 138864.2436 | G107: 145970.6235 | H107: 153247.8645 | I107: 160695.9664 | J107: 168314.9293 | K107: 176104.7532 | L107: 184065.438 | N107: =IFERROR(N$4*N$100*N12,"") -> 118570.2696 | O107: 125164.0666 | P107: 131928.7246 | Q107: 138864.2436 | R107: 145970.6235 | S107: 153247.8645 | T107: 160695.9664 | U107: 168314.9293 | V107: 176104.7532 | W107: 184065.438 | Y107: =IFERROR(Y$4*Y$100*Y12,"") -> 118570.2696 | Z107: 125164.0666 | AA107: 131928.7246 | AB107: 138864.2436 | AC107: 145970.6235 | AD107: 153247.8645 | AE107: 160695.9664 | AF107: 168314.9293 | AG107: 176104.7532 | AH107: 184065.438
B108: Méthode des jours fixes (MJF) ou Méthode collier | C108: =IFERROR(C$4*C$100*C13,"") -> 0 | D108: 0 | E108: 0 | F108: 0 | G108: 0 | H108: 0 | I108: 0 | J108: 0 | K108: 0 | L108: 0 | N108: =IFERROR(N$4*N$100*N13,"") -> 0 | O108: 0 | P108: 0 | Q108: 0 | R108: 0 | S108: 0 | T108: 0 | U108: 0 | V108: 0 | W108: 0 | Y108: =IFERROR(Y$4*Y$100*Y13,"") -> 0 | Z108: 0 | AA108: 0 | AB108: 0 | AC108: 0 | AD108: 0 | AE108: 0 | AF108: 0 | AG108: 0 | AH108: 0
B109: Autre moderne | C109: =IFERROR(C$4*C$100*C14,"") -> 31054.11822 | D109: 32781.06506 | E109: 34552.76121 | F109: 36369.20665 | G109: 38230.40141 | H109: 40136.34546 | I109: 42087.03882 | J109: 44082.48148 | K109: 46122.67345 | L109: 48207.61472 | N109: =IFERROR(N$4*N$100*N14,"") -> 31054.11822 | O109: 32781.06506 | P109: 34552.76121 | Q109: 36369.20665 | R109: 38230.40141 | S109: 40136.34546 | T109: 42087.03882 | U109: 44082.48148 | V109: 46122.67345 | W109: 48207.61472 | Y109: =IFERROR(Y$4*Y$100*Y14,"") -> 31054.11822 | Z109: 32781.06506 | AA109: 34552.76121 | AB109: 36369.20665 | AC109: 38230.40141 | AD109: 40136.34546 | AE109: 42087.03882 | AF109: 44082.48148 | AG109: 46122.67345 | AH109: 48207.61472
B110: Toutes traditionnelles | C110: =IFERROR(C$4*C$100*C15,"") -> 375472.5203 | D110: 396352.8776 | E110: 417774.2946 | F110: 439736.7714 | G110: 462240.3079 | H110: 485284.9042 | I110: 508870.5603 | J110: 532997.2761 | K110: 557665.0517 | L110: 582873.887 | N110: =IFERROR(N$4*N$100*N15,"") -> 375472.5203 | O110: 396352.8776 | P110: 417774.2946 | Q110: 439736.7714 | R110: 462240.3079 | S110: 485284.9042 | T110: 508870.5603 | U110: 532997.2761 | V110: 557665.0517 | W110: 582873.887 | Y110: =IFERROR(Y$4*Y$100*Y15,"") -> 375472.5203 | Z110: 396352.8776 | AA110: 417774.2946 | AB110: 439736.7714 | AC110: 462240.3079 | AD110: 485284.9042 | AE110: 508870.5603 | AF110: 532997.2761 | AG110: 557665.0517 | AH110: 582873.887
B111: Autres spécifiques au pays | C111: =IFERROR(C$4*C$100*C16,"") -> 0 | D111: 0 | E111: 0 | F111: 0 | G111: 0 | H111: 0 | I111: 0 | J111: 0 | K111: 0 | L111: 0 | N111: =IFERROR(N$4*N$100*N16,"") -> 0 | O111: 0 | P111: 0 | Q111: 0 | R111: 0 | S111: 0 | T111: 0 | U111: 0 | V111: 0 | W111: 0 | Y111: =IFERROR(Y$4*Y$100*Y16,"") -> 0 | Z111: 0 | AA111: 0 | AB111: 0 | AC111: 0 | AD111: 0 | AE111: 0 | AF111: 0 | AG111: 0 | AH111: 0
B112: Nombre total d’utilisatrices de PF | C112: =SUM(C101:C111) -> 2823101.657 | D112: =SUM(D101:D111) -> 2980096.824 | E112: 3141160.11 | F112: 3306291.514 | G112: 3475491.037 | H112: 3648758.678 | I112: 3826094.438 | J112: 4007498.316 | K112: 4192970.313 | L112: 4382510.429 | N112: =SUM(N101:N111) -> 2823101.657 | O112: =SUM(O101:O111) -> 2980096.824 | P112: 3141160.11 | Q112: 3306291.514 | R112: 3475491.037 | S112: 3648758.678 | T112: 3826094.438 | U112: 4007498.316 | V112: 4192970.313 | W112: 4382510.429 | Y112: =SUM(Y101:Y111) -> 2823101.657 | Z112: =SUM(Z101:Z111) -> 2980096.824 | AA112: 3141160.11 | AB112: 3306291.514 | AC112: 3475491.037 | AD112: 3648758.678 | AE112: 3826094.438 | AF112: 4007498.316 | AG112: 4192970.313 | AH112: 4382510.429
A113: Pregnancies Averted
B114: Préservatif masculin | C114: =IFERROR(C101*(C$24-(1-INDIRECT("in"&C$2&"27"))),"") -> 23939.90205 | D114: 25271.22107 | E114: 26637.03773 | F114: 28037.35204 | G114: 29472.16399 | H114: 30941.47359 | I114: 32445.28084 | J114: 33983.58572 | K114: 35556.38826 | L114: 37163.68844 | N114: =IFERROR(N101*(N$24-(1-INDIRECT("in"&N$2&"27"))),"") -> 23939.90205 | O114: 25271.22107 | P114: 26637.03773 | Q114: 28037.35204 | R114: 29472.16399 | S114: 30941.47359 | T114: 32445.28084 | U114: 33983.58572 | V114: 35556.38826 | W114: 37163.68844 | Y114: =IFERROR(Y101*(Y$24-(1-INDIRECT("in"&Y$2&"27"))),"") -> 23939.90205 | Z114: 25271.22107 | AA114: 26637.03773 | AB114: 28037.35204 | AC114: 29472.16399 | AD114: 30941.47359 | AE114: 32445.28084 | AF114: 33983.58572 | AG114: 35556.38826 | AH114: 37163.68844
B115: Contraceptif injectable | C115: =IFERROR(C102*(C$24-(1-INDIRECT("in"&C$2&"28"))),"") -> 377606.7852 | D115: 398605.8308 | E115: 420149.0116 | F115: 442236.3278 | G115: 464867.7791 | H115: 488043.3658 | I115: 511763.0877 | J115: 536026.9448 | K115: 560834.9372 | L115: 586187.0649 | N115: =IFERROR(N102*(N$24-(1-INDIRECT("in"&N$2&"28"))),"") -> 377606.7852 | O115: 398605.8308 | P115: 420149.0116 | Q115: 442236.3278 | R115: 464867.7791 | S115: 488043.3658 | T115: 511763.0877 | U115: 536026.9448 | V115: 560834.9372 | W115: 586187.0649 | Y115: =IFERROR(Y102*(Y$24-(1-INDIRECT("in"&Y$2&"28"))),"") -> 377606.7852 | Z115: 398605.8308 | AA115: 420149.0116 | AB115: 442236.3278 | AC115: 464867.7791 | AD115: 488043.3658 | AE115: 511763.0877 | AF115: 536026.9448 | AG115: 560834.9372 | AH115: 586187.0649
B116: Pilule | C116: =IFERROR(C103*(C$24-(1-INDIRECT("in"&C$2&"29"))),"") -> 107498.0649 | D116: 113476.1269 | E116: 119609.0947 | F116: 125896.9683 | G116: 132339.7477 | H116: 138937.4329 | I116: 145690.024 | J116: 152597.5209 | K116: 159659.9236 | L116: 166877.2321 | N116: =IFERROR(N103*(N$24-(1-INDIRECT("in"&N$2&"29"))),"") -> 107498.0649 | O116: 113476.1269 | P116: 119609.0947 | Q116: 125896.9683 | R116: 132339.7477 | S116: 138937.4329 | T116: 145690.024 | U116: 152597.5209 | V116: 159659.9236 | W116: 166877.2321 | Y116: =IFERROR(Y103*(Y$24-(1-INDIRECT("in"&Y$2&"29"))),"") -> 107498.0649 | Z116: 113476.1269 | AA116: 119609.0947 | AB116: 125896.9683 | AC116: 132339.7477 | AD116: 138937.4329 | AE116: 145690.024 | AF116: 152597.5209 | AG116: 159659.9236 | AH116: 166877.2321
